Workbook

Sheet Contents
B1: REGULATORY REPORTING STATEMENT
B2: Australian Distribution Co.
B3: Category Analysis RIN response 2014-15
B4: CONTENTS
E7: 1. Business details | L7: 2. Expenditure
E27: 4. Alternative control services | L27: 5. Network information | S27: 6. Service & quality

Sheet Business & other details
A1: HIDE THIS COLUMN | C1: =(LOOKUP(dms_Model,dms_Model_List,dms_Worksheet_List)) -> REGULATORY REPORTING STATEMENT | L1: Data in these columns used for data validation and database purposes.
C2: =dms_TradingName -> Essential Energy | L2: Date last modified:
C3: =CONCATENATE("Category Analysis RIN response ",CRY) -> Category Analysis RIN response 2014-15 | L3: 14 April 2015 | M3: merged cell C46/47
C4: BUSINESS & OTHER DETAILS | L4: 17 April 2015 | M4: adjusted dms_RYE to automate based on dms_Model (NB: EB & CA refer to CRCP_y5)
L5: 14 May 2015 | M5: adapted this cover for use in CA & EB RINs
C7: Instructions
C8: Complete the following business details regulatory template before entering data or values in any other regulatory template. This regulatory template is linked to other cells within the spreadsheet and automatically generates column headings.
C10: SUBMISSION PARTICULARS INPUT SHEETS
C12: Entity details
C14: Trading name | D14: Essential Energy
C15: ACN / ABN | D15: =INDEX(dms_ABN_List,MATCH(dms_TradingName,dms_TradingName_List)) -> 37428185226
L17: dms_Model_List | M17: dms_Worksheet_List | O17: dms_RYE_List1 | P17: dms_RYE_List2
C18: Business address | D18: Address 1 | F18: 8 Buller Street | L18: CA | M18: REGULATORY REPORTING STATEMENT | O18: dms_RYE | P18: =CONCATENATE(LEFT(CRY, 2) &IF(CRY>"2009-10",,"") &RIGHT(CRY,2)) -> 2015
E19: Address 2 | L19: CAM/Service change Backcast | M19: REGULATORY REPORTING STATEMENT | O19: dms_RYE | P19: =CONCATENATE(LEFT(CRCP_y5, 2) &IF(CRCP_y5>"2009-10",,"") &RIGHT(CRCP_y5,2)) -> 2016
D20: Suburb | F20: Port Macquarie | L20: CPI | M20: CPI | O20: dms_RYE | P20: =CONCATENATE(LEFT(CRCP_y5, 2) &IF(CRCP_y5>"2009-10",,"") &RIGHT(CRCP_y5,2)) -> 2016
E21: State | F21: =INDEX(dms_State_List,MATCH(dms_TradingName,dms_TradingName_List)) -> NSW | G21: p/code | H21: 2444 | L21: EB | M21: REGULATORY REPORTING STATEMENT | O21: dms_RYE | P21: =CONCATENATE(LEFT(CRY, 2) &IF(CRY>"2009-10",,"") &RIGHT(CRY,2)) -> 2015
L22: PTRM | M22: POST TAX REVENUE MODEL | O22: FRCP | P22: =CONCATENATE(LEFT(FRCP_y5, 2) &IF(FRCP_y1>"2009-10",,"") &RIGHT(FRCP_y5,2)) -> 2021
C23: Postal address | D23: Address 1 | F23: PO Box 5730 | L23: Reset | M23: REGULATORY REPORTING STATEMENT | O23: FRCP | P23: =CONCATENATE(LEFT(CRCP_y5, 2) &IF(CRCP_y5>"2009-10",,"") &RIGHT(CRCP_y5,2)) -> 2016
E24: Address 2 | L24: RFM | M24: ROLL FORWARD MODEL | O24: CRCP | P24: =CONCATENATE(LEFT(CRCP_y5, 2) &IF(CRCP_y1>"2009-10",,"") &RIGHT(CRCP_y5,2)) -> 2016
D25: Suburb | F25: Port Macquarie | L25: WACC | M25: WEIGHTED AVERAGE COST OF CAPITAL | O25: dms_RYE | P25: =CONCATENATE(LEFT(CRCP_y5, 2) &IF(CRCP_y5>"2009-10",,"") &RIGHT(CRCP_y5,2)) -> 2016
E26: State | F26: NSW | G26: p/code | H26: 2444
L28: dms_TradingName_List | M28: dms_ABN_List | N28: dms_State_List | O28: dms_Sector_List | P28: dms_Segment_List | Q28: dms_FormControl | R28: dms_CRCPlength_List | S28: dms_FRCPlength_List | T28: dms_JurisdictionList
C29: Contact name/s | D29: Natalie Lindsay | G29: Catherine Waddell | L29: ActewAGL Distribution | M29: 76670568688 | N29: ACT | O29: Electricity | P29: Distribution | Q29: Revenue cap | R29: 5 | S29: 6 | T29: ACT
C30: Contact phone/s | D30: 02 6589 8419 | G30: 02 6338 3553 | L30: ActewAGL Distribution (Tx Assets) | M30: 76670568688 | N30: ACT | O30: Electricity | P30: Distribution | Q30: Revenue cap | R30: 5 | S30: 5 | T30: ACT
C31: Contact email address/s | D31: natalie.lindsay@essentialenergy.com.au | G31: catherine.waddell@essentialenergy.com.au | L31: AGN | M31: 78551685 | N31: SA | O31: Gas | P31: Distribution | Q31: Revenue cap | R31: 5 | S31: 5 | T31: SA
L32: Ausgrid | M32: 67505337385 | N32: NSW | O32: Electricity | P32: Distribution | Q32: Revenue cap | R32: 5 | S32: 5 | T32: NSW
A33: KEEP VISIBLE FOR RESET, PTRM & RFMS | C33: Regulatory control period details | L33: Ausgrid (Tx Assets) | M33: 67505337385 | N33: NSW | O33: Electricity | P33: Distribution | Q33: Revenue cap | R33: 5 | S33: 5 | T33: NSW
L34: AusNet (D) | M34: 91064651118 | N34: Vic | O34: Electricity | P34: Distribution | Q34: Revenue cap | R34: 5 | S34: 5 | T34: Vic
C35: Forthcoming regulatory control period | D35: =CONCATENATE(IF(dms_RPT="Calendar",CRCP_y5+1,(LEFT(CRCP_y5,4)+1&"-"&IF(MID(CRCP_y5,6,2)<"09","0"&RIGHT(CRCP_y5,1)+1,RIGHT(CRCP_y5,2)+1)))) -> 2016-17 | E35: =CONCATENATE(IF(dms_RPT="Calendar",FRCP_y1+1,(LEFT(FRCP_y1,4)+1&"-"&IF(MID(FRCP_y1,6,2)<"09","0"&RIGHT(FRCP_y1,1)+1,RIGHT(FRCP_y1,2)+1)))) -> 2017-18 | F35: =CONCATENATE(IF(dms_RPT="Calendar",FRCP_y2+1,(LEFT(FRCP_y2,4)+1&"-"&IF(MID(FRCP_y2,6,2)<"09","0"&RIGHT(FRCP_y2,1)+1,RIGHT(FRCP_y2,2)+1)))) -> 2018-19 | G35: =CONCATENATE(IF(dms_RPT="Calendar",FRCP_y3+1,(LEFT(FRCP_y3,4)+1&"-"&IF(MID(FRCP_y3,6,2)<"09","0"&RIGHT(FRCP_y3,1)+1,RIGHT(FRCP_y3,2)+1)))) -> 2019-20 | H35: =CONCATENATE(IF(dms_RPT="Calendar",FRCP_y4+1,(LEFT(FRCP_y4,4)+1&"-"&IF(MID(FRCP_y4,6,2)<"09","0"&RIGHT(FRCP_y4,1)+1,RIGHT(FRCP_y4,2)+1)))) -> 2020-21 | L35: AusNet (T) | M35: 78079798173 | N35: Vic | O35: Electricity | P35: Transmission | Q35: Revenue cap | R35: 5 | S35: 5 | T35: Vic
L36: Australian Distribution Co. | M36: 11222333444 | N36: - | O36: Electricity | P36: Distribution | Q36: Revenue cap | R36: 5 | S36: 5 | T36: -
L37: Australian Transmission Co. | M37: 11222333444 | N37: - | O37: Electricity | P37: Transmission | Q37: Revenue cap | R37: 5 | S37: 5 | T37: -
C38: Current regulatory control period | D38: 2011-12 | E38: =CONCATENATE(IF(dms_RPT="Calendar",CRCP_y1+1,(LEFT(CRCP_y1,4)+1&"-"&IF(MID(CRCP_y1,6,2)<"09","0"&RIGHT(CRCP_y1,1)+1,RIGHT(CRCP_y1,2)+1)))) -> 2012-13 | F38: =CONCATENATE(IF(dms_RPT="Calendar",CRCP_y2+1,(LEFT(CRCP_y2,4)+1&"-"&IF(MID(CRCP_y2,6,2)<"09","0"&RIGHT(CRCP_y2,1)+1,RIGHT(CRCP_y2,2)+1)))) -> 2013-14 | G38: =CONCATENATE(IF(dms_RPT="Calendar",CRCP_y3+1,(LEFT(CRCP_y3,4)+1&"-"&IF(MID(CRCP_y3,6,2)<"09","0"&RIGHT(CRCP_y3,1)+1,RIGHT(CRCP_y3,2)+1)))) -> 2014-15 | H38: =CONCATENATE(IF(dms_RPT="Calendar",CRCP_y4+1,(LEFT(CRCP_y4,4)+1&"-"&IF(MID(CRCP_y4,6,2)<"09","0"&RIGHT(CRCP_y4,1)+1,RIGHT(CRCP_y4,2)+1)))) -> 2015-16 | L38: CitiPower | M38: 76064651056 | N38: Vic | O38: Electricity | P38: Distribution | Q38: Revenue cap | R38: 5 | S38: 5 | T38: Vic
L39: Directlink | M39: 16779340889 | N39: NSW | O39: Electricity | P39: Transmission | Q39: Revenue cap | R39: 10 | S39: 5 | T39: Qld
L40: ElectraNet | M40: 41094482416 | N40: SA | O40: Electricity | P40: Transmission | Q40: Revenue cap | R40: 5 | S40: 5 | T40: SA
C41: Previous regulatory control period | D41: =CONCATENATE(IF(dms_RPT="Calendar",PRCP_y2-1,(LEFT(PRCP_y2,4)-1&"-"&IF(MID(PRCP_y2,3,1)="0","0"&RIGHT(PRCP_y2,2)-1,RIGHT(PRCP_y2,2)-1)))) -> 2006-07 | E41: =CONCATENATE(IF(dms_RPT="Calendar",PRCP_y3-1,(LEFT(PRCP_y3,4)-1&"-"&IF(MID(PRCP_y3,3,1)="0","0"&RIGHT(PRCP_y3,2)-1,RIGHT(PRCP_y3,2)-1)))) -> 2007-08 | F41: =CONCATENATE(IF(dms_RPT="Calendar",PRCP_y4-1,(LEFT(PRCP_y4,4)-1&"-"&IF(MID(PRCP_y4,3,1)="0","0"&RIGHT(PRCP_y4,2)-1,RIGHT(PRCP_y4,2)-1)))) -> 2008-09 | G41: =CONCATENATE(IF(dms_RPT="Calendar",PRCP_y5-1,(LEFT(PRCP_y5,4)-1&"-"&IF(MID(PRCP_y5,3,1)="0","0"&RIGHT(PRCP_y5,2)-1,RIGHT(PRCP_y5,2)-1)))) -> 2009-10 | H41: =CONCATENATE(IF(dms_RPT="Calendar",CRCP_y1-1,(LEFT(CRCP_y1,4)-1&"-"&IF(MID(CRCP_y1,3,1)="0","0"&RIGHT(CRCP_y1,2)-1,RIGHT(CRCP_y1,2)-1)))) -> 2010-11 | L41: Endeavour Energy | M41: 59253130878 | N41: NSW | O41: Electricity | P41: Distribution | Q41: Revenue cap | R41: 5 | S41: 5 | T41: NSW
L42: Energex | M42: 40078849055 | N42: Qld | O42: Electricity | P42: Distribution | Q42: Revenue cap | R42: 5 | S42: 5 | T42: Qld
L43: Ergon Energy | M43: 50087646062 | N43: Qld | O43: Electricity | P43: Distribution | Q43: Revenue cap | R43: 5 | S43: 5 | T43: Qld
A44: KEEP VISIBLE FOR CA & EB ONLY | L44: Essential Energy | M44: 37428185226 | N44: NSW | O44: Electricity | P44: Distribution | Q44: Revenue cap | R44: 5 | S44: 5 | T44: NSW
C45: Current regulatory year | D45: 2014-15 | L45: Jemena Electricity | M45: 82064651083 | N45: Vic | O45: Electricity | P45: Distribution | Q45: Revenue cap | R45: 5 | S45: 5 | T45: Vic
L46: Murraylink | M46: 79181207909 | N46: NSW | O46: Electricity | P46: Transmission | Q46: Revenue cap | R46: 5 | S46: 5 | T46: SA
L47: Powercor Australia | M47: 89064651109 | N47: Vic | O47: Electricity | P47: Distribution | Q47: Revenue cap | R47: 5 | S47: 5 | T47: Vic
L48: Powerlink | M48: 82078849233 | N48: Qld | O48: Electricity | P48: Transmission | Q48: Revenue cap | R48: 5 | S48: 5 | T48: Qld
L49: Qld,SA &ACT Gas Reset | M49: 22222222222 | N49: - | O49: Gas | P49: Distribution | Q49: ? | R49: 5 | S49: 5 | T49: -
C50: Sector | D50: =INDEX(dms_Sector_List,MATCH(dms_TradingName,dms_TradingName_List)) -> Electricity | L50: SA Power Networks | M50: 13332330749 | N50: SA | O50: Electricity | P50: Distribution | Q50: Revenue cap | R50: 5 | S50: 5 | T50: SA
C51: Segment | D51: =INDEX(dms_Segment_List,MATCH(dms_TradingName,dms_TradingName_List)) -> Distribution | L51: TasNetworks (D) | M51: 24167357299 | N51: Tas | O51: Electricity | P51: Distribution | Q51: Revenue cap | R51: 5 | S51: 5 | T51: Tas
C52: Source | D52: Reporting | L52: TasNetworks (T) | M52: 24167357299 | N52: Tas | O52: Electricity | P52: Transmission | Q52: Revenue cap | R52: 5 | S52: 5 | T52: Tas
C53: Regulatory Year Ending | D53: =(LOOKUP(dms_Model,dms_Model_List,dms_RYE_List2)) -> 2015 | L53: TransGrid | M53: 19622755774 | N53: NSW | O53: Electricity | P53: Transmission | Q53: Revenue cap | R53: 5 | S53: 5 | T53: NSW
C54: Reporting Period Type | D54: =IF(LEN(CRCP_y1)>4,"Financial","Calendar") -> Financial | L54: United Energy | M54: 70064651029 | N54: Vic | O54: Electricity | P54: Distribution | Q54: Revenue cap | R54: 5 | S54: 5 | T54: Vic
C55: Model or RIN Type | D55: CA | L55: Victorian DNSP Backcasting | M55: 33333333666 | N55: Vic | O55: Electricity | P55: Distribution | Q55: ? | R55: 5 | S55: 5 | T55: Vic
C56: Security Classification | D56: =IF(dms_DataQuality="Public","Public","Confidential") -> Confidential | L56: Victorian DNSP Reset | M56: 33333333333 | N56: Vic | O56: Electricity | P56: Distribution | Q56: ? | R56: 5 | S56: 5 | T56: Vic
C57: Data quality (actual, estimate, public, consolidated) | D57: Consolidated
C58: EBSS - First application of scheme in forthcoming period? | D58: No
C59: Amended RIN submission - amendment reason | D59: Corrected data errors in Tables 2.3.3.1 and 5.2.1. V# - conf update table 2.12
A60: HIDE THESE ROWS | C60: Template - version no. | D60: 3
C61: Dollar $ real (the last month before the FRCP_y1) | D61: =CONCATENATE(IF(dms_RPT="Financial","June ","December "),(dms_RYE)) -> June 2015 | L61: dms_SourceList | M61: dms_FormControl
C62: Form of control | D62: =INDEX(dms_FormControl_List,MATCH(dms_TradingName,dms_TradingName_List)) -> Revenue cap | L62: After appeal | M62: Revenue cap
C63: Length of current reg control period | D63: =INDEX(dms_CRCPlength_List,MATCH(dms_TradingName,dms_TradingName_List)) -> 5 | L63: Draft decision | M63: Revenue yield
C64: Length of forthcoming reg control period | D64: =INDEX(dms_FRCPlength_List,MATCH(dms_TradingName,dms_TradingName_List)) -> 5 | L64: Final decision | M64: Weighted average price cap
C65: RIN response - version no. | D65: 1 | L65: Pass through decision
C66: Jurisdiction | D66: =INDEX(dms_JurisdictionList,MATCH(dms_TradingName,dms_TradingName_List)) -> NSW | L66: PTRM annual update
L67: PTRM interim update 1
L68: PTRM interim update 2
L69: PTRM interim update 3
L70: PTRM interim update 4
L71: Regulatory proposal
L72: Reporting
L73: Revised regulatory proposal
L74: RFM annual update
L75: WACC annual update
L79: Notes
L80: RFM - Base year is usually CRCP_y1 | M80: EG. Victorian 2016-20 - base year = 2011
L81: RFM - Form of Control Field is not relevant
L82: PTRM - capture base year input by NSP | M82: ='[Published version - PTRM - TNSP - version 3 - January 2015 - Appendix A.xlsm]PTRM input'!Q7

Sheet 2.1 Expenditure summary
B1: =(LOOKUP(dms_Model,dms_Model_List,dms_Worksheet_List)) -> REGULATORY REPORTING STATEMENT
B2: Australian Distribution Co.
B3: =CONCATENATE("Category Analysis RIN response ",CRY) -> Category Analysis RIN response 2014-15
B4: 2.1 EXPENDITURE SUMMARY & RECONCILIATION
B11: TABLE 2.1.1 - STANDARD CONTROL SERVICES CAPEX
C14: Actual ($0's)
C15: =CRY -> 2014-15
A16: ED_EXP211_00001 | B16: Replacement expenditure | C16: =SUM('2.2 Repex'!D11:D113,'2.2 Repex'!D123:D130,'2.2 Repex'!D132:D140) -> 152900919.1
A17: ED_EXP211_00002 | B17: Connections | C17: =SUM('2.5 Connections'!D18,'2.5 Connections'!D20,'2.5 Connections'!D22,'2.5 Connections'!D31,'2.5 Connections'!D33,'2.5 Connections'!D35)+C33 -> 166439704.6
A18: ED_EXP211_00003 | B18: Augmentation Expenditure | C18: =SUM('2.3 Augex'!M172:M180)-'4.2 Metering'!H14 -> 121054119.8
A19: ED_EXP211_00004 | B19: Non-network | C19: =SUM('2.6 Non-network'!E15,'2.6 Non-network'!E17,'2.6 Non-network'!E19,'2.6 Non-network'!E21,'2.6 Non-network'!E23,'2.6 Non-network'!E27,'2.6 Non-network'!E29,'2.6 Non-network'!E31,'2.6 Non-network'!E35,'2.6 Non-network'!E37) -> 52925673.02
A20: ED_EXP211_00005 | B20: capitalised network overheads | C20: =SUM('2.10 Overheads'!E71:E76) -> 68347969.8
A21: ED_EXP211_00006 | B21: capitalised corporate overheads | C21: =SUM('2.10 Overheads'!E154:E167) -> 61969205.24
A22: ED_EXP211_00007 | B22: Metering
A23: ED_EXP211_00008 | B23: Public Lighting
A24: ED_EXP211_00002
A25: ED_EXP211_00003
A26: ED_EXP211_00004
A27: ED_EXP211_00005
A28: ED_EXP211_00006
A29: ED_EXP211_00007
A30: ED_EXP211_00008
A31: ED_EXP211_00009 | B31: balancing item
A32: ED_EXP211_00010 | B32: TOTAL GROSS CAPEX (includes capcons) | C32: =+SUM(C16:C31) -> 623637591.6
A33: ED_EXP211_00011 | B33: capcons | C33: 159526464.6
B35: TABLE 2.1.2 - STANDARD CONTROL SERVICES OPEX
C38: Actual ($0's)
C39: =CRY -> 2014-15
A40: ED_EXP212_00001 | B40: Vegetation management | C40: =SUM('2.7 Vegetation management'!P6:P167) -> 0
A41: ED_EXP212_00002 | B41: Maintenance | C41: =SUM('2.8 Maintenance'!M13:N18,'2.8 Maintenance'!M21:N29,'2.8 Maintenance'!M32:N37) -> 89486134.03
A42: ED_EXP212_00003 | B42: Emergency response | C42: ='2.9 Emergency Response'!D11 -> 41771363.11
A43: ED_EXP212_00004 | B43: Non-network | C43: =SUM('2.6 Non-network'!E14,'2.6 Non-network'!E16,'2.6 Non-network'!E18,'2.6 Non-network'!E20,'2.6 Non-network'!E22,'2.6 Non-network'!E26,'2.6 Non-network'!E28,'2.6 Non-network'!E30,'2.6 Non-network'!E36) -> 137399299.5
A44: ED_EXP212_00005 | B44: network overheads | C44: =SUM('2.10 Overheads'!E7:E34) -> 104929790.4
A45: ED_EXP212_00006 | B45: corporate overheads | C45: =SUM('2.10 Overheads'!E104:E124) -> 54632704.48
A46: ED_EXP212_00007 | B46: Metering
A47: ED_EXP212_00008 | B47: Public Lighting
A48: ED_EXP211_00002
A49: ED_EXP211_00003
A50: ED_EXP211_00004
A51: ED_EXP211_00005
A52: ED_EXP211_00006
A53: ED_EXP211_00007
A54: ED_EXP211_00008
A55: ED_EXP212_00009 | B55: balancing item | C55: -97228348.79
B56: TOTAL OPEX | C56: =+SUM(C40:C55) -> 330990942.7
B58: TABLE 2.1.3 - ALTERNATIVE CONTROL SERVICES CAPEX
C61: Actual ($0's)
C62: =CRY -> 2014-15
A63: ED_EXP213_00001 | B63: Connections
A64: ED_EXP213_00002 | B64: capitalised network overheads | C64: =SUM('2.10 Overheads'!E79:E84) -> 2530654.965
A65: ED_EXP213_00003 | B65: capitalised corporate overheads | C65: =SUM('2.10 Overheads'!E169:E173) -> 1739541.187
A66: ED_EXP213_00004 | B66: Metering | C66: ='4.2 Metering'!H14+'4.2 Metering'!H32 -> 3988692.722
A67: ED_EXP213_00005 | B67: Public lighting | C67: ='4.1 Public lighting'!D129 -> 1569565.203
A68: ED_EXP213_00006 | B68: Fee and quoted
A69: ED_EXP211_00002
A70: ED_EXP211_00003
A71: ED_EXP211_00004
A72: ED_EXP211_00005
A73: ED_EXP211_00006
A74: ED_EXP211_00007
A75: ED_EXP211_00008
A76: ED_EXP213_00007 | B76: balancing item
B77: TOTAL CAPEX | C77: =+SUM(C63:C76) -> 9828454.078
B79: TABLE 2.1.4 - ALTERNATIVE CONTROL SERVICES OPEX
C82: Actual ($0's)
C83: =CRY -> 2014-15
A84: ED_EXP214_00001 | B84: Connections
A85: ED_EXP214_00002 | B85: network overheads | C85: =SUM('2.10 Overheads'!E41:E46) -> 17046951.93
A86: ED_EXP214_00003 | B86: corporate overheads | C86: =SUM('2.10 Overheads'!E131:E144) -> 13281818.21
A87: ED_EXP214_00004 | B87: Metering | C87: ='4.2 Metering'!H17+SUM('4.2 Metering'!H22:H23)+'4.2 Metering'!H35+'4.2 Metering'!H40 -> 30416733.14
A88: ED_EXP214_00005 | B88: Public lighting | C88: ='4.1 Public lighting'!D133 -> 7754267.38
A89: ED_EXP214_00006 | B89: Fee and quoted | C89: =SUM('4.3 Fee-based services'!D14:D32)+SUM('4.4 Quoted services'!D11:D12) -> 24391473.14
A90: ED_EXP211_00002
A91: ED_EXP211_00003
A92: ED_EXP211_00004
A93: ED_EXP211_00005
A94: ED_EXP211_00006
A95: ED_EXP211_00007
A96: ED_EXP211_00008
A97: ED_EXP214_00007 | B97: balancing item
B98: TOTAL OPEX | C98: =+SUM(C84:C97) -> 92891243.81
B100: TABLE 2.1.5 - DUAL FUNCTION ASSETS CAPEX
C103: Actual ($0's)
C104: =CRY -> 2014-15
A105: ED_EXP215_00001 | B105: Replacement expenditure
A106: ED_EXP215_00002 | B106: Connections
A107: ED_EXP215_00003 | B107: Augmentation Expenditure
A108: ED_EXP215_00004 | B108: Non-network
A109: ED_EXP215_00005 | B109: Capitalised network overheads
A110: ED_EXP215_00006 | B110: Capitalised corporate overheads
A111: ED_EXP211_00002
A112: ED_EXP211_00003
A113: ED_EXP211_00004
A114: ED_EXP211_00005
A115: ED_EXP211_00006
A116: ED_EXP211_00007
A117: ED_EXP211_00008
A118: ED_EXP215_00007 | B118: balancing item
A119: ED_EXP215_00008 | B119: TOTAL GROSS CAPEX (includes capcons) | C119: =SUM(C105:C118) -> 0
A120: ED_EXP215_00009 | B120: capcons
B122: TABLE 2.1.6 - DUAL FUNCTION ASSETS OPEX
C125: Actual ($0's)
C126: =CRY -> 2014-15
A127: ED_EXP216_00001 | B127: Vegetation management
A128: ED_EXP216_00002 | B128: Maintenance
A129: ED_EXP216_00003 | B129: Emergency response
A130: ED_EXP216_00004 | B130: Non-network
A131: ED_EXP216_00005 | B131: Network overheads
A132: ED_EXP216_00006 | B132: Corporate overheads
A133: ED_EXP211_00002
A134: ED_EXP211_00003
A135: ED_EXP211_00004
A136: ED_EXP211_00005
A137: ED_EXP211_00006
A138: ED_EXP211_00007
A139: ED_EXP211_00008
A140: ED_EXP216_00007 | B140: balancing item
B141: TOTAL OPEX | C141: =SUM(C127:C140) -> 0

Sheet 2.2 Repex
B1: =(LOOKUP(dms_Model,dms_Model_List,dms_Worksheet_List)) -> REGULATORY REPORTING STATEMENT
B2: Australian Distribution Co.
B3: =CONCATENATE("Category Analysis RIN response ",CRY) -> Category Analysis RIN response 2014-15
B4: 2.2 REPEX
B6: TABLE 2.2.1 - REPLACEMENT EXPENDITURE, VOLUMES AND ASSET FAILURES BY ASSET CATEGORY | H6: Table 2.2.2 - SELECTED ASSET CHARACTERISTICS
D9: EXPENDITURE ($0's) | E9: ASSET REPLACEMENTS | F9: ASSET FAILURES | J9: ASSET VOLUMES CURRENTLY IN COMMISSION | K9: ASSET REPLACEMENTS
B10: ASSET GROUP | C10: ASSET CATEGORY | D10: =CRY -> 2014-15 | E10: =CRY -> 2014-15 | F10: =CRY -> 2014-15 | H10: ASSET GROUP | I10: METRIC | J10: =CRY -> 2014-15 | K10: =CRY -> 2014-15
A11: ED_REP221_00001 | B11: POLES BY: HIGHEST OPERATING VOLTAGE ; MATERIAL TYPE; STAKING (IF WOOD) | C11: Staking of a wooden pole | D11: 509884.4527 | E11: 435 | F11: 1 | G11: ED_REP222_00001 | H11: TOTAL POLES BY: FEEDER TYPE | I11: Total CBD poles | J11: 0 | K11: 0
A12: ED_REP221_00002 | C12: ˂ = 1 kV; Wood | D12: 14130246.16 | E12: 2411 | F12: 17 | G12: ED_REP222_00002 | I12: Total urban poles | J12: 83145.17242 | K12: 335.5252708
A13: ED_REP221_00003 | C13: > 1 kV & < = 11 kV; Wood | D13: 16462821.01 | E13: 2809 | F13: 31 | G13: ED_REP222_00003 | I13: Total rural long poles | J13: 640490.7978 | K13: 4569.587545
A14: ED_REP221_00004 | C14: ˃ 11 kV & < = 22 kV; Wood | D14: 15325837.29 | E14: 2615 | F14: 57 | G14: ED_REP222_00004 | I14: Total rural short poles | J14: 655535.0298 | K14: 3711.887184
A15: ED_REP221_00005 | C15: > 22 kV & < = 66 kV; Wood | D15: 7009446.04 | E15: 598 | F15: 13 | G15: ED_REP222_00005 | H15: OVERHEAD CONDUCTORS BY: CONDUCTOR LENGTH BY FEEDER TYPE | I15: Conductors CBD (km) | J15: 0 | K15: 0
A16: ED_REP221_00006 | C16: > 66 kV & < = 132 kV; Wood | D16: 395600.0064 | E16: 25 | F16: 2 | G16: ED_REP222_00006 | I16: Conductors urban (km) | J16: 4288.616921 | K16: 12.80530215
A17: ED_REP221_00007 | C17: > 132 kV; Wood | D17: 0 | E17: 0 | F17: 0 | G17: ED_REP222_00007 | I17: Conductors rural long (km) | J17: 113242.0285 | K17: 130.5767184
A18: ED_REP221_00008 | C18: ˂ = 1 kV; Concrete | D18: 164100.7434 | E18: 20 | F18: 0 | G18: ED_REP222_00008 | I18: Conductors rural short (km) | J18: 69018.94003 | K18: 202.6970507
A19: ED_REP221_00009 | C19: > 1 kV & < = 11 kV; Concrete | D19: 262561.1895 | E19: 32 | F19: 0 | G19: ED_REP222_00009 | H19: OVERHEAD CONDUCTORS BY: CONDUCTOR LENGTH MATERIAL TYPE | I19: OH conductor LV ABC | J19: 2882.277863 | K19: 1.305624248
A20: ED_REP221_00010 | C20: ˃ 11 kV & < = 22 kV; Concrete | D20: 464170.6742 | E20: 44 | F20: 0 | G20: ED_REP222_00010 | I20: OH conductor steel | J20: 78193.76018 | K20: 113.4080342
A21: ED_REP221_00011 | C21: > 22 kV & < = 66 kV; Concrete | D21: 58607.40836 | E21: 4 | F21: 0 | G21: ED_REP222_00011 | I21: OH conductor ACSR | J21: 50609.81359 | K21: 38.42026629
A22: ED_REP221_00012 | C22: > 66 kV & < = 132 kV; Concrete | D22: 0 | E22: 0 | F22: 0 | G22: ED_REP222_00012 | I22: OH conductor AAAC | J22: 13386.9535 | K22: 4.557397214
A23: ED_REP221_00013 | C23: > 132 kV; Concrete | D23: 0 | E23: 0 | F23: 0 | G23: ED_REP222_00013 | I23: OH conductor AAC | J23: 11114.43575 | K23: 10.17298889
A24: ED_REP221_00014 | C24: ˂ = 1 kV; Steel | D24: 319996.4497 | E24: 39 | F24: 0 | G24: ED_REP222_00014 | I24: OH conductor HDBC | J24: 13662.82351 | K24: 162.0061785
A25: ED_REP221_00015 | C25: > 1 kV & < = 11 kV; Steel | D25: 43955.55627 | E25: 5 | F25: 0 | G25: ED_REP222_00015 | I25: Other | J25: 16699.52102 | K25: 16.20858191
A26: ED_REP221_00016 | C26: ˃ 11 kV & < = 22 kV; Steel | D26: 147690.6691 | E26: 14 | F26: 0 | G26: ED_REP222_00016 | H26: UNDERGROUND CABLES BY: CABLE LENGTH BY FEEDER TYPE | I26: Cable CBD (km) | J26: 0 | K26: 0
A27: ED_REP221_00017 | C27: > 22 kV & < = 66 kV; Steel | D27: 14651.85209 | E27: 1 | F27: 0 | G27: ED_REP222_00017 | I27: Cable urban (km) | J27: 1813.442844 | K27: 2.07326454
A28: ED_REP221_00018 | C28: > 66 kV & < = 132 kV; Steel | D28: 0 | E28: 0 | F28: 0 | G28: ED_REP222_00018 | I28: Cable rural long (km) | J28: 765.1066818 | K28: 0
A29: ED_REP221_00019 | C29: > 132 kV; Steel | D29: 0 | E29: 0 | F29: 0 | G29: ED_REP222_00019 | I29: Cable rural short (km) | J29: 6115.100599 | K29: 1.481929997
A30: ED_REP221_00020 | C30: Other | D30: 0 | E30: 0 | F30: 1 | G30: ED_REP222_00020 | H30: TRANSFORMERS BY: TOTAL MVA | I30: Total MVA replaced | J30: 21081.1897 | K30: 145.648
A31: ED_REP221_00021 | B31: POLE TOP STRUCTURES BY: HIGHEST OPERATING VOLTAGE | C31: ˂ = 1 kV | D31: 228551.4753 | E31: 222 | F31: 206 | G31: ED_REP222_00021 | I31: Total MVA disposed of | J31: 21081.1897 | K31: 260.9935
A32: ED_REP221_00022 | C32: > 1 kV & < = 11 kV | D32: 2011762.775 | E32: 1395.782271 | F32: 243
A33: ED_REP221_00023 | C33: ˃ 11 kV & < = 22 kV | D33: 260260.4187 | E33: 158 | F33: 118
A34: ED_REP221_00024 | C34: > 22 kV & < = 66 kV | D34: 375158.3461 | E34: 121.4681182 | F34: 6
A35: ED_REP221_00025 | C35: > 66 kV & < = 132 kV | D35: 2984293.444 | E35: 579.7496112 | F35: 2
A36: ED_REP221_00026 | C36: > 132 kV | D36: 0 | E36: 0 | F36: 0
A37: ED_REP221_00027 | C37: Other | D37: 0 | E37: 0 | F37: 0
A38: ED_REP221_00028 | B38: OVERHEAD CONDUCTORS BY: HIGHEST OPERATING VOLTAGE; NUMBER OF PHASES (AT HV) | C38: ˂ = 1 kV | D38: 1567487.276 | E38: 30.34838566 | F38: 395
A39: ED_REP221_00029 | C39: > 1 kV & < = 11 kV | D39: 11891730.92 | E39: 230.2378092 | F39: 353
A40: ED_REP221_00030 | C40: ˃ 11 kV & < = 22 kV ; SWER | D40: 0 | E40: 0 | F40: 0
A41: ED_REP221_00031 | C41: ˃ 11 kV & < = 22 kV ; Single-Phase | D41: 329000.2672 | E41: 7.006812663 | F41: 44
A42: ED_REP221_00032 | C42: ˃ 11 kV & < = 22 kV ; Multiple-Phase | D42: 4359017.603 | E42: 77.36270247 | F42: 127
A43: ED_REP221_00033 | C43: > 22 kV & < = 66 kV | D43: 94944.03931 | E43: 1.123361291 | F43: 23
A44: ED_REP221_00034 | C44: > 66 kV & < = 132 kV | D44: 0 | E44: 0 | F44: 0
A45: ED_REP221_00035 | C45: > 132 kV | D45: 0 | E45: 0 | F45: 0
A46: ED_REP221_00036 | C46: Other | D46: 0 | E46: 0 | F46: 0
A47: ED_REP221_00037 | B47: UNDERGROUND CABLES BY: HIGHEST OPERATING VOLTAGE | C47: ˂ = 1 kV | D47: 1314985.561 | E47: 1.629979379 | F47: 49
A48: ED_REP221_00038 | C48: > 1 kV & < = 11 kV | D48: 887477.2672 | E48: 0.7333766936 | F48: 9
A49: ED_REP221_00039 | C49: > 11 kV & < = 22 kV | D49: 1442273.19 | E49: 1.191838465 | F49: 3
A50: ED_REP221_00040 | C50: > 22 kV & < = 33 kV | D50: 0 | E50: 0 | F50: 0
A51: ED_REP221_00041 | C51: > 33 kV & < = 66 kV | D51: 0 | E51: 0 | F51: 0
A52: ED_REP221_00042 | C52: > 66 kV & < = 132 kV | D52: 0 | E52: 0 | F52: 0
A53: ED_REP221_00043 | C53: > 132 kV | D53: 0 | E53: 0 | F53: 0
A54: ED_REP221_00044 | C54: Other | D54: 0 | E54: 0 | F54: 0
A55: ED_REP221_00045 | B55: SERVICE LINES BY: CONNECTION VOLTAGE; CUSTOMER TYPE; CONNECTION COMPLEXITY | C55: ˂ = 11 kV ; Residential ; Simple Type | D55: 1330452.03 | E55: 44 | F55: 1415
A56: ED_REP221_00046 | C56: ˂ = 11 kV ; Commercial & Industrial ; Simple Type | D56: 217710.3323 | E56: 6 | F56: 208
A57: ED_REP221_00047 | C57: ˂ = 11 kV ; Residential ; Complex Type | D57: 0 | E57: 0 | F57: 0
A58: ED_REP221_00048 | C58: ˂ = 11 kV ; Commercial & Industrial ; Complex Type | D58: 0 | E58: 0 | F58: 0
A59: ED_REP221_00049 | C59: ˂ = 11 kV ; Subdivision ; Complex Type | D59: 0 | E59: 0 | F59: 0
A60: ED_REP221_00050 | C60: > 11 kV & < = 22 kV ; Commercial & Industrial | D60: 0 | E60: 0 | F60: 0
A61: ED_REP221_00051 | C61: > 11 kV & < = 22 kV ; Subdivision | D61: 0 | E61: 0 | F61: 0
A62: ED_REP221_00052 | C62: > 22 kV & < = 33 kV ; Commercial & Industrial | D62: 0 | E62: 0 | F62: 0
A63: ED_REP221_00053 | C63: > 22 kV & < = 33 kV ; Subdivision | D63: 0 | E63: 0 | F63: 0
A64: ED_REP221_00054 | C64: > 33 kV & < = 66 kV ; Commercial & Industrial | D64: 0 | E64: 0 | F64: 0
A65: ED_REP221_00055 | C65: > 33 kV & < = 66 kV ; Subdivision | D65: 0 | E65: 0 | F65: 0
A66: ED_REP221_00056 | C66: > 66 kV & < = 132 kV ; Commercial & Industrial | D66: 0 | E66: 0 | F66: 0
A67: ED_REP221_00057 | C67: > 66 kV & < = 132 kV ; Subdivision | D67: 0 | E67: 0 | F67: 0
A68: ED_REP221_00058 | C68: > 132 kV ; Commercial & Industrial | D68: 0 | E68: 0 | F68: 0
A69: ED_REP221_00059 | C69: > 132 kV ; Subdivision | D69: 0 | E69: 0 | F69: 0
A70: ED_REP221_00060 | C70: Other | D70: 0 | E70: 0 | F70: 0
A71: ED_REP221_00061 | B71: TRANSFORMERS BY: MOUNTING TYPE; HIGHEST OPERATING VOLTAGE ; AMPERE RATING; NUMBER OF PHASES (AT LV) | C71: Pole Mounted ; < = 22kV ; < = 60 kVA ; Single Phase | D71: 419379.0343 | E71: 231 | F71: 159
A72: ED_REP221_00062 | C72: Pole Mounted ; < = 22kV ; > 60 kVA and < = 600 kVA ; Single Phase | D72: 10892.96193 | E72: 3 | F72: 1
A73: ED_REP221_00063 | C73: Pole Mounted ; < = 22kV ; > 600 kVA ; Single Phase | D73: 0 | E73: 0 | F73: 0
A74: ED_REP221_00064 | C74: Pole Mounted ; < = 22kV ; < = 60 kVA ; Multiple Phase | D74: 254169.1117 | E74: 70 | F74: 54
A75: ED_REP221_00065 | C75: Pole Mounted ; < = 22kV ; > 60 kVA and < = 600 kVA ; Multiple Phase | D75: 1189148.344 | E75: 131 | F75: 49
A76: ED_REP221_00066 | C76: Pole Mounted ; < = 22kV ; > 600 kVA ; Multiple Phase | D76: 0 | E76: 0 | F76: 0
A77: ED_REP221_00073 | C77: Kiosk Mounted ; < = 22kV ; < = 60 kVA ; Single Phase | D77: 10892.96193 | E77: 2 | F77: 0
A78: ED_REP221_00074 | C78: Kiosk Mounted ; < = 22kV ; > 60 kVA and < = 600 kVA ; Single Phase | D78: 0 | E78: 0 | F78: 0
A79: ED_REP221_00075 | C79: Kiosk Mounted ; < = 22kV ; > 600 kVA ; Single Phase | D79: 0 | E79: 0 | F79: 0
A80: ED_REP221_00076 | C80: Kiosk Mounted ; < = 22kV ; < = 60 kVA ; Multiple Phase | D80: 0 | E80: 0 | F80: 0
A81: ED_REP221_00077 | C81: Kiosk Mounted ; < = 22kV ; > 60 kVA and < = 600 kVA ; Multiple Phase | D81: 1089296.193 | E81: 30 | F81: 2
A82: ED_REP221_00078 | C82: Kiosk Mounted ; < = 22kV ; > 600 kVA ; Multiple Phase | D82: 272324.0483 | E82: 5 | F82: 0
A83: ED_REP221_00085 | C83: Ground Outdoor / Indoor Chamber Mounted; ˂ 22 kV ; < = 60 kVA ; Single Phase | D83: 0 | E83: 0 | F83: 0
A84: ED_REP221_00086 | C84: Ground Outdoor / Indoor Chamber Mounted; ˂ 22 kV ; > 60 kVA and < = 600 kVA ; Single Phase | D84: 0 | E84: 0 | F84: 0
A85: ED_REP221_00087 | C85: Ground Outdoor / Indoor Chamber Mounted; ˂ 22 kV ; > 600 kVA ; Single Phase | D85: 0 | E85: 0 | F85: 0
A86: ED_REP221_00088 | C86: Ground Outdoor / Indoor Chamber Mounted; ˂ 22 kV ; < = 60 kVA ; Multiple Phase | D86: 0 | E86: 0 | F86: 0
A87: ED_REP221_00089 | C87: Ground Outdoor / Indoor Chamber Mounted; ˂ 22 kV ; > 60 kVA and < = 600 kVA ; Multiple Phase | D87: 835127.0814 | E87: 23 | F87: 0
A88: ED_REP221_00090 | C88: Ground Outdoor / Indoor Chamber Mounted; ˂ 22 kV ; > 600 kVA ; Multiple Phase | D88: 508338.2234 | E88: 7 | F88: 0
A89: ED_REP221_00091 | C89: Ground Outdoor / Indoor Chamber Mounted; > = 22 kV & < = 33 kV ; < = 15 MVA | D89: 726197.4621 | E89: 4 | F89: 0
A90: ED_REP221_00092 | C90: Ground Outdoor / Indoor Chamber Mounted; > = 22 kV & < = 33 kV ; > 15 MVA and < = 40 MVA | D90: 0 | E90: 0 | F90: 0
A91: ED_REP221_00093 | C91: Ground Outdoor / Indoor Chamber Mounted; > = 22 kV & < = 33 kV ; > 40 MVA | D91: 0 | E91: 0 | F91: 0
A92: ED_REP221_00094 | C92: Ground Outdoor / Indoor Chamber Mounted; > 33 kV & < = 66 kV ; < = 15 MVA | D92: 2723240.483 | E92: 10 | F92: 3
A93: ED_REP221_00095 | C93: Ground Outdoor / Indoor Chamber Mounted; > 33 kV & < = 66 kV ; > 15 MVA and < = 40 MVA | D93: 1089296.193 | E93: 3 | F93: 1
A94: ED_REP221_00096 | C94: Ground Outdoor / Indoor Chamber Mounted; > 33 kV & < = 66 kV ; > 40 MVA | D94: 0 | E94: 0 | F94: 0
A95: ED_REP221_00097 | C95: Ground Outdoor / Indoor Chamber Mounted; > 66 kV & < = 132 kV ; < = 100 MVA | D95: 0 | E95: 0 | F95: 0
A96: ED_REP221_00098 | C96: Ground Outdoor / Indoor Chamber Mounted; > 66 kV & < = 132 kV ; > 100 MVA | D96: 0 | E96: 0 | F96: 0
A97: ED_REP221_00099 | C97: Ground Outdoor / Indoor Chamber Mounted; > 132 kV ; < = 100 MVA | D97: 0 | E97: 0 | F97: 0
A98: ED_REP221_00100 | C98: Ground Outdoor / Indoor Chamber Mounted; > 132 kV ; > 100 MVA | D98: 0 | E98: 0 | F98: 0
A99: ED_REP221_00101 | C99: Other | D99: 1270845.559 | E99: 28 | F99: 5
A100: ED_REP221_00102 | B100: SWITCHGEAR BY: HIGHEST OPERATING VOLTAGE ; SWITCH FUNCTION | C100: ˂ = 11 kV ; FUSE | D100: 3493668.767 | E100: 2006 | F100: 368
A101: ED_REP221_00103 | C101: ˂ = 11 kV ; Switch | D101: 2083806.667 | E101: 239.2966507 | F101: 85
A102: ED_REP221_00104 | C102: ˂ = 11 kV ; Circuit Breaker | D102: 10319036.61 | E102: 158 | F102: 44
A103: ED_REP221_00105 | C103: > 11 kV & < = 22 kV ; Switch | D103: 2605581.223 | E103: 149.6076555 | F103: 28
A104: ED_REP221_00106 | C104: > 11 kV & < = 22 kV ; Circuit Breaker | D104: 7750162.519 | E104: 89 | F104: 10
A105: ED_REP221_00107 | C105: > 22 kV & < = 33 kV ; Switch | D105: 436652.3477 | E105: 20.05741627 | F105: 3
A106: ED_REP221_00108 | C106: > 22 kV & < = 33 kV ; Circuit Breaker | D106: 1959310.749 | E106: 15 | F106: 4
A107: ED_REP221_00109 | C107: > 33 kV & < = 66 kV ; Switch | D107: 1077620.912 | E107: 33 | F107: 3
A108: ED_REP221_00110 | C108: > 33 kV & < = 66 kV ; Circuit Breaker | D108: 3918621.498 | E108: 20 | F108: 2
A109: ED_REP221_00111 | C109: > 66 kV & < = 132 kV ; Switch | D109: 326551.7915 | E109: 5 | F109: 2
A110: ED_REP221_00112 | C110: > 66 kV & < = 132 kV ; Circuit Breaker | D110: 849034.6579 | E110: 3 | F110: 0
A111: ED_REP221_00113 | C111: > 132 kV ; Switch | D111: 0 | E111: 0 | F111: 0
A112: ED_REP221_00114 | C112: > 132 kV ; Circuit Breaker | D112: 0 | E112: 0 | F112: 0
A113: ED_REP221_00115 | C113: Other | D113: 3435324.847 | E113: 1052 | F113: 62
A114: ED_REP221_00116 | B114: PUBLIC LIGHTING BY: ASSET TYPE ; LIGHTING OBLIGATION | C114: Luminaires ; Major Road | D114: 192468.9262 | E114: 22 | F114: 661
A115: ED_REP221_00117 | C115: Luminaires ; Minor Road | D115: 731832.7985 | E115: 244 | F115: 2353
A116: ED_REP221_00118 | C116: Brackets ; Major Road | E116: 0 | F116: 0
A117: ED_REP221_00119 | C117: Brackets ; Minor Road | E117: 0 | F117: 0
A118: ED_REP221_00120 | C118: Lamps ; Major Road | E118: 0 | F118: 0
A119: ED_REP221_00121 | C119: Lamps ; Minor Road | E119: 0 | F119: 0
A120: ED_REP221_00122 | C120: Poles / Columns ; Major Road | D120: 111527.021 | E120: 41 | F120: 1
A121: ED_REP221_00123 | C121: Poles / Columns ; Minor Road | D121: 533736.4576 | E121: 190 | F121: 11
A122: ED_REP221_00124 | C122: Other | D122: 0 | E122: 0 | F122: 0
A123: ED_REP221_00125 | B123: SCADA, NETWORK CONTROL AND PROTECTION SYSTEMS BY: FUNCTION | C123: Field Devices | D123: 1643484.647 | E123: 15 | F123: 17
A124: ED_REP221_00126 | C124: Local Network Wiring Assets
A125: ED_REP221_00127 | C125: Communications Network Assets | D125: 848051.9874 | E125: 55 | F125: 10
A126: ED_REP221_00128 | C126: Master Station Assets | D126: 0
A127: ED_REP221_00129 | C127: Communications Site Infrastructure
A128: ED_REP221_00130 | C128: Communications Linear Assets
A129: ED_REP221_00131 | C129: AFLC | D129: 781534.8976 | E129: 2 | F129: 0
A130: ED_REP221_00124 | C130: Other | D130: 0
A131: ED_REP221_00132 | B131: OTHER BY: DNSP DEFINED | C131: OTHER - Type 5 & 6 Meters - Meter Bulk Replacement Program | D131: 1967151.716 | E131: 13136 | F131: 0
A132: ED_REP221_00133 | C132: OTHER - Refurbished ground outdoor / indoor Chamber mounted; > 33 KV & < = 66 KV ; > 15 MVA AND < = 40 MVA | D132: 272277.6708 | E132: 3 | F132: 0
A133: ED_REP221_00134 | C133: OTHER - Refurbished ground outdoor / indoor chamber mounted; > 66 KV & < = 132 KV ; < = 100 MVA | D133: 340347.0884 | E133: 2 | F133: 0
A134: ED_REP221_00135 | C134: OTHER - Zone Sustation Property | D134: 7749703.204 | E134: 69 | F134: 0
A135: ED_REP221_00136 | C135: OTHER - Zone Sustation Batteries | D135: 435644.2732 | E135: 24 | F135: 0
A136: ED_REP221_00137 | C136: OTHER - Zone Sustation Current transformers | D136: 571783.1086 | E136: 24 | F136: 3
A137: ED_REP221_00138 | C137: OTHER - Zone Sustation Voltage transformers | D137: 796412.187 | E137: 39 | F137: 0
A138: ED_REP221_00139 | C138: OTHER - Zone Sustation Surge Diverters | D138: 1029209.595 | E138: 1008 | F138: 0
A139: ED_REP221_00140 | C139: OTHER - Zone Sustation Protection Relays | D139: 2110151.948 | E139: 62 | F139: 25
A140: ED_REP221_00141 | C140: OTHER - Frequency Injection Refurbishment | D140: 3063123.796 | E140: 3 | F140: 0
A141: ED_REP221_00142
A142: ED_REP221_00143
A143: ED_REP221_00144
A144: ED_REP221_00145
A145: ED_REP221_00146
A146: ED_REP221_00147

Sheet 2.3 Augex
B1: =(LOOKUP(dms_Model,dms_Model_List,dms_Worksheet_List)) -> REGULATORY REPORTING STATEMENT | K1: New line on new route - single circuit | L1: New line on new route - dual circuit | O1: Worksheet navigation
B2: Australian Distribution Co.
B3: =CONCATENATE("Category Analysis RIN response ",CRY) -> Category Analysis RIN response 2014-15
B4: 2.3 AUGEX PROJECT DATA
B7: TABLE 2.3.1 - AUGEX ASSET DATA - SUBTRANSMISSION SUBSTATIONS, SWITCHING STATIONS AND ZONE SUBSTATIONS
B8: NOTE: DNSP MUST PROVIDE EXPENDITURE INFORMATION ON A PROJECT CLOSE BASIS.
A9: AUG231 | B9: AUG231_1 | M9: AUG231_2 | N9: AUG231_3 | O9: AUG231_4 | P9: AUG231_5 | Q9: AUG231_6 | R9: ED_AUG231_00001 | S9: ED_AUG231_00002 | T9: ED_AUG231_00003 | U9: ED_AUG231_00004 | V9: ED_AUG231_00005 | W9: ED_AUG231_00006 | X9: ED_AUG231_00007 | Y9: ED_AUG231_00008 | Z9: ED_AUG231_00009 | AK9: ED_AUG231_00010 | AL9: ED_AUG231_00011 | AM9: ED_AUG231_00012 | AN9: ED_AUG231_00013 | AO9: ED_AUG231_00014 | AP9: ED_AUG231_00015 | AQ9: ED_AUG231_00016 | AR9: ED_AUG231_00017 | AS9: ED_AUG231_00018 | AT9: ED_AUG231_00019 | AU9: ED_AUG231_00020 | AV9: ED_AUG231_00021 | AW9: ED_AUG231_00022 | AX9: ED_AUG231_00023
B10: PROJECT DESCRIPTION AND CHANGES | V10: PLANT AND EQUIPMENT EXPENDITURE AND VOLUME | AP10: OTHER EXPENDITURE | AR10: TOTAL DIRECT EXPENDITURE ($0's) | AS10: YEARS INCURRED | AT10: ALL RELATED PARTY CONTRACTS | AV10: ALL NON RELATED PARTYCONTRACTS | AW10: LAND AND EASEMENTS
B11: SUBSTATION ID | M11: SUBSTATION TYPE | N11: PROJECT ID | O11: PROJECT TYPE | P11: PROJECT TRIGGER | Q11: VOLTAGE (KV) | R11: SUBSTATION RATING NORMAL CYCLIC (MVA) | T11: SUBSTATION RATING N-1 EMERGENCY (MVA) | V11: TRANSFORMERS | Y11: SWITCHGEAR | AK11: CAPACITORS | AM11: OTHER PLANT ITEM | AN11: INSTALLATION (LABOUR) | AP11: CIVIL WORKS | AQ11: OTHER DIRECT | AT11: RELATED PARTY MARGINS | AU11: TOTAL | AW11: LAND PURCHASE | AX11: EASEMENTS
R12: PRE | S12: POST | T12: PRE | U12: POST | V12: UNITS ADDED | W12: MVA ADDED | X12: EXPENDITURE ($0's) | Y12: UNITS ADDED | Z12: EXPENDITURE ($0's) | AK12: MVAR ADDED | AL12: EXPENDITURE ($0's) | AM12: EXPENDITURE ($0's) | AN12: VOLUME | AO12: EXPENDITURE ($0's) | AP12: EXPENDITURE ($0's) | AT12: EXPENDITURE ($0's) | AW12: EXPENDITURE ($0's)
A13: AUG231_1 | AR13: =SUM(X13,Z13,AL13,AM13,AO13,AP13,AQ13) -> 0
A14: AUG231_2 | AR14: =SUM(X14,Z14,AL14,AM14,AO14,AP14,AQ14) -> 0
A15: AUG231_3 | AR15: 0
A16: AUG231_4 | AR16: 0
A17: AUG231_5 | AR17: 0
A18: AUG231_6 | AR18: 0
A19: AUG231_7 | AR19: 0
A20: AUG231_8 | AR20: 0
A21: AUG231_9 | AR21: 0
A22: AUG231_10 | AR22: 0
A23: AUG231_11 | AR23: 0
A24: AUG231_12 | AR24: 0
A25: AUG231_13 | AR25: 0
A26: AUG231_14 | AR26: 0
A27: AUG231_15 | AR27: 0
A28: AUG231_16 | AR28: 0
A29: AUG231_17 | AR29: 0
A30: AUG231_18 | AR30: 0
A31: AUG231_19 | AR31: 0
A32: AUG231_20 | AR32: 0
A33: AUG231_21 | AR33: 0
A34: AUG231_22 | AR34: 0
A35: AUG231_23 | AR35: 0
A36: AUG231_24 | AR36: 0
A37: AUG231_25 | AR37: 0
A38: AUG231_26 | AR38: 0
A39: AUG231_27 | AR39: 0
A40: AUG231_28 | AR40: 0
A41: AUG231_29 | AR41: 0
A42: AUG231_30 | AR42: 0
A43: AUG231_31 | AR43: 0
A44: AUG231_32 | AR44: 0
A45: AUG231_33 | AR45: 0
A46: AUG231_34 | AR46: 0
A47: AUG231_35 | AR47: 0
A48: AUG231_36 | AR48: 0
A49: AUG231_37 | AR49: 0
A50: AUG231_38 | AR50: 0
A51: AUG231_39 | AR51: 0
A52: AUG231_40 | AR52: 0
A53: AUG231_41 | AR53: 0
A54: AUG231_42 | AR54: 0
A55: AUG231_43 | AR55: 0
A56: AUG231_44 | AR56: 0
A57: AUG231_45 | AR57: 0
A58: AUG231_46 | AR58: 0
A59: AUG231_47 | AR59: 0
A60: AUG231_48 | AR60: 0
A61: AUG231_49 | AR61: 0
A62: AUG231_50 | AR62: 0
A63: AUG231_51 | AR63: 0
A64: AUG231_52 | AR64: 0
N65: Non material projects - [actual] | AR65: 24947171 | AS65: 2009, 2010, 2011, 2012, 2013, 2014, 2015
N66: Non material projects - [forecast]
A68: AUG232 | B68: AUG232_1 | C68: AUG232_2 | D68: AUG232_3 | E68: AUG232_4 | F68: AUG232_5 | G68: AUG232_6 | H68: AUG232_7 | I68: AUG232_8 | J68: AUG232_9 | K68: AUG232_10 | L68: AUG232_11 | M68: AUG232_2 | N68: AUG232_3 | O68: AUG232_4 | P68: AUG232_5 | Q68: AUG232_6 | R68: ED_AUG232_00001 | S68: ED_AUG232_00002 | T68: ED_AUG232_00003 | U68: ED_AUG232_00004 | V68: ED_AUG232_00005 | W68: ED_AUG232_00006 | X68: ED_AUG232_00007 | Y68: ED_AUG232_00008 | Z68: ED_AUG232_00009 | AK68: ED_AUG232_00010 | AL68: ED_AUG232_00011 | AM68: ED_AUG232_00012 | AN68: ED_AUG232_00013 | AO68: ED_AUG232_00014 | AP68: ED_AUG232_00015 | AQ68: ED_AUG232_00016 | AR68: ED_AUG232_00017 | AS68: ED_AUG232_00018 | AT68: ED_AUG232_00019 | AU68: ED_AUG232_00020 | AV68: ED_AUG232_00021
B69: TABLE 2.3.2 - AUGEX ASSET DATA - SUBTRANSMISSION LINES
B70: NOTE: DNSP MUST PROVIDE EXPENDITURE INFORMATION ON A PROJECT CLOSE BASIS.
B71: PROJECT DESCRIPTION AND CHANGES | R71: PLANT AND EQUIPMENT EXPENDITURE AND VOLUME | AN71: OTHER EXPENDITURE | AP71: TOTAL DIRECT EXPENDITURE ($0's) | AQ71: YEARS INCURRED | AR71: ALL RELATED PARTY CONTRACTS | AT71: ALL NON RELATED PARTYCONTRACTS | AU71: LAND AND EASEMENTS
B72: LINE ID | M72: PROJECT ID | N72: PROJECT TYPE | O72: PROJECT TRIGGER | P72: VOLTAGE (KV) | Q72: ROUTE LINE LENGTH ADDED | R72: POLES/TOWERS (INCLUDING STRUCTURES, AND CIVIL WORKS) | U72: OVERHEAD LINES | X72: UNDERGROUND CABLES | AK72: OTHER PLANT ITEM | AL72: INSTALLATION (LABOUR) | AN72: CIVIL WORKS | AO72: OTHER DIRECT | AR72: RELATED PARTY MARGINS | AS72: TOTAL | AU72: LAND PURCHASE | AV72: EASEMENTS
Q73: KM ADDED | R73: POLES/TOWERS ADDED | S73: POLES/TOWERS UPGRADED | T73: EXPENDITURE ($0's) | U73: CIRCUIT KM ADDED | V73: CIRCUIT KM UPGRADED | W73: EXPENDITURE ($0's) | X73: CIRCUIT KM ADDED | Y73: CIRCUIT KM UPGRADED | Z73: EXPENDITURE ($0's) | AK73: EXPENDITURE ($0's) | AL73: VOLUME | AM73: EXPENDITURE ($0's) | AN73: EXPENDITURE ($0's) | AR73: EXPENDITURE ($0's) | AU73: EXPENDITURE ($0's)
A74: AUG232_1 | B74: ='[2]2.3 Augex'!B74 -> 81T (Yarrandale to Gilgandra) | C74: ='[2]2.3 Augex'!C74 -> 0 | D74: ='[2]2.3 Augex'!D74 -> 0 | E74: ='[2]2.3 Augex'!E74 -> 0 | F74: ='[2]2.3 Augex'!F74 -> 0 | G74: ='[2]2.3 Augex'!G74 -> 0 | H74: ='[2]2.3 Augex'!H74 -> 0 | I74: ='[2]2.3 Augex'!I74 -> 0 | J74: ='[2]2.3 Augex'!J74 -> 0 | K74: ='[2]2.3 Augex'!K74 -> 0 | L74: ='[2]2.3 Augex'!L74 -> 0 | M74: ='[2]2.3 Augex'!M74 -> 603314 | N74: ='[2]2.3 Augex'!N74 -> New line on new route - single circuit | O74: ='[2]2.3 Augex'!O74 -> Demand growth | P74: ='[2]2.3 Augex'!P74 -> 66 | Q74: ='[2]2.3 Augex'!Q74 -> 65 | R74: ='[2]2.3 Augex'!R74 -> 307 | S74: ='[2]2.3 Augex'!S74 -> 10 | U74: ='[2]2.3 Augex'!U74 -> 63.8 | V74: ='[2]2.3 Augex'!V74 -> 1.2 | X74: ='[2]2.3 Augex'!X74 -> 0 | Y74: ='[2]2.3 Augex'!Y74 -> 0 | AA74: 0 | AB74: 0 | AC74: 0 | AD74: 0 | AE74: 0 | AF74: 0 | AG74: 0 | AH74: 0 | AI74: 0 | AJ74: 0 | AL74: ='[2]2.3 Augex'!AL74 -> 13606 | AN74: 0 | AP74: =SUM(T74,W74,Z74,AK74,AM74,AN74,AO74) -> 0 | AQ74: ='[2]2.3 Augex'!AQ74 -> 2011, 2012, 2013, 2014, 2015 | AX74: New line on new route - single circuit
A75: AUG232_2 | B75: ='[2]2.3 Augex'!B75 -> 87C (Coffs Harbour North to Coffs Harbour South) | C75: ='[2]2.3 Augex'!C75 -> 0 | D75: ='[2]2.3 Augex'!D75 -> 0 | E75: ='[2]2.3 Augex'!E75 -> 0 | F75: ='[2]2.3 Augex'!F75 -> 0 | G75: ='[2]2.3 Augex'!G75 -> 0 | H75: ='[2]2.3 Augex'!H75 -> 0 | I75: ='[2]2.3 Augex'!I75 -> 0 | J75: ='[2]2.3 Augex'!J75 -> 0 | K75: ='[2]2.3 Augex'!K75 -> 0 | L75: ='[2]2.3 Augex'!L75 -> 0 | M75: ='[2]2.3 Augex'!M75 -> S201434 | N75: ='[2]2.3 Augex'!N75 -> New line on new route - single circuit | O75: ='[2]2.3 Augex'!O75 -> Demand growth | P75: ='[2]2.3 Augex'!P75 -> 66 | Q75: ='[2]2.3 Augex'!Q75 -> 7 | R75: ='[2]2.3 Augex'!R75 -> 1 | S75: ='[2]2.3 Augex'!S75 -> 10 | U75: ='[2]2.3 Augex'!U75 -> 1.7 | V75: ='[2]2.3 Augex'!V75 -> 0 | X75: ='[2]2.3 Augex'!X75 -> 5.3 | Y75: ='[2]2.3 Augex'!Y75 -> 0 | AA75: 0 | AB75: 0 | AC75: 0 | AD75: 0 | AE75: 0 | AF75: 0 | AG75: 0 | AH75: 0 | AI75: 0 | AJ75: 0 | AL75: ='[2]2.3 Augex'!AL75 -> 9703 | AN75: 0 | AP75: 0 | AQ75: ='[2]2.3 Augex'!AQ75 -> 2010, 2011, 2012, 2013, 2014, 2015 | AX75: New line on new route - dual circuit
A76: AUG232_3 | B76: ='[2]2.3 Augex'!B76 -> 974 (Cooma to Bega) | C76: ='[2]2.3 Augex'!C76 -> 0 | D76: ='[2]2.3 Augex'!D76 -> 0 | E76: ='[2]2.3 Augex'!E76 -> 0 | F76: ='[2]2.3 Augex'!F76 -> 0 | G76: ='[2]2.3 Augex'!G76 -> 0 | H76: ='[2]2.3 Augex'!H76 -> 0 | I76: ='[2]2.3 Augex'!I76 -> 0 | J76: ='[2]2.3 Augex'!J76 -> 0 | K76: ='[2]2.3 Augex'!K76 -> 0 | L76: ='[2]2.3 Augex'!L76 -> 0 | M76: ='[2]2.3 Augex'!M76 -> 569908, 571120, 581293, S201747 | N76: ='[2]2.3 Augex'!N76 -> Line rebuild over existing route - dual circuit | O76: ='[2]2.3 Augex'!O76 -> Demand growth | P76: ='[2]2.3 Augex'!P76 -> 132 | Q76: ='[2]2.3 Augex'!Q76 -> 91 | R76: ='[2]2.3 Augex'!R76 -> 0 | S76: ='[2]2.3 Augex'!S76 -> 446 | U76: ='[2]2.3 Augex'!U76 -> 48 | V76: ='[2]2.3 Augex'!V76 -> 53 | X76: ='[2]2.3 Augex'!X76 -> 0 | Y76: ='[2]2.3 Augex'!Y76 -> 0 | AA76: 0 | AB76: 0 | AC76: 0 | AD76: 0 | AE76: 0 | AF76: 0 | AG76: 0 | AH76: 0 | AI76: 0 | AJ76: 0 | AL76: ='[2]2.3 Augex'!AL76 -> 48538 | AN76: 0 | AP76: 0 | AQ76: ='[2]2.3 Augex'!AQ76 -> 2008, 2009, 2010, 2011, 2012, 2013, 2014, 2015 | AX76: New line on new route - other
A77: AUG232_4 | AP77: 0 | AX77: Line rebuild over existing route - single circuit
A78: AUG232_5 | AP78: 0 | AX78: Line rebuild over existing route - dual circuit
A79: AUG232_6 | AP79: 0 | AX79: Reconductor - Single circuit
A80: AUG232_7 | AP80: 0 | AX80: Reconductor - Dual circuit
A81: AUG232_8 | AP81: 0 | AX81: Reconductor - Other
A82: AUG232_9 | AP82: 0 | AX82: Line upgrade - raising/retensoring
A83: AUG232_10 | AP83: 0 | AX83: Line upgrade - voltage upgrade
A84: AUG232_11 | AP84: 0 | AX84: Line upgrade - capacity
A85: AUG232_12 | AP85: 0 | AX85: String spare circuit
A86: AUG232_13 | AP86: 0 | AX86: Other
A87: AUG232_14 | AP87: 0
A88: AUG232_15 | AP88: 0
A89: AUG232_16 | AP89: 0
A90: AUG232_17 | AP90: 0
A91: AUG232_18 | AP91: 0
A92: AUG232_19 | AP92: 0
A93: AUG232_20 | AP93: 0
A94: AUG232_21 | AP94: 0
A95: AUG232_22 | AP95: 0
A96: AUG232_23 | AP96: 0
A97: AUG232_24 | AP97: 0
A98: AUG232_25 | AP98: 0
A99: AUG232_26 | AP99: 0
A100: AUG232_27 | AP100: 0
A101: AUG232_28 | AP101: 0
A102: AUG232_29 | AP102: 0
A103: AUG232_30 | AP103: 0
A104: AUG232_31 | AP104: 0
A105: AUG232_32 | AP105: 0
A106: AUG232_33 | AP106: 0
A107: AUG232_34 | AP107: 0
A108: AUG232_35 | AP108: 0
A109: AUG232_36 | AP109: 0
A110: AUG232_37 | AP110: 0
A111: AUG232_38 | AP111: 0
A112: AUG232_39 | AP112: 0
A113: AUG232_40 | AP113: 0
A114: AUG232_41 | AP114: 0
A115: AUG232_42 | AP115: 0
A116: AUG232_43 | AP116: 0
A117: AUG232_44 | AP117: 0
A118: AUG232_45 | AP118: 0
A119: AUG232_46 | AP119: 0
A120: AUG232_47 | AP120: 0
A121: AUG232_48 | AP121: 0
A122: AUG232_49 | AP122: 0
A123: AUG232_50 | AP123: 0
A124: AUG232_51 | AP124: 0
A125: AUG232_52 | AP125: 0
A126: AUG232_53 | AP126: 0
A127: AUG232_54 | AP127: 0
M128: Non material projects - [actual] | AP128: 5086226 | AQ128: 2008, 2009, 2010, 2011, 2012, 2013, 2014, 2015
M129: Non material projects - [forecast]
B132: TABLE 2.3.3 - AUGEX DATA - HV/LV FEEDERS AND DISTRIBUTION SUBSTATIONS
B133: NOTE: DNSP MUST PROVIDE EXPENDITURE INFORMATION ON AN AS INCURRED BASIS.
B134: Table 2.3.3.1 Descriptor Metrics
M137: UNITS ADDED | N137: UNITS UPGRADED | AK137: UNITS UPGRADED
B138: PROJECT TYPE | M138: =CRY -> 2014-15 | N138: =CRY -> 2014-15 | Z138: PROJECT TYPE | AB138: DNSP NAME | AC138: SERVICE CATEGORY | AD138: SERVICE SUB-CATEGORY | AE138: ASSET CATEGORY | AF138: ASSET SUB-CATEGORY | AG138: DATA TYPE | AH138: MEASUREMENT | AI138: DENOMINATION | AK138: 2014-15
A139: ED_AUG2331_00001 | B139: HV Feeder Augmentations - Overhead Lines (Circuit Line Length in KM) | M139: ='[2]2.3 Augex'!M139 -> 37.76 | N139: ='[2]2.3 Augex'!N139 -> 273.8 | Y139: ED_AUG2333_00001 | Z139: HV Feeder Augmentations - Overhead Lines (Circuit Line Length in KM) | AB139: DNSP NAME | AC139: AUGMENTATION | AD139: HV FEEDER PROJECTS | AE139: HV FEEDERS | AF139: OVERHEAD | AG139: DESCRIPTOR METRIC | AH139: KM UPGRADED | AI139: 0's | AK139: =N139 -> 273.8
A140: ED_AUG2331_00002 | B140: HV Feeder Augmentations - Underground Cables (Circuit Line Length in KM) | M140: ='[2]2.3 Augex'!M140 -> 5.52 | N140: ='[2]2.3 Augex'!N140 -> 45.84 | Y140: ED_AUG2333_00002 | Z140: HV Feeder Augmentations - Underground Cables (Circuit Line Length in KM) | AB140: DNSP NAME | AC140: AUGMENTATION | AD140: HV FEEDER PROJECTS | AE140: HV FEEDERS | AF140: UNDERGROUND | AG140: DESCRIPTOR METRIC | AH140: KM UPGRADED | AI140: 0's | AK140: =N140 -> 45.84
A141: ED_AUG2331_00003 | B141: LV Feeder Augmentations - Overhead Lines (Circuit Line Length in KM) | M141: ='[2]2.3 Augex'!M141 -> 13.55 | N141: ='[2]2.3 Augex'!N141 -> 1.1 | Y141: ED_AUG2333_00003 | Z141: LV Feeder Augmentations - Overhead Lines (Circuit Line Length in KM) | AB141: DNSP NAME | AC141: AUGMENTATION | AD141: LV FEEDER PROJECTS | AE141: HV FEEDERS | AF141: OVERHEAD | AG141: DESCRIPTOR METRIC | AH141: KM UPGRADED | AI141: 0's | AK141: 1.1
A142: ED_AUG2331_00004 | B142: LV Feeder Augmentations - Underground Cables (Circuit Line Length in KM) | M142: ='[2]2.3 Augex'!M142 -> 4.35 | N142: ='[2]2.3 Augex'!N142 -> 0.2 | Y142: ED_AUG2333_00004 | Z142: LV Feeder Augmentations - Underground Cables (Circuit Line Length in KM) | AB142: DNSP NAME | AC142: AUGMENTATION | AD142: LV FEEDER PROJECTS | AE142: HV FEEDERS | AF142: UNDERGROUND | AG142: DESCRIPTOR METRIC | AH142: KM UPGRADED | AI142: 0's | AK142: 0.2
A143: ED_AUG2331_00005 | B143: Distribution Substation Augmentations - Pole Mounted | M143: ='[2]2.3 Augex'!M143 -> 120 | N143: ='[2]2.3 Augex'!N143 -> 229 | Y143: ED_AUG2333_00005 | Z143: Distribution Substation Augmentations - Pole Mounted | AB143: DNSP NAME | AC143: AUGMENTATION | AD143: SUBSTATION AUGMENTATIONS | AE143: SUBSTATIONS | AF143: POLE MOUNTED | AG143: DESCRIPTOR METRIC | AH143: VOLUME UPGRADED | AI143: 0's | AK143: 229
A144: ED_AUG2331_00006 | B144: Distribution Substation Augmentations - Ground Mounted | M144: ='[2]2.3 Augex'!M144 -> 0 | N144: ='[2]2.3 Augex'!N144 -> 6 | Y144: ED_AUG2333_00006 | Z144: Distribution Substation Augmentations - Ground Mounted | AB144: DNSP NAME | AC144: AUGMENTATION | AD144: SUBSTATION AUGMENTATIONS | AE144: SUBSTATIONS | AF144: GROUND MOUNTED | AG144: DESCRIPTOR METRIC | AH144: VOLUME UPGRADED | AI144: 0's | AK144: 6
A145: ED_AUG2331_00007 | B145: Distribution Substation Augmentations - Indoor | M145: ='[2]2.3 Augex'!M145 -> 0 | N145: ='[2]2.3 Augex'!N145 -> 0 | Y145: ED_AUG2333_00007 | Z145: Distribution Substation Augmentations - Indoor | AB145: DNSP NAME | AC145: AUGMENTATION | AD145: SUBSTATION AUGMENTATIONS | AE145: SUBSTATIONS | AF145: INDOOR | AG145: DESCRIPTOR METRIC | AH145: VOLUME UPGRADED | AI145: 0's | AK145: 0
B147: Table 2.3.3.2 Cost Metrics
M150: TOTAL DIRECT EXPENDITURE ($0's)
B151: PROJECT TYPE | M151: =CRY -> 2014-15
A152: ED_AUG2332_00001 | B152: HV Feeder Augmentations - Overhead Lines | M152: ='[2]2.3 Augex'!M152 -> 36305924.09
A153: ED_AUG2332_00002 | B153: HV Feeder Augmentations - Underground Cables | M153: ='[2]2.3 Augex'!M153 -> 8225437.854
A154: ED_AUG2332_00003 | B154: HV Feeder Non-Material Projects | M154: ='[2]2.3 Augex'!M154 -> 0
A155: ED_AUG2332_00004 | B155: LV Feeder Augmentations - Overhead Lines | M155: ='[2]2.3 Augex'!M155 -> 17246495.83
A156: ED_AUG2332_00005 | B156: LV Feeder Augmentations - Underground Cables | M156: ='[2]2.3 Augex'!M156 -> 2229624.238
A157: ED_AUG2332_00006 | B157: LV Feeder Non-Material Projects | M157: ='[2]2.3 Augex'!M157 -> 0
A158: ED_AUG2332_00007 | B158: Distribution Substation Augmentations - Pole Mounted | M158: ='[2]2.3 Augex'!M158 -> 2347137.069
A159: ED_AUG2332_00008 | B159: Distribution Substation Augmentations - Ground Mounted | M159: ='[2]2.3 Augex'!M159 -> 300618.5409
A160: ED_AUG2332_00009 | B160: Distribution Substation Augmentations - Indoor | M160: ='[2]2.3 Augex'!M160 -> 0
B168: TABLE 2.3.4 - AUGEX DATA - TOTAL EXPENDITURE
B170: AUGMENTATION CAPEX | M170: Expenditure ($0's)
B171: AS INCURRED ($0's) | M171: =CRY -> 2014-15
A172: ED_AUG234_00001 | B172: Subtransmission Substations, Switching Stations, Zone Substations | M172: ='[2]2.3 Augex'!M172 -> 19871658.98
A173: ED_AUG234_00002 | B173: Subtransmission Lines | M173: ='[2]2.3 Augex'!M173 -> 20853446.42
A174: ED_AUG234_00003 | B174: HV Feeders | M174: ='[2]2.3 Augex'!M174 -> 44531361.95
A175: ED_AUG234_00004 | B175: HV Feeders - Land Purchases and Easements | M175: ='[2]2.3 Augex'!M175 -> 9279513.818
A176: ED_AUG234_00005 | B176: Distribution Substations | M176: ='[2]2.3 Augex'!M176 -> 2647755.61
A177: ED_AUG234_00006 | B177: Distribution Substations - Land Purchases And Easements | M177: ='[2]2.3 Augex'!M177 -> 0
A178: ED_AUG234_00007 | B178: LV Feeders | M178: ='[2]2.3 Augex'!M178 -> 19476120.07
A179: ED_AUG234_00008 | B179: LV Feeders - Land Purchases And Easements | M179: ='[2]2.3 Augex'!M179 -> 0
A180: ED_AUG234_00009 | B180: Other Assets | M180: ='[2]2.3 Augex'!M180 -> 6415803.914

Sheet 2.5 Connections
B1: =(LOOKUP(dms_Model,dms_Model_List,dms_Worksheet_List)) -> REGULATORY REPORTING STATEMENT
B2: Australian Distribution Co.
B3: =CONCATENATE("Category Analysis RIN response ",CRY) -> Category Analysis RIN response 2014-15
B4: 2.5 CONNECTIONS
B9: TABLE 2.5.1 DESCRIPTOR METRICS | F9: TABLE 2.5.2 COST METRICS BY CONNECTION CLASSIFICATION
B10: <<<GROUP-ROW>>>
D12: VOLUMES AND EXPENDITURE | H12: EXPENDITURE ($0's) | J12: VOLUMES (000s)
B13: CONNECTION SUBCATEGORY | C13: DESCRIPTOR METRIC | D13: =CRY -> 2014-15 | F13: CONNECTION SUBCATEGORY | G13: CONNECTION CLASSICIATION | H13: =CRY -> 2014-15 | J13: =CRY -> 2014-15
A14: ED_CON251_00001 | B14: RESIDENTIAL | C14: Underground connections (0's) | D14: 4933 | E14: ED_CON252_00001 | F14: RESIDENTIAL | G14: Simple connection LV | H14: 7938870.124 | J14: 8062
A15: ED_CON251_00002 | C15: Overhead connections (0's) | D15: 3129 | E15: ED_CON252_00002 | G15: Complex connection LV | H15: 0 | J15: 0
A16: ED_CON251_00003 | C16: Distribution substation installed (MVA added) | D16: 7.758 | E16: ED_CON252_00003 | G16: Complex connection HV | H16: 0 | J16: 0
A17: ED_CON251_00004 | C17: Distribution substations installed (0's) | D17: 101 | E17: ED_CON252_00004 | F17: COMMERCIAL/INDUSTRIAL | G17: Simple connection LV | H17: 1068291.23 | J17: 1086
A18: ED_CON251_00005 | C18: Distribution substation installed (total spend $0's) | D18: 1217409 | E18: ED_CON252_00005 | G18: Complex connection HV (customer connected at LV, minor HV works) | H18: 0 | J18: 0
A19: ED_CON251_00006 | C19: Augmentation HV (net circuit KM added) | D19: 44.53 | E19: ED_CON252_00006 | G19: Complex connection HV (customer connected at LV, upstream asset works) | H19: 0 | J19: 0
A20: ED_CON251_00007 | C20: Augmentation HV (total spend $0's) | D20: 3206160 | E20: ED_CON252_00007 | G20: Complex connection HV (customer connected at HV) | H20: 0 | J20: 0
A21: ED_CON251_00008 | C21: Augmentation LV (net circuit KM added) | D21: 9.16 | E21: ED_CON252_00008 | G21: Complex connection sub-transmission | H21: 0 | J21: 0
A22: ED_CON251_00009 | C22: Augmentation LV (total spend $0's) | D22: 613720 | E22: ED_CON252_00009 | F22: SUBDIVISION | G22: Complex connection LV | H22: 0 | J22: 0
A23: ED_CON251_00010 | C23: Mean days to connect residential customer with LV single phase connection (0's) | D23: 31.05 | E23: ED_CON252_00010 | G23: Complex connection HV (no upstream asset works) | H23: 0 | J23: 0
A24: ED_CON251_00011 | C24: Volume of GSL breaches for residential customers (0's) | D24: 0 | E24: ED_CON252_00011 | G24: Complex connection HV (with upstream asset works) | H24: 0 | J24: 0
A25: ED_CON251_00012 | C25: Volume of customer complaints relating to connection services (0's) | D25: 10 | E25: ED_CON252_00012 | F25: EMBEDDED GENERATION | G25: Simple connection LV | H25: 0 | J25: 14.225
A26: ED_CON251_00013 | C26: GSL payments ($0's) | D26: 0 | E26: ED_CON252_00013 | G26: Complex connection HV (small capacity) | H26: 0 | J26: 0
A27: ED_CON251_00014 | B27: COMMERCIAL/INDUSTRIAL | C27: Underground connections (0's) | D27: 332 | E27: ED_CON252_00014 | G27: Complex connection HV (large capacity) | H27: 0 | J27: 0
A28: ED_CON251_00015 | C28: Overhead connections (0's) | D28: 754
A29: ED_CON251_00016 | C29: Distribution substation installed (MVA added) | D29: 5.449
A30: ED_CON251_00017 | C30: Distribution substations installed (0's) | D30: 14
A31: ED_CON251_00018 | C31: Distribution substation installed total spend ($0's) | D31: 531791
A32: ED_CON251_00019 | C32: Augmentation HV (net circuit KM added) | D32: 13.34
A33: ED_CON251_00020 | C33: Augmentation HV (total spend $0's) | D33: 1160580
A34: ED_CON251_00021 | C34: Augmentation LV (net circuit KM added) | D34: 2.74
A35: ED_CON251_00022 | C35: Augmentation LV (total spend $0's) | D35: 183580
A36: ED_CON251_00023 | B36: SUBDIVISION | C36: Underground connections (0's) | D36: 0
A37: ED_CON251_00024 | C37: Overhead connections (0's) | D37: 0
A38: ED_CON251_00025 | C38: Distribution substation installed (MVA added) | D38: 0
A39: ED_CON251_00026 | C39: Distribution substations installed (0's) | D39: 0
A40: ED_CON251_00027 | C40: Distribution substation installed (total spend $0's) | D40: 0
A41: ED_CON251_00028 | C41: Augmentation HV (net circuit KM added) | D41: 0
A42: ED_CON251_00029 | C42: Augmentation HV (total spend $0's) | D42: 0
A43: ED_CON251_00030 | C43: Augmentation LV (net circuit KM added) | D43: 0
A44: ED_CON251_00031 | C44: Augmentation LV (total spend $0's) | D44: 0
A45: ED_CON251_00032 | C45: Cost per lot ($) | D45: 0
A46: ED_CON251_00033 | B46: EMBEDDED GENERATION | C46: Underground connections (0's) | D46: 4482
A47: ED_CON251_00034 | C47: Overhead connections (0's) | D47: 9743
A48: ED_CON251_00035 | C48: Distribution substation installed (MVA added) | D48: 0.1
A49: ED_CON251_00036 | C49: Distribution substations installed (0's) | D49: 1
A50: ED_CON251_00037 | C50: Distribution substation installed (total spend $0's) | D50: 0
A51: ED_CON251_00038 | C51: Augmentation HV (net circuit KM added) | D51: 0
A52: ED_CON251_00039 | C52: Augmentation HV (total spend $0's) | D52: 0
A53: ED_CON251_00040 | C53: Augmentation LV (net circuit KM added) | D53: 0.58
A54: ED_CON251_00041 | C54: Augmentation LV (total spend $0's) | D54: 0

Sheet 2.6 Non-network
B1: =(LOOKUP(dms_Model,dms_Model_List,dms_Worksheet_List)) -> REGULATORY REPORTING STATEMENT
B2: Australian Distribution Co.
B3: =CONCATENATE("Category Analysis RIN response ",CRY) -> Category Analysis RIN response 2014-15
B4: 2.6 NON NETWORK EXPENDITURE
B9: TABLE 2.6.1 NON-NETWORK EXPENDITURE | G9: TABLE 2.6.2 ANNUAL DESCRIPTOR METRICS - IT & COMMUNICATIONS EXPENDITURE | K9: TABLE 2.6.3 ANNUAL DESCRIPTOR METRICS - MOTOR VEHICLES
E12: EXPENDITURE ($0's) | I12: VOLUMES | L12: ASSET REPORTING CATEGORY | N12: VOLUMES / %
A13: ED_NON261_00001 | B13: SERVICE SUBCATEGORY | C13: ASSET CATEGORY | D13: ASSET REPORTING CATEGORY | E13: =CRY -> 2014-15 | G13: NON-NETWORK CATEGORY | H13: DESCRIPTOR METRIC | I13: =CRY -> 2014-15 | K13: NON-NETWORK CATEGORY | L13: ASSET CATEGORY | M13: DESCRIPTOR METRIC | N13: =CRY -> 2014-15
A14: ED_NON261_00002 | B14: IT & COMMUNICATIONS | C14: Client device expenditure | D14: Opex | E14: 2816094.533 | F14: ED_NON262_00001 | G14: IT & COMMUNICATIONS | H14: Employee numbers | I14: 3528 | J14: ED_NON263_00001 | K14: MOTOR VEHICLES | L14: CAR | M14: Average kilometres travelled (0's) | N14: 26910
A15: ED_NON261_00003 | D15: Capex | E15: 327745.7474 | F15: ED_NON262_00002 | H15: User numbers | I15: 2323.027788 | J15: ED_NON263_00002 | M15: Number purchased | N15: 8
A16: ED_NON261_00004 | C16: Recurrent expenditure | D16: Opex | E16: 31966322.73 | F16: ED_NON262_00003 | H16: Number of devices | I16: 3589.712665 | J16: ED_NON263_00003 | M16: Number leased | N16: 0
A17: ED_NON261_00005 | D17: Capex | E17: 3076127.944 | J17: ED_NON263_00004 | M17: Number in fleet | N17: 128
A18: ED_NON261_00006 | C18: Non-recurrent expenditure | D18: Opex | E18: 6107621.124 | J18: ED_NON263_00005 | M18: Proportion of total fleet expenditure allocated as regulatory expenditure (%) | N18: 0.981
A19: ED_NON261_00007 | D19: Capex | E19: 18756420.92 | J19: ED_NON263_00006 | L19: LIGHT COMMERCIAL VEHICLE | M19: Average kilometres travelled (0's) | N19: 27219
A20: ED_NON261_00008 | B20: MOTOR VEHICLES | C20: Car | D20: Opex | E20: 1382246.357 | J20: ED_NON263_00007 | M20: Number purchased | N20: 158
A21: ED_NON261_00009 | D21: Capex | E21: 238521.7875 | J21: ED_NON263_00008 | M21: Number leased | N21: 0
A22: ED_NON261_00010 | C22: Light commercial vehicle | D22: Opex | E22: 29528155.24 | J22: ED_NON263_00009 | M22: Number in fleet | N22: 1408
A23: ED_NON261_00011 | D23: Capex | E23: 8870926.838 | J23: ED_NON263_00010 | M23: Proportion of total fleet expenditure allocated as regulatory expenditure (%) | N23: 0.981
A24: ED_NON261_00012 | C24: Elevated work platform (LCV) | D24: Opex | E24: 0 | J24: ED_NON263_00011 | L24: ELEVATED WORK PLATFORM (LCV) | M24: Average kilometres travelled (0's) | N24: 0
A25: ED_NON261_00013 | D25: Capex | E25: 0 | J25: ED_NON263_00012 | M25: Number purchased | N25: 0
A26: ED_NON261_00014 | C26: Elevated work platform (HCV) | D26: Opex | E26: 11300569.7 | J26: ED_NON263_00013 | M26: Number leased | N26: 0
A27: ED_NON261_00015 | D27: Capex | E27: 4825713.244 | J27: ED_NON263_00014 | M27: Number in fleet | N27: 0
A28: ED_NON261_00016 | C28: Heavy commercial vehicle | D28: Opex | E28: 12866437.7 | J28: ED_NON263_00015 | M28: Proportion of total fleet expenditure allocated as regulatory expenditure (%) | N28: 0.981
A29: ED_NON261_00017 | D29: Capex | E29: 1607541.146 | J29: ED_NON263_00016 | L29: ELEVATED WORK PLATFORM (HCV) | M29: Average kilometres travelled (0's) | N29: 19167
A30: ED_NON261_00018 | B30: BUILDINGS AND PROPERTY | C30: Total buildings and property expenditure | D30: Opex | E30: 29322746.46 | J30: ED_NON263_00017 | M30: Number purchased | N30: 13
A31: ED_NON261_00019 | D31: Capex | E31: 4353400.058 | J31: ED_NON263_00018 | M31: Number leased | N31: 0
A32: ED_NON261_00020 | B32: OTHER | C32: Other expenditure | D32: Opex | E32: 0 | J32: ED_NON263_00019 | M32: Number in fleet | N32: 234
A33: ED_NON261_00021 | D33: Capex | E33: 0 | J33: ED_NON263_00020 | M33: Proportion of total fleet expenditure allocated as regulatory expenditure (%) | N33: 0.981
A34: ED_NON261_00022 | B34: OTHER - DNSP nominated | C34: Furniture, fittings, plant and equipment | D34: Opex | E34: 0 | J34: ED_NON263_00021 | L34: HEAVY COMMERCIAL VEHICLE | M34: Average kilometres travelled (0's) | N34: 14914
A35: ED_NON261_00023 | D35: Capex | E35: 9775777.311 | J35: ED_NON263_00022 | M35: Number purchased | N35: 17
A36: ED_NON261_00024 | C36: Other fleet assets | D36: Opex | E36: 12109105.67 | J36: ED_NON263_00023 | M36: Number leased | N36: 0
A37: ED_NON261_00025 | D37: Capex | E37: 1093498.033 | J37: ED_NON263_00024 | M37: Number in fleet | N37: 503
A38: ED_NON261_00026 | D38: Opex | E38: 0 | J38: ED_NON263_00025 | M38: Proportion of total fleet expenditure allocated as regulatory expenditure (%) | N38: 0.981
A39: ED_NON261_00027 | D39: Capex | E39: 0
A40: ED_NON261_00028 | D40: Opex | E40: 0
A41: ED_NON261_00029 | D41: Capex | E41: 0
A42: ED_NON261_00030 | D42: Opex | E42: 0
A43: ED_NON261_00031 | D43: Capex | E43: 0
A44: ED_NON261_00032 | D44: Opex | E44: 0
A45: ED_NON261_00033 | D45: Capex | E45: 0
A46: ED_NON261_00034 | D46: Opex | E46: 0
A47: ED_NON261_00035 | D47: Capex | E47: 0
A48: ED_NON261_00036 | D48: Opex | E48: 0
A49: ED_NON261_00037 | D49: Capex | E49: 0
A50: ED_NON261_00038 | D50: Opex | E50: 0
A51: ED_NON261_00039 | D51: Capex | E51: 0
A52: ED_NON261_00040 | D52: Opex | E52: 0
A53: ED_NON261_00041 | D53: Capex | E53: 0
A54: ED_NON261_00042 | D54: Opex | E54: 0
A55: ED_NON261_00043 | D55: Capex | E55: 0

Sheet 2.7 Vegetation management
B1: =(LOOKUP(dms_Model,dms_Model_List,dms_Worksheet_List)) -> REGULATORY REPORTING STATEMENT
B2: Australian Distribution Co.
B3: =CONCATENATE("Category Analysis RIN response ",CRY) -> Category Analysis RIN response 2014-15
B4: 2.7 VEGETATION MANAGEMENT
B6: TABLE 2.7.3 - DESCRIPTOR METRICS ACROSS ALL ZONES - UNPLANNED VEGETATION EVENTS | I6: TABLE 2.7.1 - DESCRIPTOR METRICS BY ZONE | N6: TABLE 2.7.2 - EXPENDITURE METRICS BY ZONE
C9: VOLUMES | L9: VOLUMES | P9: EXPENDITURE ($0's)
B10: DESCRIPTOR METRIC | C10: =CRY -> 2014-15 | I10: ZONES | J10: ASSET | K10: ASSET SUBCATEGORY | L10: =CRY -> 2014-15 | N10: ZONES | O10: SERVICE SUBCATEGORY | P10: =CRY -> 2014-15
A11: ED_VEG273_00001 | B11: Number of fire starts caused by vegetation grow-ins (NSP responsibility) (0's) | C11: 4 | H11: ED_VEG271_00001 | I11: ZONE 1 - FNC | J11: Route line length within zone (KM) | K11: Urban and CBD | L11: 182.4846915 | M11: ED_VEG272_00001 | N11: =I11 -> ZONE 1 - FNC | O11: Tree trimming (excluding hazard trees)
A12: ED_VEG273_00002 | B12: Number of fire starts caused by vegetation blow-ins and fall-ins (NSP responsibility) (0's) | C12: 28 | H12: ED_VEG271_00002 | K12: Rural | L12: 7783.64161 | M12: ED_VEG272_00002 | O12: Hazard tree cutting
A13: ED_VEG273_00003 | B13: Number of fire starts caused by vegetation grow-ins (other party responsibility) (0's) | C13: 0 | H13: ED_VEG271_00003 | J13: Number of maintenance spans (0's) | K13: Urban and CBD | L13: 731.166 | M13: ED_VEG272_00003 | O13: Ground clearance
A14: ED_VEG273_00004 | B14: Number of fire starts caused by vegetation blow-ins and fall-ins (other party responsibility) (0's) | C14: 4 | H14: ED_VEG271_00004 | K14: Rural | L14: 18376.072 | M14: ED_VEG272_00004 | O14: Vegetation corridor clearance
H15: ED_VEG271_00005 | J15: Total length of maintenance spans (KM) | K15: Urban and CBD | L15: 33.94215262 | M15: ED_VEG272_00005 | O15: Inspection
H16: ED_VEG271_00006 | K16: Rural | L16: 2226.1215 | M16: ED_VEG272_00006 | O16: Audit
H17: ED_VEG271_00007 | J17: Length of vegetation corridors (KM) | K17: Urban and CBD | L17: 0 | M17: ED_VEG272_00007 | O17: Contractor liaison expenditure
H18: ED_VEG271_00008 | K18: Rural | L18: 1361.930458 | M18: ED_VEG272_00008 | O18: Tree replacement program costs
H19: ED_VEG271_00009 | J19: Average number of trees per maintenance span (0's) | K19: Urban and CBD | L19: 2.4 | M19: ED_VEG272_00009 | O19: Other vegetation management costs not specified in sheet
H20: ED_VEG271_00010 | K20: Rural | L20: 10.5 | M20: ED_VEG272_00010 | N20: =I23 -> ZONE 2 - MNC | O20: Tree trimming (excluding hazard trees)
H21: ED_VEG271_00011 | J21: Average frequency of cutting cycle (years) | K21: Urban and CBD | L21: 2.361111111 | M21: ED_VEG272_00011 | O21: Hazard tree cutting
H22: ED_VEG271_00012 | K22: Rural | L22: 4.677419355 | M22: ED_VEG272_00012 | O22: Ground clearance
H23: ED_VEG271_00013 | I23: ZONE 2 - MNC | J23: Route line length within zone (KM) | K23: Urban and CBD | L23: 216.6419656 | M23: ED_VEG272_00013 | O23: Vegetation corridor clearance
H24: ED_VEG271_00014 | K24: Rural | L24: 9698.570184 | M24: ED_VEG272_00014 | O24: Inspection
H25: ED_VEG271_00015 | J25: Number of maintenance spans (0's) | K25: Urban and CBD | L25: 793.455 | M25: ED_VEG272_00015 | O25: Audit
H26: ED_VEG271_00016 | K26: Rural | L26: 26656.186 | M26: ED_VEG272_00016 | O26: Contractor liaison expenditure
H27: ED_VEG271_00017 | J27: Total length of maintenance spans (KM) | K27: Urban and CBD | L27: 36.61249219 | M27: ED_VEG272_00017 | O27: Tree replacement program costs
H28: ED_VEG271_00018 | K28: Rural | L28: 3355.705284 | M28: ED_VEG272_00018 | O28: Other vegetation management costs not specified in sheet
H29: ED_VEG271_00019 | J29: Length of vegetation corridors (KM) | K29: Urban and CBD | L29: 0 | M29: ED_VEG272_00019 | N29: =I35 -> ZONE 3 - SE | O29: Tree trimming (excluding hazard trees)
H30: ED_VEG271_00020 | K30: Rural | L30: 2053.004399 | M30: ED_VEG272_00020 | O30: Hazard tree cutting
H31: ED_VEG271_00021 | J31: Average number of trees per maintenance span (0's) | K31: Urban and CBD | L31: 2.4 | M31: ED_VEG272_00021 | O31: Ground clearance
H32: ED_VEG271_00022 | K32: Rural | L32: 10.5 | M32: ED_VEG272_00022 | O32: Vegetation corridor clearance
H33: ED_VEG271_00023 | J33: Average frequency of cutting cycle (years) | K33: Urban and CBD | L33: 3.333333333 | M33: ED_VEG272_00023 | O33: Inspection
H34: ED_VEG271_00024 | K34: Rural | L34: 4.230769231 | M34: ED_VEG272_00024 | O34: Audit
H35: ED_VEG271_00025 | I35: ZONE 3 - SE | J35: Route line length within zone (KM) | K35: Urban and CBD | L35: 113.6656383 | M35: ED_VEG272_00025 | O35: Contractor liaison expenditure
H36: ED_VEG271_00026 | K36: Rural | L36: 18478.11625 | M36: ED_VEG272_00026 | O36: Tree replacement program costs
H37: ED_VEG271_00027 | J37: Number of maintenance spans (0's) | K37: Urban and CBD | L37: 792.87 | M37: ED_VEG272_00027 | O37: Other vegetation management costs not specified in sheet
H38: ED_VEG271_00028 | K38: Rural | L38: 29693.985 | M38: ED_VEG272_00028 | N38: =I47 -> ZONE 4 - STH & CW | O38: Tree trimming (excluding hazard trees)
H39: ED_VEG271_00029 | J39: Total length of maintenance spans (KM) | K39: Urban and CBD | L39: 36.4866699 | M39: ED_VEG272_00029 | O39: Hazard tree cutting
H40: ED_VEG271_00030 | K40: Rural | L40: 4711.919643 | M40: ED_VEG272_00030 | O40: Ground clearance
H41: ED_VEG271_00031 | J41: Length of vegetation corridors (KM) | K41: Urban and CBD | L41: 0 | M41: ED_VEG272_00031 | O41: Vegetation corridor clearance
H42: ED_VEG271_00032 | K42: Rural | L42: 2882.72984 | M42: ED_VEG272_00032 | O42: Inspection
H43: ED_VEG271_00033 | J43: Average number of trees per maintenance span (0's) | K43: Urban and CBD | L43: 2.4 | M43: ED_VEG272_00033 | O43: Audit
H44: ED_VEG271_00034 | K44: Rural | L44: 7.7 | M44: ED_VEG272_00034 | O44: Contractor liaison expenditure
H45: ED_VEG271_00035 | J45: Average frequency of cutting cycle (years) | K45: Urban and CBD | L45: 1.839506173 | M45: ED_VEG272_00035 | O45: Tree replacement program costs
H46: ED_VEG271_00036 | K46: Rural | L46: 3.683098592 | M46: ED_VEG272_00036 | O46: Other vegetation management costs not specified in sheet
H47: ED_VEG271_00037 | I47: ZONE 4 - STH & CW | J47: Route line length within zone (KM) | K47: Urban and CBD | L47: 445.3461213 | M47: ED_VEG272_00037 | N47: =I59 -> ZONE 5 - NTH & NW | O47: Tree trimming (excluding hazard trees)
H48: ED_VEG271_00038 | K48: Rural | L48: 42655.91277 | M48: ED_VEG272_00038 | O48: Hazard tree cutting
H49: ED_VEG271_00039 | J49: Number of maintenance spans (0's) | K49: Urban and CBD | L49: 1481.568 | M49: ED_VEG272_00039 | O49: Ground clearance
H50: ED_VEG271_00040 | K50: Rural | L50: 53679.747 | M50: ED_VEG272_00040 | O50: Vegetation corridor clearance
H51: ED_VEG271_00041 | J51: Total length of maintenance spans (KM) | K51: Urban and CBD | L51: 78.38091734 | M51: ED_VEG272_00041 | O51: Inspection
H52: ED_VEG271_00042 | K52: Rural | L52: 9341.644897 | M52: ED_VEG272_00042 | O52: Audit
H53: ED_VEG271_00043 | J53: Length of vegetation corridors (KM) | K53: Urban and CBD | L53: 0 | M53: ED_VEG272_00043 | O53: Contractor liaison expenditure
H54: ED_VEG271_00044 | K54: Rural | L54: 5715.173547 | M54: ED_VEG272_00044 | O54: Tree replacement program costs
H55: ED_VEG271_00045 | J55: Average number of trees per maintenance span (0's) | K55: Urban and CBD | L55: 2.4 | M55: ED_VEG272_00045 | O55: Other vegetation management costs not specified in sheet
H56: ED_VEG271_00046 | K56: Rural | L56: 2.4 | M56: ED_VEG272_00046 | N56: =I71 -> ZONE 6 - FW | O56: Tree trimming (excluding hazard trees)
H57: ED_VEG271_00047 | J57: Average frequency of cutting cycle (years) | K57: Urban and CBD | L57: 2.006097561 | M57: ED_VEG272_00047 | O57: Hazard tree cutting
H58: ED_VEG271_00048 | K58: Rural | L58: 5.901315789 | M58: ED_VEG272_00048 | O58: Ground clearance
H59: ED_VEG271_00049 | I59: ZONE 5 - NTH & NW | J59: Route line length within zone (KM) | K59: Urban and CBD | L59: 189.2080085 | M59: ED_VEG272_00049 | O59: Vegetation corridor clearance
H60: ED_VEG271_00050 | K60: Rural | L60: 45592.18907 | M60: ED_VEG272_00050 | O60: Inspection
H61: ED_VEG271_00051 | J61: Number of maintenance spans (0's) | K61: Urban and CBD | L61: 1317.964 | M61: ED_VEG272_00051 | O61: Audit
H62: ED_VEG271_00052 | K62: Rural | L62: 61817.168 | M62: ED_VEG272_00052 | O62: Contractor liaison expenditure
H63: ED_VEG271_00053 | J63: Total length of maintenance spans (KM) | K63: Urban and CBD | L63: 63.19547483 | M63: ED_VEG272_00053 | O63: Tree replacement program costs
H64: ED_VEG271_00054 | K64: Rural | L64: 10850.941 | M64: ED_VEG272_00054 | O64: Other vegetation management costs not specified in sheet
H65: ED_VEG271_00055 | J65: Length of vegetation corridors (KM) | K65: Urban and CBD | L65: 0 | M65: ED_VEG272_00055 | N65: =I83 -> ZONE 7 - FNC - (LV, Subt) | O65: Tree trimming (excluding hazard trees)
H66: ED_VEG271_00056 | K66: Rural | L66: 6638.553664 | M66: ED_VEG272_00056 | O66: Hazard tree cutting
H67: ED_VEG271_00057 | J67: Average number of trees per maintenance span (0's) | K67: Urban and CBD | L67: 2.4 | M67: ED_VEG272_00057 | O67: Ground clearance
H68: ED_VEG271_00058 | K68: Rural | L68: 10.3 | M68: ED_VEG272_00058 | O68: Vegetation corridor clearance
H69: ED_VEG271_00059 | J69: Average frequency of cutting cycle (years) | K69: Urban and CBD | L69: 2.125 | M69: ED_VEG272_00059 | O69: Inspection
H70: ED_VEG271_00060 | K70: Rural | L70: 3.635193133 | M70: ED_VEG272_00060 | O70: Audit
H71: ED_VEG271_00061 | I71: ZONE 6 - FW | J71: Route line length within zone (KM) | K71: Urban and CBD | L71: 6.427286105 | M71: ED_VEG272_00061 | O71: Contractor liaison expenditure
H72: ED_VEG271_00062 | K72: Rural | L72: 17618.82847 | M72: ED_VEG272_00062 | O72: Tree replacement program costs
H73: ED_VEG271_00063 | J73: Number of maintenance spans (0's) | K73: Urban and CBD | L73: 31.598 | M73: ED_VEG272_00063 | O73: Other vegetation management costs not specified in sheet
H74: ED_VEG271_00064 | K74: Rural | L74: 15288.34 | M74: ED_VEG272_00064 | N74: =I95 -> ZONE 8 - MNC - (LV, Subt) | O74: Tree trimming (excluding hazard trees)
H75: ED_VEG271_00065 | J75: Total length of maintenance spans (KM) | K75: Urban and CBD | L75: 1.664667101 | M75: ED_VEG272_00065 | O75: Hazard tree cutting
H76: ED_VEG271_00066 | K76: Rural | L76: 3840.904605 | M76: ED_VEG272_00066 | O76: Ground clearance
H77: ED_VEG271_00067 | J77: Length of vegetation corridors (KM) | K77: Urban and CBD | L77: 0 | M77: ED_VEG272_00067 | O77: Vegetation corridor clearance
H78: ED_VEG271_00068 | K78: Rural | L78: 2349.847017 | M78: ED_VEG272_00068 | O78: Inspection
H79: ED_VEG271_00069 | J79: Average number of trees per maintenance span (0's) | K79: Urban and CBD | L79: 2.4 | M79: ED_VEG272_00069 | O79: Audit
H80: ED_VEG271_00070 | K80: Rural | L80: 4 | M80: ED_VEG272_00070 | O80: Contractor liaison expenditure
H81: ED_VEG271_00071 | J81: Average frequency of cutting cycle (years) | K81: Urban and CBD | L81: 2.105263158 | M81: ED_VEG272_00071 | O81: Tree replacement program costs
H82: ED_VEG271_00072 | K82: Rural | L82: 5.568627451 | M82: ED_VEG272_00072 | O82: Other vegetation management costs not specified in sheet
H83: ED_VEG271_00073 | I83: ZONE 7 - FNC - (LV, Subt) | J83: Route line length within zone (KM) | K83: Urban and CBD | L83: 3406.504654 | M83: ED_VEG272_00073 | N83: =I107 -> ZONE 9 - SE - (LV, Subt) | O83: Tree trimming (excluding hazard trees)
H84: ED_VEG271_00074 | K84: Rural | L84: 0 | M84: ED_VEG272_00074 | O84: Hazard tree cutting
H85: ED_VEG271_00075 | J85: Number of maintenance spans (0's) | K85: Urban and CBD | L85: 14710.399 | M85: ED_VEG272_00075 | O85: Ground clearance
H86: ED_VEG271_00076 | K86: Rural | L86: 0 | M86: ED_VEG272_00076 | O86: Vegetation corridor clearance
H87: ED_VEG271_00077 | J87: Total length of maintenance spans (KM) | K87: Urban and CBD | L87: 974.260331 | M87: ED_VEG272_00077 | O87: Inspection
H88: ED_VEG271_00078 | K88: Rural | L88: 0 | M88: ED_VEG272_00078 | O88: Audit
H89: ED_VEG271_00079 | J89: Length of vegetation corridors (KM) | K89: Urban and CBD | L89: 596.0477981 | M89: ED_VEG272_00079 | O89: Contractor liaison expenditure
H90: ED_VEG271_00080 | K90: Rural | L90: 0 | M90: ED_VEG272_00080 | O90: Tree replacement program costs
H91: ED_VEG271_00081 | J91: Average number of trees per maintenance span (0's) | K91: Urban and CBD | L91: 2.4 | M91: ED_VEG272_00081 | O91: Other vegetation management costs not specified in sheet
H92: ED_VEG271_00082 | K92: Rural | L92: 10.5 | M92: ED_VEG272_00082 | N92: =I119 -> ZONE 10 - STH & CW - (LV, Subt) | O92: Tree trimming (excluding hazard trees)
H93: ED_VEG271_00083 | J93: Average frequency of cutting cycle (years) | K93: Urban and CBD | L93: 2.361111111 | M93: ED_VEG272_00083 | O93: Hazard tree cutting
H94: ED_VEG271_00084 | K94: Rural | L94: 4.677419355 | M94: ED_VEG272_00084 | O94: Ground clearance
H95: ED_VEG271_00085 | I95: ZONE 8 - MNC - (LV, Subt) | J95: Route line length within zone (KM) | K95: Urban and CBD | L95: 3834.393805 | M95: ED_VEG272_00085 | O95: Vegetation corridor clearance
H96: ED_VEG271_00086 | K96: Rural | L96: 0 | M96: ED_VEG272_00086 | O96: Inspection
H97: ED_VEG271_00087 | J97: Number of maintenance spans (0's) | K97: Urban and CBD | L97: 17363.086 | M97: ED_VEG272_00087 | O97: Audit
H98: ED_VEG271_00088 | K98: Rural | L98: 0 | M98: ED_VEG272_00088 | O98: Contractor liaison expenditure
H99: ED_VEG271_00089 | J99: Total length of maintenance spans (KM) | K99: Urban and CBD | L99: 1326.700257 | M99: ED_VEG272_00089 | O99: Tree replacement program costs
H100: ED_VEG271_00090 | K100: Rural | L100: 0 | M100: ED_VEG272_00090 | O100: Other vegetation management costs not specified in sheet
H101: ED_VEG271_00091 | J101: Length of vegetation corridors (KM) | K101: Urban and CBD | L101: 811.6688544 | M101: ED_VEG272_00091 | N101: =I131 -> ZONE 11 - NTH & NW - (LV, Subt) | O101: Tree trimming (excluding hazard trees)
H102: ED_VEG271_00092 | K102: Rural | L102: 0 | M102: ED_VEG272_00092 | O102: Hazard tree cutting
H103: ED_VEG271_00093 | J103: Average number of trees per maintenance span (0's) | K103: Urban and CBD | L103: 2.4 | M103: ED_VEG272_00093 | O103: Ground clearance
H104: ED_VEG271_00094 | K104: Rural | L104: 10.5 | M104: ED_VEG272_00094 | O104: Vegetation corridor clearance
H105: ED_VEG271_00095 | J105: Average frequency of cutting cycle (years) | K105: Urban and CBD | L105: 3.333333333 | M105: ED_VEG272_00095 | O105: Inspection
H106: ED_VEG271_00096 | K106: Rural | L106: 4.230769231 | M106: ED_VEG272_00096 | O106: Audit
H107: ED_VEG271_00097 | I107: ZONE 9 - SE - (LV, Subt) | J107: Route line length within zone (KM) | K107: Urban and CBD | L107: 3952.856436 | M107: ED_VEG272_00097 | O107: Contractor liaison expenditure
H108: ED_VEG271_00098 | K108: Rural | L108: 0 | M108: ED_VEG272_00098 | O108: Tree replacement program costs
H109: ED_VEG271_00099 | J109: Number of maintenance spans (0's) | K109: Urban and CBD | L109: 14684.13 | M109: ED_VEG272_00099 | O109: Other vegetation management costs not specified in sheet
H110: ED_VEG271_00100 | K110: Rural | L110: 0 | M110: ED_VEG272_00100 | N110: =I143 -> ZONE 12 - FW - (LV, Subt) | O110: Tree trimming (excluding hazard trees)
H111: ED_VEG271_00101 | J111: Total length of maintenance spans (KM) | K111: Urban and CBD | L111: 1007.978391 | M111: ED_VEG272_00101 | O111: Hazard tree cutting
H112: ED_VEG271_00102 | K112: Rural | L112: 0 | M112: ED_VEG272_00102 | O112: Ground clearance
H113: ED_VEG271_00103 | J113: Length of vegetation corridors (KM) | K113: Urban and CBD | L113: 616.6763455 | M113: ED_VEG272_00103 | O113: Vegetation corridor clearance
H114: ED_VEG271_00104 | K114: Rural | L114: 0 | M114: ED_VEG272_00104 | O114: Inspection
H115: ED_VEG271_00105 | J115: Average number of trees per maintenance span (0's) | K115: Urban and CBD | L115: 2.4 | M115: ED_VEG272_00105 | O115: Audit
H116: ED_VEG271_00106 | K116: Rural | L116: 7.7 | M116: ED_VEG272_00106 | O116: Contractor liaison expenditure
H117: ED_VEG271_00107 | J117: Average frequency of cutting cycle (years) | K117: Urban and CBD | L117: 1.839506173 | M117: ED_VEG272_00107 | O117: Tree replacement program costs
H118: ED_VEG271_00108 | K118: Rural | L118: 3.683098592 | M118: ED_VEG272_00108 | O118: Other vegetation management costs not specified in sheet
H119: ED_VEG271_00109 | I119: ZONE 10 - STH & CW - (LV, Subt) | J119: Route line length within zone (KM) | K119: Urban and CBD | L119: 9188.36008 | M119: ED_VEG272_00109 | N119: =I155 -> ZONE 13 | O119: Tree trimming (excluding hazard trees)
H120: ED_VEG271_00110 | K120: Rural | L120: 0 | M120: ED_VEG272_00110 | O120: Hazard tree cutting
H121: ED_VEG271_00111 | J121: Number of maintenance spans (0's) | K121: Urban and CBD | L121: 31663.785 | M121: ED_VEG272_00111 | O121: Ground clearance
H122: ED_VEG271_00112 | K122: Rural | L122: 0 | M122: ED_VEG272_00112 | O122: Vegetation corridor clearance
H123: ED_VEG271_00113 | J123: Total length of maintenance spans (KM) | K123: Urban and CBD | L123: 2012.250858 | M123: ED_VEG272_00113 | O123: Inspection
H124: ED_VEG271_00114 | K124: Rural | L124: 0 | M124: ED_VEG272_00114 | O124: Audit
H125: ED_VEG271_00115 | J125: Length of vegetation corridors (KM) | K125: Urban and CBD | L125: 1231.085424 | M125: ED_VEG272_00115 | O125: Contractor liaison expenditure
H126: ED_VEG271_00116 | K126: Rural | L126: 0 | M126: ED_VEG272_00116 | O126: Tree replacement program costs
H127: ED_VEG271_00117 | J127: Average number of trees per maintenance span (0's) | K127: Urban and CBD | L127: 2.4 | M127: ED_VEG272_00117 | O127: Other vegetation management costs not specified in sheet
H128: ED_VEG271_00118 | K128: Rural | L128: 2.4 | M128: ED_VEG272_00118 | N128: =I167 -> ZONE 14 | O128: Tree trimming (excluding hazard trees)
H129: ED_VEG271_00119 | J129: Average frequency of cutting cycle (years) | K129: Urban and CBD | L129: 2.006097561 | M129: ED_VEG272_00119 | O129: Hazard tree cutting
H130: ED_VEG271_00120 | K130: Rural | L130: 5.901315789 | M130: ED_VEG272_00120 | O130: Ground clearance
H131: ED_VEG271_00121 | I131: ZONE 11 - NTH & NW - (LV, Subt) | J131: Route line length within zone (KM) | K131: Urban and CBD | L131: 8170.40722 | M131: ED_VEG272_00121 | O131: Vegetation corridor clearance
H132: ED_VEG271_00122 | K132: Rural | L132: 0 | M132: ED_VEG272_00122 | O132: Inspection
H133: ED_VEG271_00123 | J133: Number of maintenance spans (0's) | K133: Urban and CBD | L133: 28193.144 | M133: ED_VEG272_00123 | O133: Audit
H134: ED_VEG271_00124 | K134: Rural | L134: 0 | M134: ED_VEG272_00124 | O134: Contractor liaison expenditure
H135: ED_VEG271_00125 | J135: Total length of maintenance spans (KM) | K135: Urban and CBD | L135: 1944.556918 | M135: ED_VEG272_00125 | O135: Tree replacement program costs
H136: ED_VEG271_00126 | K136: Rural | L136: 0 | M136: ED_VEG272_00126 | O136: Other vegetation management costs not specified in sheet
H137: ED_VEG271_00127 | J137: Length of vegetation corridors (KM) | K137: Urban and CBD | L137: 1189.670597 | M137: ED_VEG272_00127 | N137: =I179 -> ZONE 15 | O137: Tree trimming (excluding hazard trees)
H138: ED_VEG271_00128 | K138: Rural | L138: 0 | M138: ED_VEG272_00128 | O138: Hazard tree cutting
H139: ED_VEG271_00129 | J139: Average number of trees per maintenance span (0's) | K139: Urban and CBD | L139: 2.4 | M139: ED_VEG272_00129 | O139: Ground clearance
H140: ED_VEG271_00130 | K140: Rural | L140: 10.3 | M140: ED_VEG272_00130 | O140: Vegetation corridor clearance
H141: ED_VEG271_00131 | J141: Average frequency of cutting cycle (years) | K141: Urban and CBD | L141: 2.125 | M141: ED_VEG272_00131 | O141: Inspection
H142: ED_VEG271_00132 | K142: Rural | L142: 3.635193133 | M142: ED_VEG272_00132 | O142: Audit
H143: ED_VEG271_00133 | I143: ZONE 12 - FW - (LV, Subt) | J143: Route line length within zone (KM) | K143: Urban and CBD | L143: 3152.792369 | M143: ED_VEG272_00133 | O143: Contractor liaison expenditure
H144: ED_VEG271_00134 | K144: Rural | L144: 0 | M144: ED_VEG272_00134 | O144: Tree replacement program costs
H145: ED_VEG271_00135 | J145: Number of maintenance spans (0's) | K145: Urban and CBD | L145: 6672.085 | M145: ED_VEG272_00135 | O145: Other vegetation management costs not specified in sheet
H146: ED_VEG271_00136 | K146: Rural | L146: 0 | M146: ED_VEG272_00136 | N146: =I191 -> ZONE 16 | O146: Tree trimming (excluding hazard trees)
H147: ED_VEG271_00137 | J147: Total length of maintenance spans (KM) | K147: Urban and CBD | L147: 687.3087365 | M147: ED_VEG272_00137 | O147: Hazard tree cutting
H148: ED_VEG271_00138 | K148: Rural | L148: 0 | M148: ED_VEG272_00138 | O148: Ground clearance
H149: ED_VEG271_00139 | J149: Length of vegetation corridors (KM) | K149: Urban and CBD | L149: 420.4921888 | M149: ED_VEG272_00139 | O149: Vegetation corridor clearance
H150: ED_VEG271_00140 | K150: Rural | L150: 0 | M150: ED_VEG272_00140 | O150: Inspection
H151: ED_VEG271_00141 | J151: Average number of trees per maintenance span (0's) | K151: Urban and CBD | L151: 2.4 | M151: ED_VEG272_00141 | O151: Audit
H152: ED_VEG271_00142 | K152: Rural | L152: 4 | M152: ED_VEG272_00142 | O152: Contractor liaison expenditure
H153: ED_VEG271_00143 | J153: Average frequency of cutting cycle (years) | K153: Urban and CBD | L153: 2.105263158 | M153: ED_VEG272_00143 | O153: Tree replacement program costs
H154: ED_VEG271_00144 | K154: Rural | L154: 5.568627451 | M154: ED_VEG272_00144 | O154: Other vegetation management costs not specified in sheet
H155: ED_VEG271_00145 | I155: ZONE 13 | J155: Route line length within zone (KM) | K155: Urban and CBD | M155: ED_VEG272_00145 | N155: =I203 -> ZONE 17 | O155: Tree trimming (excluding hazard trees)
H156: ED_VEG271_00146 | K156: Rural | M156: ED_VEG272_00146 | O156: Hazard tree cutting
H157: ED_VEG271_00147 | J157: Number of maintenance spans (0's) | K157: Urban and CBD | M157: ED_VEG272_00147 | O157: Ground clearance
H158: ED_VEG271_00148 | K158: Rural | M158: ED_VEG272_00148 | O158: Vegetation corridor clearance
H159: ED_VEG271_00149 | J159: Total length of maintenance spans (KM) | K159: Urban and CBD | M159: ED_VEG272_00149 | O159: Inspection
H160: ED_VEG271_00150 | K160: Rural | M160: ED_VEG272_00150 | O160: Audit
H161: ED_VEG271_00151 | J161: Length of vegetation corridors (KM) | K161: Urban and CBD | M161: ED_VEG272_00151 | O161: Contractor liaison expenditure
H162: ED_VEG271_00152 | K162: Rural | M162: ED_VEG272_00152 | O162: Tree replacement program costs
H163: ED_VEG271_00153 | J163: Average number of trees per maintenance span (0's) | K163: Urban and CBD | M163: ED_VEG272_00153 | O163: Other vegetation management costs not specified in sheet
H164: ED_VEG271_00154 | K164: Rural | M164: ED_VEG272_00154 | N164: =I215 -> ZONE 18 | O164: Tree trimming (excluding hazard trees)
H165: ED_VEG271_00155 | J165: Average frequency of cutting cycle (years) | K165: Urban and CBD | M165: ED_VEG272_00155 | O165: Hazard tree cutting
H166: ED_VEG271_00156 | K166: Rural | M166: ED_VEG272_00156 | O166: Ground clearance
H167: ED_VEG271_00157 | I167: ZONE 14 | J167: Route line length within zone (KM) | K167: Urban and CBD | M167: ED_VEG272_00157 | O167: Vegetation corridor clearance
H168: ED_VEG271_00158 | K168: Rural | M168: ED_VEG272_00158 | O168: Inspection
H169: ED_VEG271_00159 | J169: Number of maintenance spans (0's) | K169: Urban and CBD | M169: ED_VEG272_00159 | O169: Audit
H170: ED_VEG271_00160 | K170: Rural | M170: ED_VEG272_00160 | O170: Contractor liaison expenditure
H171: ED_VEG271_00161 | J171: Total length of maintenance spans (KM) | K171: Urban and CBD | M171: ED_VEG272_00161 | O171: Tree replacement program costs
H172: ED_VEG271_00162 | K172: Rural | M172: ED_VEG272_00162 | O172: Other vegetation management costs not specified in sheet
H173: ED_VEG271_00163 | J173: Length of vegetation corridors (KM) | K173: Urban and CBD
H174: ED_VEG271_00164 | K174: Rural
H175: ED_VEG271_00165 | J175: Average number of trees per maintenance span (0's) | K175: Urban and CBD
H176: ED_VEG271_00166 | K176: Rural
H177: ED_VEG271_00167 | J177: Average frequency of cutting cycle (years) | K177: Urban and CBD
H178: ED_VEG271_00168 | K178: Rural
H179: ED_VEG271_00169 | I179: ZONE 15 | J179: Route line length within zone (KM) | K179: Urban and CBD
H180: ED_VEG271_00170 | K180: Rural
H181: ED_VEG271_00171 | J181: Number of maintenance spans (0's) | K181: Urban and CBD
H182: ED_VEG271_00172 | K182: Rural
H183: ED_VEG271_00173 | J183: Total length of maintenance spans (KM) | K183: Urban and CBD
H184: ED_VEG271_00174 | K184: Rural
H185: ED_VEG271_00175 | J185: Length of vegetation corridors (KM) | K185: Urban and CBD
H186: ED_VEG271_00176 | K186: Rural
H187: ED_VEG271_00177 | J187: Average number of trees per maintenance span (0's) | K187: Urban and CBD
H188: ED_VEG271_00178 | K188: Rural
H189: ED_VEG271_00179 | J189: Average frequency of cutting cycle (years) | K189: Urban and CBD
H190: ED_VEG271_00180 | K190: Rural
H191: ED_VEG271_00181 | I191: ZONE 16 | J191: Route line length within zone (KM) | K191: Urban and CBD
H192: ED_VEG271_00182 | K192: Rural
H193: ED_VEG271_00183 | J193: Number of maintenance spans (0's) | K193: Urban and CBD
H194: ED_VEG271_00184 | K194: Rural
H195: ED_VEG271_00185 | J195: Total length of maintenance spans (KM) | K195: Urban and CBD
H196: ED_VEG271_00186 | K196: Rural
H197: ED_VEG271_00187 | J197: Length of vegetation corridors (KM) | K197: Urban and CBD
H198: ED_VEG271_00188 | K198: Rural
H199: ED_VEG271_00189 | J199: Average number of trees per maintenance span (0's) | K199: Urban and CBD
H200: ED_VEG271_00190 | K200: Rural
H201: ED_VEG271_00191 | J201: Average frequency of cutting cycle (years) | K201: Urban and CBD
H202: ED_VEG271_00192 | K202: Rural
H203: ED_VEG271_00193 | I203: ZONE 17 | J203: Route line length within zone (KM) | K203: Urban and CBD
... 23 more rows

Sheet 2.8 Maintenance
B1: =(LOOKUP(dms_Model,dms_Model_List,dms_Worksheet_List)) -> REGULATORY REPORTING STATEMENT
B2: Australian Distribution Co.
B3: =CONCATENATE("Category Analysis RIN response ",CRY) -> Category Analysis RIN response 2014-15
B4: 2.8 MAINTENANCE
B8: TABLE 2.8.1 - DESCRIPTOR METRICS FOR ROUTINE AND NON-ROUTINE MAINTENANCE | K8: TABLE 2.8.2 - COST METRICS FOR ROUTINE AND NON-ROUTINE MAINTENANCE
E11: ASSET QUANTITY - AT YEAR END (0s) | F11: ASSET QUANTITY - INSPECTED/ MAINTAINED | G11: AVERAGE AGE OF ASSET GROUP | H11: INSPECTION CYCLE (YEARS) | I11: MAINTENANCE CYCLE (YEARS) | M11: ROUTINE MAINTENANCE EXPENDITURE ($0's) | N11: NON-ROUTINE MAINTENANCE EXPENDITURE ($0's)
B12: MAINTENANCE ACTIVITY | C12: MAINTENANCE ASSET CATEGORY | D12: UNIT OF MEASURE - ASSET QUANTITY | E12: =CRY -> 2014-15 | F12: =CRY -> 2014-15 | G12: =CRY -> 2014-15 | K12: MAINTENANCE ACTIVITY | L12: MAINTENANCE ASSET CATEGORY | M12: =CRY -> 2014-15 | N12: =CRY -> 2014-15
A13: ED_MAI281_00001 | B13: Pole top, overhead line & service line maintenance | C13: Pole tops and overhead lines | D13: Number of poles | E13: 1379171 | F13: 134692 | G13: 35.16708726 | H13: 0 | I13: 4 | J13: ED_MAI282_00001 | K13: Pole top, overhead line & service line maintenance | L13: Pole tops and overhead lines | M13: 0 | N13: 46786399.29
A14: ED_MAI281_00002 | C14: Service lines | D14: Number of customers | E14: 867001 | F14: 4065 | G14: 29.71935275 | H14: 0 | I14: 4 | J14: ED_MAI282_00002 | L14: Service lines | M14: 0 | N14: 1412011.947
A15: ED_MAI281_00003 | B15: Pole inspection and treatment | C15: All poles | D15: Number of poles | E15: 1379171 | F15: 346324 | G15: 35.16708726 | H15: 4 | I15: 0 | J15: ED_MAI282_00003 | K15: Pole inspection and treatment | L15: All poles | M15: 12400389.27 | N15: 0
A16: ED_MAI281_00004 | B16: Overhead asset inspection | C16: All overhead assets | D16: Line patrolled (route KM) | E16: 174685.521 | F16: 174685.521 | G16: 47.29333171 | H16: 1 | I16: 0 | J16: ED_MAI282_00004 | K16: Overhead asset inspection | L16: All overhead assets | M16: 3572168.359 | N16: 0
A17: ED_MAI281_00005 | B17: Network underground cable maintenance: by voltage | C17: LV - 11 to 22 KV | D17: Length (KM) | E17: 8603.923649 | F17: 2908 | G17: 18.62711285 | H17: 0 | I17: 4 | J17: ED_MAI282_00005 | K17: Network underground cable maintenance: by voltage | L17: LV - 11 to 22 KV | M17: 0 | N17: 1010118.263
A18: ED_MAI281_00006 | C18: 33 KV and above | D18: Length (KM) | E18: 89.7264759 | F18: 6 | G18: 13.60635402 | H18: 0 | I18: 4 | J18: ED_MAI282_00006 | L18: 33 KV and above | M18: 0 | N18: 2084.150475
A19: ED_MAI281_00007 | B19: Network underground cable maintenance: by location | C19: Cbd | D19: Length (KM) | E19: 0 | F19: 0 | G19: 0 | H19: 0 | I19: 0 | J19: ED_MAI282_00007 | K19: Network underground cable maintenance: by location | L19: CBD | M19: 0 | N19: 0
A20: ED_MAI281_00008 | C20: Non-CBD | D20: Length (KM) | E20: 8693.650125 | F20: 2914 | G20: 18.575294 | H20: 0 | I20: 4 | J20: ED_MAI282_00008 | L20: Non-CBD | M20: 0 | N20: 1012202.414
A21: ED_MAI281_00009 | B21: Distribution substation equipment & property maintenance | C21: Distribution substation transformers | D21: Number of installed transformers | E21: 143492 | F21: 740 | G21: 26.7 | H21: 0 | I21: 4 | J21: ED_MAI282_00009 | K21: Distribution substation equipment & property maintenance | L21: Distribution substation transformers | M21: 0 | N21: 257045.2252
A22: ED_MAI281_00010 | C22: Distribution substation switchgear (within-substations and stand-alone switchgear) | D22: Number of switches | E22: 380437 | F22: 8291 | G22: 27.47 | H22: 0 | I22: 4 | J22: ED_MAI282_00010 | L22: Distribution substation switchgear (within-substations and stand-alone switchgear) | M22: 0 | N22: 2879948.598
A23: ED_MAI281_00011 | C23: Distribution substation - other equipment | D23: Earth mat | E23: 0 | F23: 0 | G23: 0 | H23: 0 | I23: 0 | J23: ED_MAI282_00011 | L23: Distribution substation - other equipment | M23: 0 | N23: 0
A24: ED_MAI281_00012 | C24: Distribution substation - property | D24: Number of distribution substation properties maintained | E24: 142116 | F24: 54 | G24: 28.24 | H24: 0 | I24: 4 | J24: ED_MAI282_00012 | L24: Distribution substation - property | M24: 0 | N24: 18757.35427
A25: ED_MAI281_00013 | B25: Zone substation equipment maintenance | C25: Transformers - zone substation | D25: Number of zone substation transformers | E25: 757 | F25: 7475.405995 | G25: 28.85 | H25: 0.195 | I25: 6 | J25: ED_MAI282_00013 | K25: Zone substation equipment maintenance | L25: Transformers - zone substation | M25: 9188059.434 | N25: 5521661.634
A26: ED_MAI281_00014 | C26: Transformers - distribution | D26: Number of distribution transformers within zone substations | E26: 0 | F26: 0 | G26: 0 | H26: 0 | I26: 0 | J26: ED_MAI282_00014 | L26: Transformers - distribution | M26: 0 | N26: 0
A27: ED_MAI281_00015 | C27: Transformers - HV | D27: Number of HV transformers | E27: 0 | F27: 0 | G27: 0 | H27: 0 | I27: 0 | J27: ED_MAI282_00015 | L27: Transformers - HV | M27: 0 | N27: 0
A28: ED_MAI281_00016 | C28: Zone substation - other equipment | D28: DNSP to nominate | E28: 32812 | F28: 252719.891 | G28: 15.04 | H28: 0.195 | I28: 9.36 | J28: ED_MAI282_00016 | L28: Zone substation - other equipment | M28: 195603.616 | N28: 1116173.459
A29: ED_MAI281_00017 | B29: Zone substation property maintenance | C29: All zone substation properties | D29: Number of zone substation properties maintained | E29: 367 | F29: 9855 | G29: 27.66 | H29: 0.05907300818 | I29: 6 | J29: ED_MAI282_00017 | K29: Zone substation property maintenance | L29: All zone substation properties | M29: 0 | N29: 0
A30: ED_MAI281_00018 | B30: Public lighting maintenance | C30: Minor roads | D30: Number of public lights maintained | E30: 115977 | F30: 37881 | G30: 6.828242187 | H30: 3 | I30: 3 | J30: ED_MAI282_00018 | K30: Public lighting maintenance | L30: Minor roads | M30: 4404103 | N30: 1668029
A31: ED_MAI281_00019 | C31: Major roads | D31: Number of public lights maintained | E31: 38032 | F31: 10494 | G31: 8.914570892 | H31: 3 | I31: 3 | J31: ED_MAI282_00019 | L31: Major roads | M31: 1255911 | N31: 426224
A32: ED_MAI281_00020 | B32: SCADA & network control maintenance | C32: SCADA & network control maintenance | D32: Number of systems | E32: 980 | F32: 635 | G32: 6.759780288 | H32: 1 | I32: 2 | J32: ED_MAI282_00020 | K32: SCADA & network control maintenance | L32: SCADA & network control maintenance | M32: 1065456 | N32: 394365
A33: ED_MAI281_00021 | B33: Protection systems maintenance | C33: Protection systems maintenance | D33: Number of systems | E33: 4712 | F33: 1521 | G33: 11.63 | H33: 0 | I33: 1 | J33: ED_MAI282_00021 | K33: Protection systems maintenance | L33: Protection systems maintenance | M33: 0 | N33: 528332.1453
A34: ED_MAI281_00022 | B34: Subtransmission asset maintenance - for DNSPs with dual function assets | C34: Subtransmission asset maintenance - for DNSPs with dual function assets | D34: <DNSP to nominate> | E34: 0 | F34: 0 | G34: 0 | H34: 0 | I34: 0 | J34: ED_MAI282_00022 | K34: Subtransmission asset maintenance - for DNSPs with dual function assets | L34: Subtransmission asset maintenance - for DNSPs with dual function assets | M34: 0 | N34: 0
A35: ED_MAI281_00023 | B35: Various assets | C35: includes rates, electricity, communications equip, metering | D35: Units not quoted as various UOM | E35: 0 | F35: 0 | G35: 0 | H35: 0 | I35: 0 | J35: ED_MAI282_00023 | K35: Various assets | L35: includes rates, electricity, communications equip, metering | M35: 0 | N35: 0
A36: ED_MAI281_00024 | B36: Ground clearance - access tracks | C36: Ground clearance - access tracks | D36: Units not quoted | E36: 0 | F36: 0 | G36: 0 | H36: 0 | I36: 0 | J36: ED_MAI282_00024 | K36: Ground clearance - access tracks | L36: Ground clearance - access tracks | M36: 0 | N36: 0
A37: ED_MAI281_00025 | B37: Other | C37: Other Routine Inspection Programs | D37: Number of Assets | E37: 131234 | F37: 60827 | G37: 20.3639134 | H37: 2 | I37: 0 | J37: ED_MAI282_00025 | K37: Other | L37: Other Routine Inspection Programs | M37: 3137560.289 | N37: 0
A38: ED_MAI281_00026 | C38: < DNSP to nominate > | D38: < DNSP to nominate > | E38: 0 | F38: 0 | G38: 0 | H38: 0 | I38: 0
A39: ED_MAI281_00027 | C39: < DNSP to nominate > | D39: < DNSP to nominate > | E39: 0 | F39: 0 | G39: 0 | H39: 0 | I39: 0
A40: ED_MAI281_00028 | C40: < DNSP to nominate > | D40: < DNSP to nominate > | E40: 0 | F40: 0 | G40: 0 | H40: 0 | I40: 0

Sheet 2.9 Emergency Response
B1: =(LOOKUP(dms_Model,dms_Model_List,dms_Worksheet_List)) -> REGULATORY REPORTING STATEMENT
B2: Australian Distribution Co.
B3: =CONCATENATE("Category Analysis RIN response ",CRY) -> Category Analysis RIN response 2014-15
B4: 2.9 EMERGENCY RESPONSE
B6: TABLE 2.9.1 - EMERGENCY RESPONSE EXPENDITURE (OPEX)
D9: EXPENDITURE ($0's)
D10: =CRY -> 2014-15
A11: ED_EME291_99999 | B11: (A) TOTAL EMERGENCY RESPONSE EXPENDITURE ($0's) | C11: Total Expenditure | D11: 41771363.11
A12: ED_EME291_00002 | B12: (B) MAJOR EVENTS O&M EXPENDITURE ($0's) | C12: Major event day - 5/11/2014 | D12: 460924.45
A13: ED_EME291_00003 | C13: Major event day - 11/12/2014 | D13: 570590.99
A14: ED_EME291_00004 | C14: Major event day - 18/12/2014 | D14: 405474.35
A15: ED_EME291_00005 | C15: Major event day - 16/02/2015 | D15: 471244.85
A16: ED_EME291_00006 | C16: Major event day - 21/04/2015 | D16: 548673.3
A17: ED_EME291_00007
A18: ED_EME291_00008
A19: ED_EME291_00009
A20: ED_EME291_00010
A21: ED_EME291_00011
A22: ED_EME291_00012
A23: ED_EME291_00013
A24: ED_EME291_00014
A25: ED_EME291_00015
A26: ED_EME291_00016
A27: ED_EME291_00017
A28: ED_EME291_00018
A29: ED_EME291_00019
A30: ED_EME291_00020
A31: ED_EME291_00021
A32: ED_EME291_00022
A33: ED_EME291_00023
A34: ED_EME291_00024
A35: ED_EME291_00025
A36: ED_EME291_00026
A37: ED_EME291_00027
A38: ED_EME291_00028
A39: ED_EME291_00029
A40: ED_EME291_00030
A41: ED_EME291_00031
A42: ED_EME291_00032
A43: ED_EME291_00033
A44: ED_EME291_00034
A45: ED_EME291_00035
A46: ED_EME291_00036
A47: ED_EME291_00037
A48: ED_EME291_00038
A49: ED_EME291_00039
A50: ED_EME291_00040
A51: ED_EME291_00041
A52: ED_EME291_00042
A53: ED_EME291_00043
A54: ED_EME291_00044
A55: ED_EME291_00045 | B55: (C) MAJOR EVENT DAYS O&M EXPENDITURE ($0's) | C55: 2014-07-01 | D55: 0
A56: ED_EME291_00046 | D56: 0
A57: ED_EME291_00047 | D57: 0
A58: ED_EME291_00048 | D58: 0
A59: ED_EME291_00049 | D59: 0
A60: ED_EME291_00050 | D60: 0
A61: ED_EME291_00051 | D61: 0
A62: ED_EME291_00052 | D62: 0
A63: ED_EME291_00053 | D63: 0
A64: ED_EME291_00054 | D64: 0
A65: ED_EME291_00055 | D65: 0
A66: ED_EME291_00056 | D66: 0
A67: ED_EME291_00057 | D67: 0
A68: ED_EME291_00058 | D68: 0
A69: ED_EME291_00059 | D69: 0
A70: ED_EME291_00060 | D70: 0
A71: ED_EME291_00061 | D71: 0
A72: ED_EME291_00062 | D72: 0
A73: ED_EME291_00063 | D73: 0
A74: ED_EME291_00064 | D74: 0
A75: ED_EME291_00065 | D75: 0
A76: ED_EME291_00066 | D76: 0
A77: ED_EME291_00067 | D77: 0
A78: ED_EME291_00068 | D78: 0
A79: ED_EME291_00069 | D79: 0
A80: ED_EME291_00070 | D80: 0
A81: ED_EME291_00071 | D81: 0
A82: ED_EME291_00072 | D82: 0
A83: ED_EME291_00073 | D83: 0
A84: ED_EME291_00074 | D84: 0
A85: ED_EME291_00075 | D85: 0
A86: ED_EME291_00076 | D86: 0
A87: ED_EME291_00077 | D87: 0
A88: ED_EME291_00078 | D88: 0
A89: ED_EME291_00079 | D89: 0
A90: ED_EME291_00080 | D90: 0
A91: ED_EME291_00081 | D91: 0
A92: ED_EME291_00082 | D92: 0
A93: ED_EME291_00083 | D93: 0
A94: ED_EME291_00084 | D94: 0
A95: ED_EME291_00085 | D95: 0
A96: ED_EME291_00086 | D96: 0
A97: ED_EME291_00087 | D97: 0
A98: ED_EME291_00088 | D98: 0
A99: ED_EME291_00089 | D99: 0
A100: ED_EME291_00090 | D100: 0
A101: ED_EME291_00091 | D101: 0
A102: ED_EME291_00092 | D102: 0
A103: ED_EME291_00093 | D103: 0
A104: ED_EME291_00094 | D104: 0
A105: ED_EME291_00095 | D105: 0
A106: ED_EME291_00096 | D106: 0
A107: ED_EME291_00097 | D107: 0
A108: ED_EME291_00098 | D108: 0
A109: ED_EME291_00099 | D109: 0
A110: ED_EME291_00100 | D110: 0
A111: ED_EME291_00101 | D111: 0
A112: ED_EME291_00102 | D112: 0
A113: ED_EME291_00103 | D113: 0
A114: ED_EME291_00104 | D114: 0
A115: ED_EME291_00105 | D115: 0
A116: ED_EME291_00106 | D116: 0
A117: ED_EME291_00107 | D117: 0
A118: ED_EME291_00108 | D118: 0
A119: ED_EME291_00109 | D119: 0
A120: ED_EME291_00110 | D120: 0
A121: ED_EME291_00111 | D121: 0
A122: ED_EME291_00112 | D122: 0
A123: ED_EME291_00113 | D123: 0
A124: ED_EME291_00114 | D124: 0
A125: ED_EME291_00115 | D125: 0
A126: ED_EME291_00116 | D126: 0
A127: ED_EME291_00117 | D127: 0
A128: ED_EME291_00118 | D128: 0
A129: ED_EME291_00119 | D129: 0
A130: ED_EME291_00120 | D130: 0
A131: ED_EME291_00121 | D131: 0
A132: ED_EME291_00122 | D132: 0
A133: ED_EME291_00123 | D133: 0
A134: ED_EME291_00124 | D134: 0
A135: ED_EME291_00125 | D135: 0
A136: ED_EME291_00126 | D136: 0
A137: ED_EME291_00127 | D137: 0
A138: ED_EME291_00128 | D138: 0
A139: ED_EME291_00129 | D139: 0
A140: ED_EME291_00130 | D140: 0
A141: ED_EME291_00131 | D141: 0
A142: ED_EME291_00132 | D142: 0
A143: ED_EME291_00133 | D143: 0
A144: ED_EME291_00134 | D144: 0
A145: ED_EME291_00135 | D145: 0
A146: ED_EME291_00136 | D146: 0
A147: ED_EME291_00137 | D147: 0
A148: ED_EME291_00138 | D148: 0
A149: ED_EME291_00139 | D149: 0
A150: ED_EME291_00140 | D150: 0
A151: ED_EME291_00141 | D151: 0
A152: ED_EME291_00142 | D152: 0
A153: ED_EME291_00143 | D153: 0
A154: ED_EME291_00144 | D154: 0
A155: ED_EME291_00145 | D155: 0
A156: ED_EME291_00146 | D156: 0
A157: ED_EME291_00147 | D157: 0
A158: ED_EME291_00148 | D158: 0
A159: ED_EME291_00149 | D159: 0
A160: ED_EME291_00150 | D160: 0
A161: ED_EME291_00151 | D161: 0
A162: ED_EME291_00152 | D162: 0
A163: ED_EME291_00153 | D163: 0
A164: ED_EME291_00154 | D164: 0
A165: ED_EME291_00155 | D165: 0
A166: ED_EME291_00156 | D166: 0
A167: ED_EME291_00157 | D167: 0
A168: ED_EME291_00158 | D168: 0
A169: ED_EME291_00159 | D169: 0
A170: ED_EME291_00160 | D170: 0
A171: ED_EME291_00161 | D171: 0
A172: ED_EME291_00162 | D172: 0
A173: ED_EME291_00163 | D173: 0
A174: ED_EME291_00164 | D174: 0
A175: ED_EME291_00165 | D175: 0
A176: ED_EME291_00166 | D176: 0
A177: ED_EME291_00167 | D177: 0
A178: ED_EME291_00168 | D178: 0
A179: ED_EME291_00169 | D179: 0
A180: ED_EME291_00170 | D180: 0
A181: ED_EME291_00171 | D181: 0
A182: ED_EME291_00172 | D182: 460924.45
A183: ED_EME291_00173 | D183: 0
A184: ED_EME291_00174 | D184: 0
A185: ED_EME291_00175 | D185: 0
A186: ED_EME291_00176 | D186: 0
A187: ED_EME291_00177 | D187: 0
A188: ED_EME291_00178 | D188: 0
A189: ED_EME291_00179 | D189: 0
A190: ED_EME291_00180 | D190: 0
A191: ED_EME291_00181 | D191: 0
A192: ED_EME291_00182 | D192: 0
A193: ED_EME291_00183 | D193: 0
A194: ED_EME291_00184 | D194: 0
A195: ED_EME291_00185 | D195: 0
A196: ED_EME291_00186 | D196: 0
A197: ED_EME291_00187 | D197: 0
A198: ED_EME291_00188 | D198: 0
A199: ED_EME291_00189 | D199: 0
A200: ED_EME291_00190 | D200: 0
A201: ED_EME291_00191 | D201: 0
A202: ED_EME291_00192 | D202: 0
A203: ED_EME291_00193 | D203: 0
... 400 more rows

Sheet 2.10 Overheads
B1: =(LOOKUP(dms_Model,dms_Model_List,dms_Worksheet_List)) -> REGULATORY REPORTING STATEMENT
B2: Australian Distribution Co.
B3: =CONCATENATE("Category Analysis RIN response ",CRY) -> Category Analysis RIN response 2014-15
B4: 2.10 OVERHEADS
B8: TABLE 2.10.1 - NETWORK OVERHEADS EXPENDITURE
E10: EXPENDITURE ($0's)
A11: OVE2101 | E11: =CRY -> 2014-15
A12: ED_OVE2101_00001 | B12: NETWORK OVERHEADS | C12: Total Overhead Expenditure - Standard Control Services | D12: Network management
A13: ED_OVE2101_00002 | D13: Network planning | E13: 6044424.522
A14: ED_OVE2101_00003 | D14: Network control and operational switching | E14: 13281929.58
A15: ED_OVE2101_00004 | D15: Quality and standard functions | E15: 5825537.735
A16: ED_OVE2101_00005 | D16: Project governance and related functions | E16: 47747533.31
A17: ED_OVE2101_00006 | D17: Other | E17: 1462990.798
A18: ED_OVE2101_00007
A19: ED_OVE2101_00008 | D19: Network management (cell E12 will not allow input) | E19: 1469499.659
A20: ED_OVE2101_00009
A21: ED_OVE2101_00010 | D21: Essential Energy Direct Costs (2.1.2 balancing items) Reassigned to Overheads per AER RIN Response to :-
A22: ED_OVE2101_00011 | D22: Design | E22: 912898.5093
A23: ED_OVE2101_00012 | D23: Other Distribution maintenance | E23: 3643138.913
A24: ED_OVE2101_00013 | D24: Other Network Operating Costs | E24: 24541837.35
A25: ED_OVE2101_00014
A26: ED_OVE2101_00015
A27: ED_OVE2101_00016
A28: ED_OVE2101_00017
A29: ED_OVE2101_00018
A30: ED_OVE2101_00019
A31: ED_OVE2101_00020
A32: ED_OVE2101_00021
A33: ED_OVE2101_00022
A34: ED_OVE2101_00023
A35: ED_OVE2101_00024
A36: ED_OVE2101_00025
A37: ED_OVE2101_00026
A38: ED_OVE2101_00027
A39: ED_OVE2101_00028
A40: ED_OVE2101_00029 | B40: NETWORK OVERHEADS | C40: Total Overhead Expenditure - Alternative Control Services
A41: ED_OVE2101_00030 | D41: Network management | E41: 1418707.187
A42: ED_OVE2101_00031 | D42: Network planning | E42: 0
A43: ED_OVE2101_00032 | D43: Network control and operational switching | E43: 103885.5209
A44: ED_OVE2101_00033 | D44: Quality and standard functions | E44: 957769.4059
A45: ED_OVE2101_00034 | D45: Project governance and related functions | E45: 11719593.9
A46: ED_OVE2101_00035 | D46: Other | E46: 2846995.921
A47: ED_OVE2101_00036
A48: ED_OVE2101_00037
A49: ED_OVE2101_00038
A50: ED_OVE2101_00039
A51: ED_OVE2101_00040
A52: ED_OVE2101_00041
A53: ED_OVE2101_00042
A54: ED_OVE2101_00043
A55: ED_OVE2101_00044
A56: ED_OVE2101_00045
A57: ED_OVE2101_00046
A58: ED_OVE2101_00047
A59: ED_OVE2101_00048
A60: ED_OVE2101_00049
A61: ED_OVE2101_00050
A62: ED_OVE2101_00051
A63: ED_OVE2101_00052
A64: ED_OVE2101_00053
A65: ED_OVE2101_00054
A66: ED_OVE2101_00055
A67: ED_OVE2101_00056
A68: ED_OVE2101_00057 | B68: NETWORK OVERHEADS | C68: Total Overhead Expenditure - Negotiated Services | D68: Total
A69: ED_OVE2101_00058 | C69: Total Overhead Expenditure - Unregulated Services | D69: Total | E69: 1602024.13
A70: ED_OVE2101_00059 | B70: NETWORK OVERHEADS | C70: Capitalised Overheads - Standard Control Services | D70: Network management
A71: ED_OVE2101_00060 | D71: Network planning | E71: 5447892.769
A72: ED_OVE2101_00061 | D72: Network control and operational switching | E72: 11971119.48
A73: ED_OVE2101_00062 | D73: Quality and standard functions | E73: 5250608.19
A74: ED_OVE2101_00063 | D74: Project governance and related functions | E74: 43035270.02
A75: ED_OVE2101_00064 | D75: Other | E75: 1318606.422
A76: ED_OVE2101_00065 | D76: Network management (cell E70 will not allow input) | E76: 1324472.915
A77: ED_OVE2101_00066
A78: ED_OVE2101_00067 | D78: CAPITALISED OVERHEADS - Alternative Control Services
A79: ED_OVE2101_00068 | D79: Network management | E79: 210609.9905
A80: ED_OVE2101_00069 | D80: Network planning | E80: 0
A81: ED_OVE2101_00070 | D81: Network control and operational switching | E81: 15422.01858
A82: ED_OVE2101_00071 | D82: Quality and standard functions | E82: 142182.832
A83: ED_OVE2101_00072 | D83: Project governance and related functions | E83: 1739797.742
A84: ED_OVE2101_00073 | D84: Other | E84: 422642.3815
A85: ED_OVE2101_00074
A86: ED_OVE2101_00075
A87: ED_OVE2101_00076
A88: ED_OVE2101_00077
A89: ED_OVE2101_00078
A90: ED_OVE2101_00079
A91: ED_OVE2101_00080
A92: ED_OVE2101_00081
A93: ED_OVE2101_00082
A94: ED_OVE2101_00083
A95: ED_OVE2101_00084
A96: ED_OVE2101_00085
A97: ED_OVE2101_00086
B105: TABLE 2.10.2 - CORPORATE OVERHEADS EXPENDITURE
E107: EXPENDITURE ($0's)
A108: OVE2102 | E108: =CRY -> 2014-15
A109: ED_OVE2102_00002 | B109: CORPORATE OVERHEADS | C109: Total Overhead Expenditure - Standard Control Services
A110: ED_OVE2102_00003 | D110: Network Management | E110: 28.74161944
A111: ED_OVE2102_00004 | D111: Network Planning | E111: 0
A112: ED_OVE2102_00005 | D112: Nework Control & Operational Switching | E112: 0
A113: ED_OVE2102_00006 | D113: Quality and standard functions | E113: 1078729.567
A114: ED_OVE2102_00007 | D114: Project Governance & related functions | E114: 0
A115: ED_OVE2102_00008 | D115: Meter Reading | E115: 0
A116: ED_OVE2102_00009 | D116: Metering Services | E116: 0
A117: ED_OVE2102_00010 | D117: Essential Energy Mgmt | E117: 320219.7345
A118: ED_OVE2102_00011 | D118: People & Services | E118: 21972876.33
A119: ED_OVE2102_00012 | D119: NNSW, Legal, Internal Audit | E119: 4434147.533
A120: ED_OVE2102_00013 | D120: Health, Safety & Environment | E120: 3238320.231
A121: ED_OVE2102_00014 | D121: Finance & Compliance | E121: 7561050.909
A122: ED_OVE2102_00015 | D122: Information, Comm & Tech | E122: 15287969.91
A123: ED_OVE2102_00016 | D123: Other | E123: 739361.5299
A124: ED_OVE2102_00017
A125: ED_OVE2102_00018
A126: ED_OVE2102_00019
A127: ED_OVE2102_00020
A128: ED_OVE2102_00021
A129: ED_OVE2102_00022
A130: ED_OVE2102_00023 | B130: CORPORATE OVERHEADS | C130: Total Overhead Expenditure - Alternative Control Services
A131: ED_OVE2102_00024 | D131: Network Management | E131: 0.4580331488
A132: ED_OVE2102_00025 | D132: Network Planning | E132: 0
A133: ED_OVE2102_00026 | D133: Nework Control & Operational Switching | E133: 0
A134: ED_OVE2102_00027 | D134: Quality and standard functions | E134: 95611.97881
A135: ED_OVE2102_00028 | D135: Project Governance & related functions | E135: 0
A136: ED_OVE2102_00029 | D136: Meter Reading | E136: 0
A137: ED_OVE2102_00030 | D137: Metering Services | E137: 0
A138: ED_OVE2102_00031 | D138: Essential Energy Mgmt | E138: 62206.09857
A139: ED_OVE2102_00032 | D139: People & Services | E139: 6129727.461
A140: ED_OVE2102_00033 | D140: NNSW, Legal, Internal Audit | E140: 807843.0699
A141: ED_OVE2102_00034 | D141: Health, Safety & Environment | E141: 648653.4697
A142: ED_OVE2102_00035 | D142: Finance & Compliance | E142: 1745799.018
A143: ED_OVE2102_00036 | D143: Information, Comm & Tech | E143: 3648347.796
A144: ED_OVE2102_00037 | D144: Other | E144: 143628.8625
A145: ED_OVE2102_00038
A146: ED_OVE2102_00039
A147: ED_OVE2102_00040
A148: ED_OVE2102_00041
A149: ED_OVE2102_00042
A150: ED_OVE2102_00043
A151: ED_OVE2102_00044 | B151: CORPORATE OVERHEADS | C151: Total Overhead Expenditure - Negotiated Services | D151: Total
A152: ED_OVE2102_00045 | C152: Total Overhead Expenditure - Unregulated Services | D152: Total | E152: 1363460.27
A153: ED_OVE2102_00046 | B153: CORPORATE OVERHEADS | C153: Capitalised Overheads - Standard Control Services
A154: ED_OVE2102_00047 | D154: Network Management | E154: 32.60126568
A155: ED_OVE2102_00048 | D155: Network Planning | E155: 0
A156: ED_OVE2102_00049 | D156: Nework Control & Operational Switching | E156: 0
A157: ED_OVE2102_00050 | D157: Quality and standard functions | E157: 1223589.69
A158: ED_OVE2102_00051 | D158: Project Governance & related functions | E158: 0
A159: ED_OVE2102_00052 | D159: Meter Reading | E159: 0
A160: ED_OVE2102_00053 | D160: Metering services | E160: 0
A161: ED_OVE2102_00054 | D161: Essential Energy Mgmt | E161: 363221.3092
A162: ED_OVE2102_00055 | D162: People & Services | E162: 24923563.57
A163: ED_OVE2102_00056 | D163: NNSW, Legal, Internal Audit | E163: 5029599.05
A164: ED_OVE2102_00057 | D164: Health, Safety & Environment | E164: 3673186.839
A165: ED_OVE2102_00058 | D165: Finance & Compliance | E165: 8576407.119
A166: ED_OVE2102_00059 | D166: Information, Comm & Tech | E166: 17340956.37
A167: ED_OVE2102_00060 | D167: Other | E167: 838648.6964
A168: ED_OVE2102_00061 | D168: CAPITALISED OVERHEADS - Alternative Control Services
A169: ED_OVE2102_00062 | D169: People & Services | E169: 802820.3077
A170: ED_OVE2102_00063 | D170: NNSW, Legal, Internal Audit | E170: 105804.5119
A171: ED_OVE2102_00064 | D171: Finance & Compliance | E171: 228650.1176
A172: ED_OVE2102_00065 | D172: Information, Comm & Tech | E172: 477830.0045
A173: ED_OVE2102_00066 | D173: Other | E173: 124436.2455

Sheet 2.11 Labour
B1: =(LOOKUP(dms_Model,dms_Model_List,dms_Worksheet_List)) -> REGULATORY REPORTING STATEMENT
B2: Australian Distribution Co.
B3: =CONCATENATE("Category Analysis RIN response ",CRY) -> Category Analysis RIN response 2014-15
B4: 2.11 LABOUR
B6: TABLE 2.11.1 - COST METRICS PER ANNUM | J6: TABLE 2.11.2 - EXTRA DESCRIPTOR METRICS FOR CURRENT YEAR
E10: ASL (0'S) | F10: TOTAL LABOUR EXPENDITURE ($0's) | G10: AVERAGE PRODUCTIVE WORK HOURS PER ASL (0'S) | H10: STAND-DOWN OCCURENCES PER ASL (0'S) | M10: AVERAGE PRODUCTIVE WORK HOURS ORDINARY TIME (0's) | O10: AVERAGE PRODUCTIVE WORK HOURS OVERTIME (0's)
M11: PER ASL | N11: HOURLY RATE PER ASL | O11: PER ASL | P11: HOURLY RATE PER ASL
E12: =CRY -> 2014-15 | F12: =CRY -> 2014-15 | G12: =CRY -> 2014-15 | H12: =CRY -> 2014-15 | M12: =CRY -> 2014-15 | N12: =CRY -> 2014-15 | O12: =CRY -> 2014-15 | P12: =CRY -> 2014-15
A13: ED_LAB2111_00001 | B13: CORPORATE OVERHEADS INTERNAL LABOUR COSTS | C13: LABOUR CLASSIFICATION LEVEL | D13: Executive manager | E13: 4.477503511 | F13: 2232.856525 | G13: 1549.9 | H13: 0 | I13: ED_LAB2112_00001 | J13: CORPORATE OVERHEADS INTERNAL LABOUR COSTS | K13: LABOUR CLASSIFICATION LEVEL | L13: Executive manager | M13: 1549.9 | N13: 321.7519626 | O13: 0 | P13: 0
A14: ED_LAB2111_00002 | D14: Employee (optional) | E14: 4.477503511 | F14: 2232.856525 | G14: 0 | H14: 0 | I14: ED_LAB2112_00002 | L14: Employee (optional) | M14: 0 | N14: 0 | O14: 0 | P14: 0
A15: ED_LAB2111_00003 | D15: Labour hire (optional) | E15: 0 | F15: 0 | G15: 0 | H15: 0 | I15: ED_LAB2112_00003 | L15: Labour hire (optional) | M15: 0 | N15: 0 | O15: 0 | P15: 0
A16: ED_LAB2111_00004 | D16: Senior manager | E16: 73.83112482 | F16: 18344.00432 | G16: 1549.9 | H16: 0 | I16: ED_LAB2112_00004 | L16: Senior manager | M16: 1549.9 | N16: 160.3064441 | O16: 0 | P16: 0
A17: ED_LAB2111_00005 | D17: Employee (optional) | E17: 73.83112482 | F17: 18344.00432 | G17: 0 | H17: 0 | I17: ED_LAB2112_00005 | L17: Employee (optional) | M17: 0 | N17: 0 | O17: 0 | P17: 0
A18: ED_LAB2111_00006 | D18: Labour hire (optional) | E18: 0 | F18: 0 | G18: 0 | H18: 0 | I18: ED_LAB2112_00006 | L18: Labour hire (optional) | M18: 0 | N18: 0 | O18: 0 | P18: 0
A19: ED_LAB2111_00007 | D19: Manager | E19: 67.09112812 | F19: 9375.553798 | G19: 1552.305043 | H19: 0 | I19: ED_LAB2112_00007 | L19: Manager | M19: 1549.9 | N19: 90.00890931 | O19: 2.40504262 | P19: 99.27559817
A20: ED_LAB2111_00008 | D20: Employee (optional) | E20: 67.09112812 | F20: 9375.553798 | G20: 0 | H20: 0 | I20: ED_LAB2112_00008 | L20: Employee (optional) | M20: 0 | N20: 0 | O20: 0 | P20: 0
A21: ED_LAB2111_00009 | D21: Labour hire (optional) | E21: 0 | F21: 0 | G21: 0 | H21: 0 | I21: ED_LAB2112_00009 | L21: Labour hire (optional) | M21: 0 | N21: 0 | O21: 0 | P21: 0
A22: ED_LAB2111_00010 | D22: Professional | E22: 128.9693769 | F22: 16646.82372 | G22: 1560.582931 | H22: 0.05214180169 | I22: ED_LAB2112_00010 | L22: Professional | M22: 1549.9 | N22: 82.53718187 | O22: 10.68293118 | P22: 107.78016
A23: ED_LAB2111_00011 | D23: Employee (optional) | E23: 90.54955217 | F23: 11731.99153 | G23: 0 | H23: 0.05214180169 | I23: ED_LAB2112_00011 | L23: Employee (optional) | M23: 0 | N23: 0 | O23: 0 | P23: 0
A24: ED_LAB2111_00012 | D24: Labour hire (optional) | E24: 38.4198247 | F24: 4914.832185 | G24: 0 | H24: 0 | I24: ED_LAB2112_00012 | L24: Labour hire (optional) | M24: 0 | N24: 0 | O24: 0 | P24: 0
A25: ED_LAB2111_00013 | D25: Semi professional | E25: 28.73087892 | F25: 3523.708439 | G25: 1573.090244 | H25: 0 | I25: ED_LAB2112_00013 | L25: Semi professional | M25: 1549.9 | N25: 77.71168431 | O25: 23.19024424 | P25: 94.86753759
A26: ED_LAB2111_00014 | D26: Employee (optional) | E26: 28.73087892 | F26: 3523.708439 | G26: 0 | H26: 0 | I26: ED_LAB2112_00014 | L26: Employee (optional) | M26: 0 | N26: 0 | O26: 0 | P26: 0
A27: ED_LAB2111_00015 | D27: Labour hire (optional) | E27: 0 | F27: 0 | G27: 0 | H27: 0 | I27: ED_LAB2112_00015 | L27: Labour hire (optional) | M27: 0 | N27: 0 | O27: 0 | P27: 0
A28: ED_LAB2111_00016 | D28: Support staff | E28: 362.2418463 | F28: 36417.89122 | G28: 1566.000842 | H28: 0.04610070225 | I28: ED_LAB2112_00016 | L28: Support staff | M28: 1549.9 | N28: 64.03690058 | O28: 16.10084228 | P28: 79.74437521
A29: ED_LAB2111_00017 | D29: Employee (optional) | E29: 335.5466858 | F29: 33768.37539 | G29: 0 | H29: 0.04610070225 | I29: ED_LAB2112_00017 | L29: Employee (optional) | M29: 0 | N29: 0 | O29: 0 | P29: 0
A30: ED_LAB2111_00018 | D30: Labour hire (optional) | E30: 26.69516048 | F30: 2649.515826 | G30: 0 | H30: 0 | I30: ED_LAB2112_00018 | L30: Labour hire (optional) | M30: 0 | N30: 0 | O30: 0 | P30: 0
A31: ED_LAB2111_00019 | D31: Intern, junior staff, apprentice | E31: 0 | F31: 0 | G31: 0 | H31: 0 | I31: ED_LAB2112_00019 | L31: Intern, junior staff, apprentice | M31: 0 | N31: 0 | O31: 0 | P31: 0
A32: ED_LAB2111_00020 | D32: Employee (optional) | E32: 0 | F32: 0 | G32: 0 | H32: 0 | I32: ED_LAB2112_00020 | L32: Employee (optional) | M32: 0 | N32: 0 | O32: 0 | P32: 0
A33: ED_LAB2111_00021 | D33: Labour hire (optional) | E33: 0 | F33: 0 | G33: 0 | H33: 0 | I33: ED_LAB2112_00021 | L33: Labour hire (optional) | M33: 0 | N33: 0 | O33: 0 | P33: 0
A34: ED_LAB2111_00022 | B34: NETWORK OVERHEADS INTERNAL LABOUR COSTS | C34: LABOUR CLASSIFICATION LEVEL | D34: Executive manager | E34: 2.806383878 | F34: 1293.137877 | G34: 1549.9 | H34: 0 | I34: ED_LAB2112_00022 | J34: NETWORK OVERHEADS INTERNAL LABOUR COSTS | K34: LABOUR CLASSIFICATION LEVEL | L34: Executive manager | M34: 1549.9 | N34: 297.2994308 | O34: 0 | P34: 0
A35: ED_LAB2111_00023 | D35: Employee (optional) | E35: 2.806383878 | F35: 1293.137877 | G35: 0 | H35: 0 | I35: ED_LAB2112_00023 | L35: Employee (optional) | M35: 0 | N35: 0 | O35: 0 | P35: 0
A36: ED_LAB2111_00024 | D36: Labour hire (optional) | E36: 0 | F36: 0 | G36: 0 | H36: 0 | I36: ED_LAB2112_00024 | L36: Labour hire (optional) | M36: 0 | N36: 0 | O36: 0 | P36: 0
A37: ED_LAB2111_00025 | D37: Senior manager | E37: 69.95850741 | F37: 12712.34301 | G37: 1549.9 | H37: 0 | I37: ED_LAB2112_00025 | L37: Senior manager | M37: 1549.9 | N37: 117.2415062 | O37: 0 | P37: 0
A38: ED_LAB2111_00026 | D38: Employee (optional) | E38: 69.95850741 | F38: 12712.34301 | G38: 0 | H38: 0 | I38: ED_LAB2112_00026 | L38: Employee (optional) | M38: 0 | N38: 0 | O38: 0 | P38: 0
A39: ED_LAB2111_00027 | D39: Labour hire (optional) | E39: 0 | F39: 0 | G39: 0 | H39: 0 | I39: ED_LAB2112_00027 | L39: Labour hire (optional) | M39: 0 | N39: 0 | O39: 0 | P39: 0
A40: ED_LAB2111_00028 | D40: Manager | E40: 152.4772698 | F40: 24343.57513 | G40: 1570.340748 | H40: 0.05434306288 | I40: ED_LAB2112_00028 | L40: Manager | M40: 1549.9 | N40: 101.6080058 | O40: 20.44074776 | P40: 106.2362876
A41: ED_LAB2111_00029 | D41: Employee (optional) | E41: 152.4772698 | F41: 24343.57513 | G41: 0 | H41: 0.05434306288 | I41: ED_LAB2112_00029 | L41: Employee (optional) | M41: 0 | N41: 0 | O41: 0 | P41: 0
A42: ED_LAB2111_00030 | D42: Labour hire (optional) | E42: 0 | F42: 0 | G42: 0 | H42: 0 | I42: ED_LAB2112_00030 | L42: Labour hire (optional) | M42: 0 | N42: 0 | O42: 0 | P42: 0
A43: ED_LAB2111_00031 | D43: Professional | E43: 54.65150222 | F43: 8156.365256 | G43: 1553.005586 | H43: 0 | I43: ED_LAB2112_00031 | L43: Professional | M43: 1549.9 | N43: 96.08374465 | O43: 3.105586299 | P43: 104.0085256
A44: ED_LAB2111_00032 | D44: Employee (optional) | E44: 48.22869936 | F44: 7199.880196 | G44: 0 | H44: 0 | I44: ED_LAB2112_00032 | L44: Employee (optional) | M44: 0 | N44: 0 | O44: 0 | P44: 0
A45: ED_LAB2111_00033 | D45: Labour hire (optional) | E45: 6.422802862 | F45: 956.4850601 | G45: 0 | H45: 0 | I45: ED_LAB2112_00033 | L45: Labour hire (optional) | M45: 0 | N45: 0 | O45: 0 | P45: 0
A46: ED_LAB2111_00034 | D46: Semi professional | E46: 19.73105871 | F46: 2351.17851 | G46: 1566.662735 | H46: 0.363242387 | I46: ED_LAB2112_00034 | L46: Semi professional | M46: 1549.9 | N46: 75.72830993 | O46: 16.76273533 | P46: 106.7837383
A47: ED_LAB2111_00035 | D47: Employee (optional) | E47: 19.73105871 | F47: 2351.17851 | G47: 0 | H47: 0.363242387 | I47: ED_LAB2112_00035 | L47: Employee (optional) | M47: 0 | N47: 0 | O47: 0 | P47: 0
A48: ED_LAB2111_00036 | D48: Labour hire (optional) | E48: 0 | F48: 0 | G48: 0 | H48: 0 | I48: ED_LAB2112_00036 | L48: Labour hire (optional) | M48: 0 | N48: 0 | O48: 0 | P48: 0
A49: ED_LAB2111_00037 | D49: Support staff | E49: 297.3462941 | F49: 31413.65039 | G49: 1637.722962 | H49: 0.1231602982 | I49: ED_LAB2112_00037 | L49: Support staff | M49: 1549.9 | N49: 65.73333394 | O49: 87.82296235 | P49: 42.8884547
A50: ED_LAB2111_00038 | D50: Employee (optional) | E50: 292.743787 | F50: 30944.74653 | G50: 0 | H50: 0.1231602982 | I50: ED_LAB2112_00038 | L50: Employee (optional) | M50: 0 | N50: 0 | O50: 0 | P50: 0
A51: ED_LAB2111_00039 | D51: Labour hire (optional) | E51: 4.602507157 | F51: 468.9038631 | G51: 0 | H51: 0 | I51: ED_LAB2112_00039 | L51: Labour hire (optional) | M51: 0 | N51: 0 | O51: 0 | P51: 0
A52: ED_LAB2111_00040 | D52: Intern, junior staff, apprentice | E52: 0 | F52: 0 | G52: 0 | H52: 0 | I52: ED_LAB2112_00040 | L52: Intern, junior staff, apprentice | M52: 1549.9 | N52: 0 | O52: 0 | P52: 0
A53: ED_LAB2111_00041 | D53: Employee (optional) | E53: 0 | F53: 0 | G53: 0 | H53: 0 | I53: ED_LAB2112_00041 | L53: Employee (optional) | M53: 0 | N53: 0 | O53: 0 | P53: 0
A54: ED_LAB2111_00042 | D54: Labour hire (optional) | E54: 0 | F54: 0 | G54: 0 | H54: 0 | I54: ED_LAB2112_00042 | L54: Labour hire (optional) | M54: 0 | N54: 0 | O54: 0 | P54: 0
A55: ED_LAB2111_00043 | B55: TOTAL DIRECT NETWORK LABOUR INTERNAL LABOUR COSTS | C55: LABOUR CLASSIFICATION LEVEL | D55: Skilled electrical worker | E55: 1757.794799 | F55: 220859.4501 | G55: 1699.944424 | H55: 2.038671418 | I55: ED_LAB2112_00043 | J55: TOTAL DIRECT NETWORK LABOUR INTERNAL LABOUR COSTS | K55: LABOUR CLASSIFICATION LEVEL | L55: Skilled electrical worker | M55: 1549.9 | N55: 73.30870138 | O55: 150.0444241 | P55: 80.14024015
A56: ED_LAB2111_00044 | D56: Employee (optional) | E56: 1757.794799 | F56: 220859.4501 | G56: 0 | H56: 2.038671418 | I56: ED_LAB2112_00044 | L56: Employee (optional) | M56: 0 | N56: 0 | O56: 0 | P56: 0
A57: ED_LAB2111_00045 | D57: Labour hire (optional) | E57: 0 | F57: 0 | G57: 0 | H57: 0 | I57: ED_LAB2112_00045 | L57: Labour hire (optional) | M57: 0 | N57: 0 | O57: 0 | P57: 0
A58: ED_LAB2111_00046 | D58: Skilled non electical worker | E58: 36.74541032 | F58: 4644.716223 | G58: 1562.250828 | H58: 0.138321784 | I58: ED_LAB2112_00046 | L58: Skilled non electical worker | M58: 1549.9 | N58: 80.75178596 | O58: 12.35082795 | P58: 100.8377165
A59: ED_LAB2111_00047 | D59: Employee (optional) | E59: 36.74541032 | F59: 4644.716223 | G59: 0 | H59: 0.138321784 | I59: ED_LAB2112_00047 | L59: Employee (optional) | M59: 0 | N59: 0 | O59: 0 | P59: 0
A60: ED_LAB2111_00048 | D60: Labour hire (optional) | E60: 0 | F60: 0 | G60: 0 | H60: 0 | I60: ED_LAB2112_00048 | L60: Labour hire (optional) | M60: 0 | N60: 0 | O60: 0 | P60: 0
A61: ED_LAB2111_00049 | D61: Apprentice | E61: 190.0936018 | F61: 16867.87355 | G61: 1665.052841 | H61: 1.11517357 | I61: ED_LAB2112_00049 | L61: Apprentice | M61: 1549.9 | N61: 52.38158127 | O61: 115.1528407 | P61: 65.55074703
A62: ED_LAB2111_00050 | D62: Employee (optional) | E62: 190.0936018 | F62: 16867.87355 | G62: 0 | H62: 1.11517357 | I62: ED_LAB2112_00050 | L62: Employee (optional) | M62: 0 | N62: 0 | O62: 0 | P62: 0
A63: ED_LAB2111_00051 | D63: Labour hire (optional) | E63: 0 | F63: 0 | G63: 0 | H63: 0 | I63: ED_LAB2112_00051 | L63: Labour hire (optional) | M63: 0 | N63: 0 | O63: 0 | P63: 0
A64: ED_LAB2111_00052 | D64: Unskilled worker | E64: 319.9825133 | F64: 33504.33725 | G64: 1625.752534 | H64: 0.4311283684 | I64: ED_LAB2112_00052 | L64: Unskilled worker | M64: 1549.9 | N64: 64.06446381 | O64: 75.85253414 | P64: 71.36562175
A65: ED_LAB2111_00053 | D65: Employee (optional) | E65: 319.9825133 | F65: 33504.33725 | G65: 0 | H65: 0.4311283684 | I65: ED_LAB2112_00053 | L65: Employee (optional) | M65: 0 | N65: 0 | O65: 0 | P65: 0
A66: ED_LAB2111_00054 | D66: Labour hire (optional) | E66: 0 | F66: 0 | G66: 0 | H66: 0 | I66: ED_LAB2112_00054 | L66: Labour hire (optional) | M66: 0 | N66: 0 | O66: 0 | P66: 0

Sheet 2.12 Input tables
B1: =(LOOKUP(dms_Model,dms_Model_List,dms_Worksheet_List)) -> REGULATORY REPORTING STATEMENT
B2: Australian Distribution Co.
B3: =CONCATENATE("Category Analysis RIN response ",CRY) -> Category Analysis RIN response 2014-15
B4: 2.12 INPUT TABLES
E5: 1
M7: DIRECT MATERIAL EXPENDITURE | N7: DIRECT LABOUR EXPENDITURE | O7: CONTRACT EXPENDITURE | P7: OTHER EXPENDITURE | Q7: RELATED PARTY CONTRACT EXPENDITURE | R7: RELATED PARTY CONTRACT MARGIN EXPENDITURE
E8: DNSP NAME | F8: SERVICE | G8: SERVICE SUBCATEGORY | H8: DATA CATEGORY | I8: DATA SUBCATEGORY | J8: MEASUREMENT | K8: DENOMINATION | M8: =CRY -> 2014-15 | N8: 2014-15 | O8: 2014-15 | P8: 2014-15 | Q8: 2014-15 | R8: 2014-15
A9: ED_INP212_00001 | B9: VEGETATION MANAGEMENT | C9: ='2.7 Vegetation management'!I11 -> ZONE 1 - FNC | E9: DNSP NAME | F9: INPUT COSTS | G9: VEGETATION MANAGEMENT | H9: DIRECT MATERIAL COST | I9: =$C$9 -> ZONE 1 - FNC | J9: EXPENDITURE | K9: $0's | M9: 48005.67197 | N9: 1949050.901 | P9: 410931.1073
A10: ED_INP212_00002 | C10: ='2.7 Vegetation management'!I23 -> ZONE 2 - MNC | E10: DNSP NAME | F10: INPUT COSTS | G10: VEGETATION MANAGEMENT | H10: DIRECT MATERIAL COST | I10: =$C$10 -> ZONE 2 - MNC | J10: EXPENDITURE | K10: $0's | M10: 29697.42213 | N10: 1205728.094 | P10: 254211.5142
A11: ED_INP212_00003 | C11: ='2.7 Vegetation management'!I35 -> ZONE 3 - SE | E11: DNSP NAME | F11: INPUT COSTS | G11: VEGETATION MANAGEMENT | H11: DIRECT MATERIAL COST | I11: =$C$11 -> ZONE 3 - SE | J11: EXPENDITURE | K11: $0's | M11: 39748.57206 | N11: 1613809.098 | P11: 340249.8926
A12: ED_INP212_00004 | C12: ='2.7 Vegetation management'!I47 -> ZONE 4 - STH & CW | E12: DNSP NAME | F12: INPUT COSTS | G12: VEGETATION MANAGEMENT | H12: DIRECT MATERIAL COST | I12: =$C$12 -> ZONE 4 - STH & CW | J12: EXPENDITURE | K12: $0's | M12: 44521.82631 | N12: 1807605.271 | P12: 381109.203
A13: ED_INP212_00005 | C13: ='2.7 Vegetation management'!I59 -> ZONE 5 - NTH & NW | E13: DNSP NAME | F13: INPUT COSTS | G13: VEGETATION MANAGEMENT | H13: DIRECT MATERIAL COST | I13: =$C$13 -> ZONE 5 - NTH & NW | J13: EXPENDITURE | K13: $0's | M13: 44882.90127 | N13: 1822265.069 | P13: 384200.0239
A14: ED_INP212_00006 | C14: ='2.7 Vegetation management'!I71 -> ZONE 6 - FW | E14: DNSP NAME | F14: INPUT COSTS | G14: VEGETATION MANAGEMENT | H14: DIRECT MATERIAL COST | I14: =$C$14 -> ZONE 6 - FW | J14: EXPENDITURE | K14: $0's | M14: 5937.355187 | N14: 241059.1708 | P14: 50824.07644
A15: ED_INP212_00007 | C15: ='2.7 Vegetation management'!I83 -> ZONE 7 - FNC - (LV, Subt) | E15: DNSP NAME | F15: INPUT COSTS | G15: VEGETATION MANAGEMENT | H15: DIRECT MATERIAL COST | I15: =$C$15 -> ZONE 7 - FNC - (LV, Subt) | J15: EXPENDITURE | K15: $0's
A16: ED_INP212_00008 | C16: ='2.7 Vegetation management'!I95 -> ZONE 8 - MNC - (LV, Subt) | E16: DNSP NAME | F16: INPUT COSTS | G16: VEGETATION MANAGEMENT | H16: DIRECT MATERIAL COST | I16: =$C$16 -> ZONE 8 - MNC - (LV, Subt) | J16: EXPENDITURE | K16: $0's
A17: ED_INP212_00009 | C17: ='2.7 Vegetation management'!I107 -> ZONE 9 - SE - (LV, Subt) | E17: DNSP NAME | F17: INPUT COSTS | G17: VEGETATION MANAGEMENT | H17: DIRECT MATERIAL COST | I17: =$C$17 -> ZONE 9 - SE - (LV, Subt) | J17: EXPENDITURE | K17: $0's
A18: ED_INP212_00010 | C18: ='2.7 Vegetation management'!I119 -> ZONE 10 - STH & CW - (LV, Subt) | E18: DNSP NAME | F18: INPUT COSTS | G18: VEGETATION MANAGEMENT | H18: DIRECT MATERIAL COST | I18: =$C$18 -> ZONE 10 - STH & CW - (LV, Subt) | J18: EXPENDITURE | K18: $0's
A19: ED_INP212_00011 | C19: ='2.7 Vegetation management'!I131 -> ZONE 11 - NTH & NW - (LV, Subt) | E19: DNSP NAME | F19: INPUT COSTS | G19: VEGETATION MANAGEMENT | H19: DIRECT MATERIAL COST | I19: =$C$19 -> ZONE 11 - NTH & NW - (LV, Subt) | J19: EXPENDITURE | K19: $0's
A20: ED_INP212_00012 | C20: ='2.7 Vegetation management'!I143 -> ZONE 12 - FW - (LV, Subt) | E20: DNSP NAME | F20: INPUT COSTS | G20: VEGETATION MANAGEMENT | H20: DIRECT MATERIAL COST | I20: =$C$20 -> ZONE 12 - FW - (LV, Subt) | J20: EXPENDITURE | K20: $0's
A21: ED_INP212_00013 | C21: ='2.7 Vegetation management'!I155 -> ZONE 13 | E21: DNSP NAME | F21: INPUT COSTS | G21: VEGETATION MANAGEMENT | H21: DIRECT MATERIAL COST | I21: =$C$21 -> ZONE 13 | J21: EXPENDITURE | K21: $0's
A22: ED_INP212_00014 | C22: ='2.7 Vegetation management'!I167 -> ZONE 14 | E22: DNSP NAME | F22: INPUT COSTS | G22: VEGETATION MANAGEMENT | H22: DIRECT MATERIAL COST | I22: =$C$22 -> ZONE 14 | J22: EXPENDITURE | K22: $0's
A23: ED_INP212_00015 | C23: ='2.7 Vegetation management'!I179 -> ZONE 15 | E23: DNSP NAME | F23: INPUT COSTS | G23: VEGETATION MANAGEMENT | H23: DIRECT MATERIAL COST | I23: =$C$23 -> ZONE 15 | J23: EXPENDITURE | K23: $0's
A24: ED_INP212_00016 | C24: ='2.7 Vegetation management'!I191 -> ZONE 16 | E24: DNSP NAME | F24: INPUT COSTS | G24: VEGETATION MANAGEMENT | H24: DIRECT MATERIAL COST | I24: =$C$24 -> ZONE 16 | J24: EXPENDITURE | K24: $0's
A25: ED_INP212_00017 | C25: ='2.7 Vegetation management'!I203 -> ZONE 17 | E25: DNSP NAME | F25: INPUT COSTS | G25: VEGETATION MANAGEMENT | H25: DIRECT MATERIAL COST | I25: =$C$25 -> ZONE 17 | J25: EXPENDITURE | K25: $0's
A26: ED_INP212_00018 | C26: ='2.7 Vegetation management'!I215 -> ZONE 18 | E26: DNSP NAME | F26: INPUT COSTS | G26: VEGETATION MANAGEMENT | H26: DIRECT MATERIAL COST | I26: =$C$26 -> ZONE 18 | J26: EXPENDITURE | K26: $0's
A27: ED_INP212_00019 | B27: ROUTINE MAINTENANCE | C27: Pole top, overhead line & service line maintenance | E27: DNSP NAME | F27: INPUT COSTS | G27: ROUTINE MAINTENANCE | H27: DIRECT MATERIAL COST | I27: =$C$27 -> Pole top, overhead line & service line maintenance | J27: EXPENDITURE | K27: $0's | M27: 0 | N27: 0 | O27: 0 | P27: 0
A28: ED_INP212_00020 | C28: Pole inspection and treatment | E28: DNSP NAME | F28: INPUT COSTS | G28: ROUTINE MAINTENANCE | H28: DIRECT MATERIAL COST | I28: =$C$28 -> Pole inspection and treatment | J28: EXPENDITURE | K28: $0's | M28: 1124127.554 | N28: 7556462.648 | O28: 2031508.755 | P28: 1688290.311
A29: ED_INP212_00021 | C29: Overhead asset inspection | E29: DNSP NAME | F29: INPUT COSTS | G29: ROUTINE MAINTENANCE | H29: DIRECT MATERIAL COST | I29: =$C$29 -> Overhead asset inspection | J29: EXPENDITURE | K29: $0's | M29: 323826.3568 | N29: 2176783.018 | O29: 585214.7976 | P29: 486344.1864
A30: ED_INP212_00022 | C30: Network underground cable maintenance | E30: DNSP NAME | F30: INPUT COSTS | G30: ROUTINE MAINTENANCE | H30: DIRECT MATERIAL COST | I30: =$C$30 -> Network underground cable maintenance | J30: EXPENDITURE | K30: $0's | M30: 0 | N30: 0 | O30: 0 | P30: 0
A31: ED_INP212_00023 | C31: Distribution substation equipment & property maintenance | E31: DNSP NAME | F31: INPUT COSTS | G31: ROUTINE MAINTENANCE | H31: DIRECT MATERIAL COST | I31: =$C$31 -> Distribution substation equipment & property maintenance | J31: EXPENDITURE | K31: $0's | M31: 0 | N31: 0 | O31: 0 | P31: 0
A32: ED_INP212_00024 | C32: Zone substation equipment maintenance | E32: DNSP NAME | F32: INPUT COSTS | G32: ROUTINE MAINTENANCE | H32: DIRECT MATERIAL COST | I32: =$C$32 -> Zone substation equipment maintenance | J32: EXPENDITURE | K32: $0's | M32: 1734720.948 | N32: 6090252.108 | O32: 25099.85327 | P32: 1533590.141
A33: ED_INP212_00025 | C33: Zone substation property maintenance | E33: DNSP NAME | F33: INPUT COSTS | G33: ROUTINE MAINTENANCE | H33: DIRECT MATERIAL COST | I33: =$C$33 -> Zone substation property maintenance | J33: EXPENDITURE | K33: $0's | M33: 0 | N33: 0 | O33: 0 | P33: 0
A34: ED_INP212_00026 | C34: Public lighting maintenance | E34: DNSP NAME | F34: INPUT COSTS | G34: ROUTINE MAINTENANCE | H34: DIRECT MATERIAL COST | I34: =$C$34 -> Public lighting maintenance | J34: EXPENDITURE | K34: $0's | M34: 1763962.499 | N34: 2036119.438 | O34: 1238476.881 | P34: 621455.2613
A35: ED_INP212_00027 | C35: Scada & network control maintenance | E35: DNSP NAME | F35: INPUT COSTS | G35: ROUTINE MAINTENANCE | H35: DIRECT MATERIAL COST | I35: =$C$35 -> Scada & network control maintenance | J35: EXPENDITURE | K35: $0's | M35: 157172.5131 | N35: 853449.1984 | O35: 679.4937018 | P35: 54153.67743
A36: ED_INP212_00028 | C36: Protection systems maintenance | E36: DNSP NAME | F36: INPUT COSTS | G36: ROUTINE MAINTENANCE | H36: DIRECT MATERIAL COST | I36: =$C$36 -> Protection systems maintenance | J36: EXPENDITURE | K36: $0's | M36: 0 | N36: 0 | O36: 0 | P36: 0
A37: ED_INP212_00029 | C37: Subtransmission asset maintenance - for dnsps with dual function assets | E37: DNSP NAME | F37: INPUT COSTS | G37: ROUTINE MAINTENANCE | H37: DIRECT MATERIAL COST | I37: =$C$37 -> Subtransmission asset maintenance - for dnsps with dual function assets | J37: EXPENDITURE | K37: $0's | M37: 0 | N37: 0 | O37: 0 | P37: 0
A38: ED_INP212_00031 | C38: Other | E38: DNSP NAME | F38: INPUT COSTS | G38: ROUTINE MAINTENANCE | H38: DIRECT MATERIAL COST | I38: =$C$38 -> Other | J38: EXPENDITURE | K38: $0's | M38: 284428.0043 | N38: 1911944.586 | O38: 514014.6054 | P38: 427173.0928
A39: ED_INP212_00032 | B39: NON-ROUTINE MAINTENANCE | C39: Pole top, overhead line & service line maintenance | E39: DNSP NAME | F39: INPUT COSTS | G39: NON-ROUTINE MAINTENANCE | H39: DIRECT MATERIAL COST | I39: =$C$39 -> Pole top, overhead line & service line maintenance | J39: EXPENDITURE | K39: $0's | M39: 9350873.388 | N39: 27718530.32 | O39: 2702204.559 | P39: 8426802.969
A40: ED_INP212_00033 | C40: Pole inspection and treatment | E40: DNSP NAME | F40: INPUT COSTS | G40: NON-ROUTINE MAINTENANCE | H40: DIRECT MATERIAL COST | I40: =$C$40 -> Pole inspection and treatment | J40: EXPENDITURE | K40: $0's | M40: 0 | N40: 0 | O40: 0 | P40: 0
A41: ED_INP212_00034 | C41: Overhead asset inspection | E41: DNSP NAME | F41: INPUT COSTS | G41: NON-ROUTINE MAINTENANCE | H41: DIRECT MATERIAL COST | I41: =$C$41 -> Overhead asset inspection | J41: EXPENDITURE | K41: $0's | M41: 0 | N41: 0 | O41: 0 | P41: 0
A42: ED_INP212_00035 | C42: Network underground cable maintenance | E42: DNSP NAME | F42: INPUT COSTS | G42: NON-ROUTINE MAINTENANCE | H42: DIRECT MATERIAL COST | I42: =$C$42 -> Network underground cable maintenance | J42: EXPENDITURE | K42: $0's | M42: 196375.2823 | N42: 582109.7123 | O42: 56748.3016 | P42: 176969.1176
A43: ED_INP212_00036 | C43: Distribution substation equipment & property maintenance | E43: DNSP NAME | F43: INPUT COSTS | G43: NON-ROUTINE MAINTENANCE | H43: DIRECT MATERIAL COST | I43: =$C$43 -> Distribution substation equipment & property maintenance | J43: EXPENDITURE | K43: $0's | M43: 612240.7138 | N43: 1814847.885 | O43: 176924.6122 | P43: 551737.9662
A44: ED_INP212_00037 | C44: Zone substation equipment maintenance | E44: DNSP NAME | F44: INPUT COSTS | G44: NON-ROUTINE MAINTENANCE | H44: DIRECT MATERIAL COST | I44: =$C$44 -> Zone substation equipment maintenance | J44: EXPENDITURE | K44: $0's | M44: 1287792.563 | N44: 3817367.182 | O44: 372144.8029 | P44: 1160530.545
A45: ED_INP212_00038 | C45: Zone substation property maintenance | E45: DNSP NAME | F45: INPUT COSTS | G45: NON-ROUTINE MAINTENANCE | H45: DIRECT MATERIAL COST | I45: =$C$45 -> Zone substation property maintenance | J45: EXPENDITURE | K45: $0's | M45: 0 | N45: 0 | O45: 0 | P45: 0
A46: ED_INP212_00039 | C46: Public lighting maintenance | E46: DNSP NAME | F46: INPUT COSTS | G46: NON-ROUTINE MAINTENANCE | H46: DIRECT MATERIAL COST | I46: =$C$46 -> Public lighting maintenance | J46: EXPENDITURE | K46: $0's | M46: 652681.1117 | N46: 753381.4913 | O46: 458246.9683 | P46: 229943.7267
A47: ED_INP212_00040 | C47: SCADA & network control maintenance | E47: DNSP NAME | F47: INPUT COSTS | G47: NON-ROUTINE MAINTENANCE | H47: DIRECT MATERIAL COST | I47: =$C$47 -> SCADA & network control maintenance | J47: EXPENDITURE | K47: $0's | M47: 58175.48691 | N47: 315893.8016 | O47: 251.5062982 | P47: 20044.32257
A48: ED_INP212_00041 | C48: Protection systems maintenance | E48: DNSP NAME | F48: INPUT COSTS | G48: NON-ROUTINE MAINTENANCE | H48: DIRECT MATERIAL COST | I48: =$C$48 -> Protection systems maintenance | J48: EXPENDITURE | K48: $0's | M48: 102500.6192 | N48: 303839.6954 | O48: 29620.51021 | P48: 92371.32048
A49: ED_INP212_00042 | C49: Subtransmission asset maintenance - for DNSP with dual function assets | E49: DNSP NAME | F49: INPUT COSTS | G49: NON-ROUTINE MAINTENANCE | H49: DIRECT MATERIAL COST | I49: =$C$49 -> Subtransmission asset maintenance - for DNSP with dual function assets | J49: EXPENDITURE | K49: $0's | M49: 0 | N49: 0 | O49: 0 | P49: 0
A50: ED_INP212_00044 | C50: Other | E50: DNSP NAME | F50: INPUT COSTS | G50: NON-ROUTINE MAINTENANCE | H50: DIRECT MATERIAL COST | I50: =$C$50 -> Other | J50: EXPENDITURE | K50: $0's | M50: 0 | N50: 0 | O50: 0 | P50: 0
A51: ED_INP212_00045 | B51: OVERHEADS | C51: Network overheads | E51: DNSP NAME | F51: INPUT COSTS | G51: OVERHEADS | H51: DIRECT MATERIAL COST | I51: =$C$51 -> Network overheads | J51: EXPENDITURE | K51: $0's | P51: 186647194.9
A52: ED_INP212_00046 | C52: Corporate overheads | E52: DNSP NAME | F52: INPUT COSTS | G52: OVERHEADS | H52: DIRECT MATERIAL COST | I52: =$C$52 -> Corporate overheads | J52: EXPENDITURE | K52: $0's | P52: 131059125.1
A53: ED_INP212_00047 | B53: AUGMENTATION | C53: Subtransmission substations, switching stations, zone substations | E53: DNSP NAME | F53: INPUT COSTS | G53: AUGMENTATION | H53: DIRECT MATERIAL COST | I53: =$C$53 -> Subtransmission substations, switching stations, zone substations | J53: EXPENDITURE | K53: $0's | M53: 2433755.254 | N53: 6949989.713 | O53: 3034288.371 | P53: 7453625.643
A54: ED_INP212_00048 | C54: Subtransmission lines | E54: DNSP NAME | F54: INPUT COSTS | G54: AUGMENTATION | H54: DIRECT MATERIAL COST | I54: =$C$54 -> Subtransmission lines | J54: EXPENDITURE | K54: $0's | M54: 2523236.327 | N54: 7205517.681 | O54: 3145849.046 | P54: 7727670.626
A55: ED_INP212_00049 | C55: HV feeders | E55: DNSP NAME | F55: INPUT COSTS | G55: AUGMENTATION | H55: DIRECT MATERIAL COST | I55: =$C$55 -> HV feeders | J55: EXPENDITURE | K55: $0's | M55: 6019492.667 | N55: 17189654.56 | O55: 7504812.395 | P55: 18435315.06
A56: ED_INP212_00050 | C56: Distribution substations | E56: DNSP NAME | F56: INPUT COSTS | G56: AUGMENTATION | H56: DIRECT MATERIAL COST | I56: =$C$56 -> Distribution substations | J56: EXPENDITURE | K56: $0's | M56: 538511.3457 | N56: 1537808.005 | O56: 671389.907 | P56: 1649246.352
A57: ED_INP212_00051 | C57: LV feeders | E57: DNSP NAME | F57: INPUT COSTS | G57: AUGMENTATION | H57: DIRECT MATERIAL COST | I57: =$C$57 -> LV feeders | J57: EXPENDITURE | K57: $0's | M57: 2482960.415 | N57: 7090503.167 | O57: 3095634.986 | P57: 7604321.504
A58: ED_INP212_00052 | C58: Other assets | E58: DNSP NAME | F58: INPUT COSTS | G58: AUGMENTATION | H58: DIRECT MATERIAL COST | I58: =$C$58 -> Other assets | J58: EXPENDITURE | K58: $0's | M58: 1922263.362 | N58: 5489340.215 | O58: 2396585.012 | P58: 5887129.144
A59: ED_INP212_00053 | B59: CONNECTIONS | C59: Simple and complex customer connections | E59: DNSP NAME | F59: INPUT COSTS | G59: CONNECTIONS | H59: DIRECT MATERIAL COST | I59: =$C$59 -> Simple and complex customer connections | J59: EXPENDITURE | K59: $0's | M59: 227681.1802 | N59: 13535703.17 | O59: -2508.077646 | P59: 2150534.628
A60: ED_INP212_00054 | B60: EMERGENCY RESPONSE | C60: Major storms | E60: DNSP NAME | F60: INPUT COSTS | G60: EMERGENCY RESPONSE | H60: DIRECT MATERIAL COST | I60: =$C$60 -> Major storms | J60: EXPENDITURE | K60: $0's | M60: 8599915.233 | N60: 24109529.01 | O60: 779848.9114 | P60: 5825162.021
A61: ED_INP212_00055 | C61: Major event days | E61: DNSP NAME | F61: INPUT COSTS | G61: EMERGENCY RESPONSE | H61: DIRECT MATERIAL COST | I61: =$C$61 -> Major event days | J61: EXPENDITURE | K61: $0's | M61: 537440.9979 | N61: 1506695.005 | O61: 48735.68702 | P61: 364036.2497
A62: ED_INP212_00056 | B62: PUBLIC LIGHTING | C62: All public lighting services | E62: DNSP NAME | F62: INPUT COSTS | G62: PUBLIC LIGHTING | H62: DIRECT MATERIAL COST | I62: =$C$62 -> All public lighting services | J62: EXPENDITURE | K62: $0's | M62: 2416643.611 | N62: 2789500.929 | O62: 1696723.849 | P62: 851398.988
A63: ED_INP212_00057 | B63: METERING | C63: All metering services | E63: DNSP NAME | F63: INPUT COSTS | G63: METERING | H63: DIRECT MATERIAL COST | I63: =$C$63 -> All metering services | J63: EXPENDITURE | K63: $0's | M63: 10694.54816 | N63: 27875823.11 | O63: 5056.149241 | P63: 2525159.333
A64: ED_INP212_00058 | B64: FEE-BASED SERVICES | C64: All fee-based services | E64: DNSP NAME | F64: INPUT COSTS | G64: FEE-BASED SERVICES | H64: DIRECT MATERIAL COST | I64: =$C$64 -> All fee-based services | J64: EXPENDITURE | K64: $0's | M64: 129370.9377 | N64: 18489928.01 | O64: 78685.26958 | P64: 5440288.608
A65: ED_INP212_00059 | B65: QUOTED SERVICES | C65: All quoted services | E65: DNSP NAME | F65: INPUT COSTS | G65: QUOTED SERVICES | H65: DIRECT MATERIAL COST | I65: =$C$65 -> All quoted services | J65: EXPENDITURE | K65: $0's | M65: 649.9398537 | N65: 92890.57739 | O65: 395.3027897 | P65: 27331.17997
A66: ED_INP212_00060 | B66: REPLACEMENT | C66: Poles | E66: DNSP NAME | F66: INPUT COSTS | G66: REPLACEMENT | H66: DIRECT MATERIAL COST | I66: =$C$66 -> Poles | J66: EXPENDITURE | K66: $0's | M66: 6773966.658 | N66: 19344179.54 | O66: 8445454.085 | P66: 20745969.21
A67: ED_INP212_00061 | C67: Pole top structures | E67: DNSP NAME | F67: INPUT COSTS | G67: REPLACEMENT | H67: DIRECT MATERIAL COST | I67: =$C$67 -> Pole top structures | J67: EXPENDITURE | K67: $0's | M67: 717699.0205 | N67: 2049507.978 | O67: 894792.4356 | P67: 2198027.026
A68: ED_INP212_00062 | C68: Overhead conductors | E68: DNSP NAME | F68: INPUT COSTS | G68: REPLACEMENT | H68: DIRECT MATERIAL COST | I68: =$C$68 -> Overhead conductors | J68: EXPENDITURE | K68: $0's | M68: 2234186.976 | N68: 6380089.565 | O68: 2785476.292 | P68: 6842427.277
A69: ED_INP212_00063 | C69: Underground cables | E69: DNSP NAME | F69: INPUT COSTS | G69: REPLACEMENT | H69: DIRECT MATERIAL COST | I69: =$C$69 -> Underground cables | J69: EXPENDITURE | K69: $0's | M69: 446384.2423 | N69: 1274723.86 | O69: 556530.2891 | P69: 1367097.628
A70: ED_INP212_00064 | C70: Service lines | E70: DNSP NAME | F70: INPUT COSTS | G70: REPLACEMENT | H70: DIRECT MATERIAL COST | I70: =$C$70 -> Service lines | J70: EXPENDITURE | K70: $0's | M70: 189609.1458 | N70: 541460.2024 | O70: 236395.5147 | P70: 580697.4997
A71: ED_INP212_00065 | C71: Transformers | E71: DNSP NAME | F71: INPUT COSTS | G71: REPLACEMENT | H71: DIRECT MATERIAL COST | I71: =$C$71 -> Transformers | J71: EXPENDITURE | K71: $0's | M71: 1273621.909 | N71: 3637037.517 | O71: 1587890.213 | P71: 3900598.018
A72: ED_INP212_00066 | C72: Switchgear | E72: DNSP NAME | F72: INPUT COSTS | G72: REPLACEMENT | H72: DIRECT MATERIAL COST | I72: =$C$72 -> Switchgear | J72: EXPENDITURE | K72: $0's | M72: 4685276.36 | N72: 13379579.74 | O72: 5841376.016 | P72: 14349140.47
A73: ED_INP212_00067 | C73: Public lighting | E73: DNSP NAME | F73: INPUT COSTS | G73: REPLACEMENT | H73: DIRECT MATERIAL COST | I73: =$C$74 -> SCADA network control and protection systems | J73: EXPENDITURE | K73: $0's | M73: 870797.256 | N73: 507433.4419 | O73: 20328.3367 | P73: 171006.1687
A74: ED_INP212_00068 | C74: SCADA network control and protection systems | E74: DNSP NAME | F74: INPUT COSTS | G74: REPLACEMENT | H74: DIRECT MATERIAL COST | I74: =$C$74 -> SCADA network control and protection systems | J74: EXPENDITURE | K74: $0's | M74: 400865.1239 | N74: 1144736.506 | O74: 499779.2533 | P74: 1227690.649
A75: ED_INP212_00069 | C75: Other | E75: DNSP NAME | F75: INPUT COSTS | G75: REPLACEMENT | H75: DIRECT MATERIAL COST | I75: =$C$75 -> Other | J75: EXPENDITURE | K75: $0's | M75: 2245653.511 | N75: 6412834.146 | O75: 2799772.213 | P75: 6877544.718
A76: ED_INP212_00070 | B76: NON-NETWORK EXPENDITURE | C76: IT and communications | E76: DNSP NAME | F76: INPUT COSTS | G76: NON-NETWORK | H76: DIRECT MATERIAL COST | I76: =$C$76 -> IT and communications | J76: EXPENDITURE | K76: $0's | P76: 63050333
A77: ED_INP212_00071 | C77: Motor vehicles | E77: DNSP NAME | F77: INPUT COSTS | G77: NON-NETWORK | H77: DIRECT MATERIAL COST | I77: =$C$77 -> Motor vehicles | J77: EXPENDITURE | K77: $0's | P77: 83822715.71
A78: ED_INP212_00072 | C78: Buildings and property | E78: DNSP NAME | F78: INPUT COSTS | G78: NON-NETWORK | H78: DIRECT MATERIAL COST | I78: =$C$78 -> Buildings and property | J78: EXPENDITURE | K78: $0's | P78: 33676146.52
A79: ED_INP212_00073 | C79: Other | E79: DNSP NAME | F79: INPUT COSTS | G79: NON-NETWORK | H79: DIRECT MATERIAL COST | I79: =$C$79 -> Other | J79: EXPENDITURE | K79: $0's | P79: 9775777.311

Sheet 4.1 Public lighting
B1: =(LOOKUP(dms_Model,dms_Model_List,dms_Worksheet_List)) -> REGULATORY REPORTING STATEMENT
B2: Australian Distribution Co.
B3: =CONCATENATE("Category Analysis RIN response ",CRY) -> Category Analysis RIN response 2014-15
B4: 4.1 PUBLIC LIGHTING
B6: TABLE 4.1.1 - DESCRIPTOR METRICS OVER 2013-14 YEAR
C9: LIGHT TYPE | D9: VOLUME (0's)
A10: PUB411 | D10: =CRY -> 2014-15
A11: ED_PUB411_00001 | B11: POPULATION OF LIGHTS | C11: High Pressure Sodium 1000 | D11: 30
A12: ED_PUB411_00002 | C12: High Pressure Sodium 150 | D12: 9817
A13: ED_PUB411_00003 | C13: High Pressure Sodium 220 | D13: 80
A14: ED_PUB411_00004 | C14: High Pressure Sodium 250 | D14: 23232
A15: ED_PUB411_00005 | C15: High Pressure Sodium 2x250 | D15: 9
A16: ED_PUB411_00006 | C16: High Pressure Sodium 2x400 | D16: 45
A17: ED_PUB411_00007 | C17: High Pressure Sodium 310 (Retrofit) | D17: 99
A18: ED_PUB411_00008 | C18: High Pressure Sodium 360 | D18: 146
A19: ED_PUB411_00009 | C19: High Pressure Sodium 3x400 | D19: 3
A20: ED_PUB411_00010 | C20: High Pressure Sodium 400 | D20: 2245
A21: ED_PUB411_00011 | C21: Incandescent 150 | D21: 18
A22: ED_PUB411_00012 | C22: Incandescent 1500 | D22: 3
A23: ED_PUB411_00013 | C23: Incandescent 200 | D23: 2
A24: ED_PUB411_00014 | C24: Incandescent 300 | D24: 4
A25: ED_PUB411_00015 | C25: Incandescent 500 | D25: 5
A26: ED_PUB411_00016 | C26: LED285 | D26: 4
A27: ED_PUB411_00017 | C27: Low Pressure Sodium 150 | D27: 133
A28: ED_PUB411_00018 | C28: Low Pressure Sodium 310 | D28: 2
A29: ED_PUB411_00019 | C29: Mercury Vapour 1000 | D29: 6
A30: ED_PUB411_00020 | C30: Mercury Vapour 250 | D30: 764
A31: ED_PUB411_00021 | C31: Mercury Vapour 400 | D31: 815
A32: ED_PUB411_00022 | C32: Mercury Vapour 700 | D32: 1
A33: ED_PUB411_00023 | C33: Metal Hallide (Constant Ctrl Gear) 250 | D33: 3
A34: ED_PUB411_00024 | C34: Metal Hallide (Reactor Ctrl Gear) 1000 | D34: 10
A35: ED_PUB411_00025 | C35: Metal Hallide (Reactor Ctrl Gear) 150 | D35: 183
A36: ED_PUB411_00026 | C36: Metal Hallide (Reactor Ctrl Gear) 175 | D36: 29
A37: ED_PUB411_00027 | C37: Metal Hallide (Reactor Ctrl Gear) 250 | D37: 189
A38: ED_PUB411_00028 | C38: Metal Hallide (Reactor Ctrl Gear) 400 | D38: 154
A39: ED_PUB411_00029 | C39: Mercury Vapour 2x125 | D39: 1
A40: ED_PUB411_00030 | C40: Compact Fluorescent 32 | D40: 4
A41: ED_PUB411_00031 | C41: Compact Fluorescent 42 | D41: 57974
A42: ED_PUB411_00032 | C42: Fluorescent 15 | D42: 42
A43: ED_PUB411_00033 | C43: Fluorescent 20 | D43: 313
A44: ED_PUB411_00034 | C44: Fluorescent 26 | D44: 130
A45: ED_PUB411_00035 | C45: Fluorescent 2x40 | D45: 72
A46: ED_PUB411_00036 | C46: Fluorescent 2x58 | D46: 4
A47: ED_PUB411_00037 | C47: Fluorescent 2x80 | D47: 1
A48: ED_PUB411_00038 | C48: Fluorescent 3x20 | D48: 1
A49: ED_PUB411_00039 | C49: Fluorescent 3x40 | D49: 2
A50: ED_PUB411_00040 | C50: Fluorescent 40 | D50: 1399
A51: ED_PUB411_00041 | C51: Fluorescent 4x20 | D51: 28
A52: ED_PUB411_00042 | C52: Fluorescent 4x40 | D52: 15
A53: ED_PUB411_00043 | C53: Fluorescent 65 | D53: 2
A54: ED_PUB411_00044 | C54: Fluorescent 80 | D54: 26
A55: ED_PUB411_00045 | C55: Fluorescent 9 | D55: 47
A56: ED_PUB411_00046 | C56: Fluorescent Twin 20 | D56: 242
A57: ED_PUB411_00047 | C57: High Pressure Sodium 100 | D57: 102
A58: ED_PUB411_00048 | C58: High Pressure Sodium 120 | D58: 65
A59: ED_PUB411_00049 | C59: High Pressure Sodium 50 | D59: 2707
A60: ED_PUB411_00050 | C60: High Pressure Sodium 70 | D60: 29270
A61: ED_PUB411_00051 | C61: Incandescent 100 | D61: 30
A62: ED_PUB411_00052 | C62: Incandescent 30 | D62: 8
A63: ED_PUB411_00053 | C63: Incandescent 60 | D63: 114
A64: ED_PUB411_00054 | C64: Incandescent 75 | D64: 32
A65: ED_PUB411_00055 | C65: LED146 | D65: 2
A66: ED_PUB411_00056 | C66: LED28 | D66: 7
A67: ED_PUB411_00057 | C67: LED70 | D67: 9
A68: ED_PUB411_00058 | C68: LED90 | D68: 7
A69: ED_PUB411_00059 | C69: Low Pressure Sodium 135 | D69: 41
A70: ED_PUB411_00060 | C70: Low Pressure Sodium 55 | D70: 343
A71: ED_PUB411_00061 | C71: Low Pressure Sodium 90/100 | D71: 233
A72: ED_PUB411_00062 | C72: Mercury Vapour 125 | D72: 637
A73: ED_PUB411_00063 | C73: Mercury Vapour 50 | D73: 2087
A74: ED_PUB411_00064 | C74: Mercury Vapour 80 | D74: 19810
A75: ED_PUB411_00065 | C75: Metal Hallide (Reactor Ctrl Gear) 100 | D75: 9
A76: ED_PUB411_00066 | C76: Metal Hallide (Reactor Ctrl Gear) 70 | D76: 158
A77: ED_PUB411_00067 | C77: StreetLED 18w | D77: 3
A78: ED_PUB411_00068 | C78: EvolveLED 25w | D78: 1
A79: ED_PUB411_00069
A80: ED_PUB411_00070
A81: ED_PUB411_00071
A82: ED_PUB411_00072
A83: ED_PUB411_00073
A84: ED_PUB411_00074
A85: ED_PUB411_00075
A86: ED_PUB411_00076
A87: ED_PUB411_00077
A88: ED_PUB411_00078
A89: ED_PUB411_00079
A90: ED_PUB411_00080
A91: ED_PUB411_00081
A92: ED_PUB411_00082
A93: ED_PUB411_00083
A94: ED_PUB411_00084
A95: ED_PUB411_00085
A96: ED_PUB411_00086
A97: ED_PUB411_00087
A98: ED_PUB411_00088
A99: ED_PUB411_00089
A100: ED_PUB411_00090
A101: ED_PUB411_00091
A102: ED_PUB411_00092
A103: ED_PUB411_00093
A104: ED_PUB411_00094
A105: ED_PUB411_00095
A106: ED_PUB411_00096
A107: ED_PUB411_00097
A108: ED_PUB411_00098
A109: ED_PUB411_00099
A110: ED_PUB411_00100
A111: ED_PUB411_00101
A112: ED_PUB411_00102
B117: TABLE 4.1.2 - DESCRIPTOR METRICS ANNUALLY
D120: VOLUMES & EXPENDITURE
A121: PUB412 | B121: SERVICE/SERVICE QUALITY - Volumes and Expenditure | C121: DESCRIPTOR METRIC | D121: =CRY -> 2014-15
A122: ED_PUB412_00001 | B122: LIGHT INSTALLATION | C122: Major road light installation (volume) | D122: 331
A123: ED_PUB412_00002 | C123: Minor road light installation (volume) | D123: 729
A124: ED_PUB412_00003 | C124: Number of poles installed | D124: 185
A125: ED_PUB412_00004 | C125: Total cost ($'s) | D125: 0
A126: ED_PUB412_00005 | B126: LIGHT REPLACEMENT | C126: Major road light replacement (volume) | D126: 683
A127: ED_PUB412_00006 | C127: Minor road light replacement (volume) | D127: 2597
A128: ED_PUB412_00007 | C128: Number of poles replaced | D128: 243
A129: ED_PUB412_00008 | C129: Total cost ($'s) | D129: 1569565.203
A130: ED_PUB412_00009 | B130: LIGHT MAINTENANCE | C130: Major road light maintenance (volume) | D130: 10494
A131: ED_PUB412_00010 | C131: Minor road light maintenance (volume) | D131: 37881
A132: ED_PUB412_00011 | C132: Number of poles installed | D132: 11778
A133: ED_PUB412_00012 | C133: Total cost ($'s) | D133: 7754267.38
A134: ED_PUB412_00013 | B134: QUALITY OF SUPPLY | C134: Mean days to rectify/replace public lighting assets (days) | D134: 3.56
A135: ED_PUB412_00014 | C135: GSO breaches (volume 0's) | D135: 44
A136: ED_PUB412_00015 | C136: GSL payments ($0's) | D136: 660
A137: ED_PUB412_00016 | C137: Customer complaints (volume 0's) | D137: 66
B143: TABLE 4.1.3 - COST METRICS
D146: AVERAGE UNIT COST ($)
A147: PUB413 | B147: ROAD TYPE | C147: LIGHT TYPE | D147: =CRY -> 2014-15
A148: PUB413_00001 | B148: LIGHT INSTALLATION - Major Road | C148: High Pressure Sodium 1000 | D148: 0
A149: PUB413_00002 | C149: High Pressure Sodium 150 | D149: 0
A150: PUB413_00003 | C150: High Pressure Sodium 220 | D150: 0
A151: PUB413_00004 | C151: High Pressure Sodium 250 | D151: 0
A152: PUB413_00005 | C152: High Pressure Sodium 360 | D152: 0
A153: PUB413_00006 | C153: High Pressure Sodium 400 | D153: 0
A154: PUB413_00007 | C154: Low Pressure Sodium 150 | D154: 0
A155: PUB413_00008 | C155: Mercury Vapour 250 | D155: 0
A156: PUB413_00009 | C156: Mercury Vapour 400 | D156: 0
A157: PUB413_00010 | C157: Metal Hallide (Reactor Ctrl Gear) 1000 | D157: 0
A158: PUB413_00011 | C158: Metal Hallide (Reactor Ctrl Gear) 150 | D158: 0
A159: PUB413_00012 | C159: Metal Hallide (Reactor Ctrl Gear) 250 | D159: 0
A160: PUB413_00013 | C160: Metal Hallide (Reactor Ctrl Gear) 400 | D160: 0
A161: PUB413_00014
A162: PUB413_00015
A163: PUB413_00010 | B163: LIGHT INSTALLATION - Minor Road | C163: Compact Fluorescent 42 | D163: 0
A164: PUB413_00011 | C164: Fluorescent 20 | D164: 0
A165: PUB413_00012 | C165: Fluorescent 2x14 | D165: 0
A166: PUB413_00013 | C166: Fluorescent 40 | D166: 0
A167: PUB413_00014 | C167: Fluorescent Twin 20 | D167: 0
A168: PUB413_00014 | C168: High Pressure Sodium 50 | D168: 0
A169: PUB413_00015 | C169: High Pressure Sodium 70 | D169: 0
A170: PUB413_00016 | C170: Low Pressure Sodium 135 | D170: 0
A171: PUB413_00017 | C171: Low Pressure Sodium 55 | D171: 0
A172: PUB413_00018 | C172: Low Pressure Sodium 90/100 | D172: 0
A173: PUB413_00019 | C173: Mercury Vapour 125 | D173: 0
A174: PUB413_00020 | C174: Mercury Vapour 50 | D174: 0
A175: PUB413_00021 | C175: Mercury Vapour 80 | D175: 0
A176: PUB413_00022 | C176: Metal Hallide (Reactor Ctrl Gear) 70 | D176: 0
A177: PUB413_00023
A178: PUB413_00024 | B178: LIGHT REPLACEMENT - Major Road | C178: High Pressure Sodium 1000 | D178: 1250.16
A179: PUB413_00025 | C179: High Pressure Sodium 150 | D179: 441.1056154
A180: PUB413_00026 | C180: High Pressure Sodium 250 | D180: 468.2909871
A181: PUB413_00027 | C181: High Pressure Sodium 360 | D181: 588.15
A182: PUB413_00028 | C182: High Pressure Sodium 3x400 | D182: 1759.67
A183: PUB413_00029 | C183: High Pressure Sodium 400 | D183: 555.44
A184: PUB413_00030 | C184: Low Pressure Sodium 150 | D184: 490.37
A185: PUB413_00025 | C185: Mercury Vapour 250 | D185: 473.83
A186: PUB413_00026 | C186: Mercury Vapour 400 | D186: 503.88
A187: PUB413_00027 | C187: Metal Hallide (Reactor Ctrl Gear )250 | D187: 775.19
A188: PUB413_00028 | C188: Metal Hallide (Reactor Ctrl Gear) 400 | D188: 1223.57
A189: PUB413_00029
A190: PUB413_00030
A191: PUB413_00025
A192: PUB413_00031
A193: PUB413_00032 | B193: LIGHT REPLACEMENT - Minor Road | C193: Compact Fluorescent 32 | D193: 333
A194: PUB413_00033 | C194: Compact Fluorescent 42 | D194: 329.6383345
A195: PUB413_00034 | C195: EvolveLED 25 | D195: 337.73
A196: PUB413_00035 | C196: Fluorescent 20 | D196: 327.6
A197: PUB413_00036 | C197: Fluorescent 40 | D197: 327.6
A198: PUB413_00036 | C198: Fluorescent Twin 20 | D198: 303.5377778
A199: PUB413_00033 | C199: High Pressure Sodium 50 | D199: 389.181625
A200: PUB413_00034 | C200: High Pressure Sodium 70 | D200: 344.7511156
A201: PUB413_00035 | C201: Low Pressure Sodium 55 | D201: 311.51
A202: PUB413_00036 | C202: Mercury Vapour 125 | D202: 327.6
A203: PUB413_00033 | C203: Mercury Vapour 50 | D203: 327.6
A204: PUB413_00034 | C204: Mercury Vapour 80 | D204: 327.6
A205: PUB413_00035 | C205: Metal Hallide (Reactor Ctrl Gear) 70 | D205: 311.51
A206: PUB413_00036 | C206: StreetLED 18 | D206: 443.83
A207: PUB413_00037
A208: PUB413_00038 | B208: LIGHT MAINTENANCE - Major Road | C208: High Pressure Sodium 150 | D208: 96.64084704
A209: PUB413_00039 | C209: High Pressure Sodium 220 | D209: 248.43
A210: PUB413_00040 | C210: High Pressure Sodium 250 | D210: 117.3076203
A211: PUB413_00041 | C211: High Pressure Sodium 2x400 | D211: 227.63
A212: PUB413_00042 | C212: High Pressure Sodium 310 (Retrofit) | D212: 201.92
A213: PUB413_00043 | C213: High Pressure Sodium 360 | D213: 210.33
A214: PUB413_00044 | C214: High Pressure Sodium 3x400 | D214: 227.63
A215: PUB413_00039 | C215: High Pressure Sodium 400 | D215: 125.9975242
A216: PUB413_00040 | C216: Low Pressure Sodium 150 | D216: 144.6308333
... 21 more rows

Sheet 4.2 Metering
B1: =(LOOKUP(dms_Model,dms_Model_List,dms_Worksheet_List)) -> REGULATORY REPORTING STATEMENT
B2: Australian Distribution Co.
B3: =CONCATENATE("Category Analysis RIN response ",CRY) -> Category Analysis RIN response 2014-15
B4: 4.2 METERING
B7: TABLE 4.2.1 - METERING DESCRIPTOR METRIC | F7: TABLE 4.2.2 - COST METRICS
D10: VOLUMES (0's) | H10: EXPENDITURE ($0's) | J10: VOLUMES (0's)
B11: ASSET CATEGORY | C11: ASSET SUBCATEGORY | D11: =CRY -> 2014-15 | F11: SERVICE SUBCATEGORY | G11: METER TYPE | H11: =CRY -> 2014-15 | J11: =CRY -> 2014-15
A12: ED_MET421_00001 | B12: Meter Type 4 | C12: Single phase meter population | D12: 0 | E12: ED_MET422_00001 | F12: Meter purchase | G12: Meter Type 4 | H12: 0 | I12: ED_MET422_00001 | J12: 0
A13: ED_MET421_00002 | C13: Multi phase meter population | D13: 0 | E13: ED_MET422_00002 | G13: Meter Type 5 | H13: 0 | I13: ED_MET422_00002 | J13: 0
A14: ED_MET421_00003 | C14: Current transformer connected meter population | D14: 0 | E14: ED_MET422_00003 | G14: Meter Type 6 | H14: 2021541.007 | I14: ED_MET422_00003 | J14: 24728
A15: ED_MET421_00004 | C15: Direct connect meter population | D15: 0 | E15: ED_MET422_00004 | F15: Meter testing | G15: Meter Type 4 | H15: 0 | I15: ED_MET422_00004 | J15: 0
A16: ED_MET421_00005 | B16: Meter Type 5 | C16: Single phase meter population | D16: 135 | E16: ED_MET422_00005 | G16: Meter Type 5 | H16: 0 | I16: ED_MET422_00005 | J16: 0
A17: ED_MET421_00006 | C17: Multi phase meter population | D17: 416 | E17: ED_MET422_00006 | G17: Meter Type 6 | H17: 413698.3359 | I17: ED_MET422_00006 | J17: 622
A18: ED_MET421_00007 | C18: Current transformer connected meter population | D18: 273 | E18: ED_MET422_00007 | F18: Meter investigation | G18: Meter Type 4 | H18: 0 | I18: ED_MET422_00007 | J18: 0
A19: ED_MET421_00008 | C19: Direct connect meter population | D19: 278 | E19: ED_MET422_00008 | G19: Meter Type 5 | H19: 0 | I19: ED_MET422_00008 | J19: 0
A20: ED_MET421_00009 | B20: Meter Type 6 | C20: Single phase meter population | D20: 1305949 | E20: ED_MET422_00009 | G20: Meter Type 6 | H20: 0 | I20: ED_MET422_00009 | J20: 0
A21: ED_MET421_00010 | C21: Multi phase meter population | D21: 146547 | E21: ED_MET422_00010 | F21: Scheduled meter reading | G21: Meter Type 4 | H21: 0 | I21: ED_MET422_00010 | J21: 0
A22: ED_MET421_00011 | C22: Current transformer connected meter population | D22: 6521 | E22: ED_MET422_00011 | G22: Meter Type 5 | H22: 162249.495 | I22: ED_MET422_00011 | J22: 14326
A23: ED_MET421_00012 | C23: Direct connect meter population | D23: 1445975 | E23: ED_MET422_00012 | G23: Meter Type 6 | H23: 13025759.5 | I23: ED_MET422_00012 | J23: 8792733
E24: ED_MET422_00013 | F24: Special meter reading | G24: Meter Type 4 | H24: 0 | I24: ED_MET422_00013 | J24: 0
E25: ED_MET422_00014 | G25: Meter Type 5 | H25: 0 | I25: ED_MET422_00014 | J25: 0
E26: ED_MET422_00015 | G26: Meter Type 6 | H26: 0 | I26: ED_MET422_00015 | J26: 0
E27: ED_MET422_00016 | F27: New meter installation | G27: Meter Type 4 | H27: 0 | I27: ED_MET422_00016 | J27: 0
E28: ED_MET422_00017 | G28: Meter Type 5 | H28: 0 | I28: ED_MET422_00017 | J28: 0
E29: ED_MET422_00018 | G29: Meter Type 6 | H29: 0 | I29: ED_MET422_00018 | J29: 0
E30: ED_MET422_00019 | F30: Meter replacement | G30: Meter Type 4 | H30: 0 | I30: ED_MET422_00019 | J30: 0
E31: ED_MET422_00020 | G31: Meter Type 5 | H31: 0 | I31: ED_MET422_00020 | J31: 0
E32: ED_MET422_00021 | G32: Meter Type 6 | H32: 1967151.716 | I32: ED_MET422_00021 | J32: 13136
E33: ED_MET422_00022 | F33: Meter maintenance | G33: Meter Type 4 | H33: 0 | I33: ED_MET422_00022 | J33: 0
E34: ED_MET422_00023 | G34: Meter Type 5 | H34: 0 | I34: ED_MET422_00023 | J34: 0
E35: ED_MET422_00024 | G35: Meter Type 6 | H35: 1695826.806 | I35: ED_MET422_00024 | J35: 7169
E36: ED_MET422_00025 | F36: Remote meter reading | G36: Meter Type 4 | H36: 0 | I36: ED_MET422_00025 | J36: 0
E37: ED_MET422_00026 | F37: Remote meter re-configuration | G37: Meter Type 4 | H37: 0 | I37: ED_MET422_00026 | J37: 0
E38: ED_MET422_00027 | F38: Other metering | G38: Meter Type 4 | H38: 0
E39: ED_MET422_00028 | G39: Meter Type 5 | H39: 0
E40: ED_MET422_00029 | G40: Meter Type 6 | H40: 15119199
E41: ED_MET422_00030 | G41: Meter Type 7 | H41: 0
E42: ED_MET422_00031 | F42: IT infrastructure capex | G42: Meter Type 4 | H42: 0
E43: ED_MET422_00032 | F43: IT infrastructure opex | G43: Meter Type 4 | H43: 0
E44: ED_MET422_00033 | F44: Communications infrastructure capex | G44: Meter Type 4 | H44: 0
E45: ED_MET422_00034 | F45: Communications infrastructure opex | G45: Meter Type 4 | H45: 0

Sheet 4.3 Fee-based services
B1: =(LOOKUP(dms_Model,dms_Model_List,dms_Worksheet_List)) -> REGULATORY REPORTING STATEMENT
B2: Australian Distribution Co.
B3: =CONCATENATE("Category Analysis RIN response ",CRY) -> Category Analysis RIN response 2014-15
B4: 4.3 ANCILLARY SERVICES - FEE BASED SERVICES
B6: TABLE 4.3.1 - COST METRICS FOR FEE-BASED SERVICES
D9: EXPENDITURE ($0's) | F9: VOLUMES (0's)
B10: SERVICE | C10: SERVICE SUBCATEGORY | D10: =CRY -> 2014-15 | F10: =CRY -> 2014-15
A11: ED_FEE431_00001 | B11: Common Fee-Based Services | C11: Energisation | D11: 0 | E11: ED_FEE431_00001 | F11: 0
A12: ED_FEE431_00002 | B12: Common Fee-Based Services | C12: De-energisation | D12: 0 | E12: ED_FEE431_00002 | F12: 0
A13: ED_FEE431_00003 | B13: Common Fee-Based Services | C13: Re-energisation | D13: 0 | E13: ED_FEE431_00003 | F13: 0
A14: ED_FEE431_00004 | B14: Miscellaneous Fee-Based Services | C14: Special Meter Reading business hours | D14: 6258946.902 | E14: ED_FEE431_00004 | F14: 121886
A15: ED_FEE431_00005 | B15: Miscellaneous Fee-Based Services | C15: Off Peak Conversion | D15: 89042.33404 | E15: ED_FEE431_00005 | F15: 1734
A16: ED_FEE431_00006 | B16: Miscellaneous Fee-Based Services | C16: Disconnection site visit (only) business hours payment received | D16: 772693.9363 | E16: ED_FEE431_00006 | F16: 13256
A17: ED_FEE431_00007 | B17: Miscellaneous Fee-Based Services | C17: Disconnection / De-energisation at meter box | D17: 4815996.607 | E17: ED_FEE431_00007 | F17: 73774
A18: ED_FEE431_00008 | B18: Miscellaneous Fee-Based Services | C18: Disconnection / De-energisation at meter box no payment | D18: 959491.3944 | E18: ED_FEE431_00008 | F18: 14698
A19: ED_FEE431_00009 | B19: Miscellaneous Fee-Based Services | C19: Disconnection / De-energisation at pole top / pillar box | D19: 16538.16561 | E19: ED_FEE431_00009 | F19: 81
A20: ED_FEE431_00010 | B20: Miscellaneous Fee-Based Services | C20: Reconnection outside of business hours | D20: 200737.2457 | E20: ED_FEE431_00010 | F20: 3075
A21: ED_FEE431_00011 | B21: Miscellaneous Fee-Based Services | C21: Meter Test | D21: 44708.52815 | E21: ED_FEE431_00011 | F21: 182
A22: ED_FEE431_00012 | B22: Miscellaneous Fee-Based Services | C22: Supply of Conveyancing information - desk enquiry | D22: 28727.57 | E22: ED_FEE431_00012 | F22: 8541.309059
A23: ED_FEE431_00013 | B23: Miscellaneous Fee-Based Services | C23: Site Establishment | D23: 123579.15 | E23: ED_FEE431_00013 | F23: 16464.43642
A24: ED_FEE431_00014 | B24: Miscellaneous Fee-Based Services | C24: Inspection of Service Work Level 2 | D24: 3336708.44 | E24: ED_FEE431_00014 | F24: 19282.12031
A25: ED_FEE431_00015 | B25: Miscellaneous Fee-Based Services | C25: Design Information | D25: 338777.0576 | E25: ED_FEE431_00015 | F25: 2343
A26: ED_FEE431_00016 | B26: Miscellaneous Fee-Based Services | C26: Design Certification | D26: 261572.9958 | E26: ED_FEE431_00016 | F26: 1956
A27: ED_FEE431_00017 | B27: Miscellaneous Fee-Based Services | C27: Design Rechecking | D27: 67956.15099 | E27: ED_FEE431_00017 | F27: 457
A28: ED_FEE431_00018 | B28: Miscellaneous Fee-Based Services | C28: Inspection Level 1 | D28: 592583.8574 | E28: ED_FEE431_00018 | F28: 5358
A29: ED_FEE431_00019 | B29: Miscellaneous Fee-Based Services | C29: Access Permit | D29: 3962863.249 | E29: ED_FEE431_00019 | F29: 2769
A30: ED_FEE431_00020 | B30: Miscellaneous Fee-Based Services | C30: Substation Commissioning | D30: 2171408.787 | E30: ED_FEE431_00020 | F30: 1517
A31: ED_FEE431_00021 | B31: Miscellaneous Fee-Based Services | C31: Administration (Contestable Works) | D31: 212859.1673 | E31: ED_FEE431_00021 | F31: 1278
A32: ED_FEE431_00022 | B32: Miscellaneous Fee-Based Services | C32: Notice of Arrangement | D32: 29160.72657 | E32: ED_FEE431_00022 | F32: 206
A33: ED_FEE431_00023 | B33: Miscellaneous Fee-Based Services | E33: ED_FEE431_00023
A34: ED_FEE431_00024 | B34: Miscellaneous Fee-Based Services | E34: ED_FEE431_00024
A35: ED_FEE431_00025 | B35: Miscellaneous Fee-Based Services | E35: ED_FEE431_00025
A36: ED_FEE431_00026 | B36: Miscellaneous Fee-Based Services | E36: ED_FEE431_00026
A37: ED_FEE431_00027 | B37: Miscellaneous Fee-Based Services | E37: ED_FEE431_00027
A38: ED_FEE431_00028 | B38: Miscellaneous Fee-Based Services | E38: ED_FEE431_00028
A39: ED_FEE431_00029 | B39: Miscellaneous Fee-Based Services | E39: ED_FEE431_00029
A40: ED_FEE431_00030 | B40: Miscellaneous Fee-Based Services | E40: ED_FEE431_00030
A41: ED_FEE431_00031 | B41: Miscellaneous Fee-Based Services | E41: ED_FEE431_00031
A42: ED_FEE431_00032 | B42: Miscellaneous Fee-Based Services | E42: ED_FEE431_00032
A43: ED_FEE431_00033 | B43: Miscellaneous Fee-Based Services | E43: ED_FEE431_00033
A44: ED_FEE431_00034 | B44: Miscellaneous Fee-Based Services | E44: ED_FEE431_00034
A45: ED_FEE431_00035 | B45: Miscellaneous Fee-Based Services | E45: ED_FEE431_00035
A46: ED_FEE431_00036 | B46: Miscellaneous Fee-Based Services | E46: ED_FEE431_00036
A47: ED_FEE431_00037 | B47: Miscellaneous Fee-Based Services | E47: ED_FEE431_00037
A48: ED_FEE431_00038 | B48: Miscellaneous Fee-Based Services | E48: ED_FEE431_00038
A49: ED_FEE431_00039 | B49: Miscellaneous Fee-Based Services | E49: ED_FEE431_00039
A50: ED_FEE431_00040 | B50: Miscellaneous Fee-Based Services | E50: ED_FEE431_00040
A51: ED_FEE431_00041 | B51: Miscellaneous Fee-Based Services | E51: ED_FEE431_00041
A52: ED_FEE431_00042 | B52: Miscellaneous Fee-Based Services | E52: ED_FEE431_00042
A53: ED_FEE431_00043 | B53: Miscellaneous Fee-Based Services | E53: ED_FEE431_00043
A54: ED_FEE431_00044 | B54: Miscellaneous Fee-Based Services | E54: ED_FEE431_00044
A55: ED_FEE431_00045 | B55: Miscellaneous Fee-Based Services | E55: ED_FEE431_00045
A56: ED_FEE431_00046 | B56: Miscellaneous Fee-Based Services | E56: ED_FEE431_00046
A57: ED_FEE431_00047 | B57: Miscellaneous Fee-Based Services | E57: ED_FEE431_00047
A58: ED_FEE431_00048 | B58: Miscellaneous Fee-Based Services | E58: ED_FEE431_00048
A59: ED_FEE431_00049 | B59: Miscellaneous Fee-Based Services | E59: ED_FEE431_00049
A60: ED_FEE431_00050 | B60: Miscellaneous Fee-Based Services | E60: ED_FEE431_00050
A61: ED_FEE431_00051 | B61: Miscellaneous Fee-Based Services | E61: ED_FEE431_00051
A62: ED_FEE431_00052 | B62: Miscellaneous Fee-Based Services | E62: ED_FEE431_00052
A63: ED_FEE431_00053 | B63: Miscellaneous Fee-Based Services | E63: ED_FEE431_00053
A64: ED_FEE431_00054 | B64: Miscellaneous Fee-Based Services | E64: ED_FEE431_00054
A65: ED_FEE431_00055 | B65: Miscellaneous Fee-Based Services | E65: ED_FEE431_00055
A66: ED_FEE431_00056 | B66: Miscellaneous Fee-Based Services | E66: ED_FEE431_00056
A67: ED_FEE431_00057 | B67: Miscellaneous Fee-Based Services | E67: ED_FEE431_00057
A68: ED_FEE431_00058 | B68: Miscellaneous Fee-Based Services | E68: ED_FEE431_00058
A69: ED_FEE431_00059 | B69: Miscellaneous Fee-Based Services | E69: ED_FEE431_00059
A70: ED_FEE431_00060 | B70: Miscellaneous Fee-Based Services | E70: ED_FEE431_00060
A71: ED_FEE431_00061 | B71: Miscellaneous Fee-Based Services | E71: ED_FEE431_00061
A72: ED_FEE431_00062 | B72: Miscellaneous Fee-Based Services | E72: ED_FEE431_00062
A73: ED_FEE431_00063 | B73: Miscellaneous Fee-Based Services | E73: ED_FEE431_00063
A74: ED_FEE431_00064 | B74: Miscellaneous Fee-Based Services | E74: ED_FEE431_00064
A75: ED_FEE431_00065 | B75: Miscellaneous Fee-Based Services | E75: ED_FEE431_00065
A76: ED_FEE431_00066 | B76: Miscellaneous Fee-Based Services | E76: ED_FEE431_00066
A77: ED_FEE431_00067 | B77: Miscellaneous Fee-Based Services | E77: ED_FEE431_00067
A78: ED_FEE431_00068 | B78: Miscellaneous Fee-Based Services | E78: ED_FEE431_00068
A79: ED_FEE431_00069 | B79: Miscellaneous Fee-Based Services | E79: ED_FEE431_00069
A80: ED_FEE431_00070 | B80: Miscellaneous Fee-Based Services | E80: ED_FEE431_00070
A81: ED_FEE431_00071 | B81: Miscellaneous Fee-Based Services | E81: ED_FEE431_00071
A82: ED_FEE431_00072 | B82: Miscellaneous Fee-Based Services | E82: ED_FEE431_00072
A83: ED_FEE431_00073 | B83: Miscellaneous Fee-Based Services | E83: ED_FEE431_00073
A84: ED_FEE431_00074 | B84: Miscellaneous Fee-Based Services | E84: ED_FEE431_00074
A85: ED_FEE431_00075 | B85: Miscellaneous Fee-Based Services | E85: ED_FEE431_00075
A86: ED_FEE431_00076 | B86: Miscellaneous Fee-Based Services | E86: ED_FEE431_00076
A87: ED_FEE431_00077 | B87: Miscellaneous Fee-Based Services | E87: ED_FEE431_00077
A88: ED_FEE431_00078 | B88: Miscellaneous Fee-Based Services | E88: ED_FEE431_00078
A89: ED_FEE431_00079 | B89: Miscellaneous Fee-Based Services | E89: ED_FEE431_00079
A90: ED_FEE431_00080 | B90: Miscellaneous Fee-Based Services | E90: ED_FEE431_00080
A91: ED_FEE431_00081 | B91: Miscellaneous Fee-Based Services | E91: ED_FEE431_00081
A92: ED_FEE431_00082 | B92: Miscellaneous Fee-Based Services | E92: ED_FEE431_00082
A93: ED_FEE431_00083 | B93: Miscellaneous Fee-Based Services | E93: ED_FEE431_00083
A94: ED_FEE431_00084 | B94: Miscellaneous Fee-Based Services | E94: ED_FEE431_00084
A95: ED_FEE431_00085 | B95: Miscellaneous Fee-Based Services | E95: ED_FEE431_00085
A96: ED_FEE431_00086 | B96: Miscellaneous Fee-Based Services | E96: ED_FEE431_00086
A97: ED_FEE431_00087 | B97: Miscellaneous Fee-Based Services | E97: ED_FEE431_00087
A98: ED_FEE431_00088 | B98: Miscellaneous Fee-Based Services | E98: ED_FEE431_00088
A99: ED_FEE431_00089 | B99: Miscellaneous Fee-Based Services | E99: ED_FEE431_00089
A100: ED_FEE431_00090 | B100: Miscellaneous Fee-Based Services | E100: ED_FEE431_00090
A101: ED_FEE431_00091 | B101: Miscellaneous Fee-Based Services | E101: ED_FEE431_00091
A102: ED_FEE431_00092 | B102: Miscellaneous Fee-Based Services | E102: ED_FEE431_00092
A103: ED_FEE431_00093 | B103: Miscellaneous Fee-Based Services | E103: ED_FEE431_00093
A104: ED_FEE431_00094 | B104: Miscellaneous Fee-Based Services | E104: ED_FEE431_00094
A105: ED_FEE431_00095 | B105: Miscellaneous Fee-Based Services | E105: ED_FEE431_00095
A106: ED_FEE431_00096 | B106: Miscellaneous Fee-Based Services | E106: ED_FEE431_00096
A107: ED_FEE431_00097 | B107: Miscellaneous Fee-Based Services | E107: ED_FEE431_00097
A108: ED_FEE431_00098 | B108: Miscellaneous Fee-Based Services | E108: ED_FEE431_00098
A109: ED_FEE431_00099 | B109: Miscellaneous Fee-Based Services | E109: ED_FEE431_00099
A110: ED_FEE431_00100 | B110: Miscellaneous Fee-Based Services | E110: ED_FEE431_00100
A111: ED_FEE431_00101 | B111: Miscellaneous Fee-Based Services | E111: ED_FEE431_00101
A112: ED_FEE431_00102 | B112: Miscellaneous Fee-Based Services | E112: ED_FEE431_00102
A113: ED_FEE431_00103 | B113: Miscellaneous Fee-Based Services | E113: ED_FEE431_00103
A114: ED_FEE431_00104 | B114: Miscellaneous Fee-Based Services | E114: ED_FEE431_00104
A115: ED_FEE431_00105 | B115: Miscellaneous Fee-Based Services | E115: ED_FEE431_00105
A116: ED_FEE431_00106 | B116: Miscellaneous Fee-Based Services | E116: ED_FEE431_00106
A117: ED_FEE431_00107 | B117: Miscellaneous Fee-Based Services | E117: ED_FEE431_00107
A118: ED_FEE431_00108 | B118: Miscellaneous Fee-Based Services | E118: ED_FEE431_00108
A119: ED_FEE431_00109 | B119: Miscellaneous Fee-Based Services | E119: ED_FEE431_00109
A120: ED_FEE431_00110 | B120: Miscellaneous Fee-Based Services | E120: ED_FEE431_00110
A121: ED_FEE431_00111 | B121: Miscellaneous Fee-Based Services | E121: ED_FEE431_00111
A122: ED_FEE431_00112 | B122: Miscellaneous Fee-Based Services | E122: ED_FEE431_00112
A123: ED_FEE431_00113 | B123: Miscellaneous Fee-Based Services | E123: ED_FEE431_00113
A124: ED_FEE431_00114 | B124: Miscellaneous Fee-Based Services | E124: ED_FEE431_00114
A125: ED_FEE431_00115 | B125: Miscellaneous Fee-Based Services | E125: ED_FEE431_00115
A126: ED_FEE431_00116 | B126: Miscellaneous Fee-Based Services | E126: ED_FEE431_00116
A127: ED_FEE431_00117 | B127: Miscellaneous Fee-Based Services | E127: ED_FEE431_00117
A128: ED_FEE431_00118 | B128: Miscellaneous Fee-Based Services | E128: ED_FEE431_00118
A129: ED_FEE431_00119 | B129: Miscellaneous Fee-Based Services | E129: ED_FEE431_00119
A130: ED_FEE431_00120 | B130: Miscellaneous Fee-Based Services | E130: ED_FEE431_00120
A131: ED_FEE431_00121 | B131: Miscellaneous Fee-Based Services | E131: ED_FEE431_00121
A132: ED_FEE431_00122 | B132: Miscellaneous Fee-Based Services | E132: ED_FEE431_00122
A133: ED_FEE431_00123 | B133: Miscellaneous Fee-Based Services | E133: ED_FEE431_00123
A134: ED_FEE431_00124 | B134: Miscellaneous Fee-Based Services | E134: ED_FEE431_00124
A135: ED_FEE431_00125 | B135: Miscellaneous Fee-Based Services | E135: ED_FEE431_00125
A136: ED_FEE431_00126 | B136: Miscellaneous Fee-Based Services | E136: ED_FEE431_00126
A137: ED_FEE431_00127 | B137: Miscellaneous Fee-Based Services | E137: ED_FEE431_00127
A138: ED_FEE431_00128 | B138: Miscellaneous Fee-Based Services | E138: ED_FEE431_00128
A139: ED_FEE431_00129 | B139: Miscellaneous Fee-Based Services | E139: ED_FEE431_00129
A140: ED_FEE431_00130 | B140: Miscellaneous Fee-Based Services | E140: ED_FEE431_00130
A141: ED_FEE431_00131 | B141: Miscellaneous Fee-Based Services | E141: ED_FEE431_00131
A142: ED_FEE431_00132 | B142: Miscellaneous Fee-Based Services | E142: ED_FEE431_00132
A143: ED_FEE431_00133 | B143: Miscellaneous Fee-Based Services | E143: ED_FEE431_00133
A144: ED_FEE431_00134 | B144: Miscellaneous Fee-Based Services | E144: ED_FEE431_00134
A145: ED_FEE431_00135 | B145: Miscellaneous Fee-Based Services | E145: ED_FEE431_00135
A146: ED_FEE431_00136 | B146: Miscellaneous Fee-Based Services | E146: ED_FEE431_00136
A147: ED_FEE431_00137 | B147: Miscellaneous Fee-Based Services | E147: ED_FEE431_00137
A148: ED_FEE431_00138 | B148: Miscellaneous Fee-Based Services | E148: ED_FEE431_00138
A149: ED_FEE431_00139 | B149: Miscellaneous Fee-Based Services | E149: ED_FEE431_00139
A150: ED_FEE431_00140 | B150: Miscellaneous Fee-Based Services | E150: ED_FEE431_00140
A151: ED_FEE431_00141 | B151: Miscellaneous Fee-Based Services | E151: ED_FEE431_00141
A152: ED_FEE431_00142 | B152: Miscellaneous Fee-Based Services | E152: ED_FEE431_00142
A153: ED_FEE431_00143 | B153: Miscellaneous Fee-Based Services | E153: ED_FEE431_00143
A154: ED_FEE431_00144 | B154: Miscellaneous Fee-Based Services | E154: ED_FEE431_00144
A155: ED_FEE431_00145 | B155: Miscellaneous Fee-Based Services | E155: ED_FEE431_00145
A156: ED_FEE431_00146 | B156: Miscellaneous Fee-Based Services | E156: ED_FEE431_00146
A157: ED_FEE431_00147 | B157: Miscellaneous Fee-Based Services | E157: ED_FEE431_00147
A158: ED_FEE431_00148 | B158: Miscellaneous Fee-Based Services | E158: ED_FEE431_00148
A159: ED_FEE431_00149 | B159: Miscellaneous Fee-Based Services | E159: ED_FEE431_00149
A160: ED_FEE431_00150 | B160: Miscellaneous Fee-Based Services | E160: ED_FEE431_00150
A161: ED_FEE431_00151 | B161: Miscellaneous Fee-Based Services | E161: ED_FEE431_00151
A162: ED_FEE431_00152 | B162: Miscellaneous Fee-Based Services | E162: ED_FEE431_00152
A163: ED_FEE431_00153 | B163: Miscellaneous Fee-Based Services | E163: ED_FEE431_00153
A164: ED_FEE431_00154 | B164: Miscellaneous Fee-Based Services | E164: ED_FEE431_00154
A165: ED_FEE431_00155 | B165: Miscellaneous Fee-Based Services | E165: ED_FEE431_00155
A166: ED_FEE431_00156 | B166: Miscellaneous Fee-Based Services | E166: ED_FEE431_00156
A167: ED_FEE431_00157 | B167: Miscellaneous Fee-Based Services | E167: ED_FEE431_00157
A168: ED_FEE431_00158 | B168: Miscellaneous Fee-Based Services | E168: ED_FEE431_00158
A169: ED_FEE431_00159 | B169: Miscellaneous Fee-Based Services | E169: ED_FEE431_00159
A170: ED_FEE431_00160 | B170: Miscellaneous Fee-Based Services | E170: ED_FEE431_00160
A171: ED_FEE431_00161 | B171: Miscellaneous Fee-Based Services | E171: ED_FEE431_00161
A172: ED_FEE431_00162 | B172: Miscellaneous Fee-Based Services | E172: ED_FEE431_00162
A173: ED_FEE431_00163 | B173: Miscellaneous Fee-Based Services | E173: ED_FEE431_00163
A174: ED_FEE431_00164 | B174: Miscellaneous Fee-Based Services | E174: ED_FEE431_00164
A175: ED_FEE431_00165 | B175: Miscellaneous Fee-Based Services | E175: ED_FEE431_00165
A176: ED_FEE431_00166 | B176: Miscellaneous Fee-Based Services | E176: ED_FEE431_00166
A177: ED_FEE431_00167 | B177: Miscellaneous Fee-Based Services | E177: ED_FEE431_00167
A178: ED_FEE431_00168 | B178: Miscellaneous Fee-Based Services | E178: ED_FEE431_00168
A179: ED_FEE431_00169 | B179: Miscellaneous Fee-Based Services | E179: ED_FEE431_00169
A180: ED_FEE431_00170 | B180: Miscellaneous Fee-Based Services | E180: ED_FEE431_00170
A181: ED_FEE431_00171 | B181: Miscellaneous Fee-Based Services | E181: ED_FEE431_00171
A182: ED_FEE431_00172 | B182: Miscellaneous Fee-Based Services | E182: ED_FEE431_00172
A183: ED_FEE431_00173 | B183: Miscellaneous Fee-Based Services | E183: ED_FEE431_00173
A184: ED_FEE431_00174 | B184: Miscellaneous Fee-Based Services | E184: ED_FEE431_00174
A185: ED_FEE431_00175 | B185: Miscellaneous Fee-Based Services | E185: ED_FEE431_00175
A186: ED_FEE431_00176 | B186: Miscellaneous Fee-Based Services | E186: ED_FEE431_00176
A187: ED_FEE431_00177 | B187: Miscellaneous Fee-Based Services | E187: ED_FEE431_00177
A188: ED_FEE431_00178 | B188: Miscellaneous Fee-Based Services | E188: ED_FEE431_00178
A189: ED_FEE431_00179 | B189: Miscellaneous Fee-Based Services | E189: ED_FEE431_00179
A190: ED_FEE431_00180 | B190: Miscellaneous Fee-Based Services | E190: ED_FEE431_00180
A191: ED_FEE431_00181 | B191: Miscellaneous Fee-Based Services | E191: ED_FEE431_00181
A192: ED_FEE431_00182 | B192: Miscellaneous Fee-Based Services | E192: ED_FEE431_00182
A193: ED_FEE431_00183 | B193: Miscellaneous Fee-Based Services | E193: ED_FEE431_00183
A194: ED_FEE431_00184 | B194: Miscellaneous Fee-Based Services | E194: ED_FEE431_00184
A195: ED_FEE431_00185 | B195: Miscellaneous Fee-Based Services | E195: ED_FEE431_00185
A196: ED_FEE431_00186 | B196: Miscellaneous Fee-Based Services | E196: ED_FEE431_00186
A197: ED_FEE431_00187 | B197: Miscellaneous Fee-Based Services | E197: ED_FEE431_00187
A198: ED_FEE431_00188 | B198: Miscellaneous Fee-Based Services | E198: ED_FEE431_00188
A199: ED_FEE431_00189 | B199: Miscellaneous Fee-Based Services | E199: ED_FEE431_00189
A200: ED_FEE431_00190 | B200: Miscellaneous Fee-Based Services | E200: ED_FEE431_00190
A201: ED_FEE431_00191 | B201: Miscellaneous Fee-Based Services | E201: ED_FEE431_00191
A202: ED_FEE431_00192 | B202: Miscellaneous Fee-Based Services | E202: ED_FEE431_00192
A203: ED_FEE431_00193 | B203: Miscellaneous Fee-Based Services | E203: ED_FEE431_00193
... 278 more rows

Sheet 4.4 Quoted services
B1: =(LOOKUP(dms_Model,dms_Model_List,dms_Worksheet_List)) -> REGULATORY REPORTING STATEMENT
B2: Australian Distribution Co.
B3: =CONCATENATE("Category Analysis RIN response ",CRY) -> Category Analysis RIN response 2014-15
B4: 4.4 ANCILLARY SERVICES - QUOTED SERVICES
B6: TABLE 4.4.1 - COST METRICS FOR QUOTED SERVICES
D9: EXPENDITURE ($0's) | F9: VOLUMES (0's)
B10: SERVICE | C10: SERVICE SUBCATEGORY | D10: =CRY -> 2014-15 | F10: =CRY -> 2014-15
A11: ED_QUO441_00001 | B11: Quoted Services | C11: High Load Escorts | D11: 35043.88 | E11: ED_QUO441_00001 | F11: 42
A12: ED_QUO441_00002 | B12: Quoted Services | C12: CT Meter Installs | D12: 72077 | E12: ED_QUO441_00002 | F12: 161
A13: ED_QUO441_00003 | B13: Quoted Services | E13: ED_QUO441_00003
A14: ED_QUO441_00004 | B14: Quoted Services | E14: ED_QUO441_00004
A15: ED_QUO441_00005 | B15: Quoted Services | E15: ED_QUO441_00005
A16: ED_QUO441_00006 | B16: Quoted Services | E16: ED_QUO441_00006
A17: ED_QUO441_00007 | B17: Quoted Services | E17: ED_QUO441_00007
A18: ED_QUO441_00008 | B18: Quoted Services | E18: ED_QUO441_00008
A19: ED_QUO441_00009 | B19: Quoted Services | E19: ED_QUO441_00009
A20: ED_QUO441_00010 | B20: Quoted Services | E20: ED_QUO441_00010
A21: ED_QUO441_00011 | B21: Quoted Services | E21: ED_QUO441_00011
A22: ED_QUO441_00012 | B22: Quoted Services | E22: ED_QUO441_00012
A23: ED_QUO441_00013 | B23: Quoted Services | E23: ED_QUO441_00013
A24: ED_QUO441_00014 | B24: Quoted Services | E24: ED_QUO441_00014
A25: ED_QUO441_00015 | B25: Quoted Services | E25: ED_QUO441_00015
A26: ED_QUO441_00016 | B26: Quoted Services | E26: ED_QUO441_00016
A27: ED_QUO441_00017 | B27: Quoted Services | E27: ED_QUO441_00017
A28: ED_QUO441_00018 | B28: Quoted Services | E28: ED_QUO441_00018
A29: ED_QUO441_00019 | B29: Quoted Services | E29: ED_QUO441_00019
A30: ED_QUO441_00020 | B30: Quoted Services | E30: ED_QUO441_00020
A31: ED_QUO441_00021 | B31: Quoted Services | E31: ED_QUO441_00021
A32: ED_QUO441_00022 | B32: Quoted Services | E32: ED_QUO441_00022
A33: ED_QUO441_00023 | B33: Quoted Services | E33: ED_QUO441_00023
A34: ED_QUO441_00024 | B34: Quoted Services | E34: ED_QUO441_00024
A35: ED_QUO441_00025 | B35: Quoted Services | E35: ED_QUO441_00025
A36: ED_QUO441_00026 | B36: Quoted Services | E36: ED_QUO441_00026
A37: ED_QUO441_00027 | B37: Quoted Services | E37: ED_QUO441_00027
A38: ED_QUO441_00028 | B38: Quoted Services | E38: ED_QUO441_00028
A39: ED_QUO441_00029 | B39: Quoted Services | E39: ED_QUO441_00029
A40: ED_QUO441_00030 | B40: Quoted Services | E40: ED_QUO441_00030
A41: ED_QUO441_00031 | B41: Quoted Services | E41: ED_QUO441_00031
A42: ED_QUO441_00032 | B42: Quoted Services | E42: ED_QUO441_00032
A43: ED_QUO441_00033 | B43: Quoted Services | E43: ED_QUO441_00033
A44: ED_QUO441_00034 | B44: Quoted Services | E44: ED_QUO441_00034
A45: ED_QUO441_00035 | B45: Quoted Services | E45: ED_QUO441_00035
A46: ED_QUO441_00036 | B46: Quoted Services | E46: ED_QUO441_00036
A47: ED_QUO441_00037 | B47: Quoted Services | E47: ED_QUO441_00037
A48: ED_QUO441_00038 | B48: Quoted Services | E48: ED_QUO441_00038
A49: ED_QUO441_00039 | B49: Quoted Services | E49: ED_QUO441_00039
A50: ED_QUO441_00040 | B50: Quoted Services | E50: ED_QUO441_00040
A51: ED_QUO441_00041 | B51: Quoted Services | E51: ED_QUO441_00041
A52: ED_QUO441_00042 | B52: Quoted Services | E52: ED_QUO441_00042
A53: ED_QUO441_00043 | B53: Quoted Services | E53: ED_QUO441_00043
A54: ED_QUO441_00044 | B54: Quoted Services | E54: ED_QUO441_00044
A55: ED_QUO441_00045 | B55: Quoted Services | E55: ED_QUO441_00045
A56: ED_QUO441_00046 | B56: Quoted Services | E56: ED_QUO441_00046
A57: ED_QUO441_00047 | B57: Quoted Services | E57: ED_QUO441_00047
A58: ED_QUO441_00048 | B58: Quoted Services | E58: ED_QUO441_00048
A59: ED_QUO441_00049 | B59: Quoted Services | E59: ED_QUO441_00049
A60: ED_QUO441_00050 | B60: Quoted Services | E60: ED_QUO441_00050
A61: ED_QUO441_00051 | B61: Quoted Services | E61: ED_QUO441_00051
A62: ED_QUO441_00052 | B62: Quoted Services | E62: ED_QUO441_00052
A63: ED_QUO441_00053 | B63: Quoted Services | E63: ED_QUO441_00053
A64: ED_QUO441_00054 | B64: Quoted Services | E64: ED_QUO441_00054
A65: ED_QUO441_00055 | B65: Quoted Services | E65: ED_QUO441_00055
A66: ED_QUO441_00056 | B66: Quoted Services | E66: ED_QUO441_00056
A67: ED_QUO441_00057 | B67: Quoted Services | E67: ED_QUO441_00057
A68: ED_QUO441_00058 | B68: Quoted Services | E68: ED_QUO441_00058
A69: ED_QUO441_00059 | B69: Quoted Services | E69: ED_QUO441_00059
A70: ED_QUO441_00060 | B70: Quoted Services | E70: ED_QUO441_00060
A71: ED_QUO441_00061 | B71: Quoted Services | E71: ED_QUO441_00061
A72: ED_QUO441_00062 | B72: Quoted Services | E72: ED_QUO441_00062
A73: ED_QUO441_00063 | B73: Quoted Services | E73: ED_QUO441_00063
A74: ED_QUO441_00064 | B74: Quoted Services | E74: ED_QUO441_00064
A75: ED_QUO441_00065 | B75: Quoted Services | E75: ED_QUO441_00065
A76: ED_QUO441_00066 | B76: Quoted Services | E76: ED_QUO441_00066
A77: ED_QUO441_00067 | B77: Quoted Services | E77: ED_QUO441_00067
A78: ED_QUO441_00068 | B78: Quoted Services | E78: ED_QUO441_00068
A79: ED_QUO441_00069 | B79: Quoted Services | E79: ED_QUO441_00069
A80: ED_QUO441_00070 | B80: Quoted Services | E80: ED_QUO441_00070
A81: ED_QUO441_00071 | B81: Quoted Services | E81: ED_QUO441_00071
A82: ED_QUO441_00072 | B82: Quoted Services | E82: ED_QUO441_00072
A83: ED_QUO441_00073 | B83: Quoted Services | E83: ED_QUO441_00073
A84: ED_QUO441_00074 | B84: Quoted Services | E84: ED_QUO441_00074
A85: ED_QUO441_00075 | B85: Quoted Services | E85: ED_QUO441_00075
A86: ED_QUO441_00076 | B86: Quoted Services | E86: ED_QUO441_00076
A87: ED_QUO441_00077 | B87: Quoted Services | E87: ED_QUO441_00077
A88: ED_QUO441_00078 | B88: Quoted Services | E88: ED_QUO441_00078
A89: ED_QUO441_00079 | B89: Quoted Services | E89: ED_QUO441_00079
A90: ED_QUO441_00080 | B90: Quoted Services | E90: ED_QUO441_00080
A91: ED_QUO441_00081 | B91: Quoted Services | E91: ED_QUO441_00081
A92: ED_QUO441_00082 | B92: Quoted Services | E92: ED_QUO441_00082
A93: ED_QUO441_00083 | B93: Quoted Services | E93: ED_QUO441_00083
A94: ED_QUO441_00084 | B94: Quoted Services | E94: ED_QUO441_00084
A95: ED_QUO441_00085 | B95: Quoted Services | E95: ED_QUO441_00085
A96: ED_QUO441_00086 | B96: Quoted Services | E96: ED_QUO441_00086
A97: ED_QUO441_00087 | B97: Quoted Services | E97: ED_QUO441_00087
A98: ED_QUO441_00088 | B98: Quoted Services | E98: ED_QUO441_00088
A99: ED_QUO441_00089 | B99: Quoted Services | E99: ED_QUO441_00089
A100: ED_QUO441_00090 | B100: Quoted Services | E100: ED_QUO441_00090
A101: ED_QUO441_00091 | B101: Quoted Services | E101: ED_QUO441_00091
A102: ED_QUO441_00092 | B102: Quoted Services | E102: ED_QUO441_00092
A103: ED_QUO441_00093 | B103: Quoted Services | E103: ED_QUO441_00093
A104: ED_QUO441_00094 | B104: Quoted Services | E104: ED_QUO441_00094
A105: ED_QUO441_00095 | B105: Quoted Services | E105: ED_QUO441_00095
A106: ED_QUO441_00096 | B106: Quoted Services | E106: ED_QUO441_00096
A107: ED_QUO441_00097 | B107: Quoted Services | E107: ED_QUO441_00097
A108: ED_QUO441_00098 | B108: Quoted Services | E108: ED_QUO441_00098
A109: ED_QUO441_00099 | B109: Quoted Services | E109: ED_QUO441_00099
A110: ED_QUO441_00100 | B110: Quoted Services | E110: ED_QUO441_00100
A111: ED_QUO441_00101 | B111: Quoted Services | E111: ED_QUO441_00101
A112: ED_QUO441_00102 | B112: Quoted Services | E112: ED_QUO441_00102
A113: ED_QUO441_00103 | B113: Quoted Services | E113: ED_QUO441_00103
A114: ED_QUO441_00104 | B114: Quoted Services | E114: ED_QUO441_00104
A115: ED_QUO441_00105 | B115: Quoted Services | E115: ED_QUO441_00105
A116: ED_QUO441_00106 | B116: Quoted Services | E116: ED_QUO441_00106
A117: ED_QUO441_00107 | B117: Quoted Services | E117: ED_QUO441_00107
A118: ED_QUO441_00108 | B118: Quoted Services | E118: ED_QUO441_00108
A119: ED_QUO441_00109 | B119: Quoted Services | E119: ED_QUO441_00109
A120: ED_QUO441_00110 | B120: Quoted Services | E120: ED_QUO441_00110
A121: ED_QUO441_00111 | B121: Quoted Services | E121: ED_QUO441_00111
A122: ED_QUO441_00112 | B122: Quoted Services | E122: ED_QUO441_00112
A123: ED_QUO441_00113 | B123: Quoted Services | E123: ED_QUO441_00113
A124: ED_QUO441_00114 | B124: Quoted Services | E124: ED_QUO441_00114
A125: ED_QUO441_00115 | B125: Quoted Services | E125: ED_QUO441_00115
A126: ED_QUO441_00116 | B126: Quoted Services | E126: ED_QUO441_00116
A127: ED_QUO441_00117 | B127: Quoted Services | E127: ED_QUO441_00117
A128: ED_QUO441_00118 | B128: Quoted Services | E128: ED_QUO441_00118
A129: ED_QUO441_00119 | B129: Quoted Services | E129: ED_QUO441_00119
A130: ED_QUO441_00120 | B130: Quoted Services | E130: ED_QUO441_00120
A131: ED_QUO441_00121 | B131: Quoted Services | E131: ED_QUO441_00121
A132: ED_QUO441_00122 | B132: Quoted Services | E132: ED_QUO441_00122
A133: ED_QUO441_00123 | B133: Quoted Services | E133: ED_QUO441_00123
A134: ED_QUO441_00124 | B134: Quoted Services | E134: ED_QUO441_00124
A135: ED_QUO441_00125 | B135: Quoted Services | E135: ED_QUO441_00125
A136: ED_QUO441_00126 | B136: Quoted Services | E136: ED_QUO441_00126
A137: ED_QUO441_00127 | B137: Quoted Services | E137: ED_QUO441_00127
A138: ED_QUO441_00128 | B138: Quoted Services | E138: ED_QUO441_00128
A139: ED_QUO441_00129 | B139: Quoted Services | E139: ED_QUO441_00129
A140: ED_QUO441_00130 | B140: Quoted Services | E140: ED_QUO441_00130
A141: ED_QUO441_00131 | B141: Quoted Services | E141: ED_QUO441_00131
A142: ED_QUO441_00132 | B142: Quoted Services | E142: ED_QUO441_00132
A143: ED_QUO441_00133 | B143: Quoted Services | E143: ED_QUO441_00133
A144: ED_QUO441_00134 | B144: Quoted Services | E144: ED_QUO441_00134
A145: ED_QUO441_00135 | B145: Quoted Services | E145: ED_QUO441_00135
A146: ED_QUO441_00136 | B146: Quoted Services | E146: ED_QUO441_00136
A147: ED_QUO441_00137 | B147: Quoted Services | E147: ED_QUO441_00137
A148: ED_QUO441_00138 | B148: Quoted Services | E148: ED_QUO441_00138
A149: ED_QUO441_00139 | B149: Quoted Services | E149: ED_QUO441_00139
A150: ED_QUO441_00140 | B150: Quoted Services | E150: ED_QUO441_00140
A151: ED_QUO441_00141 | B151: Quoted Services | E151: ED_QUO441_00141
A152: ED_QUO441_00142 | B152: Quoted Services | E152: ED_QUO441_00142
A153: ED_QUO441_00143 | B153: Quoted Services | E153: ED_QUO441_00143
A154: ED_QUO441_00144 | B154: Quoted Services | E154: ED_QUO441_00144
A155: ED_QUO441_00145 | B155: Quoted Services | E155: ED_QUO441_00145
A156: ED_QUO441_00146 | B156: Quoted Services | E156: ED_QUO441_00146
A157: ED_QUO441_00147 | B157: Quoted Services | E157: ED_QUO441_00147
A158: ED_QUO441_00148 | B158: Quoted Services | E158: ED_QUO441_00148
A159: ED_QUO441_00149 | B159: Quoted Services | E159: ED_QUO441_00149
A160: ED_QUO441_00150 | B160: Quoted Services | E160: ED_QUO441_00150
A161: ED_QUO441_00151 | B161: Quoted Services | E161: ED_QUO441_00151
A162: ED_QUO441_00152 | B162: Quoted Services | E162: ED_QUO441_00152
A163: ED_QUO441_00153 | B163: Quoted Services | E163: ED_QUO441_00153
A164: ED_QUO441_00154 | B164: Quoted Services | E164: ED_QUO441_00154
A165: ED_QUO441_00155 | B165: Quoted Services | E165: ED_QUO441_00155
A166: ED_QUO441_00156 | B166: Quoted Services | E166: ED_QUO441_00156
A167: ED_QUO441_00157 | B167: Quoted Services | E167: ED_QUO441_00157
A168: ED_QUO441_00158 | B168: Quoted Services | E168: ED_QUO441_00158
A169: ED_QUO441_00159 | B169: Quoted Services | E169: ED_QUO441_00159
A170: ED_QUO441_00160 | B170: Quoted Services | E170: ED_QUO441_00160
A171: ED_QUO441_00161 | B171: Quoted Services | E171: ED_QUO441_00161
A172: ED_QUO441_00162 | B172: Quoted Services | E172: ED_QUO441_00162
A173: ED_QUO441_00163 | B173: Quoted Services | E173: ED_QUO441_00163
A174: ED_QUO441_00164 | B174: Quoted Services | E174: ED_QUO441_00164
A175: ED_QUO441_00165 | B175: Quoted Services | E175: ED_QUO441_00165
A176: ED_QUO441_00166 | B176: Quoted Services | E176: ED_QUO441_00166
A177: ED_QUO441_00167 | B177: Quoted Services | E177: ED_QUO441_00167
A178: ED_QUO441_00168 | B178: Quoted Services | E178: ED_QUO441_00168
A179: ED_QUO441_00169 | B179: Quoted Services | E179: ED_QUO441_00169
A180: ED_QUO441_00170 | B180: Quoted Services | E180: ED_QUO441_00170
A181: ED_QUO441_00171 | B181: Quoted Services | E181: ED_QUO441_00171
A182: ED_QUO441_00172 | B182: Quoted Services | E182: ED_QUO441_00172
A183: ED_QUO441_00173 | B183: Quoted Services | E183: ED_QUO441_00173
A184: ED_QUO441_00174 | B184: Quoted Services | E184: ED_QUO441_00174
A185: ED_QUO441_00175 | B185: Quoted Services | E185: ED_QUO441_00175
A186: ED_QUO441_00176 | B186: Quoted Services | E186: ED_QUO441_00176
A187: ED_QUO441_00177 | B187: Quoted Services | E187: ED_QUO441_00177
A188: ED_QUO441_00178 | B188: Quoted Services | E188: ED_QUO441_00178
A189: ED_QUO441_00179 | B189: Quoted Services | E189: ED_QUO441_00179
A190: ED_QUO441_00180 | B190: Quoted Services | E190: ED_QUO441_00180
A191: ED_QUO441_00181 | B191: Quoted Services | E191: ED_QUO441_00181
A192: ED_QUO441_00182 | B192: Quoted Services | E192: ED_QUO441_00182
A193: ED_QUO441_00183 | B193: Quoted Services | E193: ED_QUO441_00183
A194: ED_QUO441_00184 | B194: Quoted Services | E194: ED_QUO441_00184
A195: ED_QUO441_00185 | B195: Quoted Services | E195: ED_QUO441_00185
A196: ED_QUO441_00186 | B196: Quoted Services | E196: ED_QUO441_00186
A197: ED_QUO441_00187 | B197: Quoted Services | E197: ED_QUO441_00187
A198: ED_QUO441_00188 | B198: Quoted Services | E198: ED_QUO441_00188
A199: ED_QUO441_00189 | B199: Quoted Services | E199: ED_QUO441_00189
A200: ED_QUO441_00190 | B200: Quoted Services | E200: ED_QUO441_00190
A201: ED_QUO441_00191 | B201: Quoted Services | E201: ED_QUO441_00191
A202: ED_QUO441_00192 | B202: Quoted Services | E202: ED_QUO441_00192
A203: ED_QUO441_00193 | B203: Quoted Services | E203: ED_QUO441_00193
... 280 more rows

Sheet 5.2 Asset Age Profile
B1: =(LOOKUP(dms_Model,dms_Model_List,dms_Worksheet_List)) -> REGULATORY REPORTING STATEMENT
B2: Australian Distribution Co.
B3: =CONCATENATE("Category Analysis RIN response ",CRY) -> Category Analysis RIN response 2014-15
B4: 5.2 ASSET AGE PROFILE
B6: TABLE 5.2.1 - ASSET AGE PROFILE
E7: 1 | P7: 2 | AA7: 3
N9: ECONOMIC LIFE (YEARS) | AJ9: INSTALLED ASSETS -˃ QUANTITY CURRENTLY IN COMMISSION BY YEAR
B10: ASSET GROUP | C10: ASSET CATEGORY | E10: DNSP NAME | F10: SERVICE | G10: ASSET GROUP | H10: ASSET CATEGORY | I10: DATA TYPE | J10: DATA TYPE SUBCATEGORY | K10: MEASUREMENT | L10: DENOMINATION | N10: MEAN | P10: DNSP NAME | Q10: SERVICE | R10: ASSET GROUP | S10: ASSET CATEGORY | T10: DATA TYPE | U10: DATA TYPE SUBCATEGORY | V10: MEASUREMENT | W10: DENOMINATION | Y10: STANDARD DEVIATION | AA10: DNSP NAME | AB10: SERVICE | AC10: ASSET GROUP | AD10: ASSET CATEGORY | AE10: DATA TYPE | AF10: DATA TYPE SUBCATEGORY | AG10: MEASUREMENT | AH10: DENOMINATION | AJ10: 2014-15 | AK10: 2013-14 | AL10: 2012-13 | AM10: 2011-12 | AN10: 2010-11 | AO10: 2009-10 | AP10: 2008-09 | AQ10: 2007-08 | AR10: 2006-07 | AS10: 2005-06 | AT10: 2004-05 | AU10: 2003-04 | AV10: 2002-03 | AW10: 2001-02 | AX10: 2000-01 | AY10: 1999-00 | AZ10: 1998-99 | BA10: 1997-98 | BB10: 1996-97 | BC10: 1995-96 | BD10: 1994-95 | BE10: 1993-94 | BF10: 1992-93 | BG10: 1991-92 | BH10: 1990-91 | BI10: 1989-90 | BJ10: 1988-89 | BK10: 1987-88 | BL10: 1986-87 | BM10: 1985-86 | BN10: 1984-85 | BO10: 1983-84 | BP10: 1982-83 | BQ10: 1981-82 | BR10: 1980-81 | BS10: 1979-80 | BT10: 1978-79 | BU10: 1977-78 | BV10: 1976-77 | BW10: 1975-76 | BX10: 1974-75 | BY10: 1973-74 | BZ10: 1972-73 | CA10: 1971-72 | CB10: 1970-71 | CC10: 1969-70 | CD10: 1968-69 | CE10: 1967-68 | CF10: 1966-67 | CG10: 1965-66 | CH10: 1964-65 | CI10: 1963-64 | CJ10: 1962-63 | CK10: 1961-62 | CL10: 1960-61 | CM10: 1959-60 | CN10: 1958-59 | CO10: 1957-58 | CP10: 1956-57 | CQ10: 1955-56 | CR10: 1954-55 | CS10: 1953-54 | CT10: 1952-53 | CU10: 1951-52 | CV10: 1950-51 | CW10: 1949-50 | CX10: 1948-49 | CY10: 1947-48 | CZ10: 1946-47 | DA10: 1945-46 | DB10: 1944-45 | DC10: 1943-44 | DD10: 1942-43 | DE10: 1941-42 | DF10: 1940-41 | DG10: 1939-40 | DH10: 1938-39 | DI10: 1937-38 | DJ10: 1936-37 | DK10: 1935-36 | DL10: 1934-35 | DM10: 1933-34 | DN10: 1932-33 | DO10: 1931-32 | DP10: 1930-31 | DQ10: 1929-30 | DR10: 1928-29 | DS10: 1927-28 | DT10: 1926-27 | DU10: 1925-26 | DV10: 1924-25 | DW10: 1923-24 | DX10: 1922-23 | DY10: 1921-22 | DZ10: 1920-21 | EA10: 1919-20 | EB10: 1918-19 | EC10: 1917-18 | ED10: 1916-17 | EE10: 1915-16 | EF10: 1914-15 | EG10: 1913-14 | EH10: 1912-13 | EI10: 1911-12 | EJ10: 1910-11
A11: ED_ASS521_00001 | B11: POLES BY: HIGHEST OPERATING VOLTAGE ; MATERIAL TYPE; STAKING (IF WOOD) | C11: Staking of a wooden pole | E11: DNSP NAME | F11: REPEX | G11: POLES | H11: =C11 -> Staking of a wooden pole | I11: DESCRIPTOR METRIC | J11: MEAN ECONOMIC LIFE | K11: YEARS | L11: NUMBER | N11: ='[2]5.2 Asset Age Profile'!N11 -> 53.8 | O11: ='[2]5.2 Asset Age Profile'!O11 -> 0 | P11: ='[2]5.2 Asset Age Profile'!P11 -> 0 | Q11: ='[2]5.2 Asset Age Profile'!Q11 -> 0 | R11: ='[2]5.2 Asset Age Profile'!R11 -> 0 | S11: ='[2]5.2 Asset Age Profile'!S11 -> 0 | T11: ='[2]5.2 Asset Age Profile'!T11 -> 0 | U11: ='[2]5.2 Asset Age Profile'!U11 -> 0 | V11: ='[2]5.2 Asset Age Profile'!V11 -> 0 | W11: ='[2]5.2 Asset Age Profile'!W11 -> 0 | X11: ='[2]5.2 Asset Age Profile'!X11 -> 0 | Y11: ='[2]5.2 Asset Age Profile'!Y11 -> 7.334848328 | Z11: ='[2]5.2 Asset Age Profile'!Z11 -> 0 | AA11: ='[2]5.2 Asset Age Profile'!AA11 -> 0 | AB11: ='[2]5.2 Asset Age Profile'!AB11 -> 0 | AC11: ='[2]5.2 Asset Age Profile'!AC11 -> 0 | AD11: ='[2]5.2 Asset Age Profile'!AD11 -> 0 | AE11: ='[2]5.2 Asset Age Profile'!AE11 -> 0 | AF11: ='[2]5.2 Asset Age Profile'!AF11 -> 0 | AG11: ='[2]5.2 Asset Age Profile'!AG11 -> 0 | AH11: ='[2]5.2 Asset Age Profile'!AH11 -> 0 | AI11: ='[2]5.2 Asset Age Profile'!AI11 -> 0 | AJ11: ='[2]5.2 Asset Age Profile'!AJ11 -> 901 | AK11: ='[2]5.2 Asset Age Profile'!AK11 -> 577 | AL11: ='[2]5.2 Asset Age Profile'!AL11 -> 382 | AM11: ='[2]5.2 Asset Age Profile'!AM11 -> 609 | AN11: ='[2]5.2 Asset Age Profile'!AN11 -> 289 | AO11: ='[2]5.2 Asset Age Profile'!AO11 -> 773 | AP11: ='[2]5.2 Asset Age Profile'!AP11 -> 695 | AQ11: ='[2]5.2 Asset Age Profile'!AQ11 -> 793 | AR11: ='[2]5.2 Asset Age Profile'!AR11 -> 847 | AS11: ='[2]5.2 Asset Age Profile'!AS11 -> 949 | AT11: ='[2]5.2 Asset Age Profile'!AT11 -> 589 | AU11: ='[2]5.2 Asset Age Profile'!AU11 -> 830 | AV11: ='[2]5.2 Asset Age Profile'!AV11 -> 755 | AW11: ='[2]5.2 Asset Age Profile'!AW11 -> 766 | AX11: ='[2]5.2 Asset Age Profile'!AX11 -> 766 | AY11: ='[2]5.2 Asset Age Profile'!AY11 -> 766 | AZ11: ='[2]5.2 Asset Age Profile'!AZ11 -> 766 | BA11: ='[2]5.2 Asset Age Profile'!BA11 -> 766 | BB11: ='[2]5.2 Asset Age Profile'!BB11 -> 767 | BC11: ='[2]5.2 Asset Age Profile'!BC11 -> 767 | BD11: ='[2]5.2 Asset Age Profile'!BD11 -> 767 | BE11: ='[2]5.2 Asset Age Profile'!BE11 -> 767 | BF11: ='[2]5.2 Asset Age Profile'!BF11 -> 767 | BG11: ='[2]5.2 Asset Age Profile'!BG11 -> 767 | BH11: ='[2]5.2 Asset Age Profile'!BH11 -> 767 | BI11: ='[2]5.2 Asset Age Profile'!BI11 -> 767 | BJ11: ='[2]5.2 Asset Age Profile'!BJ11 -> 0 | BK11: ='[2]5.2 Asset Age Profile'!BK11 -> 0 | BL11: ='[2]5.2 Asset Age Profile'!BL11 -> 0 | BM11: ='[2]5.2 Asset Age Profile'!BM11 -> 0 | BN11: ='[2]5.2 Asset Age Profile'!BN11 -> 0 | BO11: ='[2]5.2 Asset Age Profile'!BO11 -> 0 | BP11: ='[2]5.2 Asset Age Profile'!BP11 -> 0 | BQ11: ='[2]5.2 Asset Age Profile'!BQ11 -> 0 | BR11: ='[2]5.2 Asset Age Profile'!BR11 -> 0 | BS11: ='[2]5.2 Asset Age Profile'!BS11 -> 0 | BT11: ='[2]5.2 Asset Age Profile'!BT11 -> 0 | BU11: ='[2]5.2 Asset Age Profile'!BU11 -> 0 | BV11: ='[2]5.2 Asset Age Profile'!BV11 -> 0 | BW11: ='[2]5.2 Asset Age Profile'!BW11 -> 0 | BX11: ='[2]5.2 Asset Age Profile'!BX11 -> 0 | BY11: ='[2]5.2 Asset Age Profile'!BY11 -> 0 | BZ11: ='[2]5.2 Asset Age Profile'!BZ11 -> 0 | CA11: ='[2]5.2 Asset Age Profile'!CA11 -> 0 | CB11: ='[2]5.2 Asset Age Profile'!CB11 -> 0 | CC11: ='[2]5.2 Asset Age Profile'!CC11 -> 0 | CD11: ='[2]5.2 Asset Age Profile'!CD11 -> 0 | CE11: ='[2]5.2 Asset Age Profile'!CE11 -> 0 | CF11: ='[2]5.2 Asset Age Profile'!CF11 -> 0 | CG11: ='[2]5.2 Asset Age Profile'!CG11 -> 0 | CH11: ='[2]5.2 Asset Age Profile'!CH11 -> 0 | CI11: ='[2]5.2 Asset Age Profile'!CI11 -> 0 | CJ11: ='[2]5.2 Asset Age Profile'!CJ11 -> 0 | CK11: ='[2]5.2 Asset Age Profile'!CK11 -> 0 | CL11: ='[2]5.2 Asset Age Profile'!CL11 -> 0 | CM11: ='[2]5.2 Asset Age Profile'!CM11 -> 0 | CN11: ='[2]5.2 Asset Age Profile'!CN11 -> 0 | CO11: ='[2]5.2 Asset Age Profile'!CO11 -> 0 | CP11: ='[2]5.2 Asset Age Profile'!CP11 -> 0 | CQ11: ='[2]5.2 Asset Age Profile'!CQ11 -> 0 | CR11: ='[2]5.2 Asset Age Profile'!CR11 -> 0 | CS11: ='[2]5.2 Asset Age Profile'!CS11 -> 0 | CT11: ='[2]5.2 Asset Age Profile'!CT11 -> 0 | CU11: ='[2]5.2 Asset Age Profile'!CU11 -> 0 | CV11: ='[2]5.2 Asset Age Profile'!CV11 -> 0 | CW11: ='[2]5.2 Asset Age Profile'!CW11 -> 0 | CX11: ='[2]5.2 Asset Age Profile'!CX11 -> 0 | CY11: ='[2]5.2 Asset Age Profile'!CY11 -> 0 | CZ11: ='[2]5.2 Asset Age Profile'!CZ11 -> 0 | DA11: ='[2]5.2 Asset Age Profile'!DA11 -> 0 | DB11: ='[2]5.2 Asset Age Profile'!DB11 -> 0 | DC11: ='[2]5.2 Asset Age Profile'!DC11 -> 0 | DD11: ='[2]5.2 Asset Age Profile'!DD11 -> 0 | DE11: ='[2]5.2 Asset Age Profile'!DE11 -> 0 | DF11: ='[2]5.2 Asset Age Profile'!DF11 -> 0 | DG11: ='[2]5.2 Asset Age Profile'!DG11 -> 0 | DH11: ='[2]5.2 Asset Age Profile'!DH11 -> 0 | DI11: ='[2]5.2 Asset Age Profile'!DI11 -> 0 | DJ11: ='[2]5.2 Asset Age Profile'!DJ11 -> 0 | DK11: ='[2]5.2 Asset Age Profile'!DK11 -> 0 | DL11: ='[2]5.2 Asset Age Profile'!DL11 -> 0 | DM11: ='[2]5.2 Asset Age Profile'!DM11 -> 0 | DN11: ='[2]5.2 Asset Age Profile'!DN11 -> 0 | DO11: ='[2]5.2 Asset Age Profile'!DO11 -> 0 | DP11: ='[2]5.2 Asset Age Profile'!DP11 -> 0 | DQ11: ='[2]5.2 Asset Age Profile'!DQ11 -> 0 | DR11: ='[2]5.2 Asset Age Profile'!DR11 -> 0 | DS11: ='[2]5.2 Asset Age Profile'!DS11 -> 0 | DT11: ='[2]5.2 Asset Age Profile'!DT11 -> 0 | DU11: ='[2]5.2 Asset Age Profile'!DU11 -> 0 | DV11: ='[2]5.2 Asset Age Profile'!DV11 -> 0 | DW11: ='[2]5.2 Asset Age Profile'!DW11 -> 0 | DX11: ='[2]5.2 Asset Age Profile'!DX11 -> 0 | DY11: ='[2]5.2 Asset Age Profile'!DY11 -> 0 | DZ11: ='[2]5.2 Asset Age Profile'!DZ11 -> 0 | EA11: ='[2]5.2 Asset Age Profile'!EA11 -> 0 | EB11: ='[2]5.2 Asset Age Profile'!EB11 -> 0 | EC11: ='[2]5.2 Asset Age Profile'!EC11 -> 0 | ED11: ='[2]5.2 Asset Age Profile'!ED11 -> 0 | EE11: ='[2]5.2 Asset Age Profile'!EE11 -> 0 | EF11: ='[2]5.2 Asset Age Profile'!EF11 -> 0 | EG11: ='[2]5.2 Asset Age Profile'!EG11 -> 0 | EH11: ='[2]5.2 Asset Age Profile'!EH11 -> 0 | EI11: ='[2]5.2 Asset Age Profile'!EI11 -> 0 | EJ11: ='[2]5.2 Asset Age Profile'!EJ11 -> 0
A12: ED_ASS521_00002 | C12: ˂ = 1 kV; Wood | E12: TNSP NAME | F12: REPEX | G12: POLES | H12: =C12 -> ˂ = 1 kV; Wood | I12: DESCRIPTOR METRIC | J12: MEAN ECONOMIC LIFE | K12: YEARS | L12: NUMBER | N12: ='[2]5.2 Asset Age Profile'!N12 -> 53.8 | O12: ='[2]5.2 Asset Age Profile'!O12 -> 0 | P12: ='[2]5.2 Asset Age Profile'!P12 -> 0 | Q12: ='[2]5.2 Asset Age Profile'!Q12 -> 0 | R12: ='[2]5.2 Asset Age Profile'!R12 -> 0 | S12: ='[2]5.2 Asset Age Profile'!S12 -> 0 | T12: ='[2]5.2 Asset Age Profile'!T12 -> 0 | U12: ='[2]5.2 Asset Age Profile'!U12 -> 0 | V12: ='[2]5.2 Asset Age Profile'!V12 -> 0 | W12: ='[2]5.2 Asset Age Profile'!W12 -> 0 | X12: ='[2]5.2 Asset Age Profile'!X12 -> 0 | Y12: ='[2]5.2 Asset Age Profile'!Y12 -> 7.334848328 | Z12: ='[2]5.2 Asset Age Profile'!Z12 -> 0 | AA12: ='[2]5.2 Asset Age Profile'!AA12 -> 0 | AB12: ='[2]5.2 Asset Age Profile'!AB12 -> 0 | AC12: ='[2]5.2 Asset Age Profile'!AC12 -> 0 | AD12: ='[2]5.2 Asset Age Profile'!AD12 -> 0 | AE12: ='[2]5.2 Asset Age Profile'!AE12 -> 0 | AF12: ='[2]5.2 Asset Age Profile'!AF12 -> 0 | AG12: ='[2]5.2 Asset Age Profile'!AG12 -> 0 | AH12: ='[2]5.2 Asset Age Profile'!AH12 -> 0 | AI12: ='[2]5.2 Asset Age Profile'!AI12 -> 0 | AJ12: ='[2]5.2 Asset Age Profile'!AJ12 -> 2840 | AK12: ='[2]5.2 Asset Age Profile'!AK12 -> 3261 | AL12: ='[2]5.2 Asset Age Profile'!AL12 -> 3051 | AM12: ='[2]5.2 Asset Age Profile'!AM12 -> 2552 | AN12: ='[2]5.2 Asset Age Profile'!AN12 -> 2075 | AO12: ='[2]5.2 Asset Age Profile'!AO12 -> 2137 | AP12: ='[2]5.2 Asset Age Profile'!AP12 -> 2367 | AQ12: ='[2]5.2 Asset Age Profile'!AQ12 -> 2715 | AR12: ='[2]5.2 Asset Age Profile'!AR12 -> 2439 | AS12: ='[2]5.2 Asset Age Profile'!AS12 -> 2591 | AT12: ='[2]5.2 Asset Age Profile'!AT12 -> 3149 | AU12: ='[2]5.2 Asset Age Profile'!AU12 -> 3235 | AV12: ='[2]5.2 Asset Age Profile'!AV12 -> 2818 | AW12: ='[2]5.2 Asset Age Profile'!AW12 -> 2650 | AX12: ='[2]5.2 Asset Age Profile'!AX12 -> 2990 | AY12: ='[2]5.2 Asset Age Profile'!AY12 -> 3101 | AZ12: ='[2]5.2 Asset Age Profile'!AZ12 -> 2441 | BA12: ='[2]5.2 Asset Age Profile'!BA12 -> 2184 | BB12: ='[2]5.2 Asset Age Profile'!BB12 -> 2697 | BC12: ='[2]5.2 Asset Age Profile'!BC12 -> 4184 | BD12: ='[2]5.2 Asset Age Profile'!BD12 -> 5078 | BE12: ='[2]5.2 Asset Age Profile'!BE12 -> 5524 | BF12: ='[2]5.2 Asset Age Profile'!BF12 -> 5951 | BG12: ='[2]5.2 Asset Age Profile'!BG12 -> 6080 | BH12: ='[2]5.2 Asset Age Profile'!BH12 -> 7534 | BI12: ='[2]5.2 Asset Age Profile'!BI12 -> 8270 | BJ12: ='[2]5.2 Asset Age Profile'!BJ12 -> 6789 | BK12: ='[2]5.2 Asset Age Profile'!BK12 -> 7952 | BL12: ='[2]5.2 Asset Age Profile'!BL12 -> 8384 | BM12: ='[2]5.2 Asset Age Profile'!BM12 -> 6980 | BN12: ='[2]5.2 Asset Age Profile'!BN12 -> 6207 | BO12: ='[2]5.2 Asset Age Profile'!BO12 -> 5042 | BP12: ='[2]5.2 Asset Age Profile'!BP12 -> 4832 | BQ12: ='[2]5.2 Asset Age Profile'!BQ12 -> 6248 | BR12: ='[2]5.2 Asset Age Profile'!BR12 -> 6548 | BS12: ='[2]5.2 Asset Age Profile'!BS12 -> 7722 | BT12: ='[2]5.2 Asset Age Profile'!BT12 -> 5366 | BU12: ='[2]5.2 Asset Age Profile'!BU12 -> 5829 | BV12: ='[2]5.2 Asset Age Profile'!BV12 -> 7203 | BW12: ='[2]5.2 Asset Age Profile'!BW12 -> 5222 | BX12: ='[2]5.2 Asset Age Profile'!BX12 -> 6784 | BY12: ='[2]5.2 Asset Age Profile'!BY12 -> 6999 | BZ12: ='[2]5.2 Asset Age Profile'!BZ12 -> 5393 | CA12: ='[2]5.2 Asset Age Profile'!CA12 -> 5409 | CB12: ='[2]5.2 Asset Age Profile'!CB12 -> 9174 | CC12: ='[2]5.2 Asset Age Profile'!CC12 -> 13301 | CD12: ='[2]5.2 Asset Age Profile'!CD12 -> 5953 | CE12: ='[2]5.2 Asset Age Profile'!CE12 -> 5359 | CF12: ='[2]5.2 Asset Age Profile'!CF12 -> 13307 | CG12: ='[2]5.2 Asset Age Profile'!CG12 -> 6353 | CH12: ='[2]5.2 Asset Age Profile'!CH12 -> 8814 | CI12: ='[2]5.2 Asset Age Profile'!CI12 -> 4376 | CJ12: ='[2]5.2 Asset Age Profile'!CJ12 -> 1439 | CK12: ='[2]5.2 Asset Age Profile'!CK12 -> 1922 | CL12: ='[2]5.2 Asset Age Profile'!CL12 -> 9843 | CM12: ='[2]5.2 Asset Age Profile'!CM12 -> 15937 | CN12: ='[2]5.2 Asset Age Profile'!CN12 -> 1322 | CO12: ='[2]5.2 Asset Age Profile'!CO12 -> 3345 | CP12: ='[2]5.2 Asset Age Profile'!CP12 -> 1514 | CQ12: ='[2]5.2 Asset Age Profile'!CQ12 -> 2233 | CR12: ='[2]5.2 Asset Age Profile'!CR12 -> 6713 | CS12: ='[2]5.2 Asset Age Profile'!CS12 -> 1107 | CT12: ='[2]5.2 Asset Age Profile'!CT12 -> 1440 | CU12: ='[2]5.2 Asset Age Profile'!CU12 -> 3185 | CV12: ='[2]5.2 Asset Age Profile'!CV12 -> 1573 | CW12: ='[2]5.2 Asset Age Profile'!CW12 -> 10550 | CX12: ='[2]5.2 Asset Age Profile'!CX12 -> 748 | CY12: ='[2]5.2 Asset Age Profile'!CY12 -> 242 | CZ12: ='[2]5.2 Asset Age Profile'!CZ12 -> 313 | DA12: ='[2]5.2 Asset Age Profile'!DA12 -> 229 | DB12: ='[2]5.2 Asset Age Profile'!DB12 -> 72 | DC12: ='[2]5.2 Asset Age Profile'!DC12 -> 29 | DD12: ='[2]5.2 Asset Age Profile'!DD12 -> 18 | DE12: ='[2]5.2 Asset Age Profile'!DE12 -> 4 | DF12: ='[2]5.2 Asset Age Profile'!DF12 -> 16 | DG12: ='[2]5.2 Asset Age Profile'!DG12 -> 258 | DH12: ='[2]5.2 Asset Age Profile'!DH12 -> 54 | DI12: ='[2]5.2 Asset Age Profile'!DI12 -> 59 | DJ12: ='[2]5.2 Asset Age Profile'!DJ12 -> 40 | DK12: ='[2]5.2 Asset Age Profile'!DK12 -> 80 | DL12: ='[2]5.2 Asset Age Profile'!DL12 -> 41 | DM12: ='[2]5.2 Asset Age Profile'!DM12 -> 5 | DN12: ='[2]5.2 Asset Age Profile'!DN12 -> 2 | DO12: ='[2]5.2 Asset Age Profile'!DO12 -> 0 | DP12: ='[2]5.2 Asset Age Profile'!DP12 -> 1177 | DQ12: ='[2]5.2 Asset Age Profile'!DQ12 -> 392 | DR12: ='[2]5.2 Asset Age Profile'!DR12 -> 0 | DS12: ='[2]5.2 Asset Age Profile'!DS12 -> 8 | DT12: ='[2]5.2 Asset Age Profile'!DT12 -> 1 | DU12: ='[2]5.2 Asset Age Profile'!DU12 -> 19 | DV12: ='[2]5.2 Asset Age Profile'!DV12 -> 17 | DW12: ='[2]5.2 Asset Age Profile'!DW12 -> 0 | DX12: ='[2]5.2 Asset Age Profile'!DX12 -> 2 | DY12: ='[2]5.2 Asset Age Profile'!DY12 -> 0 | DZ12: ='[2]5.2 Asset Age Profile'!DZ12 -> 3 | EA12: ='[2]5.2 Asset Age Profile'!EA12 -> 0 | EB12: ='[2]5.2 Asset Age Profile'!EB12 -> 0 | EC12: ='[2]5.2 Asset Age Profile'!EC12 -> 0 | ED12: ='[2]5.2 Asset Age Profile'!ED12 -> 0 | EE12: ='[2]5.2 Asset Age Profile'!EE12 -> 0 | EF12: ='[2]5.2 Asset Age Profile'!EF12 -> 0 | EG12: ='[2]5.2 Asset Age Profile'!EG12 -> 0 | EH12: ='[2]5.2 Asset Age Profile'!EH12 -> 1 | EI12: ='[2]5.2 Asset Age Profile'!EI12 -> 0 | EJ12: ='[2]5.2 Asset Age Profile'!EJ12 -> 0
A13: ED_ASS521_00003 | C13: > 1 kV & < = 11 kV; Wood | E13: TNSP NAME | F13: REPEX | G13: POLES | H13: > 1 kV & < = 11 kV; Wood | I13: DESCRIPTOR METRIC | J13: MEAN ECONOMIC LIFE | K13: YEARS | L13: NUMBER | N13: ='[2]5.2 Asset Age Profile'!N13 -> 53.8 | O13: ='[2]5.2 Asset Age Profile'!O13 -> 0 | P13: ='[2]5.2 Asset Age Profile'!P13 -> 0 | Q13: ='[2]5.2 Asset Age Profile'!Q13 -> 0 | R13: ='[2]5.2 Asset Age Profile'!R13 -> 0 | S13: ='[2]5.2 Asset Age Profile'!S13 -> 0 | T13: ='[2]5.2 Asset Age Profile'!T13 -> 0 | U13: ='[2]5.2 Asset Age Profile'!U13 -> 0 | V13: ='[2]5.2 Asset Age Profile'!V13 -> 0 | W13: ='[2]5.2 Asset Age Profile'!W13 -> 0 | X13: ='[2]5.2 Asset Age Profile'!X13 -> 0 | Y13: ='[2]5.2 Asset Age Profile'!Y13 -> 7.334848328 | Z13: ='[2]5.2 Asset Age Profile'!Z13 -> 0 | AA13: ='[2]5.2 Asset Age Profile'!AA13 -> 0 | AB13: ='[2]5.2 Asset Age Profile'!AB13 -> 0 | AC13: ='[2]5.2 Asset Age Profile'!AC13 -> 0 | AD13: ='[2]5.2 Asset Age Profile'!AD13 -> 0 | AE13: ='[2]5.2 Asset Age Profile'!AE13 -> 0 | AF13: ='[2]5.2 Asset Age Profile'!AF13 -> 0 | AG13: ='[2]5.2 Asset Age Profile'!AG13 -> 0 | AH13: ='[2]5.2 Asset Age Profile'!AH13 -> 0 | AI13: ='[2]5.2 Asset Age Profile'!AI13 -> 0 | AJ13: ='[2]5.2 Asset Age Profile'!AJ13 -> 4885 | AK13: ='[2]5.2 Asset Age Profile'!AK13 -> 6238 | AL13: ='[2]5.2 Asset Age Profile'!AL13 -> 5912 | AM13: ='[2]5.2 Asset Age Profile'!AM13 -> 6451 | AN13: ='[2]5.2 Asset Age Profile'!AN13 -> 5711 | AO13: ='[2]5.2 Asset Age Profile'!AO13 -> 5290 | AP13: ='[2]5.2 Asset Age Profile'!AP13 -> 5347 | AQ13: ='[2]5.2 Asset Age Profile'!AQ13 -> 5528 | AR13: ='[2]5.2 Asset Age Profile'!AR13 -> 5421 | AS13: ='[2]5.2 Asset Age Profile'!AS13 -> 5307 | AT13: ='[2]5.2 Asset Age Profile'!AT13 -> 5963 | AU13: ='[2]5.2 Asset Age Profile'!AU13 -> 5617 | AV13: ='[2]5.2 Asset Age Profile'!AV13 -> 5466 | AW13: ='[2]5.2 Asset Age Profile'!AW13 -> 5112 | AX13: ='[2]5.2 Asset Age Profile'!AX13 -> 4794 | AY13: ='[2]5.2 Asset Age Profile'!AY13 -> 4707 | AZ13: ='[2]5.2 Asset Age Profile'!AZ13 -> 3325 | BA13: ='[2]5.2 Asset Age Profile'!BA13 -> 3297 | BB13: ='[2]5.2 Asset Age Profile'!BB13 -> 4035 | BC13: ='[2]5.2 Asset Age Profile'!BC13 -> 5152 | BD13: ='[2]5.2 Asset Age Profile'!BD13 -> 6531 | BE13: ='[2]5.2 Asset Age Profile'!BE13 -> 6974 | BF13: ='[2]5.2 Asset Age Profile'!BF13 -> 6994 | BG13: ='[2]5.2 Asset Age Profile'!BG13 -> 7633 | BH13: ='[2]5.2 Asset Age Profile'!BH13 -> 8018 | BI13: ='[2]5.2 Asset Age Profile'!BI13 -> 8848 | BJ13: ='[2]5.2 Asset Age Profile'!BJ13 -> 7365 | BK13: ='[2]5.2 Asset Age Profile'!BK13 -> 8739 | BL13: ='[2]5.2 Asset Age Profile'!BL13 -> 10616 | BM13: ='[2]5.2 Asset Age Profile'!BM13 -> 8749 | BN13: ='[2]5.2 Asset Age Profile'!BN13 -> 7156 | BO13: ='[2]5.2 Asset Age Profile'!BO13 -> 5844 | BP13: ='[2]5.2 Asset Age Profile'!BP13 -> 6129 | BQ13: ='[2]5.2 Asset Age Profile'!BQ13 -> 7846 | BR13: ='[2]5.2 Asset Age Profile'!BR13 -> 7811 | BS13: ='[2]5.2 Asset Age Profile'!BS13 -> 7847 | BT13: ='[2]5.2 Asset Age Profile'!BT13 -> 5970 | BU13: ='[2]5.2 Asset Age Profile'!BU13 -> 6461 | BV13: ='[2]5.2 Asset Age Profile'!BV13 -> 8169 | BW13: ='[2]5.2 Asset Age Profile'!BW13 -> 6100 | BX13: ='[2]5.2 Asset Age Profile'!BX13 -> 6723 | BY13: ='[2]5.2 Asset Age Profile'!BY13 -> 5595 | BZ13: ='[2]5.2 Asset Age Profile'!BZ13 -> 5133 | CA13: ='[2]5.2 Asset Age Profile'!CA13 -> 6267 | CB13: ='[2]5.2 Asset Age Profile'!CB13 -> 9341 | CC13: ='[2]5.2 Asset Age Profile'!CC13 -> 16346 | CD13: ='[2]5.2 Asset Age Profile'!CD13 -> 9263 | CE13: ='[2]5.2 Asset Age Profile'!CE13 -> 5140 | CF13: ='[2]5.2 Asset Age Profile'!CF13 -> 11413 | CG13: ='[2]5.2 Asset Age Profile'!CG13 -> 7134 | CH13: ='[2]5.2 Asset Age Profile'!CH13 -> 7814 | CI13: ='[2]5.2 Asset Age Profile'!CI13 -> 5665 | CJ13: ='[2]5.2 Asset Age Profile'!CJ13 -> 1908 | CK13: ='[2]5.2 Asset Age Profile'!CK13 -> 4853 | CL13: ='[2]5.2 Asset Age Profile'!CL13 -> 14988 | CM13: ='[2]5.2 Asset Age Profile'!CM13 -> 24282 | CN13: ='[2]5.2 Asset Age Profile'!CN13 -> 3303 | CO13: ='[2]5.2 Asset Age Profile'!CO13 -> 3564 | CP13: ='[2]5.2 Asset Age Profile'!CP13 -> 2559 | CQ13: ='[2]5.2 Asset Age Profile'!CQ13 -> 2876 | CR13: ='[2]5.2 Asset Age Profile'!CR13 -> 10051 | CS13: ='[2]5.2 Asset Age Profile'!CS13 -> 1183 | CT13: ='[2]5.2 Asset Age Profile'!CT13 -> 3911 | CU13: ='[2]5.2 Asset Age Profile'!CU13 -> 4667 | CV13: ='[2]5.2 Asset Age Profile'!CV13 -> 3282 | CW13: ='[2]5.2 Asset Age Profile'!CW13 -> 17641 | CX13: ='[2]5.2 Asset Age Profile'!CX13 -> 508 | CY13: ='[2]5.2 Asset Age Profile'!CY13 -> 271 | CZ13: ='[2]5.2 Asset Age Profile'!CZ13 -> 380 | DA13: ='[2]5.2 Asset Age Profile'!DA13 -> 181 | DB13: ='[2]5.2 Asset Age Profile'!DB13 -> 56 | DC13: ='[2]5.2 Asset Age Profile'!DC13 -> 18 | DD13: ='[2]5.2 Asset Age Profile'!DD13 -> 0 | DE13: ='[2]5.2 Asset Age Profile'!DE13 -> 0 | DF13: ='[2]5.2 Asset Age Profile'!DF13 -> 1 | DG13: ='[2]5.2 Asset Age Profile'!DG13 -> 217 | DH13: ='[2]5.2 Asset Age Profile'!DH13 -> 151 | DI13: ='[2]5.2 Asset Age Profile'!DI13 -> 103 | DJ13: ='[2]5.2 Asset Age Profile'!DJ13 -> 14 | DK13: ='[2]5.2 Asset Age Profile'!DK13 -> 195 | DL13: ='[2]5.2 Asset Age Profile'!DL13 -> 8 | DM13: ='[2]5.2 Asset Age Profile'!DM13 -> 8 | DN13: ='[2]5.2 Asset Age Profile'!DN13 -> 1 | DO13: ='[2]5.2 Asset Age Profile'!DO13 -> 2 | DP13: ='[2]5.2 Asset Age Profile'!DP13 -> 30 | DQ13: ='[2]5.2 Asset Age Profile'!DQ13 -> 31 | DR13: ='[2]5.2 Asset Age Profile'!DR13 -> 0 | DS13: ='[2]5.2 Asset Age Profile'!DS13 -> 0 | DT13: ='[2]5.2 Asset Age Profile'!DT13 -> 0 | DU13: ='[2]5.2 Asset Age Profile'!DU13 -> 0 | DV13: ='[2]5.2 Asset Age Profile'!DV13 -> 0 | DW13: ='[2]5.2 Asset Age Profile'!DW13 -> 0 | DX13: ='[2]5.2 Asset Age Profile'!DX13 -> 0 | DY13: ='[2]5.2 Asset Age Profile'!DY13 -> 0 | DZ13: ='[2]5.2 Asset Age Profile'!DZ13 -> 0 | EA13: ='[2]5.2 Asset Age Profile'!EA13 -> 0 | EB13: ='[2]5.2 Asset Age Profile'!EB13 -> 0 | EC13: ='[2]5.2 Asset Age Profile'!EC13 -> 0 | ED13: ='[2]5.2 Asset Age Profile'!ED13 -> 0 | EE13: ='[2]5.2 Asset Age Profile'!EE13 -> 0 | EF13: ='[2]5.2 Asset Age Profile'!EF13 -> 0 | EG13: ='[2]5.2 Asset Age Profile'!EG13 -> 2 | EH13: ='[2]5.2 Asset Age Profile'!EH13 -> 0 | EI13: ='[2]5.2 Asset Age Profile'!EI13 -> 0 | EJ13: ='[2]5.2 Asset Age Profile'!EJ13 -> 0
A14: ED_ASS521_00004 | C14: ˃ 11 kV & < = 22 kV; Wood | E14: DNSP NAME | F14: REPEX | G14: POLES | H14: ˃ 11 kV & < = 22 kV; Wood | I14: DESCRIPTOR METRIC | J14: MEAN ECONOMIC LIFE | K14: YEARS | L14: NUMBER | N14: ='[2]5.2 Asset Age Profile'!N14 -> 53.8 | O14: ='[2]5.2 Asset Age Profile'!O14 -> 0 | P14: ='[2]5.2 Asset Age Profile'!P14 -> 0 | Q14: ='[2]5.2 Asset Age Profile'!Q14 -> 0 | R14: ='[2]5.2 Asset Age Profile'!R14 -> 0 | S14: ='[2]5.2 Asset Age Profile'!S14 -> 0 | T14: ='[2]5.2 Asset Age Profile'!T14 -> 0 | U14: ='[2]5.2 Asset Age Profile'!U14 -> 0 | V14: ='[2]5.2 Asset Age Profile'!V14 -> 0 | W14: ='[2]5.2 Asset Age Profile'!W14 -> 0 | X14: ='[2]5.2 Asset Age Profile'!X14 -> 0 | Y14: ='[2]5.2 Asset Age Profile'!Y14 -> 7.334848328 | Z14: ='[2]5.2 Asset Age Profile'!Z14 -> 0 | AA14: ='[2]5.2 Asset Age Profile'!AA14 -> 0 | AB14: ='[2]5.2 Asset Age Profile'!AB14 -> 0 | AC14: ='[2]5.2 Asset Age Profile'!AC14 -> 0 | AD14: ='[2]5.2 Asset Age Profile'!AD14 -> 0 | AE14: ='[2]5.2 Asset Age Profile'!AE14 -> 0 | AF14: ='[2]5.2 Asset Age Profile'!AF14 -> 0 | AG14: ='[2]5.2 Asset Age Profile'!AG14 -> 0 | AH14: ='[2]5.2 Asset Age Profile'!AH14 -> 0 | AI14: ='[2]5.2 Asset Age Profile'!AI14 -> 0 | AJ14: ='[2]5.2 Asset Age Profile'!AJ14 -> 3000 | AK14: ='[2]5.2 Asset Age Profile'!AK14 -> 3182 | AL14: ='[2]5.2 Asset Age Profile'!AL14 -> 2321 | AM14: ='[2]5.2 Asset Age Profile'!AM14 -> 2190 | AN14: ='[2]5.2 Asset Age Profile'!AN14 -> 2024 | AO14: ='[2]5.2 Asset Age Profile'!AO14 -> 1742 | AP14: ='[2]5.2 Asset Age Profile'!AP14 -> 1912 | AQ14: ='[2]5.2 Asset Age Profile'!AQ14 -> 1976 | AR14: ='[2]5.2 Asset Age Profile'!AR14 -> 1881 | AS14: ='[2]5.2 Asset Age Profile'!AS14 -> 2335 | AT14: ='[2]5.2 Asset Age Profile'!AT14 -> 2450 | AU14: ='[2]5.2 Asset Age Profile'!AU14 -> 2415 | AV14: ='[2]5.2 Asset Age Profile'!AV14 -> 2450 | AW14: ='[2]5.2 Asset Age Profile'!AW14 -> 2686 | AX14: ='[2]5.2 Asset Age Profile'!AX14 -> 3070 | AY14: ='[2]5.2 Asset Age Profile'!AY14 -> 2470 | AZ14: ='[2]5.2 Asset Age Profile'!AZ14 -> 1956 | BA14: ='[2]5.2 Asset Age Profile'!BA14 -> 1446 | BB14: ='[2]5.2 Asset Age Profile'!BB14 -> 1998 | BC14: ='[2]5.2 Asset Age Profile'!BC14 -> 2872 | BD14: ='[2]5.2 Asset Age Profile'!BD14 -> 4253 | BE14: ='[2]5.2 Asset Age Profile'!BE14 -> 3349 | BF14: ='[2]5.2 Asset Age Profile'!BF14 -> 3141 | BG14: ='[2]5.2 Asset Age Profile'!BG14 -> 4600 | BH14: ='[2]5.2 Asset Age Profile'!BH14 -> 4773 | BI14: ='[2]5.2 Asset Age Profile'!BI14 -> 4440 | BJ14: ='[2]5.2 Asset Age Profile'!BJ14 -> 4447 | BK14: ='[2]5.2 Asset Age Profile'!BK14 -> 4998 | BL14: ='[2]5.2 Asset Age Profile'!BL14 -> 7827 | BM14: ='[2]5.2 Asset Age Profile'!BM14 -> 4920 | BN14: ='[2]5.2 Asset Age Profile'!BN14 -> 5010 | BO14: ='[2]5.2 Asset Age Profile'!BO14 -> 4092 | BP14: ='[2]5.2 Asset Age Profile'!BP14 -> 5329 | BQ14: ='[2]5.2 Asset Age Profile'!BQ14 -> 9089 | BR14: ='[2]5.2 Asset Age Profile'!BR14 -> 6921 | BS14: ='[2]5.2 Asset Age Profile'!BS14 -> 6222 | BT14: ='[2]5.2 Asset Age Profile'!BT14 -> 4084 | BU14: ='[2]5.2 Asset Age Profile'!BU14 -> 5925 | BV14: ='[2]5.2 Asset Age Profile'!BV14 -> 4077 | BW14: ='[2]5.2 Asset Age Profile'!BW14 -> 4090 | BX14: ='[2]5.2 Asset Age Profile'!BX14 -> 3786 | BY14: ='[2]5.2 Asset Age Profile'!BY14 -> 4155 | BZ14: ='[2]5.2 Asset Age Profile'!BZ14 -> 2833 | CA14: ='[2]5.2 Asset Age Profile'!CA14 -> 2980 | CB14: ='[2]5.2 Asset Age Profile'!CB14 -> 3489 | CC14: ='[2]5.2 Asset Age Profile'!CC14 -> 7807 | CD14: ='[2]5.2 Asset Age Profile'!CD14 -> 4482 | CE14: ='[2]5.2 Asset Age Profile'!CE14 -> 6317 | CF14: ='[2]5.2 Asset Age Profile'!CF14 -> 9717 | CG14: ='[2]5.2 Asset Age Profile'!CG14 -> 8289 | CH14: ='[2]5.2 Asset Age Profile'!CH14 -> 16723 | CI14: ='[2]5.2 Asset Age Profile'!CI14 -> 7454 | CJ14: ='[2]5.2 Asset Age Profile'!CJ14 -> 2499 | CK14: ='[2]5.2 Asset Age Profile'!CK14 -> 2272 | CL14: ='[2]5.2 Asset Age Profile'!CL14 -> 13811 | CM14: ='[2]5.2 Asset Age Profile'!CM14 -> 7805 | CN14: ='[2]5.2 Asset Age Profile'!CN14 -> 3485 | CO14: ='[2]5.2 Asset Age Profile'!CO14 -> 4360 | CP14: ='[2]5.2 Asset Age Profile'!CP14 -> 841 | CQ14: ='[2]5.2 Asset Age Profile'!CQ14 -> 2240 | CR14: ='[2]5.2 Asset Age Profile'!CR14 -> 9202 | CS14: ='[2]5.2 Asset Age Profile'!CS14 -> 2697 | CT14: ='[2]5.2 Asset Age Profile'!CT14 -> 813 | CU14: ='[2]5.2 Asset Age Profile'!CU14 -> 719 | CV14: ='[2]5.2 Asset Age Profile'!CV14 -> 517 | CW14: ='[2]5.2 Asset Age Profile'!CW14 -> 2263 | CX14: ='[2]5.2 Asset Age Profile'!CX14 -> 267 | CY14: ='[2]5.2 Asset Age Profile'!CY14 -> 27 | CZ14: ='[2]5.2 Asset Age Profile'!CZ14 -> 29 | DA14: ='[2]5.2 Asset Age Profile'!DA14 -> 65 | DB14: ='[2]5.2 Asset Age Profile'!DB14 -> 7 | DC14: ='[2]5.2 Asset Age Profile'!DC14 -> 45 | DD14: ='[2]5.2 Asset Age Profile'!DD14 -> 3 | DE14: ='[2]5.2 Asset Age Profile'!DE14 -> 5 | DF14: ='[2]5.2 Asset Age Profile'!DF14 -> 13 | DG14: ='[2]5.2 Asset Age Profile'!DG14 -> 240 | DH14: ='[2]5.2 Asset Age Profile'!DH14 -> 19 | DI14: ='[2]5.2 Asset Age Profile'!DI14 -> 12 | DJ14: ='[2]5.2 Asset Age Profile'!DJ14 -> 12 | DK14: ='[2]5.2 Asset Age Profile'!DK14 -> 0 | DL14: ='[2]5.2 Asset Age Profile'!DL14 -> 1 | DM14: ='[2]5.2 Asset Age Profile'!DM14 -> 1 | DN14: ='[2]5.2 Asset Age Profile'!DN14 -> 6 | DO14: ='[2]5.2 Asset Age Profile'!DO14 -> 0 | DP14: ='[2]5.2 Asset Age Profile'!DP14 -> 2625 | DQ14: ='[2]5.2 Asset Age Profile'!DQ14 -> 441 | DR14: ='[2]5.2 Asset Age Profile'!DR14 -> 0 | DS14: ='[2]5.2 Asset Age Profile'!DS14 -> 0 | DT14: ='[2]5.2 Asset Age Profile'!DT14 -> 0 | DU14: ='[2]5.2 Asset Age Profile'!DU14 -> 0 | DV14: ='[2]5.2 Asset Age Profile'!DV14 -> 0 | DW14: ='[2]5.2 Asset Age Profile'!DW14 -> 0 | DX14: ='[2]5.2 Asset Age Profile'!DX14 -> 0 | DY14: ='[2]5.2 Asset Age Profile'!DY14 -> 0 | DZ14: ='[2]5.2 Asset Age Profile'!DZ14 -> 0 | EA14: ='[2]5.2 Asset Age Profile'!EA14 -> 0 | EB14: ='[2]5.2 Asset Age Profile'!EB14 -> 0 | EC14: ='[2]5.2 Asset Age Profile'!EC14 -> 0 | ED14: ='[2]5.2 Asset Age Profile'!ED14 -> 0 | EE14: ='[2]5.2 Asset Age Profile'!EE14 -> 0 | EF14: ='[2]5.2 Asset Age Profile'!EF14 -> 0 | EG14: ='[2]5.2 Asset Age Profile'!EG14 -> 0 | EH14: ='[2]5.2 Asset Age Profile'!EH14 -> 0 | EI14: ='[2]5.2 Asset Age Profile'!EI14 -> 0 | EJ14: ='[2]5.2 Asset Age Profile'!EJ14 -> 0
A15: ED_ASS521_00005 | C15: > 22 kV & < = 66 kV; Wood | E15: DNSP NAME | F15: REPEX | G15: POLES | H15: > 22 kV & < = 66 kV; Wood | I15: DESCRIPTOR METRIC | J15: MEAN ECONOMIC LIFE | K15: YEARS | L15: NUMBER | N15: ='[2]5.2 Asset Age Profile'!N15 -> 54.9 | O15: ='[2]5.2 Asset Age Profile'!O15 -> 0 | P15: ='[2]5.2 Asset Age Profile'!P15 -> 0 | Q15: ='[2]5.2 Asset Age Profile'!Q15 -> 0 | R15: ='[2]5.2 Asset Age Profile'!R15 -> 0 | S15: ='[2]5.2 Asset Age Profile'!S15 -> 0 | T15: ='[2]5.2 Asset Age Profile'!T15 -> 0 | U15: ='[2]5.2 Asset Age Profile'!U15 -> 0 | V15: ='[2]5.2 Asset Age Profile'!V15 -> 0 | W15: ='[2]5.2 Asset Age Profile'!W15 -> 0 | X15: ='[2]5.2 Asset Age Profile'!X15 -> 0 | Y15: ='[2]5.2 Asset Age Profile'!Y15 -> 7.409453421 | Z15: ='[2]5.2 Asset Age Profile'!Z15 -> 0 | AA15: ='[2]5.2 Asset Age Profile'!AA15 -> 0 | AB15: ='[2]5.2 Asset Age Profile'!AB15 -> 0 | AC15: ='[2]5.2 Asset Age Profile'!AC15 -> 0 | AD15: ='[2]5.2 Asset Age Profile'!AD15 -> 0 | AE15: ='[2]5.2 Asset Age Profile'!AE15 -> 0 | AF15: ='[2]5.2 Asset Age Profile'!AF15 -> 0 | AG15: ='[2]5.2 Asset Age Profile'!AG15 -> 0 | AH15: ='[2]5.2 Asset Age Profile'!AH15 -> 0 | AI15: ='[2]5.2 Asset Age Profile'!AI15 -> 0 | AJ15: ='[2]5.2 Asset Age Profile'!AJ15 -> 398 | AK15: ='[2]5.2 Asset Age Profile'!AK15 -> 513 | AL15: ='[2]5.2 Asset Age Profile'!AL15 -> 288 | AM15: ='[2]5.2 Asset Age Profile'!AM15 -> 265 | AN15: ='[2]5.2 Asset Age Profile'!AN15 -> 285 | AO15: ='[2]5.2 Asset Age Profile'!AO15 -> 134 | AP15: ='[2]5.2 Asset Age Profile'!AP15 -> 217 | AQ15: ='[2]5.2 Asset Age Profile'!AQ15 -> 282 | AR15: ='[2]5.2 Asset Age Profile'!AR15 -> 551 | AS15: ='[2]5.2 Asset Age Profile'!AS15 -> 322 | AT15: ='[2]5.2 Asset Age Profile'!AT15 -> 479 | AU15: ='[2]5.2 Asset Age Profile'!AU15 -> 480 | AV15: ='[2]5.2 Asset Age Profile'!AV15 -> 521 | AW15: ='[2]5.2 Asset Age Profile'!AW15 -> 601 | AX15: ='[2]5.2 Asset Age Profile'!AX15 -> 519 | AY15: ='[2]5.2 Asset Age Profile'!AY15 -> 372 | AZ15: ='[2]5.2 Asset Age Profile'!AZ15 -> 195 | BA15: ='[2]5.2 Asset Age Profile'!BA15 -> 203 | BB15: ='[2]5.2 Asset Age Profile'!BB15 -> 264 | BC15: ='[2]5.2 Asset Age Profile'!BC15 -> 389 | BD15: ='[2]5.2 Asset Age Profile'!BD15 -> 374 | BE15: ='[2]5.2 Asset Age Profile'!BE15 -> 503 | BF15: ='[2]5.2 Asset Age Profile'!BF15 -> 453 | BG15: ='[2]5.2 Asset Age Profile'!BG15 -> 429 | BH15: ='[2]5.2 Asset Age Profile'!BH15 -> 847 | BI15: ='[2]5.2 Asset Age Profile'!BI15 -> 524 | BJ15: ='[2]5.2 Asset Age Profile'!BJ15 -> 643 | BK15: ='[2]5.2 Asset Age Profile'!BK15 -> 629 | BL15: ='[2]5.2 Asset Age Profile'!BL15 -> 892 | BM15: ='[2]5.2 Asset Age Profile'!BM15 -> 527 | BN15: ='[2]5.2 Asset Age Profile'!BN15 -> 718 | BO15: ='[2]5.2 Asset Age Profile'!BO15 -> 1015 | BP15: ='[2]5.2 Asset Age Profile'!BP15 -> 1122 | BQ15: ='[2]5.2 Asset Age Profile'!BQ15 -> 1690 | BR15: ='[2]5.2 Asset Age Profile'!BR15 -> 1518 | BS15: ='[2]5.2 Asset Age Profile'!BS15 -> 808 | BT15: ='[2]5.2 Asset Age Profile'!BT15 -> 778 | BU15: ='[2]5.2 Asset Age Profile'!BU15 -> 1398 | BV15: ='[2]5.2 Asset Age Profile'!BV15 -> 1239 | BW15: ='[2]5.2 Asset Age Profile'!BW15 -> 642 | BX15: ='[2]5.2 Asset Age Profile'!BX15 -> 539 | BY15: ='[2]5.2 Asset Age Profile'!BY15 -> 762 | BZ15: ='[2]5.2 Asset Age Profile'!BZ15 -> 529 | CA15: ='[2]5.2 Asset Age Profile'!CA15 -> 1229 | CB15: ='[2]5.2 Asset Age Profile'!CB15 -> 2082 | CC15: ='[2]5.2 Asset Age Profile'!CC15 -> 2957 | CD15: ='[2]5.2 Asset Age Profile'!CD15 -> 2040 | CE15: ='[2]5.2 Asset Age Profile'!CE15 -> 2012 | CF15: ='[2]5.2 Asset Age Profile'!CF15 -> 3405 | CG15: ='[2]5.2 Asset Age Profile'!CG15 -> 2802 | CH15: ='[2]5.2 Asset Age Profile'!CH15 -> 3275 | CI15: ='[2]5.2 Asset Age Profile'!CI15 -> 1279 | CJ15: ='[2]5.2 Asset Age Profile'!CJ15 -> 726 | CK15: ='[2]5.2 Asset Age Profile'!CK15 -> 1151 | CL15: ='[2]5.2 Asset Age Profile'!CL15 -> 2222 | CM15: ='[2]5.2 Asset Age Profile'!CM15 -> 3245 | CN15: ='[2]5.2 Asset Age Profile'!CN15 -> 169 | CO15: ='[2]5.2 Asset Age Profile'!CO15 -> 134 | CP15: ='[2]5.2 Asset Age Profile'!CP15 -> 129 | CQ15: ='[2]5.2 Asset Age Profile'!CQ15 -> 324 | CR15: ='[2]5.2 Asset Age Profile'!CR15 -> 1197 | CS15: ='[2]5.2 Asset Age Profile'!CS15 -> 6 | CT15: ='[2]5.2 Asset Age Profile'!CT15 -> 68 | CU15: ='[2]5.2 Asset Age Profile'!CU15 -> 532 | CV15: ='[2]5.2 Asset Age Profile'!CV15 -> 28 | CW15: ='[2]5.2 Asset Age Profile'!CW15 -> 1422 | CX15: ='[2]5.2 Asset Age Profile'!CX15 -> 58 | CY15: ='[2]5.2 Asset Age Profile'!CY15 -> 43 | CZ15: ='[2]5.2 Asset Age Profile'!CZ15 -> 50 | DA15: ='[2]5.2 Asset Age Profile'!DA15 -> 194 | DB15: ='[2]5.2 Asset Age Profile'!DB15 -> 201 | DC15: ='[2]5.2 Asset Age Profile'!DC15 -> 0 | DD15: ='[2]5.2 Asset Age Profile'!DD15 -> 29 | DE15: ='[2]5.2 Asset Age Profile'!DE15 -> 0 | DF15: ='[2]5.2 Asset Age Profile'!DF15 -> 0 | DG15: ='[2]5.2 Asset Age Profile'!DG15 -> 79 | DH15: ='[2]5.2 Asset Age Profile'!DH15 -> 0 | DI15: ='[2]5.2 Asset Age Profile'!DI15 -> 0 | DJ15: ='[2]5.2 Asset Age Profile'!DJ15 -> 81 | DK15: ='[2]5.2 Asset Age Profile'!DK15 -> 16 | DL15: ='[2]5.2 Asset Age Profile'!DL15 -> 94 | DM15: ='[2]5.2 Asset Age Profile'!DM15 -> 0 | DN15: ='[2]5.2 Asset Age Profile'!DN15 -> 1 | DO15: ='[2]5.2 Asset Age Profile'!DO15 -> 0 | DP15: ='[2]5.2 Asset Age Profile'!DP15 -> 788 | DQ15: ='[2]5.2 Asset Age Profile'!DQ15 -> 5 | DR15: ='[2]5.2 Asset Age Profile'!DR15 -> 0 | DS15: ='[2]5.2 Asset Age Profile'!DS15 -> 0 | DT15: ='[2]5.2 Asset Age Profile'!DT15 -> 0 | DU15: ='[2]5.2 Asset Age Profile'!DU15 -> 0 | DV15: ='[2]5.2 Asset Age Profile'!DV15 -> 0 | DW15: ='[2]5.2 Asset Age Profile'!DW15 -> 0 | DX15: ='[2]5.2 Asset Age Profile'!DX15 -> 0 | DY15: ='[2]5.2 Asset Age Profile'!DY15 -> 0 | DZ15: ='[2]5.2 Asset Age Profile'!DZ15 -> 0 | EA15: ='[2]5.2 Asset Age Profile'!EA15 -> 0 | EB15: ='[2]5.2 Asset Age Profile'!EB15 -> 0 | EC15: ='[2]5.2 Asset Age Profile'!EC15 -> 0 | ED15: ='[2]5.2 Asset Age Profile'!ED15 -> 0 | EE15: ='[2]5.2 Asset Age Profile'!EE15 -> 0 | EF15: ='[2]5.2 Asset Age Profile'!EF15 -> 0 | EG15: ='[2]5.2 Asset Age Profile'!EG15 -> 0 | EH15: ='[2]5.2 Asset Age Profile'!EH15 -> 0 | EI15: ='[2]5.2 Asset Age Profile'!EI15 -> 0 | EJ15: ='[2]5.2 Asset Age Profile'!EJ15 -> 0
A16: ED_ASS521_00006 | C16: > 66 kV & < = 132 kV; Wood | E16: DNSP NAME | F16: REPEX | G16: POLES | H16: > 66 kV & < = 132 kV; Wood | I16: DESCRIPTOR METRIC | J16: MEAN ECONOMIC LIFE | K16: YEARS | L16: NUMBER | N16: ='[2]5.2 Asset Age Profile'!N16 -> 54.9 | O16: ='[2]5.2 Asset Age Profile'!O16 -> 0 | P16: ='[2]5.2 Asset Age Profile'!P16 -> 0 | Q16: ='[2]5.2 Asset Age Profile'!Q16 -> 0 | R16: ='[2]5.2 Asset Age Profile'!R16 -> 0 | S16: ='[2]5.2 Asset Age Profile'!S16 -> 0 | T16: ='[2]5.2 Asset Age Profile'!T16 -> 0 | U16: ='[2]5.2 Asset Age Profile'!U16 -> 0 | V16: ='[2]5.2 Asset Age Profile'!V16 -> 0 | W16: ='[2]5.2 Asset Age Profile'!W16 -> 0 | X16: ='[2]5.2 Asset Age Profile'!X16 -> 0 | Y16: ='[2]5.2 Asset Age Profile'!Y16 -> 7.409453421 | Z16: ='[2]5.2 Asset Age Profile'!Z16 -> 0 | AA16: ='[2]5.2 Asset Age Profile'!AA16 -> 0 | AB16: ='[2]5.2 Asset Age Profile'!AB16 -> 0 | AC16: ='[2]5.2 Asset Age Profile'!AC16 -> 0 | AD16: ='[2]5.2 Asset Age Profile'!AD16 -> 0 | AE16: ='[2]5.2 Asset Age Profile'!AE16 -> 0 | AF16: ='[2]5.2 Asset Age Profile'!AF16 -> 0 | AG16: ='[2]5.2 Asset Age Profile'!AG16 -> 0 | AH16: ='[2]5.2 Asset Age Profile'!AH16 -> 0 | AI16: ='[2]5.2 Asset Age Profile'!AI16 -> 0 | AJ16: ='[2]5.2 Asset Age Profile'!AJ16 -> 22 | AK16: ='[2]5.2 Asset Age Profile'!AK16 -> 44 | AL16: ='[2]5.2 Asset Age Profile'!AL16 -> 3 | AM16: ='[2]5.2 Asset Age Profile'!AM16 -> 3 | AN16: ='[2]5.2 Asset Age Profile'!AN16 -> 7 | AO16: ='[2]5.2 Asset Age Profile'!AO16 -> 4 | AP16: ='[2]5.2 Asset Age Profile'!AP16 -> 31 | AQ16: ='[2]5.2 Asset Age Profile'!AQ16 -> 24 | AR16: ='[2]5.2 Asset Age Profile'!AR16 -> 9 | AS16: ='[2]5.2 Asset Age Profile'!AS16 -> 7 | AT16: ='[2]5.2 Asset Age Profile'!AT16 -> 7 | AU16: ='[2]5.2 Asset Age Profile'!AU16 -> 5 | AV16: ='[2]5.2 Asset Age Profile'!AV16 -> 3 | AW16: ='[2]5.2 Asset Age Profile'!AW16 -> 1 | AX16: ='[2]5.2 Asset Age Profile'!AX16 -> 5 | AY16: ='[2]5.2 Asset Age Profile'!AY16 -> 13 | AZ16: ='[2]5.2 Asset Age Profile'!AZ16 -> 10 | BA16: ='[2]5.2 Asset Age Profile'!BA16 -> 7 | BB16: ='[2]5.2 Asset Age Profile'!BB16 -> 9 | BC16: ='[2]5.2 Asset Age Profile'!BC16 -> 6 | BD16: ='[2]5.2 Asset Age Profile'!BD16 -> 18 | BE16: ='[2]5.2 Asset Age Profile'!BE16 -> 9 | BF16: ='[2]5.2 Asset Age Profile'!BF16 -> 10 | BG16: ='[2]5.2 Asset Age Profile'!BG16 -> 344 | BH16: ='[2]5.2 Asset Age Profile'!BH16 -> 79 | BI16: ='[2]5.2 Asset Age Profile'!BI16 -> 237 | BJ16: ='[2]5.2 Asset Age Profile'!BJ16 -> 90 | BK16: ='[2]5.2 Asset Age Profile'!BK16 -> 11 | BL16: ='[2]5.2 Asset Age Profile'!BL16 -> 17 | BM16: ='[2]5.2 Asset Age Profile'!BM16 -> 165 | BN16: ='[2]5.2 Asset Age Profile'!BN16 -> 8 | BO16: ='[2]5.2 Asset Age Profile'!BO16 -> 102 | BP16: ='[2]5.2 Asset Age Profile'!BP16 -> 1978 | BQ16: ='[2]5.2 Asset Age Profile'!BQ16 -> 629 | BR16: ='[2]5.2 Asset Age Profile'!BR16 -> 310 | BS16: ='[2]5.2 Asset Age Profile'!BS16 -> 144 | BT16: ='[2]5.2 Asset Age Profile'!BT16 -> 218 | BU16: ='[2]5.2 Asset Age Profile'!BU16 -> 58 | BV16: ='[2]5.2 Asset Age Profile'!BV16 -> 29 | BW16: ='[2]5.2 Asset Age Profile'!BW16 -> 40 | BX16: ='[2]5.2 Asset Age Profile'!BX16 -> 14 | BY16: ='[2]5.2 Asset Age Profile'!BY16 -> 8 | BZ16: ='[2]5.2 Asset Age Profile'!BZ16 -> 14 | CA16: ='[2]5.2 Asset Age Profile'!CA16 -> 120 | CB16: ='[2]5.2 Asset Age Profile'!CB16 -> 307 | CC16: ='[2]5.2 Asset Age Profile'!CC16 -> 320 | CD16: ='[2]5.2 Asset Age Profile'!CD16 -> 53 | CE16: ='[2]5.2 Asset Age Profile'!CE16 -> 364 | CF16: ='[2]5.2 Asset Age Profile'!CF16 -> 707 | CG16: ='[2]5.2 Asset Age Profile'!CG16 -> 221 | CH16: ='[2]5.2 Asset Age Profile'!CH16 -> 1496 | CI16: ='[2]5.2 Asset Age Profile'!CI16 -> 884 | CJ16: ='[2]5.2 Asset Age Profile'!CJ16 -> 50 | CK16: ='[2]5.2 Asset Age Profile'!CK16 -> 93 | CL16: ='[2]5.2 Asset Age Profile'!CL16 -> 179 | CM16: ='[2]5.2 Asset Age Profile'!CM16 -> 36 | CN16: ='[2]5.2 Asset Age Profile'!CN16 -> 1 | CO16: ='[2]5.2 Asset Age Profile'!CO16 -> 14 | CP16: ='[2]5.2 Asset Age Profile'!CP16 -> 0 | CQ16: ='[2]5.2 Asset Age Profile'!CQ16 -> 0 | CR16: ='[2]5.2 Asset Age Profile'!CR16 -> 2 | CS16: ='[2]5.2 Asset Age Profile'!CS16 -> 0 | CT16: ='[2]5.2 Asset Age Profile'!CT16 -> 0 | CU16: ='[2]5.2 Asset Age Profile'!CU16 -> 1 | CV16: ='[2]5.2 Asset Age Profile'!CV16 -> 1 | CW16: ='[2]5.2 Asset Age Profile'!CW16 -> 2 | CX16: ='[2]5.2 Asset Age Profile'!CX16 -> 0 | CY16: ='[2]5.2 Asset Age Profile'!CY16 -> 0 | CZ16: ='[2]5.2 Asset Age Profile'!CZ16 -> 0 | DA16: ='[2]5.2 Asset Age Profile'!DA16 -> 0 | DB16: ='[2]5.2 Asset Age Profile'!DB16 -> 0 | DC16: ='[2]5.2 Asset Age Profile'!DC16 -> 0 | DD16: ='[2]5.2 Asset Age Profile'!DD16 -> 0 | DE16: ='[2]5.2 Asset Age Profile'!DE16 -> 0 | DF16: ='[2]5.2 Asset Age Profile'!DF16 -> 0 | DG16: ='[2]5.2 Asset Age Profile'!DG16 -> 0 | DH16: ='[2]5.2 Asset Age Profile'!DH16 -> 0 | DI16: ='[2]5.2 Asset Age Profile'!DI16 -> 0 | DJ16: ='[2]5.2 Asset Age Profile'!DJ16 -> 0 | DK16: ='[2]5.2 Asset Age Profile'!DK16 -> 0 | DL16: ='[2]5.2 Asset Age Profile'!DL16 -> 0 | DM16: ='[2]5.2 Asset Age Profile'!DM16 -> 0 | DN16: ='[2]5.2 Asset Age Profile'!DN16 -> 0 | DO16: ='[2]5.2 Asset Age Profile'!DO16 -> 0 | DP16: ='[2]5.2 Asset Age Profile'!DP16 -> 0 | DQ16: ='[2]5.2 Asset Age Profile'!DQ16 -> 0 | DR16: ='[2]5.2 Asset Age Profile'!DR16 -> 0 | DS16: ='[2]5.2 Asset Age Profile'!DS16 -> 0 | DT16: ='[2]5.2 Asset Age Profile'!DT16 -> 0 | DU16: ='[2]5.2 Asset Age Profile'!DU16 -> 0 | DV16: ='[2]5.2 Asset Age Profile'!DV16 -> 0 | DW16: ='[2]5.2 Asset Age Profile'!DW16 -> 0 | DX16: ='[2]5.2 Asset Age Profile'!DX16 -> 0 | DY16: ='[2]5.2 Asset Age Profile'!DY16 -> 0 | DZ16: ='[2]5.2 Asset Age Profile'!DZ16 -> 0 | EA16: ='[2]5.2 Asset Age Profile'!EA16 -> 0 | EB16: ='[2]5.2 Asset Age Profile'!EB16 -> 0 | EC16: ='[2]5.2 Asset Age Profile'!EC16 -> 0 | ED16: ='[2]5.2 Asset Age Profile'!ED16 -> 0 | EE16: ='[2]5.2 Asset Age Profile'!EE16 -> 0 | EF16: ='[2]5.2 Asset Age Profile'!EF16 -> 0 | EG16: ='[2]5.2 Asset Age Profile'!EG16 -> 0 | EH16: ='[2]5.2 Asset Age Profile'!EH16 -> 0 | EI16: ='[2]5.2 Asset Age Profile'!EI16 -> 0 | EJ16: ='[2]5.2 Asset Age Profile'!EJ16 -> 0
A17: ED_ASS521_00007 | C17: > 132 kV; Wood | E17: DNSP NAME | F17: REPEX | G17: POLES | H17: > 132 kV; Wood | I17: DESCRIPTOR METRIC | J17: MEAN ECONOMIC LIFE | K17: YEARS | L17: NUMBER | N17: ='[2]5.2 Asset Age Profile'!N17 -> 54.9 | O17: ='[2]5.2 Asset Age Profile'!O17 -> 0 | P17: ='[2]5.2 Asset Age Profile'!P17 -> 0 | Q17: ='[2]5.2 Asset Age Profile'!Q17 -> 0 | R17: ='[2]5.2 Asset Age Profile'!R17 -> 0 | S17: ='[2]5.2 Asset Age Profile'!S17 -> 0 | T17: ='[2]5.2 Asset Age Profile'!T17 -> 0 | U17: ='[2]5.2 Asset Age Profile'!U17 -> 0 | V17: ='[2]5.2 Asset Age Profile'!V17 -> 0 | W17: ='[2]5.2 Asset Age Profile'!W17 -> 0 | X17: ='[2]5.2 Asset Age Profile'!X17 -> 0 | Y17: ='[2]5.2 Asset Age Profile'!Y17 -> 7.409453421 | Z17: ='[2]5.2 Asset Age Profile'!Z17 -> 0 | AA17: ='[2]5.2 Asset Age Profile'!AA17 -> 0 | AB17: ='[2]5.2 Asset Age Profile'!AB17 -> 0 | AC17: ='[2]5.2 Asset Age Profile'!AC17 -> 0 | AD17: ='[2]5.2 Asset Age Profile'!AD17 -> 0 | AE17: ='[2]5.2 Asset Age Profile'!AE17 -> 0 | AF17: ='[2]5.2 Asset Age Profile'!AF17 -> 0 | AG17: ='[2]5.2 Asset Age Profile'!AG17 -> 0 | AH17: ='[2]5.2 Asset Age Profile'!AH17 -> 0 | AI17: ='[2]5.2 Asset Age Profile'!AI17 -> 0 | AJ17: ='[2]5.2 Asset Age Profile'!AJ17 -> 0 | AK17: ='[2]5.2 Asset Age Profile'!AK17 -> 0 | AL17: ='[2]5.2 Asset Age Profile'!AL17 -> 0 | AM17: ='[2]5.2 Asset Age Profile'!AM17 -> 0 | AN17: ='[2]5.2 Asset Age Profile'!AN17 -> 0 | AO17: ='[2]5.2 Asset Age Profile'!AO17 -> 0 | AP17: ='[2]5.2 Asset Age Profile'!AP17 -> 0 | AQ17: ='[2]5.2 Asset Age Profile'!AQ17 -> 0 | AR17: ='[2]5.2 Asset Age Profile'!AR17 -> 0 | AS17: ='[2]5.2 Asset Age Profile'!AS17 -> 0 | AT17: ='[2]5.2 Asset Age Profile'!AT17 -> 0 | AU17: ='[2]5.2 Asset Age Profile'!AU17 -> 0 | AV17: ='[2]5.2 Asset Age Profile'!AV17 -> 0 | AW17: ='[2]5.2 Asset Age Profile'!AW17 -> 0 | AX17: ='[2]5.2 Asset Age Profile'!AX17 -> 0 | AY17: ='[2]5.2 Asset Age Profile'!AY17 -> 0 | AZ17: ='[2]5.2 Asset Age Profile'!AZ17 -> 0 | BA17: ='[2]5.2 Asset Age Profile'!BA17 -> 0 | BB17: ='[2]5.2 Asset Age Profile'!BB17 -> 0 | BC17: ='[2]5.2 Asset Age Profile'!BC17 -> 0 | BD17: ='[2]5.2 Asset Age Profile'!BD17 -> 0 | BE17: ='[2]5.2 Asset Age Profile'!BE17 -> 0 | BF17: ='[2]5.2 Asset Age Profile'!BF17 -> 0 | BG17: ='[2]5.2 Asset Age Profile'!BG17 -> 0 | BH17: ='[2]5.2 Asset Age Profile'!BH17 -> 0 | BI17: ='[2]5.2 Asset Age Profile'!BI17 -> 0 | BJ17: ='[2]5.2 Asset Age Profile'!BJ17 -> 0 | BK17: ='[2]5.2 Asset Age Profile'!BK17 -> 0 | BL17: ='[2]5.2 Asset Age Profile'!BL17 -> 0 | BM17: ='[2]5.2 Asset Age Profile'!BM17 -> 0 | BN17: ='[2]5.2 Asset Age Profile'!BN17 -> 0 | BO17: ='[2]5.2 Asset Age Profile'!BO17 -> 0 | BP17: ='[2]5.2 Asset Age Profile'!BP17 -> 0 | BQ17: ='[2]5.2 Asset Age Profile'!BQ17 -> 0 | BR17: ='[2]5.2 Asset Age Profile'!BR17 -> 0 | BS17: ='[2]5.2 Asset Age Profile'!BS17 -> 0 | BT17: ='[2]5.2 Asset Age Profile'!BT17 -> 0 | BU17: ='[2]5.2 Asset Age Profile'!BU17 -> 0 | BV17: ='[2]5.2 Asset Age Profile'!BV17 -> 0 | BW17: ='[2]5.2 Asset Age Profile'!BW17 -> 0 | BX17: ='[2]5.2 Asset Age Profile'!BX17 -> 0 | BY17: ='[2]5.2 Asset Age Profile'!BY17 -> 0 | BZ17: ='[2]5.2 Asset Age Profile'!BZ17 -> 0 | CA17: ='[2]5.2 Asset Age Profile'!CA17 -> 0 | CB17: ='[2]5.2 Asset Age Profile'!CB17 -> 0 | CC17: ='[2]5.2 Asset Age Profile'!CC17 -> 0 | CD17: ='[2]5.2 Asset Age Profile'!CD17 -> 0 | CE17: ='[2]5.2 Asset Age Profile'!CE17 -> 0 | CF17: ='[2]5.2 Asset Age Profile'!CF17 -> 0 | CG17: ='[2]5.2 Asset Age Profile'!CG17 -> 0 | CH17: ='[2]5.2 Asset Age Profile'!CH17 -> 0 | CI17: ='[2]5.2 Asset Age Profile'!CI17 -> 0 | CJ17: ='[2]5.2 Asset Age Profile'!CJ17 -> 0 | CK17: ='[2]5.2 Asset Age Profile'!CK17 -> 0 | CL17: ='[2]5.2 Asset Age Profile'!CL17 -> 0 | CM17: ='[2]5.2 Asset Age Profile'!CM17 -> 0 | CN17: ='[2]5.2 Asset Age Profile'!CN17 -> 0 | CO17: ='[2]5.2 Asset Age Profile'!CO17 -> 0 | CP17: ='[2]5.2 Asset Age Profile'!CP17 -> 0 | CQ17: ='[2]5.2 Asset Age Profile'!CQ17 -> 0 | CR17: ='[2]5.2 Asset Age Profile'!CR17 -> 0 | CS17: ='[2]5.2 Asset Age Profile'!CS17 -> 0 | CT17: ='[2]5.2 Asset Age Profile'!CT17 -> 0 | CU17: ='[2]5.2 Asset Age Profile'!CU17 -> 0 | CV17: ='[2]5.2 Asset Age Profile'!CV17 -> 0 | CW17: ='[2]5.2 Asset Age Profile'!CW17 -> 0 | CX17: ='[2]5.2 Asset Age Profile'!CX17 -> 0 | CY17: ='[2]5.2 Asset Age Profile'!CY17 -> 0 | CZ17: ='[2]5.2 Asset Age Profile'!CZ17 -> 0 | DA17: ='[2]5.2 Asset Age Profile'!DA17 -> 0 | DB17: ='[2]5.2 Asset Age Profile'!DB17 -> 0 | DC17: ='[2]5.2 Asset Age Profile'!DC17 -> 0 | DD17: ='[2]5.2 Asset Age Profile'!DD17 -> 0 | DE17: ='[2]5.2 Asset Age Profile'!DE17 -> 0 | DF17: ='[2]5.2 Asset Age Profile'!DF17 -> 0 | DG17: ='[2]5.2 Asset Age Profile'!DG17 -> 0 | DH17: ='[2]5.2 Asset Age Profile'!DH17 -> 0 | DI17: ='[2]5.2 Asset Age Profile'!DI17 -> 0 | DJ17: ='[2]5.2 Asset Age Profile'!DJ17 -> 0 | DK17: ='[2]5.2 Asset Age Profile'!DK17 -> 0 | DL17: ='[2]5.2 Asset Age Profile'!DL17 -> 0 | DM17: ='[2]5.2 Asset Age Profile'!DM17 -> 0 | DN17: ='[2]5.2 Asset Age Profile'!DN17 -> 0 | DO17: ='[2]5.2 Asset Age Profile'!DO17 -> 0 | DP17: ='[2]5.2 Asset Age Profile'!DP17 -> 0 | DQ17: ='[2]5.2 Asset Age Profile'!DQ17 -> 0 | DR17: ='[2]5.2 Asset Age Profile'!DR17 -> 0 | DS17: ='[2]5.2 Asset Age Profile'!DS17 -> 0 | DT17: ='[2]5.2 Asset Age Profile'!DT17 -> 0 | DU17: ='[2]5.2 Asset Age Profile'!DU17 -> 0 | DV17: ='[2]5.2 Asset Age Profile'!DV17 -> 0 | DW17: ='[2]5.2 Asset Age Profile'!DW17 -> 0 | DX17: ='[2]5.2 Asset Age Profile'!DX17 -> 0 | DY17: ='[2]5.2 Asset Age Profile'!DY17 -> 0 | DZ17: ='[2]5.2 Asset Age Profile'!DZ17 -> 0 | EA17: ='[2]5.2 Asset Age Profile'!EA17 -> 0 | EB17: ='[2]5.2 Asset Age Profile'!EB17 -> 0 | EC17: ='[2]5.2 Asset Age Profile'!EC17 -> 0 | ED17: ='[2]5.2 Asset Age Profile'!ED17 -> 0 | EE17: ='[2]5.2 Asset Age Profile'!EE17 -> 0 | EF17: ='[2]5.2 Asset Age Profile'!EF17 -> 0 | EG17: ='[2]5.2 Asset Age Profile'!EG17 -> 0 | EH17: ='[2]5.2 Asset Age Profile'!EH17 -> 0 | EI17: ='[2]5.2 Asset Age Profile'!EI17 -> 0 | EJ17: ='[2]5.2 Asset Age Profile'!EJ17 -> 0
A18: ED_ASS521_00008 | C18: ˂ = 1 kV; Concrete | E18: DNSP NAME | F18: REPEX | G18: POLES | H18: ˂ = 1 kV; Concrete | I18: DESCRIPTOR METRIC | J18: MEAN ECONOMIC LIFE | K18: YEARS | L18: NUMBER | N18: ='[2]5.2 Asset Age Profile'!N18 -> 53.8 | O18: ='[2]5.2 Asset Age Profile'!O18 -> 0 | P18: ='[2]5.2 Asset Age Profile'!P18 -> 0 | Q18: ='[2]5.2 Asset Age Profile'!Q18 -> 0 | R18: ='[2]5.2 Asset Age Profile'!R18 -> 0 | S18: ='[2]5.2 Asset Age Profile'!S18 -> 0 | T18: ='[2]5.2 Asset Age Profile'!T18 -> 0 | U18: ='[2]5.2 Asset Age Profile'!U18 -> 0 | V18: ='[2]5.2 Asset Age Profile'!V18 -> 0 | W18: ='[2]5.2 Asset Age Profile'!W18 -> 0 | X18: ='[2]5.2 Asset Age Profile'!X18 -> 0 | Y18: ='[2]5.2 Asset Age Profile'!Y18 -> 7.334848328 | Z18: ='[2]5.2 Asset Age Profile'!Z18 -> 0 | AA18: ='[2]5.2 Asset Age Profile'!AA18 -> 0 | AB18: ='[2]5.2 Asset Age Profile'!AB18 -> 0 | AC18: ='[2]5.2 Asset Age Profile'!AC18 -> 0 | AD18: ='[2]5.2 Asset Age Profile'!AD18 -> 0 | AE18: ='[2]5.2 Asset Age Profile'!AE18 -> 0 | AF18: ='[2]5.2 Asset Age Profile'!AF18 -> 0 | AG18: ='[2]5.2 Asset Age Profile'!AG18 -> 0 | AH18: ='[2]5.2 Asset Age Profile'!AH18 -> 0 | AI18: ='[2]5.2 Asset Age Profile'!AI18 -> 0 | AJ18: ='[2]5.2 Asset Age Profile'!AJ18 -> 36 | AK18: ='[2]5.2 Asset Age Profile'!AK18 -> 91 | AL18: ='[2]5.2 Asset Age Profile'!AL18 -> 250 | AM18: ='[2]5.2 Asset Age Profile'!AM18 -> 283 | AN18: ='[2]5.2 Asset Age Profile'!AN18 -> 324 | AO18: ='[2]5.2 Asset Age Profile'!AO18 -> 281 | AP18: ='[2]5.2 Asset Age Profile'!AP18 -> 311 | AQ18: ='[2]5.2 Asset Age Profile'!AQ18 -> 312 | AR18: ='[2]5.2 Asset Age Profile'!AR18 -> 264 | AS18: ='[2]5.2 Asset Age Profile'!AS18 -> 180 | AT18: ='[2]5.2 Asset Age Profile'!AT18 -> 307 | AU18: ='[2]5.2 Asset Age Profile'!AU18 -> 268 | AV18: ='[2]5.2 Asset Age Profile'!AV18 -> 249 | AW18: ='[2]5.2 Asset Age Profile'!AW18 -> 347 | AX18: ='[2]5.2 Asset Age Profile'!AX18 -> 377 | AY18: ='[2]5.2 Asset Age Profile'!AY18 -> 621 | AZ18: ='[2]5.2 Asset Age Profile'!AZ18 -> 179 | BA18: ='[2]5.2 Asset Age Profile'!BA18 -> 300 | BB18: ='[2]5.2 Asset Age Profile'!BB18 -> 319 | BC18: ='[2]5.2 Asset Age Profile'!BC18 -> 443 | BD18: ='[2]5.2 Asset Age Profile'!BD18 -> 804 | BE18: ='[2]5.2 Asset Age Profile'!BE18 -> 589 | BF18: ='[2]5.2 Asset Age Profile'!BF18 -> 662 | BG18: ='[2]5.2 Asset Age Profile'!BG18 -> 491 | BH18: ='[2]5.2 Asset Age Profile'!BH18 -> 637 | BI18: ='[2]5.2 Asset Age Profile'!BI18 -> 541 | BJ18: ='[2]5.2 Asset Age Profile'!BJ18 -> 616 | BK18: ='[2]5.2 Asset Age Profile'!BK18 -> 393 | BL18: ='[2]5.2 Asset Age Profile'!BL18 -> 319 | BM18: ='[2]5.2 Asset Age Profile'!BM18 -> 353 | BN18: ='[2]5.2 Asset Age Profile'!BN18 -> 190 | BO18: ='[2]5.2 Asset Age Profile'!BO18 -> 94 | BP18: ='[2]5.2 Asset Age Profile'!BP18 -> 70 | BQ18: ='[2]5.2 Asset Age Profile'!BQ18 -> 22 | BR18: ='[2]5.2 Asset Age Profile'!BR18 -> 74 | BS18: ='[2]5.2 Asset Age Profile'!BS18 -> 77 | BT18: ='[2]5.2 Asset Age Profile'!BT18 -> 20 | BU18: ='[2]5.2 Asset Age Profile'!BU18 -> 17 | BV18: ='[2]5.2 Asset Age Profile'!BV18 -> 21 | BW18: ='[2]5.2 Asset Age Profile'!BW18 -> 6 | BX18: ='[2]5.2 Asset Age Profile'!BX18 -> 5 | BY18: ='[2]5.2 Asset Age Profile'!BY18 -> 4 | BZ18: ='[2]5.2 Asset Age Profile'!BZ18 -> 12 | CA18: ='[2]5.2 Asset Age Profile'!CA18 -> 3 | CB18: ='[2]5.2 Asset Age Profile'!CB18 -> 19 | CC18: ='[2]5.2 Asset Age Profile'!CC18 -> 20 | CD18: ='[2]5.2 Asset Age Profile'!CD18 -> 5 | CE18: ='[2]5.2 Asset Age Profile'!CE18 -> 12 | CF18: ='[2]5.2 Asset Age Profile'!CF18 -> 14 | CG18: ='[2]5.2 Asset Age Profile'!CG18 -> 15 | CH18: ='[2]5.2 Asset Age Profile'!CH18 -> 32 | CI18: ='[2]5.2 Asset Age Profile'!CI18 -> 1 | CJ18: ='[2]5.2 Asset Age Profile'!CJ18 -> 1 | CK18: ='[2]5.2 Asset Age Profile'!CK18 -> 3 | CL18: ='[2]5.2 Asset Age Profile'!CL18 -> 3 | CM18: ='[2]5.2 Asset Age Profile'!CM18 -> 92 | CN18: ='[2]5.2 Asset Age Profile'!CN18 -> 1 | CO18: ='[2]5.2 Asset Age Profile'!CO18 -> 5 | CP18: ='[2]5.2 Asset Age Profile'!CP18 -> 1 | CQ18: ='[2]5.2 Asset Age Profile'!CQ18 -> 3 | CR18: ='[2]5.2 Asset Age Profile'!CR18 -> 6 | CS18: ='[2]5.2 Asset Age Profile'!CS18 -> 0 | CT18: ='[2]5.2 Asset Age Profile'!CT18 -> 0 | CU18: ='[2]5.2 Asset Age Profile'!CU18 -> 5 | CV18: ='[2]5.2 Asset Age Profile'!CV18 -> 0 | CW18: ='[2]5.2 Asset Age Profile'!CW18 -> 37 | CX18: ='[2]5.2 Asset Age Profile'!CX18 -> 0 | CY18: ='[2]5.2 Asset Age Profile'!CY18 -> 22 | CZ18: ='[2]5.2 Asset Age Profile'!CZ18 -> 0 | DA18: ='[2]5.2 Asset Age Profile'!DA18 -> 0 | DB18: ='[2]5.2 Asset Age Profile'!DB18 -> 0 | DC18: ='[2]5.2 Asset Age Profile'!DC18 -> 0 | DD18: ='[2]5.2 Asset Age Profile'!DD18 -> 0 | DE18: ='[2]5.2 Asset Age Profile'!DE18 -> 0 | DF18: ='[2]5.2 Asset Age Profile'!DF18 -> 0 | DG18: ='[2]5.2 Asset Age Profile'!DG18 -> 5 | DH18: ='[2]5.2 Asset Age Profile'!DH18 -> 0 | DI18: ='[2]5.2 Asset Age Profile'!DI18 -> 0 | DJ18: ='[2]5.2 Asset Age Profile'!DJ18 -> 0 | DK18: ='[2]5.2 Asset Age Profile'!DK18 -> 0 | DL18: ='[2]5.2 Asset Age Profile'!DL18 -> 0 | DM18: ='[2]5.2 Asset Age Profile'!DM18 -> 0 | DN18: ='[2]5.2 Asset Age Profile'!DN18 -> 0 | DO18: ='[2]5.2 Asset Age Profile'!DO18 -> 0 | DP18: ='[2]5.2 Asset Age Profile'!DP18 -> 0 | DQ18: ='[2]5.2 Asset Age Profile'!DQ18 -> 2 | DR18: ='[2]5.2 Asset Age Profile'!DR18 -> 0 | DS18: ='[2]5.2 Asset Age Profile'!DS18 -> 0 | DT18: ='[2]5.2 Asset Age Profile'!DT18 -> 0 | DU18: ='[2]5.2 Asset Age Profile'!DU18 -> 0 | DV18: ='[2]5.2 Asset Age Profile'!DV18 -> 0 | DW18: ='[2]5.2 Asset Age Profile'!DW18 -> 0 | DX18: ='[2]5.2 Asset Age Profile'!DX18 -> 0 | DY18: ='[2]5.2 Asset Age Profile'!DY18 -> 0 | DZ18: ='[2]5.2 Asset Age Profile'!DZ18 -> 0 | EA18: ='[2]5.2 Asset Age Profile'!EA18 -> 0 | EB18: ='[2]5.2 Asset Age Profile'!EB18 -> 0 | EC18: ='[2]5.2 Asset Age Profile'!EC18 -> 0 | ED18: ='[2]5.2 Asset Age Profile'!ED18 -> 0 | EE18: ='[2]5.2 Asset Age Profile'!EE18 -> 0 | EF18: ='[2]5.2 Asset Age Profile'!EF18 -> 0 | EG18: ='[2]5.2 Asset Age Profile'!EG18 -> 0 | EH18: ='[2]5.2 Asset Age Profile'!EH18 -> 0 | EI18: ='[2]5.2 Asset Age Profile'!EI18 -> 0 | EJ18: ='[2]5.2 Asset Age Profile'!EJ18 -> 0
A19: ED_ASS521_00009 | C19: > 1 kV & < = 11 kV; Concrete | E19: DNSP NAME | F19: REPEX | G19: POLES | H19: > 1 kV & < = 11 kV; Concrete | I19: DESCRIPTOR METRIC | J19: MEAN ECONOMIC LIFE | K19: YEARS | L19: NUMBER | N19: ='[2]5.2 Asset Age Profile'!N19 -> 53.8 | O19: ='[2]5.2 Asset Age Profile'!O19 -> 0 | P19: ='[2]5.2 Asset Age Profile'!P19 -> 0 | Q19: ='[2]5.2 Asset Age Profile'!Q19 -> 0 | R19: ='[2]5.2 Asset Age Profile'!R19 -> 0 | S19: ='[2]5.2 Asset Age Profile'!S19 -> 0 | T19: ='[2]5.2 Asset Age Profile'!T19 -> 0 | U19: ='[2]5.2 Asset Age Profile'!U19 -> 0 | V19: ='[2]5.2 Asset Age Profile'!V19 -> 0 | W19: ='[2]5.2 Asset Age Profile'!W19 -> 0 | X19: ='[2]5.2 Asset Age Profile'!X19 -> 0 | Y19: ='[2]5.2 Asset Age Profile'!Y19 -> 7.334848328 | Z19: ='[2]5.2 Asset Age Profile'!Z19 -> 0 | AA19: ='[2]5.2 Asset Age Profile'!AA19 -> 0 | AB19: ='[2]5.2 Asset Age Profile'!AB19 -> 0 | AC19: ='[2]5.2 Asset Age Profile'!AC19 -> 0 | AD19: ='[2]5.2 Asset Age Profile'!AD19 -> 0 | AE19: ='[2]5.2 Asset Age Profile'!AE19 -> 0 | AF19: ='[2]5.2 Asset Age Profile'!AF19 -> 0 | AG19: ='[2]5.2 Asset Age Profile'!AG19 -> 0 | AH19: ='[2]5.2 Asset Age Profile'!AH19 -> 0 | AI19: ='[2]5.2 Asset Age Profile'!AI19 -> 0 | AJ19: ='[2]5.2 Asset Age Profile'!AJ19 -> 31 | AK19: ='[2]5.2 Asset Age Profile'!AK19 -> 199 | AL19: ='[2]5.2 Asset Age Profile'!AL19 -> 360 | AM19: ='[2]5.2 Asset Age Profile'!AM19 -> 441 | AN19: ='[2]5.2 Asset Age Profile'!AN19 -> 351 | AO19: ='[2]5.2 Asset Age Profile'!AO19 -> 410 | AP19: ='[2]5.2 Asset Age Profile'!AP19 -> 435 | AQ19: ='[2]5.2 Asset Age Profile'!AQ19 -> 490 | AR19: ='[2]5.2 Asset Age Profile'!AR19 -> 548 | AS19: ='[2]5.2 Asset Age Profile'!AS19 -> 519 | AT19: ='[2]5.2 Asset Age Profile'!AT19 -> 666 | AU19: ='[2]5.2 Asset Age Profile'!AU19 -> 563 | AV19: ='[2]5.2 Asset Age Profile'!AV19 -> 550 | AW19: ='[2]5.2 Asset Age Profile'!AW19 -> 721 | AX19: ='[2]5.2 Asset Age Profile'!AX19 -> 728 | AY19: ='[2]5.2 Asset Age Profile'!AY19 -> 823 | AZ19: ='[2]5.2 Asset Age Profile'!AZ19 -> 353 | BA19: ='[2]5.2 Asset Age Profile'!BA19 -> 524 | BB19: ='[2]5.2 Asset Age Profile'!BB19 -> 536 | BC19: ='[2]5.2 Asset Age Profile'!BC19 -> 736 | BD19: ='[2]5.2 Asset Age Profile'!BD19 -> 1072 | BE19: ='[2]5.2 Asset Age Profile'!BE19 -> 1199 | BF19: ='[2]5.2 Asset Age Profile'!BF19 -> 1180 | BG19: ='[2]5.2 Asset Age Profile'!BG19 -> 955 | BH19: ='[2]5.2 Asset Age Profile'!BH19 -> 1611 | BI19: ='[2]5.2 Asset Age Profile'!BI19 -> 1098 | BJ19: ='[2]5.2 Asset Age Profile'!BJ19 -> 977 | BK19: ='[2]5.2 Asset Age Profile'!BK19 -> 1439 | BL19: ='[2]5.2 Asset Age Profile'!BL19 -> 1380 | BM19: ='[2]5.2 Asset Age Profile'!BM19 -> 694 | BN19: ='[2]5.2 Asset Age Profile'!BN19 -> 370 | BO19: ='[2]5.2 Asset Age Profile'!BO19 -> 196 | BP19: ='[2]5.2 Asset Age Profile'!BP19 -> 199 | BQ19: ='[2]5.2 Asset Age Profile'!BQ19 -> 84 | BR19: ='[2]5.2 Asset Age Profile'!BR19 -> 27 | BS19: ='[2]5.2 Asset Age Profile'!BS19 -> 69 | BT19: ='[2]5.2 Asset Age Profile'!BT19 -> 6 | BU19: ='[2]5.2 Asset Age Profile'!BU19 -> 5 | BV19: ='[2]5.2 Asset Age Profile'!BV19 -> 4 | BW19: ='[2]5.2 Asset Age Profile'!BW19 -> 3 | BX19: ='[2]5.2 Asset Age Profile'!BX19 -> 2 | BY19: ='[2]5.2 Asset Age Profile'!BY19 -> 4 | BZ19: ='[2]5.2 Asset Age Profile'!BZ19 -> 1 | CA19: ='[2]5.2 Asset Age Profile'!CA19 -> 1 | CB19: ='[2]5.2 Asset Age Profile'!CB19 -> 1 | CC19: ='[2]5.2 Asset Age Profile'!CC19 -> 3 | CD19: ='[2]5.2 Asset Age Profile'!CD19 -> 1 | CE19: ='[2]5.2 Asset Age Profile'!CE19 -> 5 | CF19: ='[2]5.2 Asset Age Profile'!CF19 -> 17 | CG19: ='[2]5.2 Asset Age Profile'!CG19 -> 15 | CH19: ='[2]5.2 Asset Age Profile'!CH19 -> 4 | CI19: ='[2]5.2 Asset Age Profile'!CI19 -> 1 | CJ19: ='[2]5.2 Asset Age Profile'!CJ19 -> 0 | CK19: ='[2]5.2 Asset Age Profile'!CK19 -> 3 | CL19: ='[2]5.2 Asset Age Profile'!CL19 -> 79 | CM19: ='[2]5.2 Asset Age Profile'!CM19 -> 13 | CN19: ='[2]5.2 Asset Age Profile'!CN19 -> 2 | CO19: ='[2]5.2 Asset Age Profile'!CO19 -> 0 | CP19: ='[2]5.2 Asset Age Profile'!CP19 -> 3 | CQ19: ='[2]5.2 Asset Age Profile'!CQ19 -> 0 | CR19: ='[2]5.2 Asset Age Profile'!CR19 -> 0 | CS19: ='[2]5.2 Asset Age Profile'!CS19 -> 1 | CT19: ='[2]5.2 Asset Age Profile'!CT19 -> 0 | CU19: ='[2]5.2 Asset Age Profile'!CU19 -> 18 | CV19: ='[2]5.2 Asset Age Profile'!CV19 -> 0 | CW19: ='[2]5.2 Asset Age Profile'!CW19 -> 26 | CX19: ='[2]5.2 Asset Age Profile'!CX19 -> 0 | CY19: ='[2]5.2 Asset Age Profile'!CY19 -> 0 | CZ19: ='[2]5.2 Asset Age Profile'!CZ19 -> 0 | DA19: ='[2]5.2 Asset Age Profile'!DA19 -> 0 | DB19: ='[2]5.2 Asset Age Profile'!DB19 -> 0 | DC19: ='[2]5.2 Asset Age Profile'!DC19 -> 0 | DD19: ='[2]5.2 Asset Age Profile'!DD19 -> 0 | DE19: ='[2]5.2 Asset Age Profile'!DE19 -> 0 | DF19: ='[2]5.2 Asset Age Profile'!DF19 -> 0 | DG19: ='[2]5.2 Asset Age Profile'!DG19 -> 8 | DH19: ='[2]5.2 Asset Age Profile'!DH19 -> 0 | DI19: ='[2]5.2 Asset Age Profile'!DI19 -> 0 | DJ19: ='[2]5.2 Asset Age Profile'!DJ19 -> 0 | DK19: ='[2]5.2 Asset Age Profile'!DK19 -> 0 | DL19: ='[2]5.2 Asset Age Profile'!DL19 -> 0 | DM19: ='[2]5.2 Asset Age Profile'!DM19 -> 0 | DN19: ='[2]5.2 Asset Age Profile'!DN19 -> 0 | DO19: ='[2]5.2 Asset Age Profile'!DO19 -> 0 | DP19: ='[2]5.2 Asset Age Profile'!DP19 -> 0 | DQ19: ='[2]5.2 Asset Age Profile'!DQ19 -> 4 | DR19: ='[2]5.2 Asset Age Profile'!DR19 -> 0 | DS19: ='[2]5.2 Asset Age Profile'!DS19 -> 0 | DT19: ='[2]5.2 Asset Age Profile'!DT19 -> 0 | DU19: ='[2]5.2 Asset Age Profile'!DU19 -> 0 | DV19: ='[2]5.2 Asset Age Profile'!DV19 -> 0 | DW19: ='[2]5.2 Asset Age Profile'!DW19 -> 0 | DX19: ='[2]5.2 Asset Age Profile'!DX19 -> 0 | DY19: ='[2]5.2 Asset Age Profile'!DY19 -> 0 | DZ19: ='[2]5.2 Asset Age Profile'!DZ19 -> 0 | EA19: ='[2]5.2 Asset Age Profile'!EA19 -> 0 | EB19: ='[2]5.2 Asset Age Profile'!EB19 -> 0 | EC19: ='[2]5.2 Asset Age Profile'!EC19 -> 0 | ED19: ='[2]5.2 Asset Age Profile'!ED19 -> 0 | EE19: ='[2]5.2 Asset Age Profile'!EE19 -> 0 | EF19: ='[2]5.2 Asset Age Profile'!EF19 -> 0 | EG19: ='[2]5.2 Asset Age Profile'!EG19 -> 0 | EH19: ='[2]5.2 Asset Age Profile'!EH19 -> 0 | EI19: ='[2]5.2 Asset Age Profile'!EI19 -> 0 | EJ19: ='[2]5.2 Asset Age Profile'!EJ19 -> 0
A20: ED_ASS521_00010 | C20: ˃ 11 kV & < = 22 kV; Concrete | E20: DNSP NAME | F20: REPEX | G20: POLES | H20: ˃ 11 kV & < = 22 kV; Concrete | I20: DESCRIPTOR METRIC | J20: MEAN ECONOMIC LIFE | K20: YEARS | L20: NUMBER | N20: ='[2]5.2 Asset Age Profile'!N20 -> 53.8 | O20: ='[2]5.2 Asset Age Profile'!O20 -> 0 | P20: ='[2]5.2 Asset Age Profile'!P20 -> 0 | Q20: ='[2]5.2 Asset Age Profile'!Q20 -> 0 | R20: ='[2]5.2 Asset Age Profile'!R20 -> 0 | S20: ='[2]5.2 Asset Age Profile'!S20 -> 0 | T20: ='[2]5.2 Asset Age Profile'!T20 -> 0 | U20: ='[2]5.2 Asset Age Profile'!U20 -> 0 | V20: ='[2]5.2 Asset Age Profile'!V20 -> 0 | W20: ='[2]5.2 Asset Age Profile'!W20 -> 0 | X20: ='[2]5.2 Asset Age Profile'!X20 -> 0 | Y20: ='[2]5.2 Asset Age Profile'!Y20 -> 7.334848328 | Z20: ='[2]5.2 Asset Age Profile'!Z20 -> 0 | AA20: ='[2]5.2 Asset Age Profile'!AA20 -> 0 | AB20: ='[2]5.2 Asset Age Profile'!AB20 -> 0 | AC20: ='[2]5.2 Asset Age Profile'!AC20 -> 0 | AD20: ='[2]5.2 Asset Age Profile'!AD20 -> 0 | AE20: ='[2]5.2 Asset Age Profile'!AE20 -> 0 | AF20: ='[2]5.2 Asset Age Profile'!AF20 -> 0 | AG20: ='[2]5.2 Asset Age Profile'!AG20 -> 0 | AH20: ='[2]5.2 Asset Age Profile'!AH20 -> 0 | AI20: ='[2]5.2 Asset Age Profile'!AI20 -> 0 | AJ20: ='[2]5.2 Asset Age Profile'!AJ20 -> 22 | AK20: ='[2]5.2 Asset Age Profile'!AK20 -> 111 | AL20: ='[2]5.2 Asset Age Profile'!AL20 -> 367 | AM20: ='[2]5.2 Asset Age Profile'!AM20 -> 512 | AN20: ='[2]5.2 Asset Age Profile'!AN20 -> 636 | AO20: ='[2]5.2 Asset Age Profile'!AO20 -> 620 | AP20: ='[2]5.2 Asset Age Profile'!AP20 -> 612 | AQ20: ='[2]5.2 Asset Age Profile'!AQ20 -> 710 | AR20: ='[2]5.2 Asset Age Profile'!AR20 -> 900 | AS20: ='[2]5.2 Asset Age Profile'!AS20 -> 1150 | AT20: ='[2]5.2 Asset Age Profile'!AT20 -> 998 | AU20: ='[2]5.2 Asset Age Profile'!AU20 -> 783 | AV20: ='[2]5.2 Asset Age Profile'!AV20 -> 740 | AW20: ='[2]5.2 Asset Age Profile'!AW20 -> 981 | AX20: ='[2]5.2 Asset Age Profile'!AX20 -> 1170 | AY20: ='[2]5.2 Asset Age Profile'!AY20 -> 1018 | AZ20: ='[2]5.2 Asset Age Profile'!AZ20 -> 497 | BA20: ='[2]5.2 Asset Age Profile'!BA20 -> 671 | BB20: ='[2]5.2 Asset Age Profile'!BB20 -> 885 | BC20: ='[2]5.2 Asset Age Profile'!BC20 -> 923 | BD20: ='[2]5.2 Asset Age Profile'!BD20 -> 3691 | BE20: ='[2]5.2 Asset Age Profile'!BE20 -> 4941 | BF20: ='[2]5.2 Asset Age Profile'!BF20 -> 3420 | BG20: ='[2]5.2 Asset Age Profile'!BG20 -> 741 | BH20: ='[2]5.2 Asset Age Profile'!BH20 -> 402 | BI20: ='[2]5.2 Asset Age Profile'!BI20 -> 736 | BJ20: ='[2]5.2 Asset Age Profile'!BJ20 -> 3296 | BK20: ='[2]5.2 Asset Age Profile'!BK20 -> 4029 | BL20: ='[2]5.2 Asset Age Profile'!BL20 -> 2677 | BM20: ='[2]5.2 Asset Age Profile'!BM20 -> 2306 | BN20: ='[2]5.2 Asset Age Profile'!BN20 -> 1975 | BO20: ='[2]5.2 Asset Age Profile'!BO20 -> 1540 | BP20: ='[2]5.2 Asset Age Profile'!BP20 -> 430 | BQ20: ='[2]5.2 Asset Age Profile'!BQ20 -> 538 | BR20: ='[2]5.2 Asset Age Profile'!BR20 -> 97 | BS20: ='[2]5.2 Asset Age Profile'!BS20 -> 202 | BT20: ='[2]5.2 Asset Age Profile'!BT20 -> 16 | BU20: ='[2]5.2 Asset Age Profile'!BU20 -> 11 | BV20: ='[2]5.2 Asset Age Profile'!BV20 -> 20 | BW20: ='[2]5.2 Asset Age Profile'!BW20 -> 5 | BX20: ='[2]5.2 Asset Age Profile'!BX20 -> 12 | BY20: ='[2]5.2 Asset Age Profile'!BY20 -> 11 | BZ20: ='[2]5.2 Asset Age Profile'!BZ20 -> 6 | CA20: ='[2]5.2 Asset Age Profile'!CA20 -> 4 | CB20: ='[2]5.2 Asset Age Profile'!CB20 -> 12 | CC20: ='[2]5.2 Asset Age Profile'!CC20 -> 22 | CD20: ='[2]5.2 Asset Age Profile'!CD20 -> 11 | CE20: ='[2]5.2 Asset Age Profile'!CE20 -> 41 | CF20: ='[2]5.2 Asset Age Profile'!CF20 -> 9 | CG20: ='[2]5.2 Asset Age Profile'!CG20 -> 26 | CH20: ='[2]5.2 Asset Age Profile'!CH20 -> 102 | CI20: ='[2]5.2 Asset Age Profile'!CI20 -> 3 | CJ20: ='[2]5.2 Asset Age Profile'!CJ20 -> 1 | CK20: ='[2]5.2 Asset Age Profile'!CK20 -> 2 | CL20: ='[2]5.2 Asset Age Profile'!CL20 -> 14 | CM20: ='[2]5.2 Asset Age Profile'!CM20 -> 28 | CN20: ='[2]5.2 Asset Age Profile'!CN20 -> 12 | CO20: ='[2]5.2 Asset Age Profile'!CO20 -> 17 | CP20: ='[2]5.2 Asset Age Profile'!CP20 -> 0 | CQ20: ='[2]5.2 Asset Age Profile'!CQ20 -> 0 | CR20: ='[2]5.2 Asset Age Profile'!CR20 -> 2 | CS20: ='[2]5.2 Asset Age Profile'!CS20 -> 0 | CT20: ='[2]5.2 Asset Age Profile'!CT20 -> 0 | CU20: ='[2]5.2 Asset Age Profile'!CU20 -> 1 | CV20: ='[2]5.2 Asset Age Profile'!CV20 -> 0 | CW20: ='[2]5.2 Asset Age Profile'!CW20 -> 10 | CX20: ='[2]5.2 Asset Age Profile'!CX20 -> 1 | CY20: ='[2]5.2 Asset Age Profile'!CY20 -> 0 | CZ20: ='[2]5.2 Asset Age Profile'!CZ20 -> 0 | DA20: ='[2]5.2 Asset Age Profile'!DA20 -> 0 | DB20: ='[2]5.2 Asset Age Profile'!DB20 -> 0 | DC20: ='[2]5.2 Asset Age Profile'!DC20 -> 0 | DD20: ='[2]5.2 Asset Age Profile'!DD20 -> 0 | DE20: ='[2]5.2 Asset Age Profile'!DE20 -> 0 | DF20: ='[2]5.2 Asset Age Profile'!DF20 -> 0 | DG20: ='[2]5.2 Asset Age Profile'!DG20 -> 31 | DH20: ='[2]5.2 Asset Age Profile'!DH20 -> 0 | DI20: ='[2]5.2 Asset Age Profile'!DI20 -> 0 | DJ20: ='[2]5.2 Asset Age Profile'!DJ20 -> 0 | DK20: ='[2]5.2 Asset Age Profile'!DK20 -> 0 | DL20: ='[2]5.2 Asset Age Profile'!DL20 -> 0 | DM20: ='[2]5.2 Asset Age Profile'!DM20 -> 0 | DN20: ='[2]5.2 Asset Age Profile'!DN20 -> 0 | DO20: ='[2]5.2 Asset Age Profile'!DO20 -> 0 | DP20: ='[2]5.2 Asset Age Profile'!DP20 -> 1 | DQ20: ='[2]5.2 Asset Age Profile'!DQ20 -> 0 | DR20: ='[2]5.2 Asset Age Profile'!DR20 -> 0 | DS20: ='[2]5.2 Asset Age Profile'!DS20 -> 0 | DT20: ='[2]5.2 Asset Age Profile'!DT20 -> 0 | DU20: ='[2]5.2 Asset Age Profile'!DU20 -> 0 | DV20: ='[2]5.2 Asset Age Profile'!DV20 -> 0 | DW20: ='[2]5.2 Asset Age Profile'!DW20 -> 0 | DX20: ='[2]5.2 Asset Age Profile'!DX20 -> 0 | DY20: ='[2]5.2 Asset Age Profile'!DY20 -> 0 | DZ20: ='[2]5.2 Asset Age Profile'!DZ20 -> 0 | EA20: ='[2]5.2 Asset Age Profile'!EA20 -> 0 | EB20: ='[2]5.2 Asset Age Profile'!EB20 -> 0 | EC20: ='[2]5.2 Asset Age Profile'!EC20 -> 0 | ED20: ='[2]5.2 Asset Age Profile'!ED20 -> 0 | EE20: ='[2]5.2 Asset Age Profile'!EE20 -> 0 | EF20: ='[2]5.2 Asset Age Profile'!EF20 -> 0 | EG20: ='[2]5.2 Asset Age Profile'!EG20 -> 0 | EH20: ='[2]5.2 Asset Age Profile'!EH20 -> 0 | EI20: ='[2]5.2 Asset Age Profile'!EI20 -> 0 | EJ20: ='[2]5.2 Asset Age Profile'!EJ20 -> 1
A21: ED_ASS521_00011 | C21: > 22 kV & < = 66 kV; Concrete | N21: ='[2]5.2 Asset Age Profile'!N21 -> 54.9 | O21: ='[2]5.2 Asset Age Profile'!O21 -> 0 | P21: ='[2]5.2 Asset Age Profile'!P21 -> 0 | Q21: ='[2]5.2 Asset Age Profile'!Q21 -> 0 | R21: ='[2]5.2 Asset Age Profile'!R21 -> 0 | S21: ='[2]5.2 Asset Age Profile'!S21 -> 0 | T21: ='[2]5.2 Asset Age Profile'!T21 -> 0 | U21: ='[2]5.2 Asset Age Profile'!U21 -> 0 | V21: ='[2]5.2 Asset Age Profile'!V21 -> 0 | W21: ='[2]5.2 Asset Age Profile'!W21 -> 0 | X21: ='[2]5.2 Asset Age Profile'!X21 -> 0 | Y21: ='[2]5.2 Asset Age Profile'!Y21 -> 7.409453421 | Z21: ='[2]5.2 Asset Age Profile'!Z21 -> 0 | AA21: ='[2]5.2 Asset Age Profile'!AA21 -> 0 | AB21: ='[2]5.2 Asset Age Profile'!AB21 -> 0 | AC21: ='[2]5.2 Asset Age Profile'!AC21 -> 0 | AD21: ='[2]5.2 Asset Age Profile'!AD21 -> 0 | AE21: ='[2]5.2 Asset Age Profile'!AE21 -> 0 | AF21: ='[2]5.2 Asset Age Profile'!AF21 -> 0 | AG21: ='[2]5.2 Asset Age Profile'!AG21 -> 0 | AH21: ='[2]5.2 Asset Age Profile'!AH21 -> 0 | AI21: ='[2]5.2 Asset Age Profile'!AI21 -> 0 | AJ21: ='[2]5.2 Asset Age Profile'!AJ21 -> 18 | AK21: ='[2]5.2 Asset Age Profile'!AK21 -> 324 | AL21: ='[2]5.2 Asset Age Profile'!AL21 -> 539 | AM21: ='[2]5.2 Asset Age Profile'!AM21 -> 384 | AN21: ='[2]5.2 Asset Age Profile'!AN21 -> 285 | AO21: ='[2]5.2 Asset Age Profile'!AO21 -> 525 | AP21: ='[2]5.2 Asset Age Profile'!AP21 -> 439 | AQ21: ='[2]5.2 Asset Age Profile'!AQ21 -> 207 | AR21: ='[2]5.2 Asset Age Profile'!AR21 -> 359 | AS21: ='[2]5.2 Asset Age Profile'!AS21 -> 396 | AT21: ='[2]5.2 Asset Age Profile'!AT21 -> 764 | AU21: ='[2]5.2 Asset Age Profile'!AU21 -> 240 | AV21: ='[2]5.2 Asset Age Profile'!AV21 -> 187 | AW21: ='[2]5.2 Asset Age Profile'!AW21 -> 274 | AX21: ='[2]5.2 Asset Age Profile'!AX21 -> 421 | AY21: ='[2]5.2 Asset Age Profile'!AY21 -> 621 | AZ21: ='[2]5.2 Asset Age Profile'!AZ21 -> 165 | BA21: ='[2]5.2 Asset Age Profile'!BA21 -> 208 | BB21: ='[2]5.2 Asset Age Profile'!BB21 -> 136 | BC21: ='[2]5.2 Asset Age Profile'!BC21 -> 157 | BD21: ='[2]5.2 Asset Age Profile'!BD21 -> 749 | BE21: ='[2]5.2 Asset Age Profile'!BE21 -> 1335 | BF21: ='[2]5.2 Asset Age Profile'!BF21 -> 1115 | BG21: ='[2]5.2 Asset Age Profile'!BG21 -> 519 | BH21: ='[2]5.2 Asset Age Profile'!BH21 -> 590 | BI21: ='[2]5.2 Asset Age Profile'!BI21 -> 344 | BJ21: ='[2]5.2 Asset Age Profile'!BJ21 -> 400 | BK21: ='[2]5.2 Asset Age Profile'!BK21 -> 1679 | BL21: ='[2]5.2 Asset Age Profile'!BL21 -> 723 | BM21: ='[2]5.2 Asset Age Profile'!BM21 -> 681 | BN21: ='[2]5.2 Asset Age Profile'!BN21 -> 580 | BO21: ='[2]5.2 Asset Age Profile'!BO21 -> 450 | BP21: ='[2]5.2 Asset Age Profile'!BP21 -> 89 | BQ21: ='[2]5.2 Asset Age Profile'!BQ21 -> 1045 | BR21: ='[2]5.2 Asset Age Profile'!BR21 -> 131 | BS21: ='[2]5.2 Asset Age Profile'!BS21 -> 8 | BT21: ='[2]5.2 Asset Age Profile'!BT21 -> 2 | BU21: ='[2]5.2 Asset Age Profile'!BU21 -> 4 | BV21: ='[2]5.2 Asset Age Profile'!BV21 -> 1 | BW21: ='[2]5.2 Asset Age Profile'!BW21 -> 10 | BX21: ='[2]5.2 Asset Age Profile'!BX21 -> 0 | BY21: ='[2]5.2 Asset Age Profile'!BY21 -> 2 | BZ21: ='[2]5.2 Asset Age Profile'!BZ21 -> 3 | CA21: ='[2]5.2 Asset Age Profile'!CA21 -> 2 | CB21: ='[2]5.2 Asset Age Profile'!CB21 -> 2 | CC21: ='[2]5.2 Asset Age Profile'!CC21 -> 1 | CD21: ='[2]5.2 Asset Age Profile'!CD21 -> 1 | CE21: ='[2]5.2 Asset Age Profile'!CE21 -> 4 | CF21: ='[2]5.2 Asset Age Profile'!CF21 -> 17 | CG21: ='[2]5.2 Asset Age Profile'!CG21 -> 12 | CH21: ='[2]5.2 Asset Age Profile'!CH21 -> 3 | CI21: ='[2]5.2 Asset Age Profile'!CI21 -> 0 | CJ21: ='[2]5.2 Asset Age Profile'!CJ21 -> 1 | CK21: ='[2]5.2 Asset Age Profile'!CK21 -> 1 | CL21: ='[2]5.2 Asset Age Profile'!CL21 -> 1 | CM21: ='[2]5.2 Asset Age Profile'!CM21 -> 1 | CN21: ='[2]5.2 Asset Age Profile'!CN21 -> 0 | CO21: ='[2]5.2 Asset Age Profile'!CO21 -> 0 | CP21: ='[2]5.2 Asset Age Profile'!CP21 -> 0 | CQ21: ='[2]5.2 Asset Age Profile'!CQ21 -> 2 | CR21: ='[2]5.2 Asset Age Profile'!CR21 -> 0 | CS21: ='[2]5.2 Asset Age Profile'!CS21 -> 0 | CT21: ='[2]5.2 Asset Age Profile'!CT21 -> 0 | CU21: ='[2]5.2 Asset Age Profile'!CU21 -> 0 | CV21: ='[2]5.2 Asset Age Profile'!CV21 -> 0 | CW21: ='[2]5.2 Asset Age Profile'!CW21 -> 1 | CX21: ='[2]5.2 Asset Age Profile'!CX21 -> 0 | CY21: ='[2]5.2 Asset Age Profile'!CY21 -> 0 | CZ21: ='[2]5.2 Asset Age Profile'!CZ21 -> 0 | DA21: ='[2]5.2 Asset Age Profile'!DA21 -> 0 | DB21: ='[2]5.2 Asset Age Profile'!DB21 -> 0 | DC21: ='[2]5.2 Asset Age Profile'!DC21 -> 0 | DD21: ='[2]5.2 Asset Age Profile'!DD21 -> 0 | DE21: ='[2]5.2 Asset Age Profile'!DE21 -> 0 | DF21: ='[2]5.2 Asset Age Profile'!DF21 -> 0 | DG21: ='[2]5.2 Asset Age Profile'!DG21 -> 5 | DH21: ='[2]5.2 Asset Age Profile'!DH21 -> 0 | DI21: ='[2]5.2 Asset Age Profile'!DI21 -> 0 | DJ21: ='[2]5.2 Asset Age Profile'!DJ21 -> 0 | DK21: ='[2]5.2 Asset Age Profile'!DK21 -> 0 | DL21: ='[2]5.2 Asset Age Profile'!DL21 -> 0 | DM21: ='[2]5.2 Asset Age Profile'!DM21 -> 0 | DN21: ='[2]5.2 Asset Age Profile'!DN21 -> 0 | DO21: ='[2]5.2 Asset Age Profile'!DO21 -> 0 | DP21: ='[2]5.2 Asset Age Profile'!DP21 -> 0 | DQ21: ='[2]5.2 Asset Age Profile'!DQ21 -> 0 | DR21: ='[2]5.2 Asset Age Profile'!DR21 -> 0 | DS21: ='[2]5.2 Asset Age Profile'!DS21 -> 0 | DT21: ='[2]5.2 Asset Age Profile'!DT21 -> 0 | DU21: ='[2]5.2 Asset Age Profile'!DU21 -> 0 | DV21: ='[2]5.2 Asset Age Profile'!DV21 -> 0 | DW21: ='[2]5.2 Asset Age Profile'!DW21 -> 0 | DX21: ='[2]5.2 Asset Age Profile'!DX21 -> 0 | DY21: ='[2]5.2 Asset Age Profile'!DY21 -> 0 | DZ21: ='[2]5.2 Asset Age Profile'!DZ21 -> 0 | EA21: ='[2]5.2 Asset Age Profile'!EA21 -> 0 | EB21: ='[2]5.2 Asset Age Profile'!EB21 -> 0 | EC21: ='[2]5.2 Asset Age Profile'!EC21 -> 0 | ED21: ='[2]5.2 Asset Age Profile'!ED21 -> 0 | EE21: ='[2]5.2 Asset Age Profile'!EE21 -> 0 | EF21: ='[2]5.2 Asset Age Profile'!EF21 -> 0 | EG21: ='[2]5.2 Asset Age Profile'!EG21 -> 0 | EH21: ='[2]5.2 Asset Age Profile'!EH21 -> 0 | EI21: ='[2]5.2 Asset Age Profile'!EI21 -> 0 | EJ21: ='[2]5.2 Asset Age Profile'!EJ21 -> 0
A22: ED_ASS521_00012 | C22: > 66 kV & < = 132 kV; Concrete | N22: ='[2]5.2 Asset Age Profile'!N22 -> 54.9 | O22: ='[2]5.2 Asset Age Profile'!O22 -> 0 | P22: ='[2]5.2 Asset Age Profile'!P22 -> 0 | Q22: ='[2]5.2 Asset Age Profile'!Q22 -> 0 | R22: ='[2]5.2 Asset Age Profile'!R22 -> 0 | S22: ='[2]5.2 Asset Age Profile'!S22 -> 0 | T22: ='[2]5.2 Asset Age Profile'!T22 -> 0 | U22: ='[2]5.2 Asset Age Profile'!U22 -> 0 | V22: ='[2]5.2 Asset Age Profile'!V22 -> 0 | W22: ='[2]5.2 Asset Age Profile'!W22 -> 0 | X22: ='[2]5.2 Asset Age Profile'!X22 -> 0 | Y22: ='[2]5.2 Asset Age Profile'!Y22 -> 7.409453421 | Z22: ='[2]5.2 Asset Age Profile'!Z22 -> 0 | AA22: ='[2]5.2 Asset Age Profile'!AA22 -> 0 | AB22: ='[2]5.2 Asset Age Profile'!AB22 -> 0 | AC22: ='[2]5.2 Asset Age Profile'!AC22 -> 0 | AD22: ='[2]5.2 Asset Age Profile'!AD22 -> 0 | AE22: ='[2]5.2 Asset Age Profile'!AE22 -> 0 | AF22: ='[2]5.2 Asset Age Profile'!AF22 -> 0 | AG22: ='[2]5.2 Asset Age Profile'!AG22 -> 0 | AH22: ='[2]5.2 Asset Age Profile'!AH22 -> 0 | AI22: ='[2]5.2 Asset Age Profile'!AI22 -> 0 | AJ22: ='[2]5.2 Asset Age Profile'!AJ22 -> 0 | AK22: ='[2]5.2 Asset Age Profile'!AK22 -> 183 | AL22: ='[2]5.2 Asset Age Profile'!AL22 -> 23 | AM22: ='[2]5.2 Asset Age Profile'!AM22 -> 254 | AN22: ='[2]5.2 Asset Age Profile'!AN22 -> 95 | AO22: ='[2]5.2 Asset Age Profile'!AO22 -> 42 | AP22: ='[2]5.2 Asset Age Profile'!AP22 -> 31 | AQ22: ='[2]5.2 Asset Age Profile'!AQ22 -> 15 | AR22: ='[2]5.2 Asset Age Profile'!AR22 -> 75 | AS22: ='[2]5.2 Asset Age Profile'!AS22 -> 42 | AT22: ='[2]5.2 Asset Age Profile'!AT22 -> 199 | AU22: ='[2]5.2 Asset Age Profile'!AU22 -> 336 | AV22: ='[2]5.2 Asset Age Profile'!AV22 -> 4 | AW22: ='[2]5.2 Asset Age Profile'!AW22 -> 8 | AX22: ='[2]5.2 Asset Age Profile'!AX22 -> 12 | AY22: ='[2]5.2 Asset Age Profile'!AY22 -> 9 | AZ22: ='[2]5.2 Asset Age Profile'!AZ22 -> 0 | BA22: ='[2]5.2 Asset Age Profile'!BA22 -> 158 | BB22: ='[2]5.2 Asset Age Profile'!BB22 -> 194 | BC22: ='[2]5.2 Asset Age Profile'!BC22 -> 25 | BD22: ='[2]5.2 Asset Age Profile'!BD22 -> 10 | BE22: ='[2]5.2 Asset Age Profile'!BE22 -> 93 | BF22: ='[2]5.2 Asset Age Profile'!BF22 -> 191 | BG22: ='[2]5.2 Asset Age Profile'!BG22 -> 99 | BH22: ='[2]5.2 Asset Age Profile'!BH22 -> 1263 | BI22: ='[2]5.2 Asset Age Profile'!BI22 -> 52 | BJ22: ='[2]5.2 Asset Age Profile'!BJ22 -> 89 | BK22: ='[2]5.2 Asset Age Profile'!BK22 -> 166 | BL22: ='[2]5.2 Asset Age Profile'!BL22 -> 322 | BM22: ='[2]5.2 Asset Age Profile'!BM22 -> 404 | BN22: ='[2]5.2 Asset Age Profile'!BN22 -> 69 | BO22: ='[2]5.2 Asset Age Profile'!BO22 -> 1 | BP22: ='[2]5.2 Asset Age Profile'!BP22 -> 0 | BQ22: ='[2]5.2 Asset Age Profile'!BQ22 -> 143 | BR22: ='[2]5.2 Asset Age Profile'!BR22 -> 0 | BS22: ='[2]5.2 Asset Age Profile'!BS22 -> 0 | BT22: ='[2]5.2 Asset Age Profile'!BT22 -> 0 | BU22: ='[2]5.2 Asset Age Profile'!BU22 -> 0 | BV22: ='[2]5.2 Asset Age Profile'!BV22 -> 0 | BW22: ='[2]5.2 Asset Age Profile'!BW22 -> 0 | BX22: ='[2]5.2 Asset Age Profile'!BX22 -> 0 | BY22: ='[2]5.2 Asset Age Profile'!BY22 -> 0 | BZ22: ='[2]5.2 Asset Age Profile'!BZ22 -> 2 | CA22: ='[2]5.2 Asset Age Profile'!CA22 -> 0 | CB22: ='[2]5.2 Asset Age Profile'!CB22 -> 0 | CC22: ='[2]5.2 Asset Age Profile'!CC22 -> 0 | CD22: ='[2]5.2 Asset Age Profile'!CD22 -> 0 | CE22: ='[2]5.2 Asset Age Profile'!CE22 -> 0 | CF22: ='[2]5.2 Asset Age Profile'!CF22 -> 0 | CG22: ='[2]5.2 Asset Age Profile'!CG22 -> 0 | CH22: ='[2]5.2 Asset Age Profile'!CH22 -> 2 | CI22: ='[2]5.2 Asset Age Profile'!CI22 -> 3 | CJ22: ='[2]5.2 Asset Age Profile'!CJ22 -> 0 | CK22: ='[2]5.2 Asset Age Profile'!CK22 -> 0 | CL22: ='[2]5.2 Asset Age Profile'!CL22 -> 0 | CM22: ='[2]5.2 Asset Age Profile'!CM22 -> 0 | CN22: ='[2]5.2 Asset Age Profile'!CN22 -> 0 | CO22: ='[2]5.2 Asset Age Profile'!CO22 -> 0 | CP22: ='[2]5.2 Asset Age Profile'!CP22 -> 0 | CQ22: ='[2]5.2 Asset Age Profile'!CQ22 -> 0 | CR22: ='[2]5.2 Asset Age Profile'!CR22 -> 0 | CS22: ='[2]5.2 Asset Age Profile'!CS22 -> 0 | CT22: ='[2]5.2 Asset Age Profile'!CT22 -> 0 | CU22: ='[2]5.2 Asset Age Profile'!CU22 -> 0 | CV22: ='[2]5.2 Asset Age Profile'!CV22 -> 0 | CW22: ='[2]5.2 Asset Age Profile'!CW22 -> 0 | CX22: ='[2]5.2 Asset Age Profile'!CX22 -> 0 | CY22: ='[2]5.2 Asset Age Profile'!CY22 -> 0 | CZ22: ='[2]5.2 Asset Age Profile'!CZ22 -> 0 | DA22: ='[2]5.2 Asset Age Profile'!DA22 -> 0 | DB22: ='[2]5.2 Asset Age Profile'!DB22 -> 0 | DC22: ='[2]5.2 Asset Age Profile'!DC22 -> 0 | DD22: ='[2]5.2 Asset Age Profile'!DD22 -> 0 | DE22: ='[2]5.2 Asset Age Profile'!DE22 -> 0 | DF22: ='[2]5.2 Asset Age Profile'!DF22 -> 0 | DG22: ='[2]5.2 Asset Age Profile'!DG22 -> 0 | DH22: ='[2]5.2 Asset Age Profile'!DH22 -> 0 | DI22: ='[2]5.2 Asset Age Profile'!DI22 -> 0 | DJ22: ='[2]5.2 Asset Age Profile'!DJ22 -> 0 | DK22: ='[2]5.2 Asset Age Profile'!DK22 -> 0 | DL22: ='[2]5.2 Asset Age Profile'!DL22 -> 0 | DM22: ='[2]5.2 Asset Age Profile'!DM22 -> 0 | DN22: ='[2]5.2 Asset Age Profile'!DN22 -> 0 | DO22: ='[2]5.2 Asset Age Profile'!DO22 -> 0 | DP22: ='[2]5.2 Asset Age Profile'!DP22 -> 0 | DQ22: ='[2]5.2 Asset Age Profile'!DQ22 -> 0 | DR22: ='[2]5.2 Asset Age Profile'!DR22 -> 0 | DS22: ='[2]5.2 Asset Age Profile'!DS22 -> 0 | DT22: ='[2]5.2 Asset Age Profile'!DT22 -> 0 | DU22: ='[2]5.2 Asset Age Profile'!DU22 -> 0 | DV22: ='[2]5.2 Asset Age Profile'!DV22 -> 0 | DW22: ='[2]5.2 Asset Age Profile'!DW22 -> 0 | DX22: ='[2]5.2 Asset Age Profile'!DX22 -> 0 | DY22: ='[2]5.2 Asset Age Profile'!DY22 -> 0 | DZ22: ='[2]5.2 Asset Age Profile'!DZ22 -> 0 | EA22: ='[2]5.2 Asset Age Profile'!EA22 -> 0 | EB22: ='[2]5.2 Asset Age Profile'!EB22 -> 0 | EC22: ='[2]5.2 Asset Age Profile'!EC22 -> 0 | ED22: ='[2]5.2 Asset Age Profile'!ED22 -> 0 | EE22: ='[2]5.2 Asset Age Profile'!EE22 -> 0 | EF22: ='[2]5.2 Asset Age Profile'!EF22 -> 0 | EG22: ='[2]5.2 Asset Age Profile'!EG22 -> 0 | EH22: ='[2]5.2 Asset Age Profile'!EH22 -> 0 | EI22: ='[2]5.2 Asset Age Profile'!EI22 -> 0 | EJ22: ='[2]5.2 Asset Age Profile'!EJ22 -> 0
A23: ED_ASS521_00013 | C23: > 132 kV; Concrete | N23: ='[2]5.2 Asset Age Profile'!N23 -> 0 | O23: ='[2]5.2 Asset Age Profile'!O23 -> 0 | P23: ='[2]5.2 Asset Age Profile'!P23 -> 0 | Q23: ='[2]5.2 Asset Age Profile'!Q23 -> 0 | R23: ='[2]5.2 Asset Age Profile'!R23 -> 0 | S23: ='[2]5.2 Asset Age Profile'!S23 -> 0 | T23: ='[2]5.2 Asset Age Profile'!T23 -> 0 | U23: ='[2]5.2 Asset Age Profile'!U23 -> 0 | V23: ='[2]5.2 Asset Age Profile'!V23 -> 0 | W23: ='[2]5.2 Asset Age Profile'!W23 -> 0 | X23: ='[2]5.2 Asset Age Profile'!X23 -> 0 | Y23: ='[2]5.2 Asset Age Profile'!Y23 -> 0 | Z23: ='[2]5.2 Asset Age Profile'!Z23 -> 0 | AA23: ='[2]5.2 Asset Age Profile'!AA23 -> 0 | AB23: ='[2]5.2 Asset Age Profile'!AB23 -> 0 | AC23: ='[2]5.2 Asset Age Profile'!AC23 -> 0 | AD23: ='[2]5.2 Asset Age Profile'!AD23 -> 0 | AE23: ='[2]5.2 Asset Age Profile'!AE23 -> 0 | AF23: ='[2]5.2 Asset Age Profile'!AF23 -> 0 | AG23: ='[2]5.2 Asset Age Profile'!AG23 -> 0 | AH23: ='[2]5.2 Asset Age Profile'!AH23 -> 0 | AI23: ='[2]5.2 Asset Age Profile'!AI23 -> 0 | AJ23: ='[2]5.2 Asset Age Profile'!AJ23 -> 0 | AK23: ='[2]5.2 Asset Age Profile'!AK23 -> 0 | AL23: ='[2]5.2 Asset Age Profile'!AL23 -> 0 | AM23: ='[2]5.2 Asset Age Profile'!AM23 -> 0 | AN23: ='[2]5.2 Asset Age Profile'!AN23 -> 0 | AO23: ='[2]5.2 Asset Age Profile'!AO23 -> 0 | AP23: ='[2]5.2 Asset Age Profile'!AP23 -> 0 | AQ23: ='[2]5.2 Asset Age Profile'!AQ23 -> 0 | AR23: ='[2]5.2 Asset Age Profile'!AR23 -> 0 | AS23: ='[2]5.2 Asset Age Profile'!AS23 -> 0 | AT23: ='[2]5.2 Asset Age Profile'!AT23 -> 0 | AU23: ='[2]5.2 Asset Age Profile'!AU23 -> 0 | AV23: ='[2]5.2 Asset Age Profile'!AV23 -> 0 | AW23: ='[2]5.2 Asset Age Profile'!AW23 -> 0 | AX23: ='[2]5.2 Asset Age Profile'!AX23 -> 0 | AY23: ='[2]5.2 Asset Age Profile'!AY23 -> 0 | AZ23: ='[2]5.2 Asset Age Profile'!AZ23 -> 0 | BA23: ='[2]5.2 Asset Age Profile'!BA23 -> 0 | BB23: ='[2]5.2 Asset Age Profile'!BB23 -> 0 | BC23: ='[2]5.2 Asset Age Profile'!BC23 -> 0 | BD23: ='[2]5.2 Asset Age Profile'!BD23 -> 0 | BE23: ='[2]5.2 Asset Age Profile'!BE23 -> 0 | BF23: ='[2]5.2 Asset Age Profile'!BF23 -> 0 | BG23: ='[2]5.2 Asset Age Profile'!BG23 -> 0 | BH23: ='[2]5.2 Asset Age Profile'!BH23 -> 0 | BI23: ='[2]5.2 Asset Age Profile'!BI23 -> 0 | BJ23: ='[2]5.2 Asset Age Profile'!BJ23 -> 0 | BK23: ='[2]5.2 Asset Age Profile'!BK23 -> 0 | BL23: ='[2]5.2 Asset Age Profile'!BL23 -> 0 | BM23: ='[2]5.2 Asset Age Profile'!BM23 -> 0 | BN23: ='[2]5.2 Asset Age Profile'!BN23 -> 0 | BO23: ='[2]5.2 Asset Age Profile'!BO23 -> 0 | BP23: ='[2]5.2 Asset Age Profile'!BP23 -> 0 | BQ23: ='[2]5.2 Asset Age Profile'!BQ23 -> 0 | BR23: ='[2]5.2 Asset Age Profile'!BR23 -> 0 | BS23: ='[2]5.2 Asset Age Profile'!BS23 -> 0 | BT23: ='[2]5.2 Asset Age Profile'!BT23 -> 0 | BU23: ='[2]5.2 Asset Age Profile'!BU23 -> 0 | BV23: ='[2]5.2 Asset Age Profile'!BV23 -> 0 | BW23: ='[2]5.2 Asset Age Profile'!BW23 -> 0 | BX23: ='[2]5.2 Asset Age Profile'!BX23 -> 0 | BY23: ='[2]5.2 Asset Age Profile'!BY23 -> 0 | BZ23: ='[2]5.2 Asset Age Profile'!BZ23 -> 0 | CA23: ='[2]5.2 Asset Age Profile'!CA23 -> 0 | CB23: ='[2]5.2 Asset Age Profile'!CB23 -> 0 | CC23: ='[2]5.2 Asset Age Profile'!CC23 -> 0 | CD23: ='[2]5.2 Asset Age Profile'!CD23 -> 0 | CE23: ='[2]5.2 Asset Age Profile'!CE23 -> 0 | CF23: ='[2]5.2 Asset Age Profile'!CF23 -> 0 | CG23: ='[2]5.2 Asset Age Profile'!CG23 -> 0 | CH23: ='[2]5.2 Asset Age Profile'!CH23 -> 0 | CI23: ='[2]5.2 Asset Age Profile'!CI23 -> 0 | CJ23: ='[2]5.2 Asset Age Profile'!CJ23 -> 0 | CK23: ='[2]5.2 Asset Age Profile'!CK23 -> 0 | CL23: ='[2]5.2 Asset Age Profile'!CL23 -> 0 | CM23: ='[2]5.2 Asset Age Profile'!CM23 -> 0 | CN23: ='[2]5.2 Asset Age Profile'!CN23 -> 0 | CO23: ='[2]5.2 Asset Age Profile'!CO23 -> 0 | CP23: ='[2]5.2 Asset Age Profile'!CP23 -> 0 | CQ23: ='[2]5.2 Asset Age Profile'!CQ23 -> 0 | CR23: ='[2]5.2 Asset Age Profile'!CR23 -> 0 | CS23: ='[2]5.2 Asset Age Profile'!CS23 -> 0 | CT23: ='[2]5.2 Asset Age Profile'!CT23 -> 0 | CU23: ='[2]5.2 Asset Age Profile'!CU23 -> 0 | CV23: ='[2]5.2 Asset Age Profile'!CV23 -> 0 | CW23: ='[2]5.2 Asset Age Profile'!CW23 -> 0 | CX23: ='[2]5.2 Asset Age Profile'!CX23 -> 0 | CY23: ='[2]5.2 Asset Age Profile'!CY23 -> 0 | CZ23: ='[2]5.2 Asset Age Profile'!CZ23 -> 0 | DA23: ='[2]5.2 Asset Age Profile'!DA23 -> 0 | DB23: ='[2]5.2 Asset Age Profile'!DB23 -> 0 | DC23: ='[2]5.2 Asset Age Profile'!DC23 -> 0 | DD23: ='[2]5.2 Asset Age Profile'!DD23 -> 0 | DE23: ='[2]5.2 Asset Age Profile'!DE23 -> 0 | DF23: ='[2]5.2 Asset Age Profile'!DF23 -> 0 | DG23: ='[2]5.2 Asset Age Profile'!DG23 -> 0 | DH23: ='[2]5.2 Asset Age Profile'!DH23 -> 0 | DI23: ='[2]5.2 Asset Age Profile'!DI23 -> 0 | DJ23: ='[2]5.2 Asset Age Profile'!DJ23 -> 0 | DK23: ='[2]5.2 Asset Age Profile'!DK23 -> 0 | DL23: ='[2]5.2 Asset Age Profile'!DL23 -> 0 | DM23: ='[2]5.2 Asset Age Profile'!DM23 -> 0 | DN23: ='[2]5.2 Asset Age Profile'!DN23 -> 0 | DO23: ='[2]5.2 Asset Age Profile'!DO23 -> 0 | DP23: ='[2]5.2 Asset Age Profile'!DP23 -> 0 | DQ23: ='[2]5.2 Asset Age Profile'!DQ23 -> 0 | DR23: ='[2]5.2 Asset Age Profile'!DR23 -> 0 | DS23: ='[2]5.2 Asset Age Profile'!DS23 -> 0 | DT23: ='[2]5.2 Asset Age Profile'!DT23 -> 0 | DU23: ='[2]5.2 Asset Age Profile'!DU23 -> 0 | DV23: ='[2]5.2 Asset Age Profile'!DV23 -> 0 | DW23: ='[2]5.2 Asset Age Profile'!DW23 -> 0 | DX23: ='[2]5.2 Asset Age Profile'!DX23 -> 0 | DY23: ='[2]5.2 Asset Age Profile'!DY23 -> 0 | DZ23: ='[2]5.2 Asset Age Profile'!DZ23 -> 0 | EA23: ='[2]5.2 Asset Age Profile'!EA23 -> 0 | EB23: ='[2]5.2 Asset Age Profile'!EB23 -> 0 | EC23: ='[2]5.2 Asset Age Profile'!EC23 -> 0 | ED23: ='[2]5.2 Asset Age Profile'!ED23 -> 0 | EE23: ='[2]5.2 Asset Age Profile'!EE23 -> 0 | EF23: ='[2]5.2 Asset Age Profile'!EF23 -> 0 | EG23: ='[2]5.2 Asset Age Profile'!EG23 -> 0 | EH23: ='[2]5.2 Asset Age Profile'!EH23 -> 0 | EI23: ='[2]5.2 Asset Age Profile'!EI23 -> 0 | EJ23: ='[2]5.2 Asset Age Profile'!EJ23 -> 0
A24: ED_ASS521_00014 | C24: ˂ = 1 kV; Steel | N24: ='[2]5.2 Asset Age Profile'!N24 -> 53.8 | O24: ='[2]5.2 Asset Age Profile'!O24 -> 0 | P24: ='[2]5.2 Asset Age Profile'!P24 -> 0 | Q24: ='[2]5.2 Asset Age Profile'!Q24 -> 0 | R24: ='[2]5.2 Asset Age Profile'!R24 -> 0 | S24: ='[2]5.2 Asset Age Profile'!S24 -> 0 | T24: ='[2]5.2 Asset Age Profile'!T24 -> 0 | U24: ='[2]5.2 Asset Age Profile'!U24 -> 0 | V24: ='[2]5.2 Asset Age Profile'!V24 -> 0 | W24: ='[2]5.2 Asset Age Profile'!W24 -> 0 | X24: ='[2]5.2 Asset Age Profile'!X24 -> 0 | Y24: ='[2]5.2 Asset Age Profile'!Y24 -> 7.334848328 | Z24: ='[2]5.2 Asset Age Profile'!Z24 -> 0 | AA24: ='[2]5.2 Asset Age Profile'!AA24 -> 0 | AB24: ='[2]5.2 Asset Age Profile'!AB24 -> 0 | AC24: ='[2]5.2 Asset Age Profile'!AC24 -> 0 | AD24: ='[2]5.2 Asset Age Profile'!AD24 -> 0 | AE24: ='[2]5.2 Asset Age Profile'!AE24 -> 0 | AF24: ='[2]5.2 Asset Age Profile'!AF24 -> 0 | AG24: ='[2]5.2 Asset Age Profile'!AG24 -> 0 | AH24: ='[2]5.2 Asset Age Profile'!AH24 -> 0 | AI24: ='[2]5.2 Asset Age Profile'!AI24 -> 0 | AJ24: ='[2]5.2 Asset Age Profile'!AJ24 -> 924 | AK24: ='[2]5.2 Asset Age Profile'!AK24 -> 625 | AL24: ='[2]5.2 Asset Age Profile'!AL24 -> 243 | AM24: ='[2]5.2 Asset Age Profile'!AM24 -> 503 | AN24: ='[2]5.2 Asset Age Profile'!AN24 -> 285 | AO24: ='[2]5.2 Asset Age Profile'!AO24 -> 395 | AP24: ='[2]5.2 Asset Age Profile'!AP24 -> 483 | AQ24: ='[2]5.2 Asset Age Profile'!AQ24 -> 383 | AR24: ='[2]5.2 Asset Age Profile'!AR24 -> 143 | AS24: ='[2]5.2 Asset Age Profile'!AS24 -> 342 | AT24: ='[2]5.2 Asset Age Profile'!AT24 -> 276 | AU24: ='[2]5.2 Asset Age Profile'!AU24 -> 181 | AV24: ='[2]5.2 Asset Age Profile'!AV24 -> 285 | AW24: ='[2]5.2 Asset Age Profile'!AW24 -> 164 | AX24: ='[2]5.2 Asset Age Profile'!AX24 -> 502 | AY24: ='[2]5.2 Asset Age Profile'!AY24 -> 883 | AZ24: ='[2]5.2 Asset Age Profile'!AZ24 -> 326 | BA24: ='[2]5.2 Asset Age Profile'!BA24 -> 87 | BB24: ='[2]5.2 Asset Age Profile'!BB24 -> 49 | BC24: ='[2]5.2 Asset Age Profile'!BC24 -> 170 | BD24: ='[2]5.2 Asset Age Profile'!BD24 -> 243 | BE24: ='[2]5.2 Asset Age Profile'!BE24 -> 78 | BF24: ='[2]5.2 Asset Age Profile'!BF24 -> 126 | BG24: ='[2]5.2 Asset Age Profile'!BG24 -> 86 | BH24: ='[2]5.2 Asset Age Profile'!BH24 -> 425 | BI24: ='[2]5.2 Asset Age Profile'!BI24 -> 437 | BJ24: ='[2]5.2 Asset Age Profile'!BJ24 -> 77 | BK24: ='[2]5.2 Asset Age Profile'!BK24 -> 52 | BL24: ='[2]5.2 Asset Age Profile'!BL24 -> 31 | BM24: ='[2]5.2 Asset Age Profile'!BM24 -> 76 | BN24: ='[2]5.2 Asset Age Profile'!BN24 -> 60 | BO24: ='[2]5.2 Asset Age Profile'!BO24 -> 45 | BP24: ='[2]5.2 Asset Age Profile'!BP24 -> 20 | BQ24: ='[2]5.2 Asset Age Profile'!BQ24 -> 33 | BR24: ='[2]5.2 Asset Age Profile'!BR24 -> 378 | BS24: ='[2]5.2 Asset Age Profile'!BS24 -> 756 | BT24: ='[2]5.2 Asset Age Profile'!BT24 -> 13 | BU24: ='[2]5.2 Asset Age Profile'!BU24 -> 33 | BV24: ='[2]5.2 Asset Age Profile'!BV24 -> 104 | BW24: ='[2]5.2 Asset Age Profile'!BW24 -> 15 | BX24: ='[2]5.2 Asset Age Profile'!BX24 -> 100 | BY24: ='[2]5.2 Asset Age Profile'!BY24 -> 25 | BZ24: ='[2]5.2 Asset Age Profile'!BZ24 -> 22 | CA24: ='[2]5.2 Asset Age Profile'!CA24 -> 23 | CB24: ='[2]5.2 Asset Age Profile'!CB24 -> 78 | CC24: ='[2]5.2 Asset Age Profile'!CC24 -> 219 | CD24: ='[2]5.2 Asset Age Profile'!CD24 -> 40 | CE24: ='[2]5.2 Asset Age Profile'!CE24 -> 47 | CF24: ='[2]5.2 Asset Age Profile'!CF24 -> 52 | CG24: ='[2]5.2 Asset Age Profile'!CG24 -> 264 | CH24: ='[2]5.2 Asset Age Profile'!CH24 -> 229 | CI24: ='[2]5.2 Asset Age Profile'!CI24 -> 61 | CJ24: ='[2]5.2 Asset Age Profile'!CJ24 -> 20 | CK24: ='[2]5.2 Asset Age Profile'!CK24 -> 8 | CL24: ='[2]5.2 Asset Age Profile'!CL24 -> 62 | CM24: ='[2]5.2 Asset Age Profile'!CM24 -> 201 | CN24: ='[2]5.2 Asset Age Profile'!CN24 -> 8 | CO24: ='[2]5.2 Asset Age Profile'!CO24 -> 18 | CP24: ='[2]5.2 Asset Age Profile'!CP24 -> 36 | CQ24: ='[2]5.2 Asset Age Profile'!CQ24 -> 16 | CR24: ='[2]5.2 Asset Age Profile'!CR24 -> 39 | CS24: ='[2]5.2 Asset Age Profile'!CS24 -> 0 | CT24: ='[2]5.2 Asset Age Profile'!CT24 -> 13 | CU24: ='[2]5.2 Asset Age Profile'!CU24 -> 28 | CV24: ='[2]5.2 Asset Age Profile'!CV24 -> 4 | CW24: ='[2]5.2 Asset Age Profile'!CW24 -> 277 | CX24: ='[2]5.2 Asset Age Profile'!CX24 -> 0 | CY24: ='[2]5.2 Asset Age Profile'!CY24 -> 3 | CZ24: ='[2]5.2 Asset Age Profile'!CZ24 -> 12 | DA24: ='[2]5.2 Asset Age Profile'!DA24 -> 6 | DB24: ='[2]5.2 Asset Age Profile'!DB24 -> 0 | DC24: ='[2]5.2 Asset Age Profile'!DC24 -> 0 | DD24: ='[2]5.2 Asset Age Profile'!DD24 -> 0 | DE24: ='[2]5.2 Asset Age Profile'!DE24 -> 0 | DF24: ='[2]5.2 Asset Age Profile'!DF24 -> 1 | DG24: ='[2]5.2 Asset Age Profile'!DG24 -> 314 | DH24: ='[2]5.2 Asset Age Profile'!DH24 -> 3 | DI24: ='[2]5.2 Asset Age Profile'!DI24 -> 0 | DJ24: ='[2]5.2 Asset Age Profile'!DJ24 -> 3 | DK24: ='[2]5.2 Asset Age Profile'!DK24 -> 0 | DL24: ='[2]5.2 Asset Age Profile'!DL24 -> 0 | DM24: ='[2]5.2 Asset Age Profile'!DM24 -> 0 | DN24: ='[2]5.2 Asset Age Profile'!DN24 -> 0 | DO24: ='[2]5.2 Asset Age Profile'!DO24 -> 0 | DP24: ='[2]5.2 Asset Age Profile'!DP24 -> 1 | DQ24: ='[2]5.2 Asset Age Profile'!DQ24 -> 1 | DR24: ='[2]5.2 Asset Age Profile'!DR24 -> 0 | DS24: ='[2]5.2 Asset Age Profile'!DS24 -> 0 | DT24: ='[2]5.2 Asset Age Profile'!DT24 -> 0 | DU24: ='[2]5.2 Asset Age Profile'!DU24 -> 0 | DV24: ='[2]5.2 Asset Age Profile'!DV24 -> 1 | DW24: ='[2]5.2 Asset Age Profile'!DW24 -> 0 | DX24: ='[2]5.2 Asset Age Profile'!DX24 -> 0 | DY24: ='[2]5.2 Asset Age Profile'!DY24 -> 0 | DZ24: ='[2]5.2 Asset Age Profile'!DZ24 -> 0 | EA24: ='[2]5.2 Asset Age Profile'!EA24 -> 0 | EB24: ='[2]5.2 Asset Age Profile'!EB24 -> 0 | EC24: ='[2]5.2 Asset Age Profile'!EC24 -> 0 | ED24: ='[2]5.2 Asset Age Profile'!ED24 -> 0 | EE24: ='[2]5.2 Asset Age Profile'!EE24 -> 0 | EF24: ='[2]5.2 Asset Age Profile'!EF24 -> 0 | EG24: ='[2]5.2 Asset Age Profile'!EG24 -> 0 | EH24: ='[2]5.2 Asset Age Profile'!EH24 -> 0 | EI24: ='[2]5.2 Asset Age Profile'!EI24 -> 0 | EJ24: ='[2]5.2 Asset Age Profile'!EJ24 -> 0
A25: ED_ASS521_00015 | C25: > 1 kV & < = 11 kV; Steel | N25: ='[2]5.2 Asset Age Profile'!N25 -> 53.8 | O25: ='[2]5.2 Asset Age Profile'!O25 -> 0 | P25: ='[2]5.2 Asset Age Profile'!P25 -> 0 | Q25: ='[2]5.2 Asset Age Profile'!Q25 -> 0 | R25: ='[2]5.2 Asset Age Profile'!R25 -> 0 | S25: ='[2]5.2 Asset Age Profile'!S25 -> 0 | T25: ='[2]5.2 Asset Age Profile'!T25 -> 0 | U25: ='[2]5.2 Asset Age Profile'!U25 -> 0 | V25: ='[2]5.2 Asset Age Profile'!V25 -> 0 | W25: ='[2]5.2 Asset Age Profile'!W25 -> 0 | X25: ='[2]5.2 Asset Age Profile'!X25 -> 0 | Y25: ='[2]5.2 Asset Age Profile'!Y25 -> 7.334848328 | Z25: ='[2]5.2 Asset Age Profile'!Z25 -> 0 | AA25: ='[2]5.2 Asset Age Profile'!AA25 -> 0 | AB25: ='[2]5.2 Asset Age Profile'!AB25 -> 0 | AC25: ='[2]5.2 Asset Age Profile'!AC25 -> 0 | AD25: ='[2]5.2 Asset Age Profile'!AD25 -> 0 | AE25: ='[2]5.2 Asset Age Profile'!AE25 -> 0 | AF25: ='[2]5.2 Asset Age Profile'!AF25 -> 0 | AG25: ='[2]5.2 Asset Age Profile'!AG25 -> 0 | AH25: ='[2]5.2 Asset Age Profile'!AH25 -> 0 | AI25: ='[2]5.2 Asset Age Profile'!AI25 -> 0 | AJ25: ='[2]5.2 Asset Age Profile'!AJ25 -> 154 | AK25: ='[2]5.2 Asset Age Profile'!AK25 -> 417 | AL25: ='[2]5.2 Asset Age Profile'!AL25 -> 1217 | AM25: ='[2]5.2 Asset Age Profile'!AM25 -> 1089 | AN25: ='[2]5.2 Asset Age Profile'!AN25 -> 702 | AO25: ='[2]5.2 Asset Age Profile'!AO25 -> 767 | AP25: ='[2]5.2 Asset Age Profile'!AP25 -> 1114 | AQ25: ='[2]5.2 Asset Age Profile'!AQ25 -> 272 | AR25: ='[2]5.2 Asset Age Profile'!AR25 -> 236 | AS25: ='[2]5.2 Asset Age Profile'!AS25 -> 23 | AT25: ='[2]5.2 Asset Age Profile'!AT25 -> 6 | AU25: ='[2]5.2 Asset Age Profile'!AU25 -> 3 | AV25: ='[2]5.2 Asset Age Profile'!AV25 -> 5 | AW25: ='[2]5.2 Asset Age Profile'!AW25 -> 0 | AX25: ='[2]5.2 Asset Age Profile'!AX25 -> 1 | AY25: ='[2]5.2 Asset Age Profile'!AY25 -> 13 | AZ25: ='[2]5.2 Asset Age Profile'!AZ25 -> 0 | BA25: ='[2]5.2 Asset Age Profile'!BA25 -> 4 | BB25: ='[2]5.2 Asset Age Profile'!BB25 -> 3 | BC25: ='[2]5.2 Asset Age Profile'!BC25 -> 0 | BD25: ='[2]5.2 Asset Age Profile'!BD25 -> 1 | BE25: ='[2]5.2 Asset Age Profile'!BE25 -> 2 | BF25: ='[2]5.2 Asset Age Profile'!BF25 -> 0 | BG25: ='[2]5.2 Asset Age Profile'!BG25 -> 1 | BH25: ='[2]5.2 Asset Age Profile'!BH25 -> 1 | BI25: ='[2]5.2 Asset Age Profile'!BI25 -> 0 | BJ25: ='[2]5.2 Asset Age Profile'!BJ25 -> 2 | BK25: ='[2]5.2 Asset Age Profile'!BK25 -> 2 | BL25: ='[2]5.2 Asset Age Profile'!BL25 -> 4 | BM25: ='[2]5.2 Asset Age Profile'!BM25 -> 1 | BN25: ='[2]5.2 Asset Age Profile'!BN25 -> 3 | BO25: ='[2]5.2 Asset Age Profile'!BO25 -> 1 | BP25: ='[2]5.2 Asset Age Profile'!BP25 -> 2 | BQ25: ='[2]5.2 Asset Age Profile'!BQ25 -> 1 | BR25: ='[2]5.2 Asset Age Profile'!BR25 -> 1 | BS25: ='[2]5.2 Asset Age Profile'!BS25 -> 0 | BT25: ='[2]5.2 Asset Age Profile'!BT25 -> 0 | BU25: ='[2]5.2 Asset Age Profile'!BU25 -> 19 | BV25: ='[2]5.2 Asset Age Profile'!BV25 -> 7 | BW25: ='[2]5.2 Asset Age Profile'!BW25 -> 3 | BX25: ='[2]5.2 Asset Age Profile'!BX25 -> 2 | BY25: ='[2]5.2 Asset Age Profile'!BY25 -> 1 | BZ25: ='[2]5.2 Asset Age Profile'!BZ25 -> 0 | CA25: ='[2]5.2 Asset Age Profile'!CA25 -> 1 | CB25: ='[2]5.2 Asset Age Profile'!CB25 -> 2 | CC25: ='[2]5.2 Asset Age Profile'!CC25 -> 9 | CD25: ='[2]5.2 Asset Age Profile'!CD25 -> 0 | CE25: ='[2]5.2 Asset Age Profile'!CE25 -> 1 | CF25: ='[2]5.2 Asset Age Profile'!CF25 -> 1 | CG25: ='[2]5.2 Asset Age Profile'!CG25 -> 61 | CH25: ='[2]5.2 Asset Age Profile'!CH25 -> 5 | CI25: ='[2]5.2 Asset Age Profile'!CI25 -> 0 | CJ25: ='[2]5.2 Asset Age Profile'!CJ25 -> 0 | CK25: ='[2]5.2 Asset Age Profile'!CK25 -> 19 | CL25: ='[2]5.2 Asset Age Profile'!CL25 -> 7 | CM25: ='[2]5.2 Asset Age Profile'!CM25 -> 6 | CN25: ='[2]5.2 Asset Age Profile'!CN25 -> 0 | CO25: ='[2]5.2 Asset Age Profile'!CO25 -> 9 | CP25: ='[2]5.2 Asset Age Profile'!CP25 -> 0 | CQ25: ='[2]5.2 Asset Age Profile'!CQ25 -> 1 | CR25: ='[2]5.2 Asset Age Profile'!CR25 -> 7 | CS25: ='[2]5.2 Asset Age Profile'!CS25 -> 0 | CT25: ='[2]5.2 Asset Age Profile'!CT25 -> 0 | CU25: ='[2]5.2 Asset Age Profile'!CU25 -> 1 | CV25: ='[2]5.2 Asset Age Profile'!CV25 -> 0 | CW25: ='[2]5.2 Asset Age Profile'!CW25 -> 5 | CX25: ='[2]5.2 Asset Age Profile'!CX25 -> 0 | CY25: ='[2]5.2 Asset Age Profile'!CY25 -> 0 | CZ25: ='[2]5.2 Asset Age Profile'!CZ25 -> 0 | DA25: ='[2]5.2 Asset Age Profile'!DA25 -> 0 | DB25: ='[2]5.2 Asset Age Profile'!DB25 -> 0 | DC25: ='[2]5.2 Asset Age Profile'!DC25 -> 0 | DD25: ='[2]5.2 Asset Age Profile'!DD25 -> 0 | DE25: ='[2]5.2 Asset Age Profile'!DE25 -> 0 | DF25: ='[2]5.2 Asset Age Profile'!DF25 -> 0 | DG25: ='[2]5.2 Asset Age Profile'!DG25 -> 0 | DH25: ='[2]5.2 Asset Age Profile'!DH25 -> 0 | DI25: ='[2]5.2 Asset Age Profile'!DI25 -> 0 | DJ25: ='[2]5.2 Asset Age Profile'!DJ25 -> 0 | DK25: ='[2]5.2 Asset Age Profile'!DK25 -> 0 | DL25: ='[2]5.2 Asset Age Profile'!DL25 -> 0 | DM25: ='[2]5.2 Asset Age Profile'!DM25 -> 0 | DN25: ='[2]5.2 Asset Age Profile'!DN25 -> 0 | DO25: ='[2]5.2 Asset Age Profile'!DO25 -> 0 | DP25: ='[2]5.2 Asset Age Profile'!DP25 -> 0 | DQ25: ='[2]5.2 Asset Age Profile'!DQ25 -> 0 | DR25: ='[2]5.2 Asset Age Profile'!DR25 -> 0 | DS25: ='[2]5.2 Asset Age Profile'!DS25 -> 0 | DT25: ='[2]5.2 Asset Age Profile'!DT25 -> 0 | DU25: ='[2]5.2 Asset Age Profile'!DU25 -> 0 | DV25: ='[2]5.2 Asset Age Profile'!DV25 -> 0 | DW25: ='[2]5.2 Asset Age Profile'!DW25 -> 0 | DX25: ='[2]5.2 Asset Age Profile'!DX25 -> 0 | DY25: ='[2]5.2 Asset Age Profile'!DY25 -> 0 | DZ25: ='[2]5.2 Asset Age Profile'!DZ25 -> 0 | EA25: ='[2]5.2 Asset Age Profile'!EA25 -> 0 | EB25: ='[2]5.2 Asset Age Profile'!EB25 -> 0 | EC25: ='[2]5.2 Asset Age Profile'!EC25 -> 0 | ED25: ='[2]5.2 Asset Age Profile'!ED25 -> 0 | EE25: ='[2]5.2 Asset Age Profile'!EE25 -> 0 | EF25: ='[2]5.2 Asset Age Profile'!EF25 -> 0 | EG25: ='[2]5.2 Asset Age Profile'!EG25 -> 0 | EH25: ='[2]5.2 Asset Age Profile'!EH25 -> 0 | EI25: ='[2]5.2 Asset Age Profile'!EI25 -> 0 | EJ25: ='[2]5.2 Asset Age Profile'!EJ25 -> 0
A26: ED_ASS521_00016 | C26: ˃ 11 kV & < = 22 kV; Steel | N26: ='[2]5.2 Asset Age Profile'!N26 -> 53.8 | O26: ='[2]5.2 Asset Age Profile'!O26 -> 0 | P26: ='[2]5.2 Asset Age Profile'!P26 -> 0 | Q26: ='[2]5.2 Asset Age Profile'!Q26 -> 0 | R26: ='[2]5.2 Asset Age Profile'!R26 -> 0 | S26: ='[2]5.2 Asset Age Profile'!S26 -> 0 | T26: ='[2]5.2 Asset Age Profile'!T26 -> 0 | U26: ='[2]5.2 Asset Age Profile'!U26 -> 0 | V26: ='[2]5.2 Asset Age Profile'!V26 -> 0 | W26: ='[2]5.2 Asset Age Profile'!W26 -> 0 | X26: ='[2]5.2 Asset Age Profile'!X26 -> 0 | Y26: ='[2]5.2 Asset Age Profile'!Y26 -> 7.334848328 | Z26: ='[2]5.2 Asset Age Profile'!Z26 -> 0 | AA26: ='[2]5.2 Asset Age Profile'!AA26 -> 0 | AB26: ='[2]5.2 Asset Age Profile'!AB26 -> 0 | AC26: ='[2]5.2 Asset Age Profile'!AC26 -> 0 | AD26: ='[2]5.2 Asset Age Profile'!AD26 -> 0 | AE26: ='[2]5.2 Asset Age Profile'!AE26 -> 0 | AF26: ='[2]5.2 Asset Age Profile'!AF26 -> 0 | AG26: ='[2]5.2 Asset Age Profile'!AG26 -> 0 | AH26: ='[2]5.2 Asset Age Profile'!AH26 -> 0 | AI26: ='[2]5.2 Asset Age Profile'!AI26 -> 0 | AJ26: ='[2]5.2 Asset Age Profile'!AJ26 -> 488 | AK26: ='[2]5.2 Asset Age Profile'!AK26 -> 783 | AL26: ='[2]5.2 Asset Age Profile'!AL26 -> 2018 | AM26: ='[2]5.2 Asset Age Profile'!AM26 -> 2107 | AN26: ='[2]5.2 Asset Age Profile'!AN26 -> 1097 | AO26: ='[2]5.2 Asset Age Profile'!AO26 -> 1188 | AP26: ='[2]5.2 Asset Age Profile'!AP26 -> 1055 | AQ26: ='[2]5.2 Asset Age Profile'!AQ26 -> 630 | AR26: ='[2]5.2 Asset Age Profile'!AR26 -> 412 | AS26: ='[2]5.2 Asset Age Profile'!AS26 -> 86 | AT26: ='[2]5.2 Asset Age Profile'!AT26 -> 3 | AU26: ='[2]5.2 Asset Age Profile'!AU26 -> 3 | AV26: ='[2]5.2 Asset Age Profile'!AV26 -> 1 | AW26: ='[2]5.2 Asset Age Profile'!AW26 -> 4 | AX26: ='[2]5.2 Asset Age Profile'!AX26 -> 3 | AY26: ='[2]5.2 Asset Age Profile'!AY26 -> 8 | AZ26: ='[2]5.2 Asset Age Profile'!AZ26 -> 0 | BA26: ='[2]5.2 Asset Age Profile'!BA26 -> 3 | BB26: ='[2]5.2 Asset Age Profile'!BB26 -> 0 | BC26: ='[2]5.2 Asset Age Profile'!BC26 -> 2 | BD26: ='[2]5.2 Asset Age Profile'!BD26 -> 0 | BE26: ='[2]5.2 Asset Age Profile'!BE26 -> 2 | BF26: ='[2]5.2 Asset Age Profile'!BF26 -> 4 | BG26: ='[2]5.2 Asset Age Profile'!BG26 -> 0 | BH26: ='[2]5.2 Asset Age Profile'!BH26 -> 2 | BI26: ='[2]5.2 Asset Age Profile'!BI26 -> 2 | BJ26: ='[2]5.2 Asset Age Profile'!BJ26 -> 1 | BK26: ='[2]5.2 Asset Age Profile'!BK26 -> 8 | BL26: ='[2]5.2 Asset Age Profile'!BL26 -> 8 | BM26: ='[2]5.2 Asset Age Profile'!BM26 -> 3 | BN26: ='[2]5.2 Asset Age Profile'!BN26 -> 2 | BO26: ='[2]5.2 Asset Age Profile'!BO26 -> 1 | BP26: ='[2]5.2 Asset Age Profile'!BP26 -> 3 | BQ26: ='[2]5.2 Asset Age Profile'!BQ26 -> 7 | BR26: ='[2]5.2 Asset Age Profile'!BR26 -> 31 | BS26: ='[2]5.2 Asset Age Profile'!BS26 -> 26 | BT26: ='[2]5.2 Asset Age Profile'!BT26 -> 3 | BU26: ='[2]5.2 Asset Age Profile'!BU26 -> 12 | BV26: ='[2]5.2 Asset Age Profile'!BV26 -> 7 | BW26: ='[2]5.2 Asset Age Profile'!BW26 -> 13 | BX26: ='[2]5.2 Asset Age Profile'!BX26 -> 0 | BY26: ='[2]5.2 Asset Age Profile'!BY26 -> 3 | BZ26: ='[2]5.2 Asset Age Profile'!BZ26 -> 0 | CA26: ='[2]5.2 Asset Age Profile'!CA26 -> 0 | CB26: ='[2]5.2 Asset Age Profile'!CB26 -> 4 | CC26: ='[2]5.2 Asset Age Profile'!CC26 -> 2 | CD26: ='[2]5.2 Asset Age Profile'!CD26 -> 5 | CE26: ='[2]5.2 Asset Age Profile'!CE26 -> 9 | CF26: ='[2]5.2 Asset Age Profile'!CF26 -> 43 | CG26: ='[2]5.2 Asset Age Profile'!CG26 -> 0 | CH26: ='[2]5.2 Asset Age Profile'!CH26 -> 15 | CI26: ='[2]5.2 Asset Age Profile'!CI26 -> 4 | CJ26: ='[2]5.2 Asset Age Profile'!CJ26 -> 0 | CK26: ='[2]5.2 Asset Age Profile'!CK26 -> 3 | CL26: ='[2]5.2 Asset Age Profile'!CL26 -> 13 | CM26: ='[2]5.2 Asset Age Profile'!CM26 -> 16 | CN26: ='[2]5.2 Asset Age Profile'!CN26 -> 3 | CO26: ='[2]5.2 Asset Age Profile'!CO26 -> 5 | CP26: ='[2]5.2 Asset Age Profile'!CP26 -> 0 | CQ26: ='[2]5.2 Asset Age Profile'!CQ26 -> 1 | CR26: ='[2]5.2 Asset Age Profile'!CR26 -> 1 | CS26: ='[2]5.2 Asset Age Profile'!CS26 -> 0 | CT26: ='[2]5.2 Asset Age Profile'!CT26 -> 0 | CU26: ='[2]5.2 Asset Age Profile'!CU26 -> 0 | CV26: ='[2]5.2 Asset Age Profile'!CV26 -> 0 | CW26: ='[2]5.2 Asset Age Profile'!CW26 -> 1 | CX26: ='[2]5.2 Asset Age Profile'!CX26 -> 0 | CY26: ='[2]5.2 Asset Age Profile'!CY26 -> 0 | CZ26: ='[2]5.2 Asset Age Profile'!CZ26 -> 0 | DA26: ='[2]5.2 Asset Age Profile'!DA26 -> 0 | DB26: ='[2]5.2 Asset Age Profile'!DB26 -> 0 | DC26: ='[2]5.2 Asset Age Profile'!DC26 -> 0 | DD26: ='[2]5.2 Asset Age Profile'!DD26 -> 0 | DE26: ='[2]5.2 Asset Age Profile'!DE26 -> 0 | DF26: ='[2]5.2 Asset Age Profile'!DF26 -> 0 | DG26: ='[2]5.2 Asset Age Profile'!DG26 -> 5 | DH26: ='[2]5.2 Asset Age Profile'!DH26 -> 0 | DI26: ='[2]5.2 Asset Age Profile'!DI26 -> 0 | DJ26: ='[2]5.2 Asset Age Profile'!DJ26 -> 0 | DK26: ='[2]5.2 Asset Age Profile'!DK26 -> 0 | DL26: ='[2]5.2 Asset Age Profile'!DL26 -> 0 | DM26: ='[2]5.2 Asset Age Profile'!DM26 -> 0 | DN26: ='[2]5.2 Asset Age Profile'!DN26 -> 0 | DO26: ='[2]5.2 Asset Age Profile'!DO26 -> 0 | DP26: ='[2]5.2 Asset Age Profile'!DP26 -> 0 | DQ26: ='[2]5.2 Asset Age Profile'!DQ26 -> 0 | DR26: ='[2]5.2 Asset Age Profile'!DR26 -> 0 | DS26: ='[2]5.2 Asset Age Profile'!DS26 -> 0 | DT26: ='[2]5.2 Asset Age Profile'!DT26 -> 0 | DU26: ='[2]5.2 Asset Age Profile'!DU26 -> 0 | DV26: ='[2]5.2 Asset Age Profile'!DV26 -> 0 | DW26: ='[2]5.2 Asset Age Profile'!DW26 -> 0 | DX26: ='[2]5.2 Asset Age Profile'!DX26 -> 0 | DY26: ='[2]5.2 Asset Age Profile'!DY26 -> 0 | DZ26: ='[2]5.2 Asset Age Profile'!DZ26 -> 0 | EA26: ='[2]5.2 Asset Age Profile'!EA26 -> 0 | EB26: ='[2]5.2 Asset Age Profile'!EB26 -> 0 | EC26: ='[2]5.2 Asset Age Profile'!EC26 -> 0 | ED26: ='[2]5.2 Asset Age Profile'!ED26 -> 0 | EE26: ='[2]5.2 Asset Age Profile'!EE26 -> 0 | EF26: ='[2]5.2 Asset Age Profile'!EF26 -> 0 | EG26: ='[2]5.2 Asset Age Profile'!EG26 -> 0 | EH26: ='[2]5.2 Asset Age Profile'!EH26 -> 0 | EI26: ='[2]5.2 Asset Age Profile'!EI26 -> 0 | EJ26: ='[2]5.2 Asset Age Profile'!EJ26 -> 0
A27: ED_ASS521_00017 | C27: > 22 kV & < = 66 kV; Steel | N27: ='[2]5.2 Asset Age Profile'!N27 -> 54.9 | O27: ='[2]5.2 Asset Age Profile'!O27 -> 0 | P27: ='[2]5.2 Asset Age Profile'!P27 -> 0 | Q27: ='[2]5.2 Asset Age Profile'!Q27 -> 0 | R27: ='[2]5.2 Asset Age Profile'!R27 -> 0 | S27: ='[2]5.2 Asset Age Profile'!S27 -> 0 | T27: ='[2]5.2 Asset Age Profile'!T27 -> 0 | U27: ='[2]5.2 Asset Age Profile'!U27 -> 0 | V27: ='[2]5.2 Asset Age Profile'!V27 -> 0 | W27: ='[2]5.2 Asset Age Profile'!W27 -> 0 | X27: ='[2]5.2 Asset Age Profile'!X27 -> 0 | Y27: ='[2]5.2 Asset Age Profile'!Y27 -> 7.409453421 | Z27: ='[2]5.2 Asset Age Profile'!Z27 -> 0 | AA27: ='[2]5.2 Asset Age Profile'!AA27 -> 0 | AB27: ='[2]5.2 Asset Age Profile'!AB27 -> 0 | AC27: ='[2]5.2 Asset Age Profile'!AC27 -> 0 | AD27: ='[2]5.2 Asset Age Profile'!AD27 -> 0 | AE27: ='[2]5.2 Asset Age Profile'!AE27 -> 0 | AF27: ='[2]5.2 Asset Age Profile'!AF27 -> 0 | AG27: ='[2]5.2 Asset Age Profile'!AG27 -> 0 | AH27: ='[2]5.2 Asset Age Profile'!AH27 -> 0 | AI27: ='[2]5.2 Asset Age Profile'!AI27 -> 0 | AJ27: ='[2]5.2 Asset Age Profile'!AJ27 -> 150 | AK27: ='[2]5.2 Asset Age Profile'!AK27 -> 274 | AL27: ='[2]5.2 Asset Age Profile'!AL27 -> 578 | AM27: ='[2]5.2 Asset Age Profile'!AM27 -> 437 | AN27: ='[2]5.2 Asset Age Profile'!AN27 -> 430 | AO27: ='[2]5.2 Asset Age Profile'!AO27 -> 216 | AP27: ='[2]5.2 Asset Age Profile'!AP27 -> 144 | AQ27: ='[2]5.2 Asset Age Profile'!AQ27 -> 253 | AR27: ='[2]5.2 Asset Age Profile'!AR27 -> 308 | AS27: ='[2]5.2 Asset Age Profile'!AS27 -> 38 | AT27: ='[2]5.2 Asset Age Profile'!AT27 -> 299 | AU27: ='[2]5.2 Asset Age Profile'!AU27 -> 2 | AV27: ='[2]5.2 Asset Age Profile'!AV27 -> 1 | AW27: ='[2]5.2 Asset Age Profile'!AW27 -> 0 | AX27: ='[2]5.2 Asset Age Profile'!AX27 -> 4 | AY27: ='[2]5.2 Asset Age Profile'!AY27 -> 1 | AZ27: ='[2]5.2 Asset Age Profile'!AZ27 -> 2 | BA27: ='[2]5.2 Asset Age Profile'!BA27 -> 1 | BB27: ='[2]5.2 Asset Age Profile'!BB27 -> 0 | BC27: ='[2]5.2 Asset Age Profile'!BC27 -> 0 | BD27: ='[2]5.2 Asset Age Profile'!BD27 -> 1 | BE27: ='[2]5.2 Asset Age Profile'!BE27 -> 1 | BF27: ='[2]5.2 Asset Age Profile'!BF27 -> 2 | BG27: ='[2]5.2 Asset Age Profile'!BG27 -> 0 | BH27: ='[2]5.2 Asset Age Profile'!BH27 -> 0 | BI27: ='[2]5.2 Asset Age Profile'!BI27 -> 2 | BJ27: ='[2]5.2 Asset Age Profile'!BJ27 -> 0 | BK27: ='[2]5.2 Asset Age Profile'!BK27 -> 2 | BL27: ='[2]5.2 Asset Age Profile'!BL27 -> 0 | BM27: ='[2]5.2 Asset Age Profile'!BM27 -> 1 | BN27: ='[2]5.2 Asset Age Profile'!BN27 -> 1 | BO27: ='[2]5.2 Asset Age Profile'!BO27 -> 0 | BP27: ='[2]5.2 Asset Age Profile'!BP27 -> 1 | BQ27: ='[2]5.2 Asset Age Profile'!BQ27 -> 0 | BR27: ='[2]5.2 Asset Age Profile'!BR27 -> 0 | BS27: ='[2]5.2 Asset Age Profile'!BS27 -> 1 | BT27: ='[2]5.2 Asset Age Profile'!BT27 -> 1 | BU27: ='[2]5.2 Asset Age Profile'!BU27 -> 1 | BV27: ='[2]5.2 Asset Age Profile'!BV27 -> 0 | BW27: ='[2]5.2 Asset Age Profile'!BW27 -> 0 | BX27: ='[2]5.2 Asset Age Profile'!BX27 -> 0 | BY27: ='[2]5.2 Asset Age Profile'!BY27 -> 0 | BZ27: ='[2]5.2 Asset Age Profile'!BZ27 -> 1 | CA27: ='[2]5.2 Asset Age Profile'!CA27 -> 1 | CB27: ='[2]5.2 Asset Age Profile'!CB27 -> 1 | CC27: ='[2]5.2 Asset Age Profile'!CC27 -> 1 | CD27: ='[2]5.2 Asset Age Profile'!CD27 -> 0 | CE27: ='[2]5.2 Asset Age Profile'!CE27 -> 3 | CF27: ='[2]5.2 Asset Age Profile'!CF27 -> 0 | CG27: ='[2]5.2 Asset Age Profile'!CG27 -> 3 | CH27: ='[2]5.2 Asset Age Profile'!CH27 -> 0 | CI27: ='[2]5.2 Asset Age Profile'!CI27 -> 2 | CJ27: ='[2]5.2 Asset Age Profile'!CJ27 -> 0 | CK27: ='[2]5.2 Asset Age Profile'!CK27 -> 0 | CL27: ='[2]5.2 Asset Age Profile'!CL27 -> 2 | CM27: ='[2]5.2 Asset Age Profile'!CM27 -> 10 | CN27: ='[2]5.2 Asset Age Profile'!CN27 -> 2 | CO27: ='[2]5.2 Asset Age Profile'!CO27 -> 0 | CP27: ='[2]5.2 Asset Age Profile'!CP27 -> 0 | CQ27: ='[2]5.2 Asset Age Profile'!CQ27 -> 0 | CR27: ='[2]5.2 Asset Age Profile'!CR27 -> 3 | CS27: ='[2]5.2 Asset Age Profile'!CS27 -> 1 | CT27: ='[2]5.2 Asset Age Profile'!CT27 -> 0 | CU27: ='[2]5.2 Asset Age Profile'!CU27 -> 2 | CV27: ='[2]5.2 Asset Age Profile'!CV27 -> 0 | CW27: ='[2]5.2 Asset Age Profile'!CW27 -> 72 | CX27: ='[2]5.2 Asset Age Profile'!CX27 -> 0 | CY27: ='[2]5.2 Asset Age Profile'!CY27 -> 0 | CZ27: ='[2]5.2 Asset Age Profile'!CZ27 -> 0 | DA27: ='[2]5.2 Asset Age Profile'!DA27 -> 0 | DB27: ='[2]5.2 Asset Age Profile'!DB27 -> 0 | DC27: ='[2]5.2 Asset Age Profile'!DC27 -> 0 | DD27: ='[2]5.2 Asset Age Profile'!DD27 -> 0 | DE27: ='[2]5.2 Asset Age Profile'!DE27 -> 0 | DF27: ='[2]5.2 Asset Age Profile'!DF27 -> 0 | DG27: ='[2]5.2 Asset Age Profile'!DG27 -> 0 | DH27: ='[2]5.2 Asset Age Profile'!DH27 -> 0 | DI27: ='[2]5.2 Asset Age Profile'!DI27 -> 0 | DJ27: ='[2]5.2 Asset Age Profile'!DJ27 -> 1 | DK27: ='[2]5.2 Asset Age Profile'!DK27 -> 0 | DL27: ='[2]5.2 Asset Age Profile'!DL27 -> 0 | DM27: ='[2]5.2 Asset Age Profile'!DM27 -> 0 | DN27: ='[2]5.2 Asset Age Profile'!DN27 -> 0 | DO27: ='[2]5.2 Asset Age Profile'!DO27 -> 0 | DP27: ='[2]5.2 Asset Age Profile'!DP27 -> 0 | DQ27: ='[2]5.2 Asset Age Profile'!DQ27 -> 0 | DR27: ='[2]5.2 Asset Age Profile'!DR27 -> 0 | DS27: ='[2]5.2 Asset Age Profile'!DS27 -> 9 | DT27: ='[2]5.2 Asset Age Profile'!DT27 -> 0 | DU27: ='[2]5.2 Asset Age Profile'!DU27 -> 0 | DV27: ='[2]5.2 Asset Age Profile'!DV27 -> 0 | DW27: ='[2]5.2 Asset Age Profile'!DW27 -> 0 | DX27: ='[2]5.2 Asset Age Profile'!DX27 -> 0 | DY27: ='[2]5.2 Asset Age Profile'!DY27 -> 0 | DZ27: ='[2]5.2 Asset Age Profile'!DZ27 -> 0 | EA27: ='[2]5.2 Asset Age Profile'!EA27 -> 0 | EB27: ='[2]5.2 Asset Age Profile'!EB27 -> 0 | EC27: ='[2]5.2 Asset Age Profile'!EC27 -> 0 | ED27: ='[2]5.2 Asset Age Profile'!ED27 -> 0 | EE27: ='[2]5.2 Asset Age Profile'!EE27 -> 0 | EF27: ='[2]5.2 Asset Age Profile'!EF27 -> 0 | EG27: ='[2]5.2 Asset Age Profile'!EG27 -> 0 | EH27: ='[2]5.2 Asset Age Profile'!EH27 -> 0 | EI27: ='[2]5.2 Asset Age Profile'!EI27 -> 0 | EJ27: ='[2]5.2 Asset Age Profile'!EJ27 -> 0
